Workbook

Sheet Instructions
B1: General Instructions to Complete the Annual Financial Statement Workbook
A3: a) | B3: This workbook is composed of several individual worksheets to complete the Annual Financial Statement.
A4: b) | B4: It is designed to automatically calculate linked schedules from each of the data entry points.
A5: c) | B5: The individual spreadsheets containing formulas are locked to protect the formulas.
A6: d) | B6: Fill in only the gray sections of the worksheet.
A7: e) | B7: Begin by navigating to the "Key Inputs" tab.
A8: f) | B8: Select the Municipality or County by clicking on the arrow on the right side of cell D8. This will populate the municipality/county and dates throughout the workbook. Continue to complete each of the fields in order to populate throughout the workbook. Enter the exact number of utilities and the utility types. Do not skip sets of utility pages.
A9: g) | B9: In all applicable signature lines insert the email address of the applicable official.
A10: h) | B10: The completed AFS must be submitted to the Division via the FAST portal with a file name of: xxxx_afs_20xx.xlsm (provide 4 digits municode and year). It must be saved as a Macro-Enabled Workbook.
A11: i) | B11: Only the Chief Financial Officer has access to the "Submit for Review" tab within the FAST portal.
A12: j) | B12: If copying data from a prior workbook, copy and use Paste Values to preserve formatting.
A13: k) | B13: On the Key Inputs tab, users can select "Standard" or "Expanded" for a variety of sections to reduce the number of unused pages throughout the document. The following sheets can be adjusted: 6, 6b, 9a, 10, 11, 12, 17a, 20, 35, and 37. All sections are preset to "Standard" and should only be switched to "Expanded" if more pages are needed.
B14: Quick Guide:
B15: https://www.nj.gov/dca/divisions/dlgs/pdf/FAST%20AFS%20Quick%20User%20Guide.pdf

Sheet 69 - Instructions (hidden)
B2: INSTRUCTIONS IN PREPARATION OF
B3: ="ANNUAL FINANCIAL STATEMENT OF "&TEXT('KEY INPUTS'!D34,"0") -> ANNUAL FINANCIAL STATEMENT OF 2023
C5: The arrangement of the schedules is shown by the index appearing at the bottom hereof. The statement is prepared
B6: on a full cash basis. Any variations from a full cash basis must be taken up with the Division in advance of the preparation
B7: of the statement and the budget.
C9: Summary statements only of debt service are required. The use of summarized forms is permitted to conserve time.
B10: Responsibility for the supporting detail is placed on the Chief Financial Officer who must be in a position to support the
B11: summarized figures.
C13: No sheets should be eliminated, except utility fund sheets under the conditions stipulated on sheet 2. Those sheets
B14: not filled in should be marked "Not Applicable".
B17: INDEX
B19: 1, 1a, & 1b. | D19: Certification and Affidavit
B20: 1c. | D20: Municipal Budget Local Examination Certification
B21: 1d. | D21: Report of Federal and State Financial Assistance Expenditures of Awards
B22: 2. | D22: Instructions and Certification
B23: 3 & 3a | D23: Trial Balance-Current Fund
B24: 4. | D24: Trial Balance-Public Assistance Fund
B25: 5. | D25: Trial Balance-Federal and State Funds
B26: 6 & 6b. | D26: Trial Balance-Trust Funds/ Schedule of Trust Fund Deposits and Reserves
B27: 6a. | D27: Municipal Public Defender -- P.L. 1998, C. 256
B28: 7. | D28: Analysis of Trust Assessment Cash and Investments Pledged to Liabilities and Surplus
B29: 8. | D29: Trial Balance-Capital Fund
B30: 9 & 9a. | D30: Cash Reconciliation
B31: 10. | D31: Federal and State Grants Receivable
B32: 11 & 11a. | D32: Appropriated Reserves for Federal and State Grants
B33: 12. | D33: Unappropriated Reserves for Federal and State Grants
B34: 13. | D34: Local District School Tax-Municipal Open Space Tax
B35: 14. | D35: Regional School Tax-Regional High School Tax
B36: 15. | D36: County Taxes Payable-Special District Taxes
B37: 17 & 17a. | D37: General Budget Revenues
B38: 17. | D38: Allocation of Current Tax Collections
B39: 18. | D39: General Budget Appropriations
B40: 18. | D40: Emergency Appropriations for Local District School Purposes
B41: 19. | D41: ="Results of "&TEXT('KEY INPUTS'!D34,"0")&" Operation-Current Fund" -> Results of 2023 Operation-Current Fund
B42: 20. | D42: Schedule of Miscellaneous Revenues Not Anticipated
B43: 21. | D43: Surplus Account and Analysis of Balance
B44: 22. | D44: Current Tax Levy
B45: 22a. | D45: ="Accelerated Tax Sale/Tax Levy Sale Chapter 99 To Calculate Underlying Tax Collection Rate for "&TEXT('KEY INPUTS'!D34,"0") -> Accelerated Tax Sale/Tax Levy Sale Chapter 99 To Calculate Underlying Tax Collection Rate for 2023
B46: 23. | D46: Due from/to State of New Jersey for Senior Citizens and Veterans Deductions
B47: 24. | D47: Reserve for Tax Appeals Pending-N.J. Division of Tax Appeals (N.J.S.A. 54:3-37)
B48: 25. | D48: Municipal Budget-Computation of "Reserve for Uncollected Taxes" and "Amount to be Raised by Taxation"
B49: 25a. | D49: Accelerated Tax Sale - Chapter 99. Calculation to Utilize Proceeds in Current Budget as Deduction to Reserve
D50: for Uncollected Taxes Appropriation
B51: 26. | D51: Delinquent Taxes and Tax Title Liens
B52: 27. | D52: Foreclosed Property; Contract Sales; Mortgage Sales
B53: 28. | D53: Deferred Charges and List of Judgments-Current
B54: 29. | D54: Emergency-Tax Map; Revaluation; Master Plan; Revisions and Codification of Ordinance; Drainage Maps for
D55: Flood Control; Preliminary Studies, etc. for Sanitary Sewer Systems, Municipal Consolidation Act; Flood or
D56: Hurricane Damage
B57: 30. | D57: Emergency - Damage to Roads and Bridges by Snow, Ice, etc.; Public Exigencies Caused by Civil Disturbances
B58: 31 &31a. | D58: Summary Statement of Debt Service Requirements-Municipal (or County)
B59: 32. | D59: Summary Statement of Debt Service Requirements-School-Type I and Current
B60: 33. | D60: Debt Service for Notes (Other than Assessment Notes)
B61: 34 & 34a. | D61: Debt Service for Assessment Notes/ Schedule of Capital Lease Program Obligations
B62: 35 & 35a. | D62: Improvement Authorizations
B63: 36. | D63: Capital Improvement Fund
B64: 37. | D64: Down Payment
B65: 37. | D65: ="Capital Improvements Authorized in "&TEXT('KEY INPUTS'!D34,"0") -> Capital Improvements Authorized in 2023
B66: 38. | D66: General Capital Surplus, Bond Covenants
B67: 39. | D67: Required Information (N.J.S.A. 52:27BB-55 as amended by Chap. 211, P.L. 1981)
B69: UTILITIES ONLY
B70: 40. | D70: Instructions
B71: 41 & 55. | D71: Trial Balance-Utility Fund
B72: 42 & 56. | D72: Trial Balance-Utility Assessment Trust Funds
B73: 43 & 57. | D73: Analysis of Utility Assessment Trust Cash and Investments Pledged to Liabilities and Surplus
B74: 44 & 58. | D74: Utility Revenues and Appropriations
B75: 45 & 59. | D75: =TEXT('KEY INPUTS'!D34,"0")&" Utility Operations" -> 2023 Utility Operations
B76: 46 & 60. | D76: Results of Operation, Operating Surplus and Analysis
B77: 47 & 61. | D77: Utility Accounts Receivable; Utility Liens
B78: 48 & 62. | D78: Deferred Charges and List of Judgments-Utility
B79: 49 & 63. | D79: Summary Statement of Debt Service Requirements
B80: 49a & 63a. | D80: Summary Statement of Loan Requirements
B81: 50 & 64. | D81: Debt Service for Utility Notes (Other than Utility Assessment Notes)
B82: 51 & 65. | D82: Debt Service for Utility Assessment Notes
B83: 51a & 65a. | D83: Schedule of Capital Lease Program Obligations
B84: 52 & 66. | D84: Improvement Authorizations (Utility Capital)
B85: 53 & 67. | D85: Capital Improvement Fund and Down Payments
B86: 54 & 68. | D86: ="Utility Capital Improvements Authorized in "&TEXT('KEY INPUTS'!D34,"0")&"; Utility Capital Surplus" -> Utility Capital Improvements Authorized in 2023; Utility Capital Surplus
B87: Sheet 69

Sheet KEY INPUTS
C2: Annual Financial Statement - Key Inputs
C3: Municipal and County AFS Version 2023.0 | AB3: DLGS
C4: **PLEASE NOTE: Many of the features on this page rely on the use of macros. Because of the nature of this functionality, using the options available on this tab will
C5: cause the screen to "shake" or "flash" momentarily. This is a byproduct of such functionality being run across all pages of the document.**
C6: Required Information | D6: Responses and Data | F6: Select Local Government Entity Type (Muni or County): | R6: Muncode | S6: Town | T6: County | U6: Town Name | V6: Name of Municipality | W6: Muniname | X6: Type of Government | Y6: Governing Body Members | Z6: Governing Body Type | AA6: 2020 Census Population
F7: Municipality | Q7: 1 | R7: 0000 | S7: MUNICIPALITY | T7: COUNTY | U7: PLEASE SELECT A MUNICIPALITY/COUNTY | V7: MUNICIPALITY/COUNTY | W7: MUNICIPALITY
C8: Name and County of Municipality | D8: 457 | E8: *Counties will be listed after all Municipalities in the dropdown menu in cell D8. | Q8: 2 | R8: 1330 | S8: Aberdeen Township | T8: Monmouth | U8: Aberdeen Township, Monmouth County | V8: Aberdeen Township | W8: Aberdeen | X8: Township | Y8: Council Members | Z8: Mayor-6 Council Members | AA8: 19,329
C9: Full Name of Municipality/County | D9: =UPPER(VLOOKUP($D$8,$Q$7:$X$593,8,FALSE)&" Of "&VLOOKUP($D$8,$Q$7:$X$593,7,FALSE)) -> TOWNSHIP OF SHREWSBURY | Q9: =Q8+1 -> 3 | R9: 0101 | S9: Absecon City | T9: Atlantic | U9: Absecon City, Atlantic County | V9: Absecon | W9: Absecon | X9: City | Y9: Council Members | Z9: Mayor-7 Council Members | AA9: 9,137
C10: County of Municipality / County | D10: =UPPER(VLOOKUP($D$8,$Q$7:$X$593,4,FALSE)) -> MONMOUTH | Q10: =Q9+1 -> 4 | R10: 1001 | S10: Alexandria Township | T10: Hunterdon | U10: =S10&", "&T10&" County" -> Alexandria Township, Hunterdon County | V10: Alexandria Township | W10: Alexandria | X10: Township | Y10: Committeepersons | Z10: 3 Committee Members | AA10: 4,809
C11: Name of Municipality / County | D11: =UPPER(VLOOKUP($D$8,$Q$7:$X$593,7,FALSE)) -> SHREWSBURY | Q11: 5 | R11: 2101 | S11: Allamuchy Township | T11: Warren | U11: =S11&", "&T11&" County" -> Allamuchy Township, Warren County | V11: Allamuchy Township | W11: Allamuchy | X11: Township | Y11: Council Members | Z11: Mayor-4 Council Members | AA11: 5,335
C12: Type | D12: =UPPER(VLOOKUP($D$8,$Q$7:$X$593,8,FALSE)) -> TOWNSHIP | Q12: 6 | R12: 0201 | S12: Allendale Borough | T12: Bergen | U12: Allendale Borough, Bergen County | V12: Allendale | W12: Allendale | X12: Borough | Y12: Council Members | Z12: Mayor-6 Council Members | AA12: 6,848
C13: Federal ID # | D13: 21-6008355 | Q13: 7 | R13: 1301 | S13: Allenhurst Borough | T13: Monmouth | U13: Allenhurst Borough, Monmouth County | V13: Allenhurst | W13: Allenhurst | X13: Borough | Y13: Commissioners | Z13: 3 Commissioners | AA13: 472
C14: Governing Body Type | D14: =UPPER(VLOOKUP($D$8,$Q$7:$Z$593,9,FALSE)) -> COMMITTEEPERSONS | Q14: 8 | R14: 1302 | S14: Allentown Borough | T14: Monmouth | U14: Allentown Borough, Monmouth County | V14: Allentown | W14: Allentown | X14: Borough | Y14: Council Members | Z14: Mayor-6 Council Members | AA14: 1,734
Q15: 9 | R15: 1701 | S15: Alloway Township | T15: Salem | U15: Alloway Township, Salem County | V15: Alloway Township | W15: Alloway | X15: Township | Y15: Committeepersons | Z15: 3 Committee Members | AA15: 3,283
C16: Address | D16: 1979 Crawford Street | Q16: 10 | R16: 2102 | S16: Alpha Borough | T16: Warren | U16: Alpha Borough, Warren County | V16: Alpha | W16: Alpha | X16: Borough | Y16: Council Members | Z16: Mayor-6 Council Members | AA16: 2,328
C17: Address | D17: Shrewsbury Township, New Jersey 07734 | Q17: 11 | R17: 0202 | S17: Alpine Borough | T17: Bergen | U17: Alpine Borough, Bergen County | V17: Alpine | W17: Alpine | X17: Borough | Y17: Council Members | Z17: Mayor-6 Council Members | AA17: 1,762
C18: Phone | D18: 732-542-0572 | Q18: 12 | R18: 1901 | S18: Andover Borough | T18: Sussex | U18: Andover Borough, Sussex County | V18: Andover | W18: Andover | X18: Borough | Y18: Council Members | Z18: Mayor-6 Council Members | AA18: 595
C19: Fax | D19: 732-542-1348 | Q19: 13 | R19: 1902 | S19: Andover Township | T19: Sussex | U19: Andover Township, Sussex County | V19: Andover Township | W19: Andover | X19: Township | Y19: Committeepersons | Z19: 5 Committee Members | AA19: 5,996
E20: Certificate # | Q20: 14 | R20: 1303 | S20: Asbury Park City | T20: Monmouth | U20: Asbury Park City, Monmouth County | V20: Asbury Park | W20: Asbury Park | X20: City | Y20: Council Members | Z20: 5 Council Members | AA20: 15,188
C21: Chief Financial Officer | D21: Catherine LaPorta | E21: N-1667 | Q21: 15 | R21: 0102 | S21: Atlantic City City | T21: Atlantic | U21: Atlantic City City, Atlantic County | V21: Atlantic City | W21: Atlantic City | X21: City | Y21: Council Members | Z21: Mayor-9 Council Members | AA21: 38,497
C22: Registered Municipal Accountant | D22: Charles J. Fallon | F22: Leave blank if CFO prepared | Q22: 16 | R22: 1304 | S22: Atlantic Highlands Borough | T22: Monmouth | U22: Atlantic Highlands Borough, Monmouth County | V22: Atlantic Highlands | W22: Atlantic Highlands | X22: Borough | Y22: Council Members | Z22: Mayor-6 Council Members | AA22: 4,414
C23: Year Ending | D23: 2023-12-31 | Q23: 17 | R23: 0401 | S23: Audubon Borough | T23: Camden | U23: Audubon Borough, Camden County | V23: Audubon | W23: Audubon | X23: Borough | Y23: Commissioners | Z23: 3 Commissioners | AA23: 8,707
Q24: 18 | R24: 0402 | S24: Audubon Park Borough | T24: Camden | U24: Audubon Park Borough, Camden County | V24: Audubon Park | W24: Audubon Park | X24: Borough | Y24: Council Members | Z24: Mayor-6 Council Members | AA24: 991
C25: DATES | D25: ="Balance - January 1, "&D34 -> Balance - January 1, 2023 | F25: ="Balance - July 1, "&D34&"" -> Balance - July 1, 2023 | Q25: 19 | R25: 0501 | S25: Avalon Borough | T25: Cape May | U25: Avalon Borough, Cape May County | V25: Avalon | W25: Avalon | X25: Borough | Y25: Council Members | Z25: Mayor-5 Council Members | AA25: 1,243
D26: ="Balance - December 31, "&D34 -> Balance - December 31, 2023 | F26: ="Balance - June 30, "&D33&"" -> Balance - June 30, 2024 | Q26: 20 | R26: 1305 | S26: Avon-by-the-Sea Borough | T26: Monmouth | U26: Avon-by-the-Sea Borough, Monmouth County | V26: Avon-by-the-Sea | W26: Avon-by-the-Sea | X26: Borough | Y26: Commissioners | Z26: 3 Commissioners | AA26: 1,933
D27: ="Outstanding - January 1, "&D34 -> Outstanding - January 1, 2023 | F27: ="Outstanding - July 1, "&D34&"" -> Outstanding - July 1, 2023 | Q27: 21 | R27: 1501 | S27: Barnegat Light Borough | T27: Ocean | U27: Barnegat Light Borough, Ocean County | V27: Barnegat Light | W27: Barnegat Light | X27: Borough | Y27: Council Members | Z27: Mayor-6 Council Members | AA27: 640
D28: ="Outstanding - December 31, "&D34 -> Outstanding - December 31, 2023 | F28: ="Outstanding - June 30, "&D33&"" -> Outstanding - June 30, 2024 | Q28: 22 | R28: 1533 | S28: Barnegat Township | T28: Ocean | U28: Barnegat Township, Ocean County | V28: Barnegat Township | W28: Barnegat | X28: Township | Y28: Committeepersons | Z28: 5 Committee Members | AA28: 24,296
C29: Year End | D29: =DATE(D34,12,31) -> 2023-12-31 | F29: =DATE(D33,6,30) -> 2024-06-30 | Q29: 23 | R29: 0403 | S29: Barrington Borough | T29: Camden | U29: Barrington Borough, Camden County | V29: Barrington | W29: Barrington | X29: Borough | Y29: Council Members | Z29: Mayor-6 Council Members | AA29: 7,075
C30: Next Year End | D30: =DATE(D33,12,31) -> 2024-12-31 | F30: =DATE(D33+1,6,30) -> 2025-06-30 | Q30: 24 | R30: 0301 | S30: Bass River Township | T30: Burlington | U30: Bass River Township, Burlington County | V30: Bass River Township | W30: Bass River | X30: Township | Y30: Commissioners | Z30: 3 Commissioners | AA30: 1,355
Q31: 25 | R31: 1502 | S31: Bay Head Borough | T31: Ocean | U31: Bay Head Borough, Ocean County | V31: Bay Head | W31: Bay Head | X31: Borough | Y31: Council Members | Z31: Mayor-6 Council Members | AA31: 930
Q32: 26 | R32: 0901 | S32: Bayonne City | T32: Hudson | U32: Bayonne City, Hudson County | V32: Bayonne | W32: Bayonne | X32: City | Y32: Council Members | Z32: Mayor-5 Council Members | AA32: 71,686
C33: Budget Year | D33: 2024 | Q33: 27 | R33: 1503 | S33: Beach Haven Borough | T33: Ocean | U33: Beach Haven Borough, Ocean County | V33: Beach Haven | W33: Beach Haven | X33: Borough | Y33: Council Members | Z33: 5 Council Members | AA33: 1,027
C34: AFS Year | D34: =D33-1 -> 2023 | Q34: 28 | R34: 1504 | S34: Beachwood Borough | T34: Ocean | U34: Beachwood Borough, Ocean County | V34: Beachwood | W34: Beachwood | X34: Borough | Y34: Council Members | Z34: Mayor-6 Council Members | AA34: 10,859
C35: PY | D35: =D34-1 -> 2022 | Q35: 29 | R35: 1801 | S35: Bedminster Township | T35: Somerset | U35: Bedminster Township, Somerset County | V35: Bedminster Township | W35: Bedminster | X35: Township | Y35: Committeepersons | Z35: 5 Committee Members | AA35: 8,272
Q36: 30 | R36: 0701 | S36: Belleville Township | T36: Essex | U36: Belleville Township, Essex County | V36: Belleville Township | W36: Belleville | X36: Township | Y36: Council Members | Z36: 7 Council Members | AA36: 38,222
C37: Population Last Census (2020) | D37: =VLOOKUP(D8,$Q$7:$AA$593,11,FALSE) -> 1,076 | Q37: 31 | R37: 0404 | S37: Bellmawr Borough | T37: Camden | U37: Bellmawr Borough, Camden County | V37: Bellmawr | W37: Bellmawr | X37: Borough | Y37: Council Members | Z37: Mayor-6 Council Members | AA37: 11,707
C38: ="Net Valuation Taxable "&D34 -> Net Valuation Taxable 2023 | D38: 94,220,134 | Q38: 32 | R38: 1306 | S38: Belmar Borough | T38: Monmouth | U38: Belmar Borough, Monmouth County | V38: Belmar | W38: Belmar | X38: Borough | Y38: Council Members | Z38: Mayor-4 Council Members | AA38: 5,907
C39: Muni Code | D39: =VLOOKUP($D$8,$Q$7:$R$593,2,FALSE) -> 1346 | Q39: 33 | R39: 2103 | S39: Belvidere Town | T39: Warren | U39: Belvidere Town, Warren County | V39: Belvidere | W39: Belvidere | X39: Town | Y39: Council Members | Z39: Mayor-6 Council Members | AA39: 2,520
Q40: 34 | R40: 0203 | S40: Bergenfield Borough | T40: Bergen | U40: Bergenfield Borough, Bergen County | V40: Bergenfield | W40: Bergenfield | X40: Borough | Y40: Council Members | Z40: Mayor-6 Council Members | AA40: 28,321
C41: SELECT FISCAL YEAR TYPE: | D41: CALENDAR YEAR MUNICIPALITIES | F41: STATE FISCAL YEAR MUNICIPALITIES | Q41: 35 | R41: 2001 | S41: Berkeley Heights Township | T41: Union | U41: Berkeley Heights Township, Union County | V41: Berkeley Heights Township | W41: Berkeley Heights | X41: Township | Y41: Council Members | Z41: Mayor-6 Council Members | AA41: 13,285
C42: Calendar | D42: ="ANNUAL FINANCIAL STATEMENT FOR THE YEAR "&D34&"" -> ANNUAL FINANCIAL STATEMENT FOR THE YEAR 2023 | F42: ="ANNUAL FINANCIAL STATEMENT FOR THE YEAR "&D33&"" -> ANNUAL FINANCIAL STATEMENT FOR THE YEAR 2024 | Q42: 36 | R42: 1505 | S42: Berkeley Township | T42: Ocean | U42: Berkeley Township, Ocean County | V42: Berkeley Township | W42: Berkeley | X42: Township | Y42: Council Members | Z42: Mayor-7 Council Members | AA42: 43,754
D43: ="COUNTIES - JANUARY 26, "&D33&"" -> COUNTIES - JANUARY 26, 2024 | Q43: 37 | R43: 0405 | S43: Berlin Borough | T43: Camden | U43: Berlin Borough, Camden County | V43: Berlin | W43: Berlin | X43: Borough | Y43: Council Members | Z43: Mayor-6 Council Members | AA43: 7,489
D44: ="MUNICIPALITIES - FEBRUARY 10, "&D33 -> MUNICIPALITIES - FEBRUARY 10, 2024 | F44: ="MUNICIPALITIES - AUGUST 10, "&D33&"" -> MUNICIPALITIES - AUGUST 10, 2024 | Q44: 38 | R44: 0406 | S44: Berlin Township | T44: Camden | U44: Berlin Township, Camden County | V44: Berlin Township | W44: Berlin | X44: Township | Y44: Council Members | Z44: Mayor-4 Council Members | AA44: 5,867
D45: ="AS AT DECEMBER 31, "&D34 -> AS AT DECEMBER 31, 2023 | F45: ="AS AT JUNE 30, "&D33&"" -> AS AT JUNE 30, 2024 | Q45: 39 | R45: 1802 | S45: Bernards Township | T45: Somerset | U45: Bernards Township, Somerset County | V45: Bernards Township | W45: Bernards | X45: Township | Y45: Committeepersons | Z45: 5 Committee Members | AA45: 27,830
D46: ="Dec. 31, "&D35 -> Dec. 31, 2022 | F46: ="June 30, "&D34&"" -> June 30, 2023 | Q46: 40 | R46: 1803 | S46: Bernardsville Borough | T46: Somerset | U46: Bernardsville Borough, Somerset County | V46: Bernardsville | W46: Bernardsville | X46: Borough | Y46: Council Members | Z46: Mayor-6 Council Members | AA46: 7,893
D47: ="Dec. 31, "&D34 -> Dec. 31, 2023 | F47: ="June 30, "&D33&"" -> June 30, 2024 | Q47: 41 | R47: 1002 | S47: Bethlehem Township | T47: Hunterdon | U47: Bethlehem Township, Hunterdon County | V47: Bethlehem Township | W47: Bethlehem | X47: Township | Y47: Committeepersons | Z47: 5 Committee Members | AA47: 3,745
D48: ="Jan. 1, "&D34 -> Jan. 1, 2023 | F48: ="July 1, "&D34&"" -> July 1, 2023 | Q48: 42 | R48: 0302 | S48: Beverly City | T48: Burlington | U48: Beverly City, Burlington County | V48: Beverly | W48: Beverly | X48: City | Y48: Council Members | Z48: Mayor-9 Council Members | AA48: 2,499
D49: ="YEAR - "&D35 -> YEAR - 2022 | F49: ="YEAR - "&D35 -> YEAR - 2022 | Q49: 43 | R49: 2104 | S49: Blairstown Township | T49: Warren | U49: Blairstown Township, Warren County | V49: Blairstown Township | W49: Blairstown | X49: Township | Y49: Committeepersons | Z49: 5 Committee Members | AA49: 5,704
D50: ="YEAR - "&D34 -> YEAR - 2023 | F50: ="YEAR - "&D34 -> YEAR - 2023 | Q50: 44 | R50: 0702 | S50: Bloomfield Township | T50: Essex | U50: Bloomfield Township, Essex County | V50: Bloomfield Township | W50: Bloomfield | X50: Township | Y50: Council Members | Z50: Mayor-6 Council Members | AA50: 53,105
Q51: 45 | R51: 1601 | S51: Bloomingdale Borough | T51: Passaic | U51: Bloomingdale Borough, Passaic County | V51: Bloomingdale | W51: Bloomingdale | X51: Borough | Y51: Council Members | Z51: Mayor-6 Council Members | AA51: 7,777
D52: HOW MANY UTILITIES DOES THE ENTITY HAVE: | E52: 0 | F52: Select "0" if you do not have any utilities. | Q52: 46 | R52: 1003 | S52: Bloomsbury Borough | T52: Hunterdon | U52: Bloomsbury Borough, Hunterdon County | V52: Bloomsbury | W52: Bloomsbury | X52: Borough | Y52: Council Members | Z52: Mayor-6 Council Members | AA52: 792
D53: UTILITY NAME(S) | Q53: 47 | R53: 0204 | S53: Bogota Borough | T53: Bergen | U53: Bogota Borough, Bergen County | V53: Bogota | W53: Bogota | X53: Borough | Y53: Council Members | Z53: Mayor-6 Council Members | AA53: 8,778
C54: UTILITY 1 | Q54: 48 | R54: 1401 | S54: Boonton Town | T54: Morris | U54: Boonton Town, Morris County | V54: Boonton | W54: Boonton | X54: Town | Y54: Alderpersons | Z54: Mayor-8 Alder Persons | AA54: 8,815
C55: UTILITY 2 | Q55: 49 | R55: 1402 | S55: Boonton Township | T55: Morris | U55: Boonton Township, Morris County | V55: Boonton Township | W55: Boonton | X55: Township | Y55: Committeepersons | Z55: 5 Committee Members | AA55: 4,380
C56: UTILITY 3 | Q56: 50 | R56: 0303 | S56: Bordentown City | T56: Burlington | U56: Bordentown City, Burlington County | V56: Bordentown | W56: Bordentown | X56: City | Y56: Commissioners | Z56: 3 Commissioners | AA56: 3,993
C57: UTILITY 4 | Q57: 51 | R57: 0304 | S57: Bordentown Township | T57: Burlington | U57: Bordentown Township, Burlington County | V57: Bordentown Township | W57: Bordentown | X57: Township | Y57: Committeepersons | Z57: 5 Committee Members | AA57: 11,791
C58: UTILITY 5 | Q58: 52 | R58: 1804 | S58: Bound Brook Borough | T58: Somerset | U58: Bound Brook Borough, Somerset County | V58: Bound Brook | W58: Bound Brook | X58: Borough | Y58: Council Members | Z58: Mayor-6 Council Members | AA58: 11,988
C59: UTILITY 6 | Q59: 53 | R59: 1307 | S59: Bradley Beach Borough | T59: Monmouth | U59: Bradley Beach Borough, Monmouth County | V59: Bradley Beach | W59: Bradley Beach | X59: Borough | Y59: Council Members | Z59: Mayor-4 Council Members | AA59: 4,282
Q60: 54 | R60: 1805 | S60: Branchburg Township | T60: Somerset | U60: Branchburg Township, Somerset County | V60: Branchburg Township | W60: Branchburg | X60: Township | Y60: Committeepersons | Z60: 5 Committee Members | AA60: 14,940
D61: PAGE COUNT - SELECT STANDARD OR EXPANDED: | F61: Start with "Standard" and move to "Expanded" only as needed: | Q61: 55 | R61: 1903 | S61: Branchville Borough | T61: Sussex | U61: Branchville Borough, Sussex County | V61: Branchville | W61: Branchville | X61: Borough | Y61: Council Members | Z61: Mayor-6 Council Members | AA61: 791
D62: SHEET 6 (Trust Fund Trial Balance) | E62: Standard | F62: "Standard" provides four (4) sheets for Trust Fund Trial Balance. | Q62: 56 | R62: 1506 | S62: Brick Township | T62: Ocean | U62: Brick Township, Ocean County | V62: Brick Township | W62: Brick | X62: Township | Y62: Council Members | Z62: Mayor-7 Council Members | AA62: 73,620
D63: SHEET 6B (Schedule of Trust Fund Deposits and Reserves) | E63: Standard | F63: "Standard" provides two (2) sheets for Schedule of Trust Reserves. | Q63: 57 | R63: 0601 | S63: Bridgeton City | T63: Cumberland | U63: Bridgeton City, Cumberland County | V63: Bridgeton | W63: Bridgeton | X63: City | Y63: Council Members | Z63: Mayor-5 Council Members | AA63: 27,263
D64: SHEET 9A (List of Banks Supporting 'Cash On Deposit') | E64: Standard | F64: "Standard" provides two (2) sheets for List of Banks. | Q64: 58 | R64: 1806 | S64: Bridgewater Township | T64: Somerset | U64: Bridgewater Township, Somerset County | V64: Bridgewater Township | W64: Bridgewater | X64: Township | Y64: Council Members | Z64: Mayor-5 Council Members | AA64: 45,977
D65: SHEET 10 (Grants Receivable) | E65: Standard | F65: "Standard" provides three (3) sheets for Grants Receivable. | Q65: 59 | R65: 1308 | S65: Brielle Borough | T65: Monmouth | U65: Brielle Borough, Monmouth County | V65: Brielle | W65: Brielle | X65: Borough | Y65: Council Members | Z65: Mayor-6 Council Members | AA65: 4,982
D66: SHEET 11 (Grants Appropriated) | E66: Standard | F66: "Standard" provides four (4) sheets Grants Appropriated. | Q66: 60 | R66: 0103 | S66: Brigantine City | T66: Atlantic | U66: Brigantine City, Atlantic County | V66: Brigantine | W66: Brigantine | X66: City | Y66: Council Members | Z66: 7 Council Members | AA66: 7,716
D67: SHEET 12 (Grants Unappropriated) | E67: Standard | F67: "Standard" provides one (1) sheet, "12 Total-Grants Unappropriated". | G67: For sections where "Standard" only displays one (1) sheet, if you originally selected "Expanded" and want to revert to "Standard", data must be entered on the last page of the "Expanded" section, not the first page, as the last page contains the total amounts. | Q67: 61 | R67: 0407 | S67: Brooklawn Borough | T67: Camden | U67: Brooklawn Borough, Camden County | V67: Brooklawn | W67: Brooklawn | X67: Borough | Y67: Council Members | Z67: Mayor-6 Council Members | AA67: 1,815
D68: SHEET 17A (Chapter 159) | E68: Standard | F68: "Standard" provides two (2) sheets for Chapter 159s. | Q68: 62 | R68: 0104 | S68: Buena Borough | T68: Atlantic | U68: Buena Borough, Atlantic County | V68: Buena | W68: Buena | X68: Borough | Y68: Council Members | Z68: Mayor-6 Council Members | AA68: 4,501
D69: SHEET 20 (Miscellaneous Revenues Not Anticipated) | E69: Standard | F69: "Standard" provides one (1) sheet, "20 Total-Misc Rev Not Ant". | Q69: 63 | R69: 0105 | S69: Buena Vista Township | T69: Atlantic | U69: Buena Vista Township, Atlantic County | V69: Buena Vista Township | W69: Buena Vista | X69: Township | Y69: Committeepersons | Z69: 5 Committee Members | AA69: 7,033
D70: SHEET 35 (Improvement Authorizations) | E70: Standard | F70: "Standard" provides four (4) sheets for Improvement Authorizations. | Q70: 64 | R70: 0305 | S70: Burlington City | T70: Burlington | U70: Burlington City, Burlington County | V70: Burlington | W70: Burlington | X70: City | Y70: Council Members | Z70: Mayor-7 Council Members | AA70: 9,743
D71: SHEET 37 (Capital Improvements Authorized) | E71: Standard | F71: "Standard" provides twenty (20) lines for listing improvements. | Q71: 65 | R71: 0306 | S71: Burlington Township | T71: Burlington | U71: Burlington Township, Burlington County | V71: Burlington Township | W71: Burlington | X71: Township | Y71: Council Members | Z71: Mayor-7 Council Members | AA71: 23,983
Q72: 66 | R72: 1403 | S72: Butler Borough | T72: Morris | U72: Butler Borough, Morris County | V72: Butler | W72: Butler | X72: Borough | Y72: Council Members | Z72: Mayor-6 Council Members | AA72: 8,047
Q73: 67 | R73: 1904 | S73: Byram Township | T73: Sussex | U73: Byram Township, Sussex County | V73: Byram Township | W73: Byram | X73: Township | Y73: Council Members | Z73: Mayor-4 Council Members | AA73: 8,028
Q74: 68 | R74: 0703 | S74: Caldwell Borough | T74: Essex | U74: Caldwell Borough, Essex County | V74: Caldwell Borough | W74: Caldwell | X74: Borough | Y74: Council Members | Z74: Mayor-6 Council Members | AA74: 9,027
Q75: =Q74+1 -> 69 | R75: 1004 | S75: Califon Borough | T75: Hunterdon | U75: Califon Borough, Hunterdon County | V75: Califon | W75: Califon | X75: Borough | Y75: Council Members | Z75: Mayor-6 Council Members | AA75: 1,005
Q76: 70 | R76: 0408 | S76: Camden City | T76: Camden | U76: Camden City, Camden County | V76: Camden | W76: Camden | X76: City | Y76: Council Members | Z76: Mayor-7 Council Members | AA76: 71,791
Q77: 71 | R77: 0502 | S77: Cape May City | T77: Cape May | U77: Cape May City, Cape May County | V77: Cape May | W77: Cape May | X77: City | Y77: Council Members | Z77: 5 Council Members | AA77: 2,768
Q78: 72 | R78: 0503 | S78: Cape May Point Borough | T78: Cape May | U78: Cape May Point Borough, Cape May County | V78: Cape May Point | W78: Cape May Point | X78: Borough | Y78: Commissioners | Z78: 3 Commissioners | AA78: 305
Q79: 73 | R79: 0205 | S79: Carlstadt Borough | T79: Bergen | U79: Carlstadt Borough, Bergen County | V79: Carlstadt | W79: Carlstadt | X79: Borough | Y79: Council Members | Z79: Mayor-6 Council Members | AA79: 6,372
Q80: 74 | R80: 1713 | S80: Carneys Point Township | T80: Salem | U80: Carneys Point Township, Salem County | V80: Carneys Point Township | W80: Carneys Point | X80: Township | Y80: Committeepersons | Z80: 5 Committee Members | AA80: 8,637
Q81: 75 | R81: 1201 | S81: Carteret Borough | T81: Middlesex | U81: Carteret Borough, Middlesex County | V81: Carteret | W81: Carteret | X81: Borough | Y81: Council Members | Z81: Mayor-6 Council Members | AA81: 25,326
Q82: 76 | R82: 0704 | S82: Cedar Grove Township | T82: Essex | U82: Cedar Grove Township, Essex County | V82: Cedar Grove Township | W82: Cedar Grove | X82: Township | Y82: Council Members | Z82: 5 Council Members | AA82: 12,980
Q83: 77 | R83: 1404 | S83: Chatham Borough | T83: Morris | U83: Chatham Borough, Morris County | V83: Chatham | W83: Chatham | X83: Borough | Y83: Council Members | Z83: Mayor-6 Council Members | AA83: 9,212
Q84: 78 | R84: 1405 | S84: Chatham Township | T84: Morris | U84: Chatham Township, Morris County | V84: Chatham Township | W84: Chatham | X84: Township | Y84: Committeepersons | Z84: 5 Committee Members | AA84: 10,983
Q85: 79 | R85: 0409 | S85: Cherry Hill Township | T85: Camden | U85: Cherry Hill Township, Camden County | V85: Cherry Hill Township | W85: Cherry Hill | X85: Township | Y85: Council Members | Z85: Mayor-7 Council Members | AA85: 74,553
Q86: 80 | R86: 0410 | S86: Chesilhurst Borough | T86: Camden | U86: Chesilhurst Borough, Camden County | V86: Chesilhurst | W86: Chesilhurst | X86: Borough | Y86: Council Members | Z86: Mayor-6 Council Members | AA86: 1,536
Q87: 81 | R87: 1406 | S87: Chester Borough | T87: Morris | U87: Chester Borough, Morris County | V87: Chester | W87: Chester | X87: Borough | Y87: Council Members | Z87: Mayor-6 Council Members | AA87: 1,681
Q88: 82 | R88: 1407 | S88: Chester Township | T88: Morris | U88: Chester Township, Morris County | V88: Chester Township | W88: Chester | X88: Township | Y88: Council Members | Z88: Mayor-4 Council Members | AA88: 7,713
Q89: 83 | R89: 0307 | S89: Chesterfield Township | T89: Burlington | U89: Chesterfield Township, Burlington County | V89: Chesterfield Township | W89: Chesterfield | X89: Township | Y89: Committeepersons | Z89: 3 Committee Members | AA89: 9,422
Q90: 84 | R90: 0308 | S90: Cinnaminson Township | T90: Burlington | U90: Cinnaminson Township, Burlington County | V90: Cinnaminson Township | W90: Cinnaminson | X90: Township | Y90: Committeepersons | Z90: 5 Committee Members | AA90: 17,064
Q91: 85 | R91: 2002 | S91: Clark Township | T91: Union | U91: Clark Township, Union County | V91: Clark Township | W91: Clark | X91: Township | Y91: Council Members | Z91: Mayor-6 Council Members | AA91: 15,544
Q92: 86 | R92: 0801 | S92: Clayton Borough | T92: Gloucester | U92: Clayton Borough, Gloucester County | V92: Clayton | W92: Clayton | X92: Borough | Y92: Council Members | Z92: Mayor-6 Council Members | AA92: 8,807
Q93: 87 | R93: 0411 | S93: Clementon Borough | T93: Camden | U93: Clementon Borough, Camden County | V93: Clementon | W93: Clementon | X93: Borough | Y93: Council Members | Z93: Mayor-6 Council Members | AA93: 5,338
Q94: 88 | R94: 0206 | S94: Cliffside Park Borough | T94: Bergen | U94: Cliffside Park Borough, Bergen County | V94: Cliffside Park | W94: Cliffside Park | X94: Borough | Y94: Council Members | Z94: Mayor-6 Council Members | AA94: 25,693
Q95: 89 | R95: 1602 | S95: Clifton City | T95: Passaic | U95: Clifton City, Passaic County | V95: Clifton | W95: Clifton | X95: City | Y95: Council Members | Z95: 7 Council Members | AA95: 90,296
Q96: 90 | R96: 1005 | S96: Clinton Town | T96: Hunterdon | U96: Clinton Town, Hunterdon County | V96: Clinton | W96: Clinton | X96: Town | Y96: Council Members | Z96: Mayor-6 Council Members | AA96: 2,773
Q97: 91 | R97: 1006 | S97: Clinton Township | T97: Hunterdon | U97: Clinton Township, Hunterdon County | V97: Clinton Township | W97: Clinton | X97: Township | Y97: Council Members | Z97: Mayor-4 Council Members | AA97: 13,505
Q98: 92 | R98: 0207 | S98: Closter Borough | T98: Bergen | U98: Closter Borough, Bergen County | V98: Closter | W98: Closter | X98: Borough | Y98: Council Members | Z98: Mayor-6 Council Members | AA98: 8,594
Q99: 93 | R99: 0412 | S99: Collingswood Borough | T99: Camden | U99: Collingswood Borough, Camden County | V99: Collingswood | W99: Collingswood | X99: Borough | Y99: Commissioners | Z99: 3 Commissioners | AA99: 14,186
Q100: 94 | R100: 1309 | S100: Colts Neck Township | T100: Monmouth | U100: Colts Neck Township, Monmouth County | V100: Colts Neck Township | W100: Colts Neck | X100: Township | Y100: Committeepersons | Z100: 5 Committee Members | AA100: 9,957
Q101: 95 | R101: 0602 | S101: Commercial Township | T101: Cumberland | U101: Commercial Township, Cumberland County | V101: Commercial Township | W101: Commercial | X101: Township | Y101: Committeepersons | Z101: 3 Committee Members | AA101: 4,669
Q102: 96 | R102: 0106 | S102: Corbin City | T102: Atlantic | U102: Corbin City, Atlantic County | V102: Corbin City | W102: Corbin City | X102: City | Y102: Council Members | Z102: Mayor-3 Council Members | AA102: 471
Q103: 97 | R103: 1202 | S103: Cranbury Township | T103: Middlesex | U103: Cranbury Township, Middlesex County | V103: Cranbury Township | W103: Cranbury | X103: Township | Y103: Committeepersons | Z103: 5 Committee Members | AA103: 3,842
Q104: 98 | R104: 2003 | S104: Cranford Township | T104: Union | U104: Cranford Township, Union County | V104: Cranford Township | W104: Cranford | X104: Township | Y104: Committeepersons | Z104: 5 Committee Members | AA104: 23,847
Q105: 99 | R105: 0208 | S105: Cresskill Borough | T105: Bergen | U105: Cresskill Borough, Bergen County | V105: Cresskill | W105: Cresskill | X105: Borough | Y105: Council Members | Z105: Mayor-6 Council Members | AA105: 9,155
Q106: 100 | R106: 1310 | S106: Deal Borough | T106: Monmouth | U106: Deal Borough, Monmouth County | V106: Deal | W106: Deal | X106: Borough | Y106: Commissioners | Z106: 3 Commissioners | AA106: 900
Q107: 101 | R107: 0603 | S107: Deerfield Township | T107: Cumberland | U107: Deerfield Township, Cumberland County | V107: Deerfield Township | W107: Deerfield | X107: Township | Y107: Committeepersons | Z107: 5 Committee Members | AA107: 3,136
Q108: 102 | R108: 0309 | S108: Delanco Township | T108: Burlington | U108: Delanco Township, Burlington County | V108: Delanco Township | W108: Delanco | X108: Township | Y108: Committeepersons | Z108: 5 Committee Members | AA108: 4,824
Q109: 103 | R109: 1007 | S109: Delaware Township | T109: Hunterdon | U109: Delaware Township, Hunterdon County | V109: Delaware Township | W109: Delaware | X109: Township | Y109: Committeepersons | Z109: 5 Committee Members | AA109: 4,560
Q110: 104 | R110: 0310 | S110: Delran Township | T110: Burlington | U110: Delran Township, Burlington County | V110: Delran Township | W110: Delran | X110: Township | Y110: Council Members | Z110: Mayor-5 Council Members | AA110: 17,882
Q111: 105 | R111: 0209 | S111: Demarest Borough | T111: Bergen | U111: Demarest Borough, Bergen County | V111: Demarest | W111: Demarest | X111: Borough | Y111: Council Members | Z111: Mayor-6 Council Members | AA111: 4,981
Q112: 106 | R112: 0504 | S112: Dennis Township | T112: Cape May | U112: Dennis Township, Cape May County | V112: Dennis Township | W112: Dennis | X112: Township | Y112: Committeepersons | Z112: 5 Committee Members | AA112: 6,285
Q113: 107 | R113: 1408 | S113: Denville Township | T113: Morris | U113: Denville Township, Morris County | V113: Denville Township | W113: Denville | X113: Township | Y113: Council Members | Z113: Mayor-7 Council Members | AA113: 17,107
Q114: 108 | R114: 0802 | S114: Deptford Township | T114: Gloucester | U114: Deptford Township, Gloucester County | V114: Deptford Township | W114: Deptford | X114: Township | Y114: Council Members | Z114: 7 Council Members | AA114: 31,977
Q115: 109 | R115: 1409 | S115: Dover Town | T115: Morris | U115: Dover Town, Morris County | V115: Dover | W115: Dover | X115: Town | Y115: Alderpersons | Z115: Mayor-8 Alder Persons | AA115: 18,460
Q116: 110 | R116: 0604 | S116: Downe Township | T116: Cumberland | U116: Downe Township, Cumberland County | V116: Downe Township | W116: Downe | X116: Township | Y116: Committeepersons | Z116: 3 Committee Members | AA116: 1,399
Q117: 111 | R117: 0210 | S117: Dumont Borough | T117: Bergen | U117: Dumont Borough, Bergen County | V117: Dumont | W117: Dumont | X117: Borough | Y117: Council Members | Z117: Mayor-6 Council Members | AA117: 17,863
Q118: 112 | R118: 1203 | S118: Dunellen Borough | T118: Middlesex | U118: Dunellen Borough, Middlesex County | V118: Dunellen | W118: Dunellen | X118: Borough | Y118: Council Members | Z118: Mayor-6 Council Members | AA118: 7,637
Q119: 113 | R119: 1508 | S119: Eagleswood Township | T119: Ocean | U119: Eagleswood Township, Ocean County | V119: Eagleswood Township | W119: Eagleswood | X119: Township | Y119: Committeepersons | Z119: 3 Committee Members | AA119: 1,722
Q120: 114 | R120: 1008 | S120: East Amwell Township | T120: Hunterdon | U120: East Amwell Township, Hunterdon County | V120: East Amwell Township | W120: East Amwell | X120: Township | Y120: Committeepersons | Z120: 5 Committee Members | AA120: 3,917
Q121: 115 | R121: 1204 | S121: East Brunswick Township | T121: Middlesex | U121: East Brunswick Township, Middlesex County | V121: East Brunswick Township | W121: East Brunswick | X121: Township | Y121: Council Members | Z121: Mayor-5 Council Members | AA121: 49,715
Q122: 116 | R122: 0803 | S122: East Greenwich Township | T122: Gloucester | U122: East Greenwich Township, Gloucester County | V122: East Greenwich Township | W122: East Greenwich | X122: Township | Y122: Committeepersons | Z122: 5 Committee Members | AA122: 11,706
Q123: 117 | R123: 1410 | S123: East Hanover Township | T123: Morris | U123: East Hanover Township, Morris County | V123: East Hanover Township | W123: East Hanover | X123: Township | Y123: Council Members | Z123: Mayor-4 Council Members | AA123: 11,105
Q124: 118 | R124: 0902 | S124: East Newark Borough | T124: Hudson | U124: East Newark Borough, Hudson County | V124: East Newark | W124: East Newark | X124: Borough | Y124: Council Members | Z124: Mayor-6 Council Members | AA124: 2,594
Q125: 119 | R125: 0705 | S125: East Orange City | T125: Essex | U125: East Orange City, Essex County | V125: East Orange | W125: East Orange | X125: City | Y125: Council Members | Z125: Mayor-10 Council Members | AA125: 69,612
Q126: 120 | R126: 0212 | S126: East Rutherford Borough | T126: Bergen | U126: East Rutherford Borough, Bergen County | V126: East Rutherford | W126: East Rutherford | X126: Borough | Y126: Council Members | Z126: Mayor-6 Council Members | AA126: 10,022
Q127: 121 | R127: 1101 | S127: East Windsor Township | T127: Mercer | U127: East Windsor Township, Mercer County | V127: East Windsor Township | W127: East Windsor | X127: Township | Y127: Council Members | Z127: 7 Council Members | AA127: 30,045
Q128: 122 | R128: 0311 | S128: Eastampton Township | T128: Burlington | U128: Eastampton Township, Burlington County | V128: Eastampton Township | W128: Eastampton | X128: Township | Y128: Council Members | Z128: 5 Council Members | AA128: 6,191
Q129: 123 | R129: 1311 | S129: Eatontown Borough | T129: Monmouth | U129: Eatontown Borough, Monmouth County | V129: Eatontown | W129: Eatontown | X129: Borough | Y129: Council Members | Z129: Mayor-6 Council Members | AA129: 13,597
Q130: 124 | R130: 0213 | S130: Edgewater Borough | T130: Bergen | U130: Edgewater Borough, Bergen County | V130: Edgewater | W130: Edgewater | X130: Borough | Y130: Council Members | Z130: Mayor-6 Council Members | AA130: 14,336
Q131: 125 | R131: 0312 | S131: Edgewater Park Township | T131: Burlington | U131: Edgewater Park Township, Burlington County | V131: Edgewater Park Township | W131: Edgewater Park | X131: Township | Y131: Committeepersons | Z131: 5 Committee Members | AA131: 8,930
Q132: 126 | R132: 1205 | S132: Edison Township | T132: Middlesex | U132: Edison Township, Middlesex County | V132: Edison Township | W132: Edison | X132: Township | Y132: Council Members | Z132: Mayor-7 Council Members | AA132: 107,588
Q133: 127 | R133: 0107 | S133: Egg Harbor City | T133: Atlantic | U133: Egg Harbor City, Atlantic County | V133: Egg Harbor City | W133: Egg Harbor City | X133: City | Y133: Council Members | Z133: Mayor-9 Council Members | AA133: 4,396
Q134: 128 | R134: 0108 | S134: Egg Harbor Township | T134: Atlantic | U134: Egg Harbor Township, Atlantic County | V134: Egg Harbor Township | W134: Egg Harbor | X134: Township | Y134: Committeepersons | Z134: 5 Committee Members | AA134: 47,842
Q135: 129 | R135: 2004 | S135: Elizabeth City | T135: Union | U135: Elizabeth City, Union County | V135: Elizabeth | W135: Elizabeth | X135: City | Y135: Council Members | Z135: Mayor-9 Council Members | AA135: 137,298
Q136: 130 | R136: 0804 | S136: Elk Township | T136: Gloucester | U136: Elk Township, Gloucester County | V136: Elk Township | W136: Elk | X136: Township | Y136: Committeepersons | Z136: 5 Committee Members | AA136: 4,424
Q137: 131 | R137: 1702 | S137: Elmer Borough | T137: Salem | U137: Elmer Borough, Salem County | V137: Elmer | W137: Elmer | X137: Borough | Y137: Council Members | Z137: Mayor-6 Council Members | AA137: 1,347
Q138: 132 | R138: 0211 | S138: Elmwood Park Borough | T138: Bergen | U138: Elmwood Park Borough, Bergen County | V138: Elmwood Park | W138: Elmwood Park | X138: Borough | Y138: Council Members | Z138: Mayor-6 Council Members | AA138: 21,422
Q139: =Q138+1 -> 133 | R139: 1703 | S139: Elsinboro Township | T139: Salem | U139: Elsinboro Township, Salem County | V139: Elsinboro Township | W139: Elsinboro | X139: Township | Y139: Committeepersons | Z139: 3 Committee Members | AA139: 1,001
Q140: 134 | R140: 0214 | S140: Emerson Borough | T140: Bergen | U140: Emerson Borough, Bergen County | V140: Emerson | W140: Emerson | X140: Borough | Y140: Council Members | Z140: Mayor-6 Council Members | AA140: 7,290
Q141: 135 | R141: 0215 | S141: Englewood City | T141: Bergen | U141: Englewood City, Bergen County | V141: Englewood | W141: Englewood | X141: City | Y141: Council Members | Z141: Mayor-5 Council Members | AA141: 29,308
Q142: 136 | R142: 0216 | S142: Englewood Cliffs Borough | T142: Bergen | U142: Englewood Cliffs Borough, Bergen County | V142: Englewood Cliffs | W142: Englewood Cliffs | X142: Borough | Y142: Council Members | Z142: Mayor-6 Council Members | AA142: 5,342
Q143: 137 | R143: 1312 | S143: Englishtown Borough | T143: Monmouth | U143: Englishtown Borough, Monmouth County | V143: Englishtown | W143: Englishtown | X143: Borough | Y143: Council Members | Z143: Mayor-6 Council Members | AA143: 2,346
Q144: 138 | R144: 0706 | S144: Essex Fells Township | T144: Essex | U144: Essex Fells Township, Essex County | V144: Essex Fells Township | W144: Essex Fells | X144: Township | Y144: Council Members | Z144: Mayor-6 Council Members | AA144: 2,244
Q145: 139 | R145: 0109 | S145: Estell Manor City | T145: Atlantic | U145: Estell Manor City, Atlantic County | V145: Estell Manor | W145: Estell Manor | X145: City | Y145: Council Members | Z145: 5 Council Members | AA145: 1,668
Q146: 140 | R146: 0313 | S146: Evesham Township | T146: Burlington | U146: Evesham Township, Burlington County | V146: Evesham Township | W146: Evesham | X146: Township | Y146: Council Members | Z146: Mayor-4 Council Members | AA146: 46,826
Q147: 141 | R147: 1102 | S147: Ewing Township | T147: Mercer | U147: Ewing Township, Mercer County | V147: Ewing Township | W147: Ewing | X147: Township | Y147: Council Members | Z147: Mayor-5 Council Members | AA147: 37,264
Q148: 142 | R148: 1313 | S148: Fair Haven Borough | T148: Monmouth | U148: Fair Haven Borough, Monmouth County | V148: Fair Haven | W148: Fair Haven | X148: Borough | Y148: Council Members | Z148: Mayor-6 Council Members | AA148: 6,269
Q149: 143 | R149: 0217 | S149: Fair Lawn Borough | T149: Bergen | U149: Fair Lawn Borough, Bergen County | V149: Fair Lawn | W149: Fair Lawn | X149: Borough | Y149: Council Members | Z149: 5 Council Members | AA149: 34,927
Q150: 144 | R150: 0605 | S150: Fairfield Township | T150: Cumberland | U150: Fairfield Township, Cumberland County | V150: Fairfield Township | W150: Fairfield | X150: Township | Y150: Committeepersons | Z150: 5 Committee Members | AA150: 5,546
Q151: 145 | R151: 0707 | S151: Fairfield Township | T151: Essex | U151: Fairfield Township, Essex County | V151: Fairfield Township | W151: Fairfield | X151: Township | Y151: Council Members | Z151: Mayor-4 Council Members | AA151: 7,872
Q152: 146 | R152: 0218 | S152: Fairview Borough | T152: Bergen | U152: Fairview Borough, Bergen County | V152: Fairview | W152: Fairview | X152: Borough | Y152: Council Members | Z152: Mayor-6 Council Members | AA152: 15,025
Q153: 147 | R153: 2005 | S153: Fanwood Borough | T153: Union | U153: Fanwood Borough, Union County | V153: Fanwood | W153: Fanwood | X153: Borough | Y153: Council Members | Z153: Mayor-6 Council Members | AA153: 7,774
Q154: 148 | R154: 1807 | S154: Far Hills Borough | T154: Somerset | U154: Far Hills Borough, Somerset County | V154: Far Hills | W154: Far Hills | X154: Borough | Y154: Council Members | Z154: Mayor-6 Council Members | AA154: 924
Q155: 149 | R155: 1314 | S155: Farmingdale Borough | T155: Monmouth | U155: Farmingdale Borough, Monmouth County | V155: Farmingdale | W155: Farmingdale | X155: Borough | Y155: Council Members | Z155: Mayor-6 Council Members | AA155: 1,504
Q156: 150 | R156: 0314 | S156: Fieldsboro Borough | T156: Burlington | U156: Fieldsboro Borough, Burlington County | V156: Fieldsboro | W156: Fieldsboro | X156: Borough | Y156: Council Members | Z156: Mayor-6 Council Members | AA156: 526
Q157: 151 | R157: 1009 | S157: Flemington Borough | T157: Hunterdon | U157: Flemington Borough, Hunterdon County | V157: Flemington | W157: Flemington | X157: Borough | Y157: Council Members | Z157: Mayor-6 Council Members | AA157: 4,876
Q158: 152 | R158: 0315 | S158: Florence Township | T158: Burlington | U158: Florence Township, Burlington County | V158: Florence Township | W158: Florence | X158: Township | Y158: Council Members | Z158: Mayor-5 Council Members | AA158: 12,812
Q159: 153 | R159: 1411 | S159: Florham Park Borough | T159: Morris | U159: Florham Park Borough, Morris County | V159: Florham Park | W159: Florham Park | X159: Borough | Y159: Council Members | Z159: Mayor-6 Council Members | AA159: 12,585
Q160: 154 | R160: 0110 | S160: Folsom Borough | T160: Atlantic | U160: Folsom Borough, Atlantic County | V160: Folsom | W160: Folsom | X160: Borough | Y160: Council Members | Z160: Mayor-6 Council Members | AA160: 1,811
Q161: 155 | R161: 0219 | S161: Fort Lee Borough | T161: Bergen | U161: Fort Lee Borough, Bergen County | V161: Fort Lee | W161: Fort Lee | X161: Borough | Y161: Council Members | Z161: Mayor-6 Council Members | AA161: 40,191
Q162: 156 | R162: 1905 | S162: Frankford Township | T162: Sussex | U162: Frankford Township, Sussex County | V162: Frankford Township | W162: Frankford | X162: Township | Y162: Committeepersons | Z162: 3 Committee Members | AA162: 5,302
Q163: 157 | R163: 1906 | S163: Franklin Borough | T163: Sussex | U163: Franklin Borough, Sussex County | V163: Franklin | W163: Franklin | X163: Borough | Y163: Council Members | Z163: Mayor-6 Council Members | AA163: 4,912
Q164: 158 | R164: 0220 | S164: Franklin Lakes Borough | T164: Bergen | U164: Franklin Lakes Borough, Bergen County | V164: Franklin Lakes | W164: Franklin Lakes | X164: Borough | Y164: Council Members | Z164: Mayor-6 Council Members | AA164: 11,079
Q165: 159 | R165: 0805 | S165: Franklin Township | T165: Gloucester | U165: Franklin Township, Gloucester County | V165: Franklin Township | W165: Franklin | X165: Township | Y165: Committeepersons | Z165: 5 Committee Members | AA165: 16,380
Q166: 160 | R166: 1010 | S166: Franklin Township | T166: Hunterdon | U166: Franklin Township, Hunterdon County | V166: Franklin Township | W166: Franklin | X166: Township | Y166: Committeepersons | Z166: 5 Committee Members | AA166: 3,267
Q167: 161 | R167: 1808 | S167: Franklin Township | T167: Somerset | U167: Franklin Township, Somerset County | V167: Franklin Township | W167: Franklin | X167: Township | Y167: Council Members | Z167: Mayor-8 Council Members | AA167: 68,364
Q168: 162 | R168: 2105 | S168: Franklin Township | T168: Warren | U168: Franklin Township, Warren County | V168: Franklin Township | W168: Franklin | X168: Township | Y168: Committeepersons | Z168: 5 Committee Members | AA168: 2,968
Q169: 163 | R169: 1907 | S169: Fredon Township | T169: Sussex | U169: Fredon Township, Sussex County | V169: Fredon Township | W169: Fredon | X169: Township | Y169: Committeepersons | Z169: 5 Committee Members | AA169: 3,235
Q170: 164 | R170: 1315 | S170: Freehold Borough | T170: Monmouth | U170: Freehold Borough, Monmouth County | V170: Freehold | W170: Freehold | X170: Borough | Y170: Council Members | Z170: Mayor-6 Council Members | AA170: 12,538
Q171: 165 | R171: 1316 | S171: Freehold Township | T171: Monmouth | U171: Freehold Township, Monmouth County | V171: Freehold Township | W171: Freehold | X171: Township | Y171: Committeepersons | Z171: 5 Committee Members | AA171: 35,369
Q172: 166 | R172: 2106 | S172: Frelinghuysen Township | T172: Warren | U172: Frelinghuysen Township, Warren County | V172: Frelinghuysen Township | W172: Frelinghuysen | X172: Township | Y172: Committeepersons | Z172: 3 Committee Members | AA172: 2,199
Q173: 167 | R173: 1011 | S173: Frenchtown Borough | T173: Hunterdon | U173: Frenchtown Borough, Hunterdon County | V173: Frenchtown | W173: Frenchtown | X173: Borough | Y173: Council Members | Z173: Mayor-6 Council Members | AA173: 1,370
Q174: 168 | R174: 0111 | S174: Galloway Township | T174: Atlantic | U174: Galloway Township, Atlantic County | V174: Galloway Township | W174: Galloway | X174: Township | Y174: Council Members | Z174: 7 Council Members | AA174: 37,813
Q175: 169 | R175: 0221 | S175: Garfield City | T175: Bergen | U175: Garfield City, Bergen County | V175: Garfield | W175: Garfield | X175: City | Y175: Council Members | Z175: 5 Council Members | AA175: 32,655
Q176: 170 | R176: 2006 | S176: Garwood Borough | T176: Union | U176: Garwood Borough, Union County | V176: Garwood | W176: Garwood | X176: Borough | Y176: Council Members | Z176: Mayor-6 Council Members | AA176: 4,454
Q177: 171 | R177: 0413 | S177: Gibbsboro Borough | T177: Camden | U177: Gibbsboro Borough, Camden County | V177: Gibbsboro | W177: Gibbsboro | X177: Borough | Y177: Council Members | Z177: Mayor-6 Council Members | AA177: 2,189
Q178: 172 | R178: 0806 | S178: Glassboro Borough | T178: Gloucester | U178: Glassboro Borough, Gloucester County | V178: Glassboro | W178: Glassboro | X178: Borough | Y178: Council Members | Z178: Mayor-6 Council Members | AA178: 23,149
Q179: 173 | R179: 1012 | S179: Glen Gardner Borough | T179: Hunterdon | U179: Glen Gardner Borough, Hunterdon County | V179: Glen Gardner | W179: Glen Gardner | X179: Borough | Y179: Council Members | Z179: Mayor-6 Council Members | AA179: 1,682
Q180: 174 | R180: 0708 | S180: Glen Ridge Borough | T180: Essex | U180: Glen Ridge Borough, Essex County | V180: Glen Ridge | W180: Glen Ridge | X180: Borough | Y180: Council Members | Z180: Mayor-6 Council Members | AA180: 7,802
Q181: 175 | R181: 0222 | S181: Glen Rock Borough | T181: Bergen | U181: Glen Rock Borough, Bergen County | V181: Glen Rock | W181: Glen Rock | X181: Borough | Y181: Council Members | Z181: Mayor-6 Council Members | AA181: 12,133
Q182: 176 | R182: 0414 | S182: Gloucester City City | T182: Camden | U182: Gloucester City City, Camden County | V182: Gloucester City | W182: Gloucester City | X182: City | Y182: Council Members | Z182: Mayor-6 Council Members | AA182: 11,484
Q183: 177 | R183: 0415 | S183: Gloucester Township | T183: Camden | U183: Gloucester Township, Camden County | V183: Gloucester Township | W183: Gloucester | X183: Township | Y183: Council Members | Z183: Mayor-7 Council Members | AA183: 66,034
Q184: 178 | R184: 1809 | S184: Green Brook Township | T184: Somerset | U184: Green Brook Township, Somerset County | V184: Green Brook Township | W184: Green Brook | X184: Township | Y184: Committeepersons | Z184: 5 Committee Members | AA184: 7,281
Q185: 179 | R185: 1908 | S185: Green Township | T185: Sussex | U185: Green Township, Sussex County | V185: Green Township | W185: Green | X185: Township | Y185: Committeepersons | Z185: 5 Committee Members | AA185: 3,627
Q186: 180 | R186: 0606 | S186: Greenwich Township | T186: Cumberland | U186: Greenwich Township, Cumberland County | V186: Greenwich Township | W186: Greenwich | X186: Township | Y186: Committeepersons | Z186: 3 Committee Members | AA186: 771
Q187: 181 | R187: 0807 | S187: Greenwich Township | T187: Gloucester | U187: Greenwich Township, Gloucester County | V187: Greenwich Township | W187: Greenwich | X187: Township | Y187: Council Members | Z187: Mayor-4 Council Members | AA187: 4,917
Q188: 182 | R188: 2107 | S188: Greenwich Township | T188: Warren | U188: Greenwich Township, Warren County | V188: Greenwich Township | W188: Greenwich | X188: Township | Y188: Committeepersons | Z188: 5 Committee Members | AA188: 5,473
Q189: 183 | R189: 0903 | S189: Guttenberg Town | T189: Hudson | U189: Guttenberg Town, Hudson County | V189: Guttenberg | W189: Guttenberg | X189: Town | Y189: Council Members | Z189: Mayor-5 Council Members | AA189: 12,017
Q190: 184 | R190: 0223 | S190: Hackensack City | T190: Bergen | U190: Hackensack City, Bergen County | V190: Hackensack | W190: Hackensack | X190: City | Y190: Council Members | Z190: 5 Council Members | AA190: 46,030
Q191: 185 | R191: 2108 | S191: Hackettstown Town | T191: Warren | U191: Hackettstown Town, Warren County | V191: Hackettstown | W191: Hackettstown | X191: Town | Y191: Council Members | Z191: Mayor-6 Council Members | AA191: 10,248
Q192: 186 | R192: 0418 | S192: Haddon Heights Borough | T192: Camden | U192: Haddon Heights Borough, Camden County | V192: Haddon Heights | W192: Haddon Heights | X192: Borough | Y192: Council Members | Z192: Mayor-6 Council Members | AA192: 7,495
Q193: 187 | R193: 0416 | S193: Haddon Township | T193: Camden | U193: Haddon Township, Camden County | V193: Haddon Township | W193: Haddon | X193: Township | Y193: Commissioners | Z193: 3 Commissioners | AA193: 15,407
Q194: 188 | R194: 0417 | S194: Haddonfield Borough | T194: Camden | U194: Haddonfield Borough, Camden County | V194: Haddonfield | W194: Haddonfield | X194: Borough | Y194: Commissioners | Z194: 3 Commissioners | AA194: 12,550
Q195: 189 | R195: 0316 | S195: Hainesport Township | T195: Burlington | U195: Hainesport Township, Burlington County | V195: Hainesport Township | W195: Hainesport | X195: Township | Y195: Committeepersons | Z195: 5 Committee Members | AA195: 6,035
Q196: 190 | R196: 1603 | S196: Haledon Borough | T196: Passaic | U196: Haledon Borough, Passaic County | V196: Haledon | W196: Haledon | X196: Borough | Y196: Council Members | Z196: Mayor-6 Council Members | AA196: 9,052
Q197: 191 | R197: 1909 | S197: Hamburg Borough | T197: Sussex | U197: Hamburg Borough, Sussex County | V197: Hamburg | W197: Hamburg | X197: Borough | Y197: Council Members | Z197: Mayor-6 Council Members | AA197: 3,266
Q198: 192 | R198: 0112 | S198: Hamilton Township | T198: Atlantic | U198: Hamilton Township, Atlantic County | V198: Hamilton Township | W198: Hamilton | X198: Township | Y198: Committeepersons | Z198: 5 Committee Members | AA198: 27,484
Q199: 193 | R199: 1103 | S199: Hamilton Township | T199: Mercer | U199: Hamilton Township, Mercer County | V199: Hamilton Township | W199: Hamilton | X199: Township | Y199: Council Members | Z199: Mayor-5 Council Members | AA199: 92,297
Q200: 194 | R200: 0113 | S200: Hammonton Township | T200: Atlantic | U200: Hammonton Township, Atlantic County | V200: Hammonton Township | W200: Hammonton | X200: Township | Y200: Council Members | Z200: Mayor-6 Council Members | AA200: 14,711
Q201: 195 | R201: 1013 | S201: Hampton Borough | T201: Hunterdon | U201: Hampton Borough, Hunterdon County | V201: Hampton | W201: Hampton | X201: Borough | Y201: Council Members | Z201: Mayor-6 Council Members | AA201: 1,438
... 392 more rows

Sheet KEY METRICS (hidden)
B1: Municipality | C1: County | D1: Municode
B2: ='KEY INPUTS'!D9 -> TOWNSHIP OF SHREWSBURY | C2: ='KEY INPUTS'!D10 -> MONMOUTH | D2: ='KEY INPUTS'!D39 -> 1346
A4: Balance Sheet
B5: Current Fund - Beginning Fund Balance | C5: ='21-Current Fund Surplus'!L7 -> 827,700.90
B7: Current Fund - Ending Fund Balance | C7: ='21-Current Fund Surplus'!K14 -> 840,449.41
B9: Current Fund - Result of Operation | C9: ='19-Results of Op-Cur Fnd'!H45 -> 299,612.66
B11: Current Fund - Cash | C11: ='21-Current Fund Surplus'!L23 -> 1,235,946.92
B13: Current Fund - Cash Surplus | C13: ='21-Current Fund Surplus'!L28 -> 840,449.71
B15: Current Fund - Investments | C15: ='21-Current Fund Surplus'!L24 -> 0
B17: Current Fund - Cash Liabilities | C17: ='21-Current Fund Surplus'!L27 -> 395,497.21
B19: Foreclosure Sales Starting Balance | C19: ='27-Foreclosed Property'!K6 -> 0
B21: Foreclosure Sales Ending Balance | C21: ='27-Foreclosed Property'!L20 -> 0
A23: Revenues
B24: Total General Budget Revenues | C24: ='17-Budget Revenues'!I22 -> 1,218,994.68
B26: Surplus Anticipated | C26: ='17-Budget Revenues'!I6 -> 193,500.00
B28: Surplus Anticipated with Consent of Dir. of Local Gov't Services | C28: ='17-Budget Revenues'!I8 -> 0
B30: Total Amount to be Raised by Taxation | C30: ='17-Budget Revenues'!I21 -> 911,436.81
B32: Total Miscellaneous Revenue Anticipated | C32: ='17-Budget Revenues'!I14 -> 108,381.89
B34: Receipts from Delinquent Taxes | C34: ='17-Budget Revenues'!I15 -> 5,675.98
B36: Levy Tax Collection Rate | C36: =IFERROR('22-CY Levy'!H38,"-") -> 1.00
B38: Delinquent Taxes | C38: ='26-Delinquent Taxes and Liens'!M28 -> 6,589.97
A40: Appropriations
B41: Total Expenditures - General Budget Appropriation | C41: ='18-Budget Appropriations'!J17 -> 1,197,962.19
B43: Utility Operating Surplus Appropriated in Budget | C43: ='46-Utility1'!K23+'46-Utility1'!K24+'46-Utility2'!K23+'46-Utility2'!K24+'46-Utility3'!K23+'46-Utility3'!K24+'46-Utility4'!K23+'46-Utility4'!K24+'46-Utility5'!K23+'46-Utility5'!K24+'46-Utility6'!K23+'46-Utility6'!K24 -> 0
B45: Deferred Charges | C45: ='28-Deferred Charges'!N25 -> 0
A47: Outstanding Debt
B48: Outstanding General Bonded Debt | C48: ='31-Capital Bond Schedule'!G12+'31-Capital Bond Schedule'!G23+'32-Bond Schedule'!G11+'32-Bond Schedule'!G22 -> 645,000.00
B50: Outstanding General Loan Debt | C50: ='31A-Loan Schedule'!G12+'31A-Loan Schedule'!G23+'31A.1-Loan Schedule'!G12+'31A.1-Loan Schedule'!G23+'31A.2-Loan Schedule'!G12+'31A.2-Loan Schedule'!G23 -> 0
B52: Outstanding General Note Debt | C52: ='33 Totals-Note Debt Service'!G23+'34-Assmt Note Debt Service'!G23 -> 0
B54: Outstanding Capital Lease Obligations | C54: ='34a-Cap Lease Program Oblg'!G23 -> 2,000.00
B56: Type 1 School District Bonded Debt | C56: ='32-Bond Schedule'!G11+'32-Bond Schedule'!G22 -> 0

Sheet 1- Cover
B2: ="ANNUAL FINANCIAL STATEMENT FOR THE YEAR "&TEXT(IF('KEY INPUTS'!C42 = "State Fiscal Year", 'KEY INPUTS'!D33,'KEY INPUTS'!D34),"0") -> ANNUAL FINANCIAL STATEMENT FOR THE YEAR 2023
B3: (UNAUDITED)
J5: POPULATION LAST CENSUS | K5: ='KEY INPUTS'!D37 -> 1,076
J6: =UPPER('KEY INPUTS'!C38) -> NET VALUATION TAXABLE 2023 | K6: ='KEY INPUTS'!D38 -> 94,220,134
J7: MUNICODE | K7: ='KEY INPUTS'!D39 -> 1346
B8: FIVE DOLLARS PER DAY PENALTY IF NOT FILED BY:
B9: =IF('KEY INPUTS'!C42 = "State Fiscal Year","",'KEY INPUTS'!D43) -> COUNTIES - JANUARY 26, 2024
B10: =IF('KEY INPUTS'!C42 = "State Fiscal Year", 'KEY INPUTS'!F44,'KEY INPUTS'!D44) -> MUNICIPALITIES - FEBRUARY 10, 2024
B12: ANNUAL FINANCIAL STATEMENT REQUIRED TO BE FILED UNDER NEW JERSEY STATUTES
B13: ANNOTATED 40A:5-12, AS AMENDED, COMBINED WITH INFORMATION REQUIRED PRIOR TO
B14: CERTIFICATION OF BUDGETS BY THE DIRECTOR OF THE DIVISION OF LOCAL GOVERNMENT
B15: SERVICES.
B17: =+'KEY INPUTS'!D12 -> TOWNSHIP | G17: of | H17: =+'KEY INPUTS'!D11 -> SHREWSBURY | L17: , County of | M17: =+'KEY INPUTS'!D10 -> MONMOUTH
B20: DO NOT USE THESE SPACES
F22: Date | G22: Examined By:
E23: 1 | K23: Preliminary Check
E24: 2 | K24: Examined
B26: I hereby certify that the debt shown on Sheets 31 to 34, 49 to 51 and 63 to 65a are
B27: complete, were computed by me and can be supported upon demand by a register or
B28: other detailed analysis.
K29: Signature | L29: Charles J Fallon
K30: Title | L30: RMA
B32: (This MUST be signed by Chief Financial Officer, Comptroller, Auditor or Registered Municipal Accountant.)
B35: REQUIRED CERTIFICATION BY THE CHIEF FINANCIAL OFFICER:
B38: ="I hereby certify that I am responsible for filing this verified Annual Financial Statement," -> I hereby certify that I am responsible for filing this verified Annual Financial Statement, | L38: =Y43 -> (which I have prepared) | N38: or
B39: =Y44 -> (which I have not prepared) | F39: =Y45 -> [eliminate one] | H39: =" and information required also included herein and that this Statement is an" -> and information required also included herein and that this Statement is an | R39: Need to be able to choose if completed or not.User needs to strike out "Which I have prepared " or "Which I have not prepared" Default to "NOT"
B40: exact copy of the original on file with the clerk of the governing body, that all calculations, extensions and additions
B41: are correct, that no transfers have been made to or from emergency appropriations and all statements contained herein | Q41: As the CFO, did you prepare this annual financial statement? Type Y/N in the grey box below.
B42: are in proof; I further certify that this statement is correct insofar as I can determine from all the books and records | Q42: n
B43: kept and maintained in the Local Unit. | Y43: (which I have prepared)
Y44: (which I have not prepared)
B45: Further, I do hereby certify that I, | G45: =IF('KEY INPUTS'!D21=0,"NO ENTRY",'KEY INPUTS'!D21) -> Catherine LaPorta | M45: , am the Chief Financial | Y45: [eliminate one]
B46: Officer, License # | E46: =IF('KEY INPUTS'!E21=0,"NO ENTRY",'KEY INPUTS'!E21) -> N-1667 | G46: , of the | H46: =+'KEY INPUTS'!D12 -> TOWNSHIP | N46: of
B47: =+'KEY INPUTS'!D11 -> SHREWSBURY | G47: , County of | I47: =+'KEY INPUTS'!D10 -> MONMOUTH | N47: and that the
B48: statements annexed hereto and made a part hereof are true statements of the financial condition of the Local Unit as at
B49: =IF('KEY INPUTS'!C42="State Fiscal Year",'KEY INPUTS'!F47,"December 31, "&'KEY INPUTS'!D34&"")&", completely in compliance with N.J.S.A. 40A:5-12, as amended. I also give complete assurance as" -> December 31, 2023, completely in compliance with N.J.S.A. 40A:5-12, as amended. I also give complete assurance as
B50: to the veracity of required information included herein, needed prior to certification by the Director of Local Government
B51: ="Services, including the verification of cash balances as of "&IF('KEY INPUTS'!C42="State Fiscal Year",""&'KEY INPUTS'!F47&".","December 31, "&'KEY INPUTS'!D34&"")&"." -> Services, including the verification of cash balances as of December 31, 2023.
D53: Signature | F53: claporta@townshipofshrewsbury.com
D54: Title | F54: CFO
D55: Address | F55: =IF('KEY INPUTS'!D16=0,"NO ENTRY",'KEY INPUTS'!D16) -> 1979 Crawford Street
D56: Phone Number | H56: =IF('KEY INPUTS'!D18=0,"NO ENTRY",'KEY INPUTS'!D18) -> 732-542-0572
D57: Fax Number | H57: =IF('KEY INPUTS'!D19=0,"NO ENTRY",'KEY INPUTS'!D19) -> 732-542-1348
D59: IT IS HEREBY INCUMBENT UPON THE CHIEF FINANCIAL OFFICER, WHEN NOT PREPARED
D60: BY SAID, AT A MINIMUM MUST REVIEW THE CONTENTS OF THIS ANNUAL FINANCIAL
D61: STATEMENT WITH THE PREPARER, SO AS TO BE FAMILIAR WITH THE REPRESENTATIONS
D62: AND ASSERTIONS MADE HEREIN.
B63: Sheet 1

Sheet 1a - RMA Certification
B3: THE REQUIRED CERTIFICATION BY AN RMA IS AS FOLLOWS:
B5: Preparation by Registered Municipal Account (Statement of Statutory Auditor Only)
B8: I have prepared the post-closing trial balances, related statement and analyses included in the
B9: accompanying Annual Financial Statement from the books of account and records made
B10: available to me by the | F10: =+'KEY INPUTS'!D12 -> TOWNSHIP | H10: of | I10: =+'KEY INPUTS'!D11 -> SHREWSBURY
B11: ="as of "&IF('KEY INPUTS'!C42 = "State Fiscal Year",'KEY INPUTS'!F47,"as of December 31, "&'KEY INPUTS'!D34&"")&" and have applied certain agreed-upon procedures thereon as" -> as of as of December 31, 2023 and have applied certain agreed-upon procedures thereon as
B12: promulgated by the Division of Local Government Services, solely to assist the Chief Financial
B13: Officer in connection with the filing of the Annual Financial Statement for the year then
B14: ended as required by N.J.S.A. 40A:5-12, as amended.
B17: Because the agreed-upon procedures do not constitute an examination of accounts made in
B18: accordance with generally accepted auditing standards, I do not express an opinion on any of
B19: the post-closing trial balances, related statements and analyses. In connection with the
B20: agreed-upon procedures, | G20: (except for circumstances as set forth below, no matters) | M20: or | Q20: Need to be able to choose if completed or not.User needs to strike out ""except for circumstances as set forth below, no matters" " or " No matters" Default to "no matters"
B21: (no matters) | E21: [eliminate one] | G21: came to my attention that caused me to believe that the Annual | P21: As the RMA, did you list any circumstances below that caused you to believe that this Annual Financial
B22: ="Financial Statement for the year ended "&IF('KEY INPUTS'!C42 = "State Fiscal Year", 'KEY INPUTS'!F47, "December 31, "&'KEY INPUTS'!D34&"")&" is not in substantial compliance with the" -> Financial Statement for the year ended December 31, 2023 is not in substantial compliance with the | P22: Statement is not in substantial compliance? Type Y/N in the grey box below. | Y22: (except for circumstances as set forth below, no matters)
B23: requirements of the State of New Jersey, Department of Community Affairs, Division of Local | P23: n | Y23: (no matters)
B24: Government Services. Had I performed additional procedures or had I made an examination | Y24: [eliminate one]
B25: of the financial statements in accordance with generally accepted auditing standards, other
B26: matters might have come to my attention that would have been reported to the governing
B27: body and Division. This Annual Financial Statement relates only to the accounts and
B28: items prescribed by the Division and does not extend to the financial statements of the
B29: municipality/county taken as a whole.
B31: Listing of agreed-upon procedures not performed and/or matters coming to my attention of
B32: which the Director should be informed:
I50: =IF('KEY INPUTS'!D22=0,"NO ENTRY",'KEY INPUTS'!D22) -> Charles J. Fallon
I51: (Registered Municipal Accountant)
I53: Fallon & Company
I54: (Firm Name)
I56: 1390 Route 36, Suite 102
I57: (Address)
B59: Certified by me | I59: Hazlet, NJ 07730-1716
I60: (Address)
B61: this | C61: 19 | D61: day of | E61: February | H61: =", "&TEXT('KEY INPUTS'!D33,"0") -> , 2024
J62: 732-888-2070
I63: (Phone Number)
J65: 732-888-6245
I66: (Fax Number)
A70: Sheet 1a

Sheet 1b - Local Exam Qual Cert
C4: MUNICIPAL BUDGET LOCAL EXAMINATION QUALIFICATION CERTIFICATION
C5: BY
C6: CHIEF FINANCIAL OFFICER
D9: One of the following Certifications must be signed by the Chief Financial Officer if
D10: your municipality is eligible for local examination.
D13: CERTIFICATION OF QUALIFYING MUNICIPALITY
D15: 1. | F15: The outstanding indebtedness of the previous fiscal year is not in excess of 3.5%;
D17: 2. | F17: All emergencies approved for the previous fiscal year did not exceed 3% of total
F18: appropriations;
D20: 3. | F20: The tax collection rate exceeded 90%;
D22: 4. | F22: Total deferred charges did not equal or exceed 4% of the total tax levy;
D24: 5. | F24: There were no "procedural deficiencies" noted by the registered municipal
F25: accountant on Sheet 1a of the Annual Financial Statement; and
D27: 6. | F27: There was no operating deficit for the previous fiscal year.
D29: 7. | F29: The municipality did not conduct an accelerated tax sale for less than 3 consecutive
F30: years.
D32: 8. | F32: The municipality did not conduct a tax levy sale the previous fiscal year and does
F33: not plan to conduct one in the current year.
D35: 9. | F35: The current year budget does not contain a Levy or Appropriation "CAP" waiver.
D37: 10. | F37: ="The municipality has not applied for Transitional Aid for "&IF('KEY INPUTS'!C42="State Fiscal Year","Fiscal Year "&TEXT('KEY INPUTS'!D33+1,"0")&"",'KEY INPUTS'!D33)&"." -> The municipality has not applied for Transitional Aid for 2024.
D39: 11. | F39: The municipality did not adopt a Special Emergency ordinance for COVID-related
F40: expenses or loss of revenue (N.J.S.A. 40A:4-53 (l) and (m)).
D42: The undersigned certifies that this municipality has complied in full in meeting ALL of the
D43: above criteria in determining its qualification for local examination of its Budget in accordance
D44: with N.J.A.C. 5:30-7.5.
D46: Municipality: | H46: ='KEY INPUTS'!D9 -> TOWNSHIP OF SHREWSBURY
D47: Chief Financial Officer: | H47: Catherine LaPorta
D48: Signature: | H48: claporta@townshipofshrewsbury.com
D49: Certificate #: | H49: N-1667
D50: Date: | H50: 2024-03-08
D54: CERTIFICATION OF NON-QUALIFYING MUNICIPALITY
D56: The undersigned certifies that this municipality does not meet item(s)
G57: of the criteria above and therefore does not qualify for local
D58: examination of its Budget in accordance with N.J.A.C. 5:30-7.5.
D61: Municipality: | H61: =+'KEY INPUTS'!D9 -> TOWNSHIP OF SHREWSBURY
D62: Chief Financial Officer:
D63: Signature:
D64: Certificate #:
D65: Date:
C67: Sheet 1b

Sheet 1c - Fed & State Finan Asst.
B4: =IF('KEY INPUTS'!D13=0,"NO ENTRY",'KEY INPUTS'!D13) -> 21-6008355
B5: Fed I.D. #
B8: =+'KEY INPUTS'!D9 -> TOWNSHIP OF SHREWSBURY
B9: Municipality
B12: =+'KEY INPUTS'!D10 -> MONMOUTH
B13: County
B16: Report of Federal and State Financial Assistance
B17: Expenditures of Awards
G20: Fiscal Year Ending: | I20: =IF('KEY INPUTS'!C42 = "State Fiscal Year", 'KEY INPUTS'!F47, 'KEY INPUTS'!D29) -> 2023-12-31
E23: (1) | G23: (2) | K23: (3)
E24: Federal programs
E25: Expended | G25: State | K25: Other Federal
E26: (administered by | G26: Programs | K26: Programs
E27: the state) | G27: Expended | K27: Expended
B29: TOTAL | D29: $ | E29: 0 | F29: $ | G29: 0 | J29: $ | K29: 0 | P29: =+#REF!-G29 -> 
G32: Type of Audit required by Title 2 U.S. Code of Federal Regulations
G33: (CFR) (Uniform Requirements) and OMB 15-08.
H34: Single Audit
H35: Program Specific Audit
G36: X | H36: Financial Statement Audit Performed in Accordance
H37: With Government Auditing Standards (Yellow Book)
B40: Note: | D40: All local governments, who are recipients of federal and state awards (financial assistance), must
D41: report the total amount of federal and state funds expended during its fiscal year and the type of audit
D42: required to comply with Title 2 U.S. Code of Federal Regulations (CFR) OMB 15-08. (Uniform
D43: Guidance) and OMB 15-08. The single audit threshold has been been increased to $750,000
D44: beginning with Fiscal Year ending after 1/1/15. Expenditures are defined in Title 2 U.S. Code of
D45: Federal Regulations (CFR) (Uniform Guidance).
B47: (1) | D47: Report expenditures from federal pass-through programs received directly from state government.
D48: Federal pass-through funds can be identified by the Catalog of Federal Domestic Assistance
D49: (CFDA) number reported in the State's grant/contract agreements.
B51: (2) | D51: Report expenditures from state programs received directly from state government or indirectly from
D52: pass-through entities. Exclude state aid (I.e., CMPTRA, Energy Receipts tax, etc.) since there
D53: are no compliance requirements.
B55: (3) | D55: Report expenditures from federal programs received directly from the federal government or indirectly
D56: from entities other than state government.
C60: claporta@townshipofshrewsbury.com | K60: 2024-03-08
C61: Signature of Chief Financial Officer | K61: Date
B71: Sheet 1c

Sheet 2 - No Utility Fund Cert
B2: IMPORTANT !
B4: READ INSTRUCTIONS
B7: INSTRUCTIONS
C9: The following certification is to be used ONLY in the event there is NO municipality
B10: operated utility.
C13: If there is a utility operated by the municipality of if a "utility fund" existed on the books of
B14: account, do not sign this statement and do not remove any of the UTILITY sheets from the
B15: document.
B17: CERTIFICATION
C19: I hereby certify that there was no "utility fund" on the books of account and there was no
B20: utility owned and operated by the | F20: =+'KEY INPUTS'!D12 -> TOWNSHIP | I20: of | J20: =+'KEY INPUTS'!D11 -> SHREWSBURY | M20: ,
B21: County of | D21: =+'KEY INPUTS'!D10 -> MONMOUTH | F21: ="during the "&IF('KEY INPUTS'!C42 = "State Fiscal Year", "Fiscal Year "&'KEY INPUTS'!D33&"","year "&'KEY INPUTS'!D34&"")&" and that sheets 40 to 68 are unnecessary." -> during the year 2023 and that sheets 40 to 68 are unnecessary.
C23: I have therefore removed from this statement the sheets pertaining only to utilities.
H25: Name | I25: claporta@townshipofshrewsbury.com
H26: Title | I26: CFO
C28: (This must be signed by the Chief Financial Officer, Comptroller, Auditor or Registered
B29: Municipal Accountant.)
B43: ="MUNICIPAL CERTIFICATION OF TAXABLE PROPERTY AS OF OCTOBER 1, "&TEXT('KEY INPUTS'!D34,"0") -> MUNICIPAL CERTIFICATION OF TAXABLE PROPERTY AS OF OCTOBER 1, 2023
D45: Certification is hereby made that the Net Valuation Taxable of property liable to taxation for
C46: ="the tax year "&TEXT('KEY INPUTS'!D33,"0")&" and filed with the County Board of Taxation on January 10, "&TEXT('KEY INPUTS'!D33,"0")&" in accordance" -> the tax year 2024 and filed with the County Board of Taxation on January 10, 2024 in accordance
C47: with the requirement of N.J.S.A. 54:4-35, was in the amount of $ | J47: 104,085,934.00
I51: SIGNATURE OF TAX ASSESSOR
I53: =+'KEY INPUTS'!D9 -> TOWNSHIP OF SHREWSBURY
I54: MUNICIPALITY
I56: =+'KEY INPUTS'!D10 -> MONMOUTH
I57: COUNTY
B59: Sheet 2

Sheet 3-Trial Bal-Current Fund
B2: NOTE THAT A TRIAL BALANCE IS REQUIRED AND NOT A BALANCE SHEET
B4: POST CLOSING
B5: TRIAL BALANCE - CURRENT FUND
B6: =IF('KEY INPUTS'!C42 = "State Fiscal Year", 'KEY INPUTS'!F45,'KEY INPUTS'!D45) -> AS AT DECEMBER 31, 2023
B8: Cash Liabilities Must Be Subtotaled and Subtotal Must Be Marked With "C" -- Taxes Receivable Must Be Subtotaled
B9: Title of Account | G9: Debit | H9: Credit
C11: CASH | G11: =+'9-Cash Reconciliation'!I6 -> 1,235,946.92
C12: INVESTMENTS
C13: DUE FROM/TO STATE - VETERANS AND SENIOR CITIZENS | G13: ='23-SCVet Deductions'!J21 -> 0 | H13: ='23-SCVet Deductions'!I22 -> 895.84
B16: Receivables with Full Reserves:
C17: TAXES RECEIVABLE:
C18: PRIOR | F18: =+'26-Delinquent Taxes and Liens'!I29-'3-Trial Bal-Current Fund'!F19 -> 0
C19: CURRENT | F19: =+'22-CY Levy'!N35 -> 6,589.97
D20: SUBTOTAL | G20: =+F19+F18 -> 6,589.97
C21: TAX TITLE LIENS RECEIVABLE | G21: =+'26-Delinquent Taxes and Liens'!I30 -> 0
C22: PROPERTY ACQUIRED FOR TAXES | G22: =+'27-Foreclosed Property'!L20 -> 0
C23: CONTRACT SALES RECEIVABLE | G23: ='27-Foreclosed Property'!L30 -> 0
C24: MORTGAGE SALES RECEIVABLE | G24: ='27-Foreclosed Property'!L40 -> 0
C25: Regional School Tax Advanced | G25: 99,565.71
C26: Interfunds | G26: 56.35
C27: Revenue Accounts Receivable | G27: 360.04
C37: DEFERRED CHARGES:
D38: EMERGENCY
D39: SPECIAL EMERGENCY (40A:4-55) | G39: =+'29-Special Emergency'!L$24+'30-Special Emergency'!L24 -> 0
D40: DEFICIT | G40: ='19-Results of Op-Cur Fnd'!I43 -> 0
E46: Page Totals: | G46: =SUM(G10:G45) -> 1,342,518.99 | H46: =SUM(H10:H45) -> 895.84
B47: (Do not crowd - add additional sheets)
B48: Sheet 3

Sheet 3a-Trial Bal-Current Fund
B2: NOTE THAT A TRIAL BALANCE IS REQUIRED AND NOT A BALANCE SHEET
B4: POST CLOSING
B5: TRIAL BALANCE - CURRENT FUND (CONT'D)
B6: =IF('KEY INPUTS'!C42 = "State Fiscal Year", 'KEY INPUTS'!F45,'KEY INPUTS'!D45) -> AS AT DECEMBER 31, 2023
B8: Cash Liabilities Must Be Subtotaled and Subtotal Must Be Marked With "C" -- Taxes Receivable Must Be Subtotaled
B9: Title of Account | G9: Debit | H9: Credit
B10: TOTALS FROM PAGE 3 | G10: =+'3-Trial Bal-Current Fund'!G46 -> 1,342,518.99 | H10: =+'3-Trial Bal-Current Fund'!H46 -> 895.84
B11: APPROPRIATION RESERVES | H11: ='18-Budget Appropriations'!I16 -> 194,595.41
B12: ENCUMBRANCES PAYABLE | H12: 1,343.32
B13: CONTRACTS PAYABLE
B14: TAX OVERPAYMENTS
B15: PREPAID TAXES | H15: 4,595.54
B16: Accounts Payable | H16: 25.00
B17: Interfunds | H17: 51,361.04
B18: DUE TO STATE:
B19: MARRIAGE LICENCE | H19: 25.00
B20: DCA TRAINING FEES
B22: LOCAL SCHOOL TAX PAYABLE | H22: =MAX(0,'13-Other Taxes'!G16) -> 0
B23: REGIONAL SCHOOL TAX PAYABLE | H23: =MAX(0,'14-Other Taxes'!G17) -> 0
B24: REGIONAL H.S.TAX PAYABLE | H24: =MAX(0,'14-Other Taxes'!G38) -> 60,218.04
B25: COUNTY TAX PAYABLE | H25: =MAX(0,'15-Other Taxes'!I18) -> 0
B26: DUE COUNTY - ADDED & OMMITTED | H26: =MAX(0,'15-Other Taxes'!I19) -> 0
B27: SPECIAL DISTRICT TAX PAYABLE | H27: =MAX(0,'15-Other Taxes'!I38) -> 0
B28: RESERVE FOR TAX APPEAL | H28: =MAX(0,'24-Reserves for Tax Appeals'!I17) -> 0
B29: Reserve for Insurance Proceeds | H29: 1,510.28
B30: Reserve for Codification | H30: 20,000.00
B31: Reserve for America Rescue Plan | H31: 51,967.64
B32: Reserve for Municipal Relief Fund | H32: 8,960.10
F44: PAGE TOTAL | G44: =SUM(G10:G43) -> 1,342,518.99 | H44: =SUM(H10:H43) -> 395,497.21
B47: (Do not crowd - add additional sheets)
B48: Sheet 3a

Sheet 3a.1-Trial Bal-Current Fund
B2: NOTE THAT A TRIAL BALANCE IS REQUIRED AND NOT A BALANCE SHEET
B4: POST CLOSING
B5: TRIAL BALANCE - CURRENT FUND (CONT'D)
B6: =IF('KEY INPUTS'!C42 = "State Fiscal Year", 'KEY INPUTS'!F45,'KEY INPUTS'!D45) -> AS AT DECEMBER 31, 2023
B8: Cash Liabilities Must Be Subtotaled and Subtotal Must Be Marked With "C" -- Taxes Receivable Must Be Subtotaled
B9: Title of Account | G9: Debit | H9: Credit
B10: TOTALS FROM PAGE 3a | G10: ='3a-Trial Bal-Current Fund'!G44 -> 1,342,518.99 | H10: ='3a-Trial Bal-Current Fund'!H44 -> 395,497.21
F25: SUBTOTAL | G25: =SUM(G10:G24) -> 1,342,518.99 | H25: =SUM(H10:H24) -> 395,497.21 | I25: "C"
C39: RESERVE FOR RECEIVABLES | H39: =SUM('3-Trial Bal-Current Fund'!G17:G35) -> 106,572.07
C40: DEFERRED SCHOOL TAX | G40: =+'13-Other Taxes'!G18+'14-Other Taxes'!G40+'14-Other Taxes'!G19 -> 92,746.00
C41: DEFERRED SCHOOL TAX PAYABLE | H41: =+G40 -> 92,746.00
C42: FUND BALANCE | H42: =+'21-Current Fund Surplus'!K14 -> 840,449.41
F44: TOTALS | G44: =SUM(G25:G43) -> 1,435,264.99 | H44: =SUM(H25:H42) -> 1,435,264.69
B47: (Do not crowd - add additional sheets)
B48: Sheet 3a.1

Sheet 4-Trial Bal-Pub Assist Fnd
B3: POST CLOSING
B4: TRIAL BALANCE - PUBLIC ASSISTANCE FUND
B5: ACCOUNTS #1 AND #2 *
B6: =IF('KEY INPUTS'!C42 = "State Fiscal Year", 'KEY INPUTS'!F45,'KEY INPUTS'!D45) -> AS AT DECEMBER 31, 2023
B8: Title of Account | G8: Debit | H8: Credit
D40: TOTALS | G40: =SUM(G9:G39) -> 0 | H40: =SUM(H9:H39) -> 0
B41: (Do not crowd - add additional sheets)
B42: *To be prepared in compliance with Department of Human Services Municipal Audit Guide,
C43: Public Welfare, General Assistance Program.
B46: Sheet 4

Sheet 5-Trial Bal-Grants
B3: POST CLOSING TRIAL BALANCE
B4: FEDERAL AND STATE GRANTS
B6: =IF('KEY INPUTS'!C42 = "State Fiscal Year", 'KEY INPUTS'!F45,'KEY INPUTS'!D45) -> AS AT DECEMBER 31, 2023
B8: Title of Account | G8: Debit | H8: Credit
C10: CASH | G10: =+'9-Cash Reconciliation'!I7 -> 0
C11: GRANTS RECEIVABLE | G11: ='10 Totals Grants Receivable'!K27 -> 0
C21: DUE FROM/TO CURRENT FUND | G21: 51,361.04
C24: ENCUMBRANCES PAYABLE
C33: APPROPRIATED RESERVES | H33: =+'11- Totals Grants Approp Rsrv'!L27 -> 21,841.45
C34: UNAPPROPRIATED RESERVES | H34: =+'12 Total-Grants Unappropriated'!K27 -> 29,519.59
D36: TOTALS | G36: =SUM(G9:G35) -> 51,361.04 | H36: =SUM(H9:H35) -> 51,361.04
B45: (Do not crowd - add additional sheets)
B48: Sheet 5

Sheet 6-Trial Bal-Trust Fnds
B3: POST CLOSING
B4: TRIAL BALANCE - TRUST FUNDS
B5: (Assessment Section Must Be Separately Stated)
B6: =IF('KEY INPUTS'!C42 = "State Fiscal Year", 'KEY INPUTS'!F45,'KEY INPUTS'!D45) -> AS AT DECEMBER 31, 2023
B8: Title of Account | G8: Debit | H8: Credit
B10: ANIMAL CONTROL TRUST FUND
C11: CASH | G11: =+'9-Cash Reconciliation'!I8 -> 2,984.15
C12: DUE TO - | E12: Current Fund | H12: 56.35
C13: DUE TO STATE OF NJ | G13: 94.80
C14: RESERVE FOR ANIMAL CONTROL TRUST FUND | H14: 3,022.60
C17: FUND TOTALS | G17: =SUM(G9:G16) -> 3,078.95 | H17: =SUM(H9:H16) -> 3,078.95
B19: ASSESSMENT TRUST FUND
C20: CASH | G20: =+'9-Cash Reconciliation'!I9 -> 0
C21: DUE TO -
C24: RESERVE FOR:
C28: FUND TOTALS | G28: =SUM(G20:G27) -> 0 | H28: =SUM(H20:H27) -> 0
B30: MUNICIPAL OPEN SPACE TRUST FUND
C31: CASH | G31: =+'9-Cash Reconciliation'!I10 -> 0
C38: FUND TOTALS | G38: =SUM(G31:G37) -> 0 | H38: =SUM(H31:H37) -> 0
B40: LOSAP TRUST FUND
C41: CASH | G41: =+'9-Cash Reconciliation'!I11 -> 0
C45: FUND TOTALS | G45: =SUM(G41:G44) -> 0 | H45: =SUM(H41:H44) -> 0
B46: (Do not crowd - add additional sheets)
B47: Sheet 6

Sheet 6.1-Trial Bal-Trust Fnds
B3: POST CLOSING
B4: TRIAL BALANCE - TRUST FUNDS (CONT'D)
B5: (Assessment Section Must Be Separately Stated)
B6: =IF('KEY INPUTS'!C42 = "State Fiscal Year", 'KEY INPUTS'!F45,'KEY INPUTS'!D45) -> AS AT DECEMBER 31, 2023
B8: Title of Account | G8: Debit | H8: Credit
B10: CDBG TRUST FUND
C11: CASH | G11: =+'9-Cash Reconciliation'!I12 -> 0
C12: DUE TO -
C20: FUND TOTALS | G20: =SUM(G9:G19) -> 0 | H20: =SUM(H9:H19) -> 0
B22: ARTS AND CULTURAL TRUST FUND
C23: CASH | G23: ='9-Cash Reconciliation'!I14 -> 0
C30: FUND TOTALS | G30: =SUM(G23:G29) -> 0 | H30: =SUM(H23:H29) -> 0
B32: OTHER TRUST FUNDS
C33: CASH | G33: ='9-Cash Reconciliation'!I13 -> 68,941.37
C34: Various Reserves | H34: 68,941.37
B44: OTHER TRUST FUNDS PAGE TOTAL | G44: =SUM(G33:G43) -> 68,941.37 | H44: =SUM(H33:H43) -> 68,941.37
B45: (Do not crowd - add additional sheets)
B48: Sheet 6.1

Sheet 6.2-Trial Bal-Trust Fnds
B3: POST CLOSING
B4: TRIAL BALANCE - TRUST FUNDS (CONT'D)
B5: (Assessment Section Must Be Separately Stated)
B6: =IF('KEY INPUTS'!C42 = "State Fiscal Year", 'KEY INPUTS'!F45,'KEY INPUTS'!D45) -> AS AT DECEMBER 31, 2023
B8: Title of Account | G8: Debit | H8: Credit
B9: Previous Totals | G9: =+'6.1-Trial Bal-Trust Fnds'!G44 -> 68,941.37 | H9: =+'6.1-Trial Bal-Trust Fnds'!H44 -> 68,941.37
B10: OTHER TRUST FUNDS (continued)
B44: TOTALS | G44: =SUM(G9:G43) -> 68,941.37 | H44: =SUM(H9:H43) -> 68,941.37
B45: (Do not crowd - add additional sheets)
B48: Sheet 6.2

Sheet 6.3-Trial Bal-Trust Fnds (hidden)
B3: POST CLOSING
B4: TRIAL BALANCE - TRUST FUNDS (CONT'D)
B5: (Assessment Section Must Be Separately Stated)
B6: =IF('KEY INPUTS'!C42 = "State Fiscal Year", 'KEY INPUTS'!F45,'KEY INPUTS'!D45) -> AS AT DECEMBER 31, 2023
B8: Title of Account | G8: Debit | H8: Credit
B9: Previous Totals | G9: =+'6.2-Trial Bal-Trust Fnds'!G44 -> 68,941.37 | H9: =+'6.2-Trial Bal-Trust Fnds'!H44 -> 68,941.37
B10: OTHER TRUST FUNDS (continued)
B44: TOTALS | G44: =SUM(G9:G43) -> 68,941.37 | H44: =SUM(H9:H43) -> 68,941.37
B45: (Do not crowd - add additional sheets)
B48: Sheet 6.3

Sheet 6.4-Trial Bal-Trust Fnds (hidden)
B3: POST CLOSING
B4: TRIAL BALANCE - TRUST FUNDS (CONT'D)
B5: (Assessment Section Must Be Separately Stated)
B6: =IF('KEY INPUTS'!C42 = "State Fiscal Year", 'KEY INPUTS'!F45,'KEY INPUTS'!D45) -> AS AT DECEMBER 31, 2023
B8: Title of Account | G8: Debit | H8: Credit
B9: Previous Totals | G9: =+'6.3-Trial Bal-Trust Fnds'!G44 -> 68,941.37 | H9: =+'6.3-Trial Bal-Trust Fnds'!H44 -> 68,941.37
B10: OTHER TRUST FUNDS (continued)
B44: TOTALS | G44: =SUM(G9:G43) -> 68,941.37 | H44: =SUM(H9:H43) -> 68,941.37
B45: (Do not crowd - add additional sheets)
B48: Sheet 6.4

Sheet 6.TOTAL-Trial Bal-Trust Fnds
B3: POST CLOSING
B4: TRIAL BALANCE - TRUST FUNDS (CONT'D)
B5: (Assessment Section Must Be Separately Stated)
B6: =IF('KEY INPUTS'!C42 = "State Fiscal Year", 'KEY INPUTS'!F45,'KEY INPUTS'!D45) -> AS AT DECEMBER 31, 2023
B8: Title of Account | G8: Debit | H8: Credit
B9: Previous Totals | G9: =+'6.4-Trial Bal-Trust Fnds'!G44 -> 68,941.37 | H9: =+'6.4-Trial Bal-Trust Fnds'!H44 -> 68,941.37
B10: OTHER TRUST FUNDS (continued)
B44: TOTALS | G44: =SUM(G9:G43) -> 68,941.37 | H44: =SUM(H9:H43) -> 68,941.37
B45: (Do not crowd - add additional sheets)
B48: Sheet 6. TOTALS
I55: =+G44-H44 -> 0

Sheet 6b-Trust Fund Reserves
B2: SCHEDULE OF TRUST FUND RESERVES
G5: Amount
G6: =IF('KEY INPUTS'!C42 = "State Fiscal Year", 'KEY INPUTS'!F46,'KEY INPUTS'!D46) -> Dec. 31, 2022 | M6: Balance
G7: per Audit | M7: as at
B8: Purpose | G8: Report | I8: Receipts | K8: Disbursements | M8: =IF('KEY INPUTS'!C42 = "State Fiscal Year", 'KEY INPUTS'!F47,'KEY INPUTS'!D47) -> Dec. 31, 2023
B10: Trust Other | G10: 11,022.21 | M10: =+G10+I10-K10 -> 11,022.21
B11: Street Opening | G11: 9,172.50 | M11: 9,172.50
B12: Engineering Fees | G12: 183.50 | M12: 183.50
B13: POAA | G13: 158.00 | M13: 158.00
B14: Public Defender | G14: 200.00 | M14: 200.00
B15: Refundable Deposits | G15: 1,750.00 | I15: 250.00 | M15: 2,000.00
B16: Snow Removal | G16: 25,000.00 | M16: =+G16+I16-K16 -> 25,000.00
B17: Unemployment Fund | G17: 10,438.98 | K17: 49.74 | M17: 10,389.24
B18: Recreation | G18: 10,815.92 | M18: 10,815.92
M19: 0
M20: 0
M21: 0
M22: 0
M23: 0
M24: 0
M25: 0
M26: 0
M27: 0
M28: 0
M29: 0
M30: 0
M31: 0
M32: 0
M33: 0
M34: 0
M35: 0
M36: 0
M37: 0
M38: 0
M39: 0
M40: 0
M41: 0
M42: 0
M43: 0
M44: 0
M45: 0
M46: 0
M47: 0
D48: PAGE TOTAL | F48: $ | G48: =SUM(G10:G47) -> 68,741.11 | H48: $ | I48: =SUM(I10:I47) -> 250.00 | J48: $ | K48: =SUM(K10:K47) -> 49.74 | L48: $ | M48: =SUM(M10:M47) -> 68,941.37
B50: Sheet 6b

Sheet 6b.1-Trust Fund Reserves (hidden)
B2: SCHEDULE OF TRUST FUND RESERVES (CONT'D)
G5: Amount
G6: ='6b-Trust Fund Reserves'!G6 -> Dec. 31, 2022 | M6: Balance
G7: per Audit | M7: as at
B8: Purpose | G8: Report | I8: Receipts | K8: Disbursements | M8: ='6b-Trust Fund Reserves'!M8 -> Dec. 31, 2023
B10: PREVIOUS PAGE TOTAL | G10: =+'6b-Trust Fund Reserves'!G48 -> 68,741.11 | I10: =+'6b-Trust Fund Reserves'!I48 -> 250.00 | K10: =+'6b-Trust Fund Reserves'!K48 -> 49.74 | M10: =+'6b-Trust Fund Reserves'!M48 -> 68,941.37
M11: =+G11+I11-K11 -> 0
M12: 0
M13: 0
M14: 0
M15: 0
M16: 0
M17: 0
M18: 0
M19: 0
M20: 0
M21: 0
M22: 0
M23: 0
M24: 0
M25: 0
M26: 0
M27: 0
M28: 0
M29: 0
M30: 0
M31: 0
M32: 0
M33: 0
M34: 0
M35: 0
M36: 0
M37: 0
M38: 0
M39: 0
M40: 0
M41: 0
M42: 0
M43: 0
M44: 0
M45: 0
M46: 0
M47: 0
D48: PAGE TOTAL | F48: $ | G48: =SUM(G10:G47) -> 68,741.11 | H48: $ | I48: =SUM(I10:I47) -> 250.00 | J48: $ | K48: =SUM(K10:K47) -> 49.74 | L48: $ | M48: =SUM(M10:M47) -> 68,941.37
B50: Sheet 6b.1

Sheet 6b.2-Trust Fund Reserves (hidden)
B2: SCHEDULE OF TRUST FUND RESERVES (CONT'D)
G5: Amount
G6: ='6b.1-Trust Fund Reserves'!G6 -> Dec. 31, 2022 | M6: Balance
G7: per Audit | M7: as at
B8: Purpose | G8: Report | I8: Receipts | K8: Disbursements | M8: ='6b.1-Trust Fund Reserves'!M8 -> Dec. 31, 2023
B10: PREVIOUS PAGE TOTAL | G10: =+'6b.1-Trust Fund Reserves'!G48 -> 68,741.11 | I10: =+'6b.1-Trust Fund Reserves'!I48 -> 250.00 | K10: =+'6b.1-Trust Fund Reserves'!K48 -> 49.74 | M10: =+'6b.1-Trust Fund Reserves'!M48 -> 68,941.37
M11: =+G11+I11-K11 -> 0
M12: 0
M13: 0
M14: 0
M15: 0
M16: 0
M17: 0
M18: 0
M19: 0
M20: 0
M21: 0
M22: 0
M23: 0
M24: 0
M25: 0
M26: 0
M27: 0
M28: 0
M29: 0
M30: 0
M31: 0
M32: 0
M33: 0
M34: 0
M35: 0
M36: 0
M37: 0
M38: 0
M39: 0
M40: 0
M41: 0
M42: 0
M43: 0
M44: 0
M45: 0
M46: 0
M47: 0
D48: PAGE TOTAL | F48: $ | G48: =SUM(G10:G47) -> 68,741.11 | H48: $ | I48: =SUM(I10:I47) -> 250.00 | J48: $ | K48: =SUM(K10:K47) -> 49.74 | L48: $ | M48: =SUM(M10:M47) -> 68,941.37
B50: Sheet 6b.2

Sheet 6b.3-Trust Fund Reserves (hidden)
B2: SCHEDULE OF TRUST FUND RESERVES (CONT'D)
G5: Amount
G6: ='6b.2-Trust Fund Reserves'!G6 -> Dec. 31, 2022 | M6: Balance
G7: per Audit | M7: as at
B8: Purpose | G8: Report | I8: Receipts | K8: Disbursements | M8: ='6b.2-Trust Fund Reserves'!M8 -> Dec. 31, 2023
B10: PREVIOUS PAGE TOTAL | G10: =+'6b.2-Trust Fund Reserves'!G48 -> 68,741.11 | I10: =+'6b.2-Trust Fund Reserves'!I48 -> 250.00 | K10: =+'6b.2-Trust Fund Reserves'!K48 -> 49.74 | M10: =+'6b.2-Trust Fund Reserves'!M48 -> 68,941.37
M11: =+G11+I11-K11 -> 0
M12: 0
M13: 0
M14: 0
M15: 0
M16: 0
M17: 0
M18: 0
M19: 0
M20: 0
M21: 0
M22: 0
M23: 0
M24: 0
M25: 0
M26: 0
M27: 0
M28: 0
M29: 0
M30: 0
M31: 0
M32: 0
M33: 0
M34: 0
M35: 0
M36: 0
M37: 0
M38: 0
M39: 0
M40: 0
M41: 0
M42: 0
M43: 0
M44: 0
M45: 0
M46: 0
M47: 0
D48: PAGE TOTAL | F48: $ | G48: =SUM(G10:G47) -> 68,741.11 | H48: $ | I48: =SUM(I10:I47) -> 250.00 | J48: $ | K48: =SUM(K10:K47) -> 49.74 | L48: $ | M48: =SUM(M10:M47) -> 68,941.37
B50: Sheet 6b.3

Sheet 6b-Total Trust Fund Reserves
B2: SCHEDULE OF TRUST FUND RESERVES (CONT'D)
G5: Amount
G6: ='6b.3-Trust Fund Reserves'!G6 -> Dec. 31, 2022 | M6: Balance
G7: per Audit | M7: as at
B8: Purpose | G8: Report | I8: Receipts | K8: Disbursements | M8: ='6b.3-Trust Fund Reserves'!M8 -> Dec. 31, 2023
B10: PREVIOUS PAGE TOTAL | G10: =+'6b.3-Trust Fund Reserves'!G48 -> 68,741.11 | I10: =+'6b.3-Trust Fund Reserves'!I48 -> 250.00 | K10: =+'6b.3-Trust Fund Reserves'!K48 -> 49.74 | M10: =+'6b.3-Trust Fund Reserves'!M48 -> 68,941.37
M11: =+G11+I11-K11 -> 0
M12: 0
M13: 0
M14: 0
M15: 0
M16: 0
M17: 0
M18: 0
M19: 0
M20: 0
M21: 0
M22: 0
M23: 0
M24: 0
M25: 0
M26: 0
M27: 0
M28: 0
M29: 0
M30: 0
M31: 0
M32: 0
M33: 0
M34: 0
M35: 0
M36: 0
M37: 0
M38: 0
M39: 0
M40: 0
M41: 0
M42: 0
M43: 0
M44: 0
M45: 0
M46: 0
M47: 0
D48: PAGE TOTAL | F48: $ | G48: =SUM(G10:G47) -> 68,741.11 | H48: $ | I48: =SUM(I10:I47) -> 250.00 | J48: $ | K48: =SUM(K10:K47) -> 49.74 | L48: $ | M48: =SUM(M10:M47) -> 68,941.37
B50: Sheet 6b TOTAL

Sheet 7-Trust Asm Cash & Investments
B2: ANALYSIS OF TRUST ASSESSMENT CASH AND INVESTMENTS PLEDGED TO
B3: LIABILITIES AND SURPLUS
E4: Audit
C5: Title of Liability to which Cash | E5: Balance | F5: RECEIPTS | L5: Balance
C6: and Investments are Pledged | E6: ='6b-Total Trust Fund Reserves'!G6 -> Dec. 31, 2022 | F6: Assessments | G6: Current | K6: Disbursements | L6: ='6b-Total Trust Fund Reserves'!M8 -> Dec. 31, 2023
F7: and Liens | G7: Budget
B8: Assessment Serial Bond Issues: | E8: xxxxxxxxx | F8: xxxxxxxxx | G8: xxxxxxxxx | H8: xxxxxxxxx | I8: xxxxxxxxx | J8: xxxxxxxxx | K8: xxxxxxxxx | L8: xxxxxxxxx
L9: =+E9+F9+G9+H9+I9-J9-K9 -> 0
L10: =+E10+F10+G10+H10+I10-J10-K10 -> 0
L11: 0
L12: 0
L13: 0
B14: Assessment Bond Anticipation Note Issues: | E14: xxxxxxxxx | F14: xxxxxxxxx | G14: xxxxxxxxx | H14: xxxxxxxxx | I14: xxxxxxxxx | J14: xxxxxxxxx | K14: xxxxxxxxx | L14: xxxxxxxxx
A15: Sheet 7 | L15: =+E15+F15+G15+H15+I15-J15-K15 -> 0
L16: =+E16+F16+G16+H16+I16-J16-K16 -> 0
L17: 0
L18: 0
B19: Other Liabilities | L19: 0
B20: Trust Surplus | L20: 0
B21: *Less Assets "Unfinanced" | E21: xxxxxxxxx | F21: xxxxxxxxx | G21: xxxxxxxxx | H21: xxxxxxxxx | I21: xxxxxxxxx | J21: xxxxxxxxx | K21: xxxxxxxxx | L21: xxxxxxxxx
L22: 0
L23: 0
L24: 0
L25: 0
E26: =SUM(E9:E25) -> 0 | F26: =SUM(F9:F25) -> 0 | G26: 0 | H26: 0 | I26: 0 | J26: 0 | K26: 0 | L26: =SUM(L9:L25) -> 0
B27: *Show as red figure

Sheet 8-Trial Bal-Gen Cap Fund
B3: POST CLOSING
B4: TRIAL BALANCE -- GENERAL CAPITAL FUND
B6: =IF('KEY INPUTS'!C42 = "State Fiscal Year", 'KEY INPUTS'!F45,'KEY INPUTS'!D45) -> AS AT DECEMBER 31, 2023
B8: Title of Account | G8: Debit | H8: Credit
B9: Estimated Proceeds Bonds and Notes Authorized | G9: =+H10 -> 170,472.70 | H9: xxxxxxxxx
B10: Bonds and Notes Authorized but Not Issued | G10: xxxxxxxxx | H10: 170,472.70
C12: CASH | G12: =+'9-Cash Reconciliation'!I15 -> 732,474.90
C14: DUE FROM -
C15: DUE FROM -
C16: FEDERAL AND STATE GRANTS RECEIVABLE | G16: 254,683.12
C17: DEFERRED CHARGES TO FUTURE TAXATION:
D18: FUNDED | G18: 645,000.00
D19: UNFUNDED | G19: 170,472.70
C20: CAPITAL LEASE OBLIGATION | G20: 2,000.00
C21: DUE TO -
C44: PAGE TOTALS | G44: =SUM(G9:G43) -> 1,975,103.42 | H44: =SUM(H9:H43) -> 170,472.70
B45: (Do not crowd - add additional sheets)
B48: Sheet 8

Sheet 8.1-Trial Bal-Gen Cap Fund
B3: POST CLOSING
B4: TRIAL BALANCE -- GENERAL CAPITAL FUND
B6: =IF('KEY INPUTS'!C42 = "State Fiscal Year", 'KEY INPUTS'!F45,'KEY INPUTS'!D45) -> AS AT DECEMBER 31, 2023
B8: Title of Account | G8: Debit | H8: Credit
B9: PREVIOUS PAGE TOTALS | G9: =+'8-Trial Bal-Gen Cap Fund'!G44 -> 1,975,103.42 | H9: =+'8-Trial Bal-Gen Cap Fund'!H44 -> 170,472.70
C21: BOND ANTICIPATION NOTES PAYABLE | H21: =+'33 Totals-Note Debt Service'!G23 -> 0
C22: GENERAL SERIAL BONDS | H22: ='31-Capital Bond Schedule'!G12 -> 645,000.00
C23: TYPE 1 SCHOOL BONDS | H23: ='32-Bond Schedule'!G11+'32-Bond Schedule'!G22 -> 0
C24: LOANS PAYABLE | H24: =+'31A-Loan Schedule'!G12+'31A-Loan Schedule'!G23+'31A.1-Loan Schedule'!G12+'31A.1-Loan Schedule'!G23+'31A.2-Loan Schedule'!G12+'31A.2-Loan Schedule'!G23 -> 0
C25: CAPITAL LEASES PAYABLE | H25: ='34a-Cap Lease Program Oblg'!G23 -> 2,000.00
C28: RESERVE FOR CAPITAL PROJECTS
C32: IMPROVEMENT AUTHORIZATIONS:
D33: FUNDED | H33: =+'35 Totals- Cap Fund Imprv Auth'!K28 -> 838,802.00
D34: UNFUNDED | H34: =+'35 Totals- Cap Fund Imprv Auth'!L28 -> 132,883.90
C36: ENCUMBRANCES PAYABLE | H36: 573.80
C37: Reserve for Costs of Issuance | H37: 6,287.86
C38: RESERVE TO PAY BANS | H38: 184.14
C39: CAPITAL IMPROVEMENT FUND | H39: =+'36- Capital Improvement Fund'!I31 -> 82,166.83
C40: DOWN PAYMENTS ON IMPROVEMENTS | H40: ='37- Cap Fund Down Pymts'!I15 -> 0
C43: CAPITAL FUND BALANCE | H43: =+'38- Capital Surplus'!I17 -> 96,732.19
G44: =SUM(G9:G43) -> 1,975,103.42 | H44: =SUM(H9:H43) -> 1,975,103.42
B45: (Do not crowd - add additional sheets)
B48: Sheet 8.1

Sheet 9-Cash Reconciliation
B3: ="CASH RECONCILIATION "&IF('KEY INPUTS'!C42="State Fiscal Year"," JUNE 30, "&'KEY INPUTS'!D33&""," DECEMBER 31, "&'KEY INPUTS'!D34&"")&"" -> CASH RECONCILIATION DECEMBER 31, 2023
F4: Cash | H4: Less Checks | I4: Cash Book
F5: *On Hand | G5: On Deposit | H5: Outstanding | I5: Balance
B6: Current | F6: =228200.88+25990.66 -> 254,191.54 | G6: =+'9a-Cash Reconciliation'!F7+'9a-Cash Reconciliation'!F8+'9a-Cash Reconciliation'!F9 -> 1,488,360.35 | H6: 506,604.97 | I6: =+F6+G6-H6 -> 1,235,946.92
B7: Grant Fund | I7: =+F7+G7-H7 -> 0
B8: Trust - Animal Control | G8: =+'9a-Cash Reconciliation'!F16 -> 3,129.15 | H8: 145.00 | I8: 2,984.15
B9: Trust - Assessment | I9: 0
B10: Trust - Municipal Open Space | I10: 0
B11: Trust - LOSAP | I11: 0
B12: Trust - CDBG | I12: 0
B13: Trust - Other | G13: =+'9a-Cash Reconciliation'!F12+'9a-Cash Reconciliation'!F13 -> 70,781.37 | H13: 1,840.00 | I13: 68,941.37
B14: Trust - Arts and Culture | I14: =+F14+G14-H14 -> 0
B15: General Capital | F15: 177,204.84 | G15: =+'9a-Cash Reconciliation'!F19 -> 575,431.56 | H15: 20,161.50 | I15: =+F15+G15-H15 -> 732,474.90
I16: 0
B17: UTILITIES: | K17: ADD YOUR UTILITIES AS NEEDED
I18: 0
I19: 0
I20: 0
I21: 0
I22: 0
I23: 0
I24: 0
I25: 0
I26: 0
I27: 0
I28: 0
I29: 0
I30: 0
I31: 0
I32: 0
I33: 0
I34: 0
E35: Total | F35: =SUM(F6:F34) -> 431,396.38 | G35: =SUM(G6:G34) -> 2,137,702.43 | H35: =SUM(H6:H34) -> 528,751.47 | I35: =SUM(I6:I34) -> 2,040,347.34
B36: * Include Deposits In Transit
B37: ** Be sure to include a Public Assistance Account reconciliation and trial balance if the municipality maintains such a bank account.
B39: REQUIRED CERTIFICATION
C40: I hereby certify that all amounts shown in the "Cash on Deposit" column on Sheet 9 and 9(a) have been verified with the
B41: =IF('KEY INPUTS'!C42="State Fiscal Year","applicable bank statements, certificates, agreements or passbooks at "&'KEY INPUTS'!F47&".","applicable bank statements, certificates, agreements or passbooks at December 31, "&TEXT('KEY INPUTS'!D34,"0")&".") -> applicable bank statements, certificates, agreements or passbooks at December 31, 2023.
C42: I also certify that all amounts, if any, shown for Investments in Savings and Loan Associations on any trial balance have
B43: =IF('KEY INPUTS'!C42="State Fiscal Year","been verified with the applicable passbook at "&'KEY INPUTS'!F47&".","been verified with the applicable passbook at December 31, "&TEXT('KEY INPUTS'!D34,"0")&".") -> been verified with the applicable passbook at December 31, 2023.
C44: All "Certificates of Deposits", Repurchase Agreements" and other investments must be reported as cash and included in
B45: this certification.
C46: (THIS MUST BE SIGNED BY THE REGISTERED MUNICIPAL ACCOUNTANT (STATUTORY AUDITOR) OR
B47: CHIEF FINANCIAL OFFICER) depending on who prepared this Annual Financial Statement as certified to on Sheet 1 or 1(a).
B50: Signature: | D50: claporta@townshipofshrewsbury.com | G50: Title: | H50: CFO
B52: Sheet 9

Sheet 9a-Cash Reconciliation
B2: ="CASH RECONCILIATION "&IF('KEY INPUTS'!C42="State Fiscal Year"," JUNE 30, "&'KEY INPUTS'!D33&" (cont'd) "," DECEMBER 31, "&'KEY INPUTS'!D34&" (cont'd) ")&"" -> CASH RECONCILIATION DECEMBER 31, 2023 (cont'd)
B4: LIST BANKS AND AMOUNTS SUPPORTING "CASH ON DEPOSIT"
B6: Current Fund:
C7: TD Bank Operating Acct. #36600377 | F7: 80,443.33
C8: TD Bank Current Acct. #7871730383 | F8: 1,392,917.02
C9: TD Bank Payroll Acct. #36600369 | F9: 15,000.00
B11: Trust Other:
C12: TD Bank Unemployment Acct. #1900871313 | F12: 60,392.13
C13: TD Bank Trust Other Acct. #1900871316 | F13: 10,389.24
B15: Animal Control Trust
C16: TD Bank Animal Control Acct. #7871730375 | F16: 3,129.15
B18: General Capital Fund
C19: TD Bank General Capital Acct. #7871298084 | F19: 575,431.56
C43: PAGE TOTAL | F43: =SUM(F5:F42) -> 2,137,702.43
B45: Note: Sections N.J.S. 40A:4-61, 40A:4-62 and 40A:4-63 of the Local Budget Law require that
B46: separate bank accounts be maintained for each allocated fund.
B49: Sheet 9a

Sheet 9a.1-Cash Reconciliation (hidden)
B2: ='9a-Cash Reconciliation'!B2:F2 -> CASH RECONCILIATION DECEMBER 31, 2023 (cont'd)
B4: LIST BANKS AND AMOUNTS SUPPORTING "CASH ON DEPOSIT"
B5: PREVIOUS PAGE TOTAL | F5: =+'9a-Cash Reconciliation'!F43 -> 2,137,702.43
B43: PAGE TOTAL | F43: =SUM(F5:F42) -> 2,137,702.43
B45: Note: Sections N.J.S. 40A:4-61, 40A:4-62 and 40A:4-63 of the Local Budget Law require that
B46: separate bank accounts be maintained for each allocated fund.
B49: Sheet 9a.1

Sheet 9a.2-Cash Reconciliation (hidden)
B2: ='9a-Cash Reconciliation'!B2:F2 -> CASH RECONCILIATION DECEMBER 31, 2023 (cont'd)
B4: LIST BANKS AND AMOUNTS SUPPORTING "CASH ON DEPOSIT"
B5: PREVIOUS PAGE TOTAL | F5: =+'9a.1-Cash Reconciliation'!F43 -> 2,137,702.43
B43: PAGE TOTAL | F43: =SUM(F5:F42) -> 2,137,702.43
B45: Note: Sections N.J.S. 40A:4-61, 40A:4-62 and 40A:4-63 of the Local Budget Law require that
B46: separate bank accounts be maintained for each allocated fund.
B49: Sheet 9a.2

Sheet 9a.3-Cash Reconciliation (hidden)
B2: ='9a-Cash Reconciliation'!B2:F2 -> CASH RECONCILIATION DECEMBER 31, 2023 (cont'd)
B4: LIST BANKS AND AMOUNTS SUPPORTING "CASH ON DEPOSIT"
B5: PREVIOUS PAGE TOTAL | F5: =+'9a.2-Cash Reconciliation'!F43 -> 2,137,702.43
B43: PAGE TOTAL | F43: =SUM(F5:F42) -> 2,137,702.43
B45: Note: Sections N.J.S. 40A:4-61, 40A:4-62 and 40A:4-63 of the Local Budget Law require that
B46: separate bank accounts be maintained for each allocated fund.
B49: Sheet 9a.3

Sheet 9a TOTAL-Cash Reconciliation
B2: ='9a-Cash Reconciliation'!B2:F2 -> CASH RECONCILIATION DECEMBER 31, 2023 (cont'd)
B4: LIST BANKS AND AMOUNTS SUPPORTING "CASH ON DEPOSIT"
B5: PREVIOUS PAGE TOTAL | F5: =+'9a.3-Cash Reconciliation'!F43 -> 2,137,702.43
B43: TOTAL PAGE | F43: =SUM(F5:F42) -> 2,137,702.43
B45: Note: Sections N.J.S. 40A:4-61, 40A:4-62 and 40A:4-63 of the Local Budget Law require that
B46: separate bank accounts be maintained for each allocated fund.
B49: Sheet 9a TOTAL

Sheet 10-Grants Receivable
B2: MUNICIPALITIES AND COUNTIES
B3: FEDERAL AND STATE GRANTS RECEIVABLE
G4: =IF('KEY INPUTS'!C42="State Fiscal Year","Fiscal Year "&'KEY INPUTS'!D33&"",'KEY INPUTS'!D34) -> 2023
B5: Grant | F5: Balance | G5: Budget | H5: Received | I5: Other | J5: Cancelled | K5: Balance
F6: =IF('KEY INPUTS'!C42 = "State Fiscal Year", 'KEY INPUTS'!F48,'KEY INPUTS'!D48) -> Jan. 1, 2023 | G6: Revenue | K6: =IF('KEY INPUTS'!C42 = "State Fiscal Year", 'KEY INPUTS'!F47,'KEY INPUTS'!D47) -> Dec. 31, 2023
G7: Realized
K8: =+F8+G8-H8+I8-J8 -> 0
K9: =+F9+G9-H9+I9-J9 -> 0
K10: 0
K11: 0
K12: 0
K13: 0
K14: 0
A15: Sheet 10 | K15: 0
K16: 0
K17: 0
K18: 0
K19: 0
K20: 0
K21: 0
K22: 0
K23: 0
K24: 0
K25: 0
K26: 0
C27: PAGE TOTALS | F27: =SUM(F8:F26) -> 0 | G27: 0 | H27: 0 | I27: 0 | J27: 0 | K27: =SUM(K8:K26) -> 0

Sheet 10.1-Grants Receivable
B2: MUNICIPALITIES AND COUNTIES
B3: FEDERAL AND STATE GRANTS RECEIVABLE (cont'd)
G4: =IF('KEY INPUTS'!C42="State Fiscal Year","Fiscal Year "&'KEY INPUTS'!D33&"",'KEY INPUTS'!D34) -> 2023
B5: Grant | F5: Balance | G5: Budget | H5: Received | I5: Other | J5: Cancelled | K5: Balance
F6: ='10-Grants Receivable'!F6 -> Jan. 1, 2023 | G6: Revenue | K6: ='10-Grants Receivable'!K6 -> Dec. 31, 2023
G7: Realized
B8: PREVIOUS PAGE TOTALS | F8: =+'10-Grants Receivable'!F27 -> 0 | G8: =+'10-Grants Receivable'!G27 -> 0 | H8: =+'10-Grants Receivable'!H27 -> 0 | I8: =+'10-Grants Receivable'!I27 -> 0 | J8: =+'10-Grants Receivable'!J27 -> 0 | K8: =+'10-Grants Receivable'!K27 -> 0
K9: =+F9+G9-H9+I9-J9 -> 0
K10: =+F10+G10-H10+I10-J10 -> 0
K11: 0
K12: 0
K13: 0
K14: 0
A15: Sheet 10.1 | K15: 0
K16: 0
K17: 0
K18: 0
K19: 0
K20: 0
K21: 0
K22: 0
K23: 0
K24: 0
K25: 0
K26: 0
C27: PAGE TOTALS | F27: =SUM(F8:F26) -> 0 | G27: 0 | H27: 0 | I27: 0 | J27: 0 | K27: =SUM(K8:K26) -> 0

Sheet 10.2-Grants Receivable (hidden)
B2: MUNICIPALITIES AND COUNTIES
B3: FEDERAL AND STATE GRANTS RECEIVABLE (cont'd)
G4: =IF('KEY INPUTS'!C42="State Fiscal Year","Fiscal Year "&'KEY INPUTS'!D33&"",'KEY INPUTS'!D34) -> 2023
B5: Grant | F5: Balance | G5: Budget | H5: Received | I5: Other | J5: Cancelled | K5: Balance
F6: ='10-Grants Receivable'!F6 -> Jan. 1, 2023 | G6: Revenue | K6: ='10-Grants Receivable'!K6 -> Dec. 31, 2023
G7: Realized
B8: PREVIOUS PAGE TOTALS | F8: =+'10.1-Grants Receivable'!F27 -> 0 | G8: =+'10.1-Grants Receivable'!G27 -> 0 | H8: =+'10.1-Grants Receivable'!H27 -> 0 | I8: =+'10.1-Grants Receivable'!I27 -> 0 | J8: =+'10.1-Grants Receivable'!J27 -> 0 | K8: =+'10.1-Grants Receivable'!K27 -> 0
K9: =+F9+G9-H9+I9-J9 -> 0
K10: =+F10+G10-H10+I10-J10 -> 0
K11: 0
K12: 0
K13: 0
K14: 0
A15: Sheet 10.2 | K15: 0
K16: 0
K17: 0
K18: 0
K19: 0
K20: 0
K21: 0
K22: 0
K23: 0
K24: 0
K25: 0
K26: 0
C27: PAGE TOTALS | F27: =SUM(F8:F26) -> 0 | G27: 0 | H27: 0 | I27: 0 | J27: 0 | K27: 0
K29: =F27+G27-H27+I27-K27-J27 -> 0
K31: =+F27+G27-H27-I27-J27-K27 -> 0

Sheet 10.3-Grants Receivable (hidden)
B2: MUNICIPALITIES AND COUNTIES
B3: FEDERAL AND STATE GRANTS RECEIVABLE (cont'd)
G4: =IF('KEY INPUTS'!C42="State Fiscal Year","Fiscal Year "&'KEY INPUTS'!D33&"",'KEY INPUTS'!D34) -> 2023
B5: Grant | F5: Balance | G5: Budget | H5: Received | I5: Other | J5: Cancelled | K5: Balance
F6: ='10-Grants Receivable'!F6 -> Jan. 1, 2023 | G6: Revenue | K6: ='10-Grants Receivable'!K6 -> Dec. 31, 2023
G7: Realized
B8: PREVIOUS PAGE TOTALS | F8: =+'10.2-Grants Receivable'!F27 -> 0 | G8: =+'10.2-Grants Receivable'!G27 -> 0 | H8: =+'10.2-Grants Receivable'!H27 -> 0 | I8: =+'10.2-Grants Receivable'!I27 -> 0 | J8: =+'10.2-Grants Receivable'!J27 -> 0 | K8: =+'10.2-Grants Receivable'!K27 -> 0
K9: =+F9+G9-H9+I9-J9 -> 0
K10: =+F10+G10-H10+I10-J10 -> 0
K11: 0
K12: 0
K13: 0
K14: 0
A15: Sheet 10.3 | K15: 0
K16: 0
K17: 0
K18: 0
K19: 0
K20: 0
K21: 0
K22: 0
K23: 0
K24: 0
K25: 0
K26: 0
C27: PAGE TOTALS | F27: =SUM(F8:F26) -> 0 | G27: 0 | H27: 0 | I27: 0 | J27: 0 | K27: 0
K29: =F27+G27-H27+I27-K27-J27 -> 0
K31: =+F27+G27-H27-I27-J27-K27 -> 0

Sheet 10.4-Grants Receivable (hidden)
B2: MUNICIPALITIES AND COUNTIES
B3: FEDERAL AND STATE GRANTS RECEIVABLE (cont'd)
G4: =IF('KEY INPUTS'!C42="State Fiscal Year","Fiscal Year "&'KEY INPUTS'!D33&"",'KEY INPUTS'!D34) -> 2023
B5: Grant | F5: Balance | G5: Budget | H5: Received | I5: Other | J5: Cancelled | K5: Balance
F6: ='10-Grants Receivable'!F6 -> Jan. 1, 2023 | G6: Revenue | K6: ='10-Grants Receivable'!K6 -> Dec. 31, 2023
G7: Realized
B8: PREVIOUS PAGE TOTALS | F8: =+'10.3-Grants Receivable'!F27 -> 0 | G8: =+'10.3-Grants Receivable'!G27 -> 0 | H8: =+'10.3-Grants Receivable'!H27 -> 0 | I8: =+'10.3-Grants Receivable'!I27 -> 0 | J8: =+'10.3-Grants Receivable'!J27 -> 0 | K8: =+'10.3-Grants Receivable'!K27 -> 0
K9: =+F9+G9-H9+I9-J9 -> 0
K10: =+F10+G10-H10+I10-J10 -> 0
K11: 0
K12: 0
K13: 0
K14: 0
A15: Sheet 10.4 | K15: 0
K16: 0
K17: 0
K18: 0
K19: 0
K20: 0
K21: 0
K22: 0
K23: 0
K24: 0
K25: 0
K26: 0
C27: PAGE TOTALS | F27: =SUM(F8:F26) -> 0 | G27: 0 | H27: 0 | I27: 0 | J27: 0 | K27: 0
K29: =F27+G27-H27+I27-K27-J27 -> 0
K31: =+F27+G27-H27-I27-J27-K27 -> 0

Sheet 10.5-Grants Receivable (hidden)
B2: MUNICIPALITIES AND COUNTIES
B3: FEDERAL AND STATE GRANTS RECEIVABLE (cont'd)
G4: =IF('KEY INPUTS'!C42="State Fiscal Year","Fiscal Year "&'KEY INPUTS'!D33&"",'KEY INPUTS'!D34) -> 2023
B5: Grant | F5: Balance | G5: Budget | H5: Received | I5: Other | J5: Cancelled | K5: Balance
F6: ='10-Grants Receivable'!F6 -> Jan. 1, 2023 | G6: Revenue | K6: ='10-Grants Receivable'!K6 -> Dec. 31, 2023
G7: Realized
B8: PREVIOUS PAGE TOTALS | F8: =+'10.4-Grants Receivable'!F27 -> 0 | G8: =+'10.4-Grants Receivable'!G27 -> 0 | H8: =+'10.4-Grants Receivable'!H27 -> 0 | I8: =+'10.4-Grants Receivable'!I27 -> 0 | J8: =+'10.4-Grants Receivable'!J27 -> 0 | K8: =+'10.4-Grants Receivable'!K27 -> 0
K9: =+F9+G9-H9+I9-J9 -> 0
K10: =+F10+G10-H10+I10-J10 -> 0
K11: 0
K12: 0
K13: 0
K14: 0
A15: Sheet 10.5 | K15: 0
K16: 0
K17: 0
K18: 0
K19: 0
K20: 0
K21: 0
K22: 0
K23: 0
K24: 0
K25: 0
K26: 0
C27: PAGE TOTALS | F27: =SUM(F8:F26) -> 0 | G27: 0 | H27: 0 | I27: 0 | J27: 0 | K27: 0
K29: =F27+G27-H27+I27-K27-J27 -> 0
K31: =+F27+G27-H27-I27-J27-K27 -> 0

Sheet 10.6-Grants Receivable (hidden)
B2: MUNICIPALITIES AND COUNTIES
B3: FEDERAL AND STATE GRANTS RECEIVABLE (cont'd)
G4: =IF('KEY INPUTS'!C42="State Fiscal Year","Fiscal Year "&'KEY INPUTS'!D33&"",'KEY INPUTS'!D34) -> 2023
B5: Grant | F5: Balance | G5: Budget | H5: Received | I5: Other | J5: Cancelled | K5: Balance
F6: ='10-Grants Receivable'!F6 -> Jan. 1, 2023 | G6: Revenue | K6: ='10-Grants Receivable'!K6 -> Dec. 31, 2023
G7: Realized
B8: PREVIOUS PAGE TOTALS | F8: =+'10.5-Grants Receivable'!F27 -> 0 | G8: =+'10.5-Grants Receivable'!G27 -> 0 | H8: =+'10.5-Grants Receivable'!H27 -> 0 | I8: =+'10.5-Grants Receivable'!I27 -> 0 | J8: =+'10.5-Grants Receivable'!J27 -> 0 | K8: =+'10.5-Grants Receivable'!K27 -> 0
K9: =+F9+G9-H9+I9-J9 -> 0
K10: =+F10+G10-H10+I10-J10 -> 0
K11: 0
K12: 0
K13: 0
K14: 0
A15: Sheet 10.6 | K15: 0
K16: 0
K17: 0
K18: 0
K19: 0
K20: 0
K21: 0
K22: 0
K23: 0
K24: 0
K25: 0
K26: 0
C27: PAGE TOTALS | F27: =SUM(F8:F26) -> 0 | G27: 0 | H27: 0 | I27: 0 | J27: 0 | K27: 0
K29: =F27+G27-H27+I27-K27-J27 -> 0
K31: =+F27+G27-H27-I27-J27-K27 -> 0

Sheet 10.7-Grants Receivable (hidden)
B2: MUNICIPALITIES AND COUNTIES
B3: FEDERAL AND STATE GRANTS RECEIVABLE (cont'd)
G4: =IF('KEY INPUTS'!C42="State Fiscal Year","Fiscal Year "&'KEY INPUTS'!D33&"",'KEY INPUTS'!D34) -> 2023
B5: Grant | F5: Balance | G5: Budget | H5: Received | I5: Other | J5: Cancelled | K5: Balance
F6: ='10-Grants Receivable'!F6 -> Jan. 1, 2023 | G6: Revenue | K6: ='10-Grants Receivable'!K6 -> Dec. 31, 2023
G7: Realized
B8: PREVIOUS PAGE TOTALS | F8: =+'10.6-Grants Receivable'!F27 -> 0 | G8: =+'10.6-Grants Receivable'!G27 -> 0 | H8: =+'10.6-Grants Receivable'!H27 -> 0 | I8: =+'10.6-Grants Receivable'!I27 -> 0 | J8: =+'10.6-Grants Receivable'!J27 -> 0 | K8: =+'10.6-Grants Receivable'!K27 -> 0
K9: =+F9+G9-H9+I9-J9 -> 0
K10: =+F10+G10-H10+I10-J10 -> 0
K11: 0
K12: 0
K13: 0
K14: 0
A15: Sheet 10.7 | K15: 0
K16: 0
K17: 0
K18: 0
K19: 0
K20: 0
K21: 0
K22: 0
K23: 0
K24: 0
K25: 0
K26: 0
C27: PAGE TOTALS | F27: =SUM(F8:F26) -> 0 | G27: 0 | H27: 0 | I27: 0 | J27: 0 | K27: 0
K29: =F27+G27-H27+I27-K27-J27 -> 0
K31: =+F27+G27-H27-I27-J27-K27 -> 0

Sheet 10.8-Grants Receivable (hidden)
B2: MUNICIPALITIES AND COUNTIES
B3: FEDERAL AND STATE GRANTS RECEIVABLE (cont'd)
G4: =IF('KEY INPUTS'!C42="State Fiscal Year","Fiscal Year "&'KEY INPUTS'!D33&"",'KEY INPUTS'!D34) -> 2023
B5: Grant | F5: Balance | G5: Budget | H5: Received | I5: Other | J5: Cancelled | K5: Balance
F6: ='10-Grants Receivable'!F6 -> Jan. 1, 2023 | G6: Revenue | K6: ='10-Grants Receivable'!K6 -> Dec. 31, 2023
G7: Realized
B8: PREVIOUS PAGE TOTALS | F8: =+'10.7-Grants Receivable'!F27 -> 0 | G8: =+'10.7-Grants Receivable'!G27 -> 0 | H8: =+'10.7-Grants Receivable'!H27 -> 0 | I8: =+'10.7-Grants Receivable'!I27 -> 0 | J8: =+'10.7-Grants Receivable'!J27 -> 0 | K8: =+'10.7-Grants Receivable'!K27 -> 0
K9: =+F9+G9-H9+I9-J9 -> 0
K10: =+F10+G10-H10+I10-J10 -> 0
K11: 0
K12: 0
K13: 0
K14: 0
A15: Sheet 10.8 | K15: 0
K16: 0
K17: 0
K18: 0
K19: 0
K20: 0
K21: 0
K22: 0
K23: 0
K24: 0
K25: 0
K26: 0
C27: PAGE TOTALS | F27: =SUM(F8:F26) -> 0 | G27: 0 | H27: 0 | I27: 0 | J27: 0 | K27: 0
K29: =F27+G27-H27+I27-K27-J27 -> 0
K31: =+F27+G27-H27-I27-J27-K27 -> 0

Sheet 10.9-Grants Receivable (hidden)
B2: MUNICIPALITIES AND COUNTIES
B3: FEDERAL AND STATE GRANTS RECEIVABLE (cont'd)
G4: =IF('KEY INPUTS'!C42="State Fiscal Year","Fiscal Year "&'KEY INPUTS'!D33&"",'KEY INPUTS'!D34) -> 2023
B5: Grant | F5: Balance | G5: Budget | H5: Received | I5: Other | J5: Cancelled | K5: Balance
F6: ='10-Grants Receivable'!F6 -> Jan. 1, 2023 | G6: Revenue | K6: ='10-Grants Receivable'!K6 -> Dec. 31, 2023
G7: Realized
B8: PREVIOUS PAGE TOTALS | F8: =+'10.8-Grants Receivable'!F27 -> 0 | G8: =+'10.8-Grants Receivable'!G27 -> 0 | H8: =+'10.8-Grants Receivable'!H27 -> 0 | I8: =+'10.8-Grants Receivable'!I27 -> 0 | J8: =+'10.8-Grants Receivable'!J27 -> 0 | K8: =+'10.8-Grants Receivable'!K27 -> 0
K9: =+F9+G9-H9+I9-J9 -> 0
K10: 0
K11: 0
K12: 0
K13: 0
K14: 0
A15: Sheet 10.9 | K15: 0
K16: 0
K17: 0
K18: 0
K19: 0
K20: 0
K21: 0
K22: 0
K23: 0
K24: 0
K25: 0
K26: 0
C27: PAGE TOTALS | F27: =SUM(F8:F26) -> 0 | G27: 0 | H27: 0 | I27: 0 | J27: 0 | K27: 0
K29: =F27+G27-H27+I27-K27-J27 -> 0
K31: =+F27+G27-H27-I27-J27-K27 -> 0

Sheet 10.10-Grants Receivable (hidden)
B2: MUNICIPALITIES AND COUNTIES
B3: FEDERAL AND STATE GRANTS RECEIVABLE (cont'd)
G4: =IF('KEY INPUTS'!C42="State Fiscal Year","Fiscal Year "&'KEY INPUTS'!D33&"",'KEY INPUTS'!D34) -> 2023
B5: Grant | F5: Balance | G5: Budget | H5: Received | I5: Other | J5: Cancelled | K5: Balance
F6: ='10-Grants Receivable'!F6 -> Jan. 1, 2023 | G6: Revenue | K6: ='10-Grants Receivable'!K6 -> Dec. 31, 2023
G7: Realized
B8: PREVIOUS PAGE TOTALS | F8: =+'10.9-Grants Receivable'!F27 -> 0 | G8: =+'10.9-Grants Receivable'!G27 -> 0 | H8: =+'10.9-Grants Receivable'!H27 -> 0 | I8: =+'10.9-Grants Receivable'!I27 -> 0 | J8: =+'10.9-Grants Receivable'!J27 -> 0 | K8: =+'10.9-Grants Receivable'!K27 -> 0
K9: =+F9+G9-H9+I9-J9 -> 0
K10: 0
K11: 0
K12: 0
K13: 0
K14: 0
A15: Sheet 10.10 | K15: 0
K16: 0
K17: 0
K18: 0
K19: 0
K20: 0
K21: 0
K22: 0
K23: 0
K24: 0
K25: 0
K26: 0
C27: PAGE TOTALS | F27: =SUM(F8:F26) -> 0 | G27: 0 | H27: 0 | I27: 0 | J27: 0 | K27: 0
K29: =F27+G27-H27+I27-K27-J27 -> 0
K31: =+F27+G27-H27-I27-J27-K27 -> 0

Sheet 10.11-Grants Receivable (hidden)
B2: MUNICIPALITIES AND COUNTIES
B3: FEDERAL AND STATE GRANTS RECEIVABLE (cont'd)
G4: =IF('KEY INPUTS'!C42="State Fiscal Year","Fiscal Year "&'KEY INPUTS'!D33&"",'KEY INPUTS'!D34) -> 2023
B5: Grant | F5: Balance | G5: Budget | H5: Received | I5: Other | J5: Cancelled | K5: Balance
F6: ='10-Grants Receivable'!F6 -> Jan. 1, 2023 | G6: Revenue | K6: ='10-Grants Receivable'!K6 -> Dec. 31, 2023
G7: Realized
B8: PREVIOUS PAGE TOTALS | F8: =+'10.10-Grants Receivable'!F27 -> 0 | G8: =+'10.10-Grants Receivable'!G27 -> 0 | H8: =+'10.10-Grants Receivable'!H27 -> 0 | I8: =+'10.10-Grants Receivable'!I27 -> 0 | J8: =+'10.10-Grants Receivable'!J27 -> 0 | K8: =+'10.10-Grants Receivable'!K27 -> 0
K9: =+F9+G9-H9+I9-J9 -> 0
K10: 0
K11: 0
K12: 0
K13: 0
K14: 0
A15: Sheet 10.11 | K15: 0
K16: 0
K17: 0
K18: 0
K19: 0
K20: 0
K21: 0
K22: 0
K23: 0
K24: 0
K25: 0
K26: 0
C27: PAGE TOTALS | F27: =SUM(F8:F26) -> 0 | G27: 0 | H27: 0 | I27: 0 | J27: 0 | K27: 0
K29: =F27+G27-H27+I27-K27-J27 -> 0
K31: =+F27+G27-H27-I27-J27-K27 -> 0

Sheet 10.12-Grants Receivable (hidden)
B2: MUNICIPALITIES AND COUNTIES
B3: FEDERAL AND STATE GRANTS RECEIVABLE (cont'd)
G4: =IF('KEY INPUTS'!C42="State Fiscal Year","Fiscal Year "&'KEY INPUTS'!D33&"",'KEY INPUTS'!D34) -> 2023
B5: Grant | F5: Balance | G5: Budget | H5: Received | I5: Other | J5: Cancelled | K5: Balance
F6: ='10-Grants Receivable'!F6 -> Jan. 1, 2023 | G6: Revenue | K6: ='10-Grants Receivable'!K6 -> Dec. 31, 2023
G7: Realized
B8: PREVIOUS PAGE TOTALS | F8: ='10.11-Grants Receivable'!F27 -> 0 | G8: =+'10.11-Grants Receivable'!G27 -> 0 | H8: =+'10.11-Grants Receivable'!H27 -> 0 | I8: =+'10.11-Grants Receivable'!I27 -> 0 | J8: =+'10.11-Grants Receivable'!J27 -> 0 | K8: =+'10.11-Grants Receivable'!K27 -> 0
K9: =+F9+G9-H9+I9-J9 -> 0
K10: 0
K11: 0
K12: 0
K13: 0
K14: 0
A15: Sheet 10.12 | K15: 0
K16: 0
K17: 0
K18: 0
K19: 0
K20: 0
K21: 0
K22: 0
K23: 0
K24: 0
K25: 0
K26: 0
C27: PAGE TOTALS | F27: =SUM(F8:F26) -> 0 | G27: 0 | H27: 0 | I27: 0 | J27: 0 | K27: 0
K29: =F27+G27-H27+I27-K27-J27 -> 0
K31: =+F27+G27-H27-I27-J27-K27 -> 0

Sheet 10.13-Grants Receivable (hidden)
B2: MUNICIPALITIES AND COUNTIES
B3: FEDERAL AND STATE GRANTS RECEIVABLE (cont'd)
G4: =IF('KEY INPUTS'!C42="State Fiscal Year","Fiscal Year "&'KEY INPUTS'!D33&"",'KEY INPUTS'!D34) -> 2023
B5: Grant | F5: Balance | G5: Budget | H5: Received | I5: Other | J5: Cancelled | K5: Balance
F6: ='10-Grants Receivable'!F6 -> Jan. 1, 2023 | G6: Revenue | K6: ='10-Grants Receivable'!K6 -> Dec. 31, 2023
G7: Realized
B8: PREVIOUS PAGE TOTALS | F8: =+'10.12-Grants Receivable'!F27 -> 0 | G8: =+'10.12-Grants Receivable'!G27 -> 0 | H8: =+'10.12-Grants Receivable'!H27 -> 0 | I8: =+'10.12-Grants Receivable'!I27 -> 0 | J8: =+'10.12-Grants Receivable'!J27 -> 0 | K8: =+'10.12-Grants Receivable'!K27 -> 0
K9: =+F9+G9-H9+I9-J9 -> 0
K10: 0
K11: 0
K12: 0
K13: 0
K14: 0
A15: Sheet 10.13 | K15: 0
K16: 0
K17: 0
K18: 0
K19: 0
K20: 0
K21: 0
K22: 0
K23: 0
K24: 0
K25: 0
K26: 0
C27: PAGE TOTALS | F27: =SUM(F8:F26) -> 0 | G27: 0 | H27: 0 | I27: 0 | J27: 0 | K27: 0
K29: =F27+G27-H27+I27-K27-J27 -> 0
K31: =+F27+G27-H27-I27-J27-K27 -> 0

Sheet 10.14-Grants Receivable (hidden)
B2: MUNICIPALITIES AND COUNTIES
B3: FEDERAL AND STATE GRANTS RECEIVABLE (cont'd)
G4: =IF('KEY INPUTS'!C42="State Fiscal Year","Fiscal Year "&'KEY INPUTS'!D33&"",'KEY INPUTS'!D34) -> 2023
B5: Grant | F5: Balance | G5: Budget | H5: Received | I5: Other | J5: Cancelled | K5: Balance
F6: ='10-Grants Receivable'!F6 -> Jan. 1, 2023 | G6: Revenue | K6: ='10-Grants Receivable'!K6 -> Dec. 31, 2023
G7: Realized
B8: PREVIOUS PAGE TOTALS | F8: =+'10.13-Grants Receivable'!F27 -> 0 | G8: =+'10.13-Grants Receivable'!G27 -> 0 | H8: =+'10.13-Grants Receivable'!H27 -> 0 | I8: =+'10.13-Grants Receivable'!I27 -> 0 | J8: =+'10.13-Grants Receivable'!J27 -> 0 | K8: =+'10.13-Grants Receivable'!K27 -> 0
K9: =+F9+G9-H9+I9-J9 -> 0
K10: 0
K11: 0
K12: 0
K13: 0
K14: 0
A15: Sheet 10.14 | K15: 0
K16: 0
K17: 0
K18: 0
K19: 0
K20: 0
K21: 0
K22: 0
K23: 0
K24: 0
K25: 0
K26: 0
C27: PAGE TOTALS | F27: =SUM(F8:F26) -> 0 | G27: 0 | H27: 0 | I27: 0 | J27: 0 | K27: 0
K29: =F27+G27-H27+I27-K27-J27 -> 0
K31: =+F27+G27-H27-I27-J27-K27 -> 0

Sheet 10.15-Grants Receivable (hidden)
B2: MUNICIPALITIES AND COUNTIES
B3: FEDERAL AND STATE GRANTS RECEIVABLE (cont'd)
G4: =IF('KEY INPUTS'!C42="State Fiscal Year","Fiscal Year "&'KEY INPUTS'!D33&"",'KEY INPUTS'!D34) -> 2023
B5: Grant | F5: Balance | G5: Budget | H5: Received | I5: Other | J5: Cancelled | K5: Balance
F6: ='10-Grants Receivable'!F6 -> Jan. 1, 2023 | G6: Revenue | K6: ='10-Grants Receivable'!K6 -> Dec. 31, 2023
G7: Realized
B8: PREVIOUS PAGE TOTALS | F8: =+'10.14-Grants Receivable'!F27 -> 0 | G8: =+'10.14-Grants Receivable'!G27 -> 0 | H8: =+'10.14-Grants Receivable'!H27 -> 0 | I8: =+'10.14-Grants Receivable'!I27 -> 0 | J8: =+'10.14-Grants Receivable'!J27 -> 0 | K8: =+'10.14-Grants Receivable'!K27 -> 0
K9: =+F9+G9-H9+I9-J9 -> 0
K10: 0
K11: 0
K12: 0
K13: 0
K14: 0
A15: Sheet 10.15 | K15: 0
K16: 0
K17: 0
K18: 0
K19: 0
K20: 0
K21: 0
K22: 0
K23: 0
K24: 0
K25: 0
K26: 0
C27: PAGE TOTALS | F27: =SUM(F8:F26) -> 0 | G27: 0 | H27: 0 | I27: 0 | J27: 0 | K27: 0
K29: =F27+G27-H27+I27-K27-J27 -> 0
K31: =+F27+G27-H27-I27-J27-K27 -> 0

Sheet 10.16-Grants Receivable (hidden)
B2: MUNICIPALITIES AND COUNTIES
B3: FEDERAL AND STATE GRANTS RECEIVABLE (cont'd)
G4: =IF('KEY INPUTS'!C42="State Fiscal Year","Fiscal Year "&'KEY INPUTS'!D33&"",'KEY INPUTS'!D34) -> 2023
B5: Grant | F5: Balance | G5: Budget | H5: Received | I5: Other | J5: Cancelled | K5: Balance
F6: ='10-Grants Receivable'!F6 -> Jan. 1, 2023 | G6: Revenue | K6: ='10-Grants Receivable'!K6 -> Dec. 31, 2023
G7: Realized
B8: PREVIOUS PAGE TOTALS | F8: =+'10.15-Grants Receivable'!F27 -> 0 | G8: =+'10.15-Grants Receivable'!G27 -> 0 | H8: =+'10.15-Grants Receivable'!H27 -> 0 | I8: =+'10.15-Grants Receivable'!I27 -> 0 | J8: =+'10.15-Grants Receivable'!J27 -> 0 | K8: =+'10.15-Grants Receivable'!K27 -> 0
K9: =+F9+G9-H9+I9-J9 -> 0
K10: 0
K11: 0
K12: 0
K13: 0
K14: 0
A15: Sheet 10.16 | K15: 0
K16: 0
K17: 0
K18: 0
K19: 0
K20: 0
K21: 0
K22: 0
K23: 0
K24: 0
K25: 0
K26: 0
C27: PAGE TOTALS | F27: =SUM(F8:F26) -> 0 | G27: 0 | H27: 0 | I27: 0 | J27: 0 | K27: 0
K29: =F27+G27-H27+I27-K27-J27 -> 0
K31: =+F27+G27-H27-I27-J27-K27 -> 0

Sheet 10.17-Grants Receivable (hidden)
B2: MUNICIPALITIES AND COUNTIES
B3: FEDERAL AND STATE GRANTS RECEIVABLE (cont'd)
G4: =IF('KEY INPUTS'!C42="State Fiscal Year","Fiscal Year "&'KEY INPUTS'!D33&"",'KEY INPUTS'!D34) -> 2023
B5: Grant | F5: Balance | G5: Budget | H5: Received | I5: Other | J5: Cancelled | K5: Balance
F6: ='10-Grants Receivable'!F6 -> Jan. 1, 2023 | G6: Revenue | K6: ='10-Grants Receivable'!K6 -> Dec. 31, 2023
G7: Realized
B8: PREVIOUS PAGE TOTALS | F8: =+'10.16-Grants Receivable'!F27 -> 0 | G8: =+'10.16-Grants Receivable'!G27 -> 0 | H8: =+'10.16-Grants Receivable'!H27 -> 0 | I8: =+'10.16-Grants Receivable'!I27 -> 0 | J8: =+'10.16-Grants Receivable'!J27 -> 0 | K8: =+'10.16-Grants Receivable'!K27 -> 0
K9: =+F9+G9-H9+I9-J9 -> 0
K10: 0
K11: 0
K12: 0
K13: 0
K14: 0
A15: Sheet 10.17 | K15: 0
K16: 0
K17: 0
K18: 0
K19: 0
K20: 0
K21: 0
K22: 0
K23: 0
K24: 0
K25: 0
K26: 0
C27: PAGE TOTALS | F27: =SUM(F8:F26) -> 0 | G27: 0 | H27: 0 | I27: 0 | J27: 0 | K27: 0
K29: =F27+G27-H27+I27-K27-J27 -> 0
K31: =+F27+G27-H27-I27-J27-K27 -> 0

Sheet 10.18-Grants Receivable (hidden)
B2: MUNICIPALITIES AND COUNTIES
B3: FEDERAL AND STATE GRANTS RECEIVABLE (cont'd)
G4: =IF('KEY INPUTS'!C42="State Fiscal Year","Fiscal Year "&'KEY INPUTS'!D33&"",'KEY INPUTS'!D34) -> 2023
B5: Grant | F5: Balance | G5: Budget | H5: Received | I5: Other | J5: Cancelled | K5: Balance
F6: ='10-Grants Receivable'!F6 -> Jan. 1, 2023 | G6: Revenue | K6: ='10-Grants Receivable'!K6 -> Dec. 31, 2023
G7: Realized
B8: PREVIOUS PAGE TOTALS | F8: =+'10.17-Grants Receivable'!F27 -> 0 | G8: =+'10.17-Grants Receivable'!G27 -> 0 | H8: =+'10.17-Grants Receivable'!H27 -> 0 | I8: =+'10.17-Grants Receivable'!I27 -> 0 | J8: =+'10.17-Grants Receivable'!J27 -> 0 | K8: =+'10.17-Grants Receivable'!K27 -> 0
K9: =+F9+G9-H9+I9-J9 -> 0
K10: 0
K11: 0
K12: 0
K13: 0
K14: 0
A15: Sheet 10.18 | K15: 0
K16: 0
K17: 0
K18: 0
K19: 0
K20: 0
K21: 0
K22: 0
K23: 0
K24: 0
K25: 0
K26: 0
C27: PAGE TOTALS | F27: =SUM(F8:F26) -> 0 | G27: 0 | H27: 0 | I27: 0 | J27: 0 | K27: 0
K29: =F27+G27-H27+I27-K27-J27 -> 0
K31: =+F27+G27-H27-I27-J27-K27 -> 0

Sheet 10.19-Grants Receivable (hidden)
B2: MUNICIPALITIES AND COUNTIES
B3: FEDERAL AND STATE GRANTS RECEIVABLE (cont'd)
G4: =IF('KEY INPUTS'!C42="State Fiscal Year","Fiscal Year "&'KEY INPUTS'!D33&"",'KEY INPUTS'!D34) -> 2023
B5: Grant | F5: Balance | G5: Budget | H5: Received | I5: Other | J5: Cancelled | K5: Balance
F6: ='10-Grants Receivable'!F6 -> Jan. 1, 2023 | G6: Revenue | K6: ='10-Grants Receivable'!K6 -> Dec. 31, 2023
G7: Realized
B8: PREVIOUS PAGE TOTALS | F8: =+'10.18-Grants Receivable'!F27 -> 0 | G8: =+'10.18-Grants Receivable'!G27 -> 0 | H8: =+'10.18-Grants Receivable'!H27 -> 0 | I8: =+'10.18-Grants Receivable'!I27 -> 0 | J8: =+'10.18-Grants Receivable'!J27 -> 0 | K8: =+'10.18-Grants Receivable'!K27 -> 0
K9: =+F9+G9-H9+I9-J9 -> 0
K10: 0
K11: 0
K12: 0
K13: 0
K14: 0
A15: Sheet 10.19 | K15: 0
K16: 0
K17: 0
K18: 0
K19: 0
K20: 0
K21: 0
K22: 0
K23: 0
K24: 0
K25: 0
K26: 0
C27: PAGE TOTALS | F27: =SUM(F8:F26) -> 0 | G27: 0 | H27: 0 | I27: 0 | J27: 0 | K27: 0
K29: =F27+G27-H27+I27-K27-J27 -> 0
K31: =+F27+G27-H27-I27-J27-K27 -> 0

Sheet 10.20-Grants Receivable (hidden)
B2: MUNICIPALITIES AND COUNTIES
B3: FEDERAL AND STATE GRANTS RECEIVABLE (cont'd)
G4: =IF('KEY INPUTS'!C42="State Fiscal Year","Fiscal Year "&'KEY INPUTS'!D33&"",'KEY INPUTS'!D34) -> 2023
B5: Grant | F5: Balance | G5: Budget | H5: Received | I5: Other | J5: Cancelled | K5: Balance
F6: ='10-Grants Receivable'!F6 -> Jan. 1, 2023 | G6: Revenue | K6: ='10-Grants Receivable'!K6 -> Dec. 31, 2023
G7: Realized
B8: PREVIOUS PAGE TOTALS | F8: =+'10.19-Grants Receivable'!F27 -> 0 | G8: =+'10.19-Grants Receivable'!G27 -> 0 | H8: =+'10.19-Grants Receivable'!H27 -> 0 | I8: =+'10.19-Grants Receivable'!I27 -> 0 | J8: =+'10.19-Grants Receivable'!J27 -> 0 | K8: =+'10.19-Grants Receivable'!K27 -> 0
K9: =+F9+G9-H9+I9-J9 -> 0
K10: 0
K11: 0
K12: 0
K13: 0
K14: 0
A15: Sheet 10.20 | K15: 0
K16: 0
K17: 0
K18: 0
K19: 0
K20: 0
K21: 0
K22: 0
K23: 0
K24: 0
K25: 0
K26: 0
C27: PAGE TOTALS | F27: =SUM(F8:F26) -> 0 | G27: 0 | H27: 0 | I27: 0 | J27: 0 | K27: 0
K29: =F27+G27-H27+I27-K27-J27 -> 0
K31: =+F27+G27-H27-I27-J27-K27 -> 0

Sheet 10.21-Grants Receivable (hidden)
B2: MUNICIPALITIES AND COUNTIES
B3: FEDERAL AND STATE GRANTS RECEIVABLE (cont'd)
G4: =IF('KEY INPUTS'!C42="State Fiscal Year","Fiscal Year "&'KEY INPUTS'!D33&"",'KEY INPUTS'!D34) -> 2023
B5: Grant | F5: Balance | G5: Budget | H5: Received | I5: Other | J5: Cancelled | K5: Balance
F6: ='10-Grants Receivable'!F6 -> Jan. 1, 2023 | G6: Revenue | K6: ='10-Grants Receivable'!K6 -> Dec. 31, 2023
G7: Realized
B8: PREVIOUS PAGE TOTALS | F8: =+'10.20-Grants Receivable'!F27 -> 0 | G8: =+'10.20-Grants Receivable'!G27 -> 0 | H8: =+'10.20-Grants Receivable'!H27 -> 0 | I8: =+'10.20-Grants Receivable'!I27 -> 0 | J8: =+'10.20-Grants Receivable'!J27 -> 0 | K8: =+'10.20-Grants Receivable'!K27 -> 0
K9: =+F9+G9-H9+I9-J9 -> 0
K10: 0
K11: 0
K12: 0
K13: 0
K14: 0
A15: Sheet 10.21 | K15: 0
K16: 0
K17: 0
K18: 0
K19: 0
K20: 0
K21: 0
K22: 0
K23: 0
K24: 0
K25: 0
K26: 0
C27: PAGE TOTALS | F27: =SUM(F8:F26) -> 0 | G27: 0 | H27: 0 | I27: 0 | J27: 0 | K27: 0

Sheet 10.22-Grants Receivable (hidden)
B2: MUNICIPALITIES AND COUNTIES
B3: FEDERAL AND STATE GRANTS RECEIVABLE (cont'd)
G4: =IF('KEY INPUTS'!C42="State Fiscal Year","Fiscal Year "&'KEY INPUTS'!D33&"",'KEY INPUTS'!D34) -> 2023
B5: Grant | F5: Balance | G5: Budget | H5: Received | I5: Other | J5: Cancelled | K5: Balance
F6: ='10-Grants Receivable'!F6 -> Jan. 1, 2023 | G6: Revenue | K6: ='10-Grants Receivable'!K6 -> Dec. 31, 2023
G7: Realized
B8: PREVIOUS PAGE TOTALS | F8: =+'10.21-Grants Receivable'!F27 -> 0 | G8: =+'10.21-Grants Receivable'!G27 -> 0 | H8: =+'10.21-Grants Receivable'!H27 -> 0 | I8: =+'10.21-Grants Receivable'!I27 -> 0 | J8: =+'10.21-Grants Receivable'!J27 -> 0 | K8: =+'10.21-Grants Receivable'!K27 -> 0
K9: =+F9+G9-H9+I9-J9 -> 0
K10: 0
K11: 0
K12: 0
K13: 0
K14: 0
A15: Sheet 10.22 | K15: 0
K16: 0
K17: 0
K18: 0
K19: 0
K20: 0
K21: 0
K22: 0
K23: 0
K24: 0
K25: 0
K26: 0
C27: PAGE TOTALS | F27: =SUM(F8:F26) -> 0 | G27: 0 | H27: 0 | I27: 0 | J27: 0 | K27: 0

Sheet 10.23-Grants Receivable (hidden)
B2: MUNICIPALITIES AND COUNTIES
B3: FEDERAL AND STATE GRANTS RECEIVABLE (cont'd)
G4: =IF('KEY INPUTS'!C42="State Fiscal Year","Fiscal Year "&'KEY INPUTS'!D33&"",'KEY INPUTS'!D34) -> 2023
B5: Grant | F5: Balance | G5: Budget | H5: Received | I5: Other | J5: Cancelled | K5: Balance
F6: ='10-Grants Receivable'!F6 -> Jan. 1, 2023 | G6: Revenue | K6: ='10-Grants Receivable'!K6 -> Dec. 31, 2023
G7: Realized
B8: PREVIOUS PAGE TOTALS | F8: =+'10.22-Grants Receivable'!F27 -> 0 | G8: =+'10.22-Grants Receivable'!G27 -> 0 | H8: =+'10.22-Grants Receivable'!H27 -> 0 | I8: =+'10.22-Grants Receivable'!I27 -> 0 | J8: =+'10.22-Grants Receivable'!J27 -> 0 | K8: =+'10.22-Grants Receivable'!K27 -> 0
K9: =+F9+G9-H9+I9-J9 -> 0
K10: 0
K11: 0
K12: 0
K13: 0
K14: 0
A15: Sheet 10.23 | K15: 0
K16: 0
K17: 0
K18: 0
K19: 0
K20: 0
K21: 0
K22: 0
K23: 0
K24: 0
K25: 0
K26: 0
C27: PAGE TOTALS | F27: =SUM(F8:F26) -> 0 | G27: 0 | H27: 0 | I27: 0 | J27: 0 | K27: 0

Sheet 10.24-Grants Receivable (hidden)
B2: MUNICIPALITIES AND COUNTIES
B3: FEDERAL AND STATE GRANTS RECEIVABLE (cont'd)
G4: =IF('KEY INPUTS'!C42="State Fiscal Year","Fiscal Year "&'KEY INPUTS'!D33&"",'KEY INPUTS'!D34) -> 2023
B5: Grant | F5: Balance | G5: Budget | H5: Received | I5: Other | J5: Cancelled | K5: Balance
F6: ='10-Grants Receivable'!F6 -> Jan. 1, 2023 | G6: Revenue | K6: ='10-Grants Receivable'!K6 -> Dec. 31, 2023
G7: Realized
B8: PREVIOUS PAGE TOTALS | F8: =+'10.23-Grants Receivable'!F27 -> 0 | G8: =+'10.23-Grants Receivable'!G27 -> 0 | H8: =+'10.23-Grants Receivable'!H27 -> 0 | I8: =+'10.23-Grants Receivable'!I27 -> 0 | J8: =+'10.23-Grants Receivable'!J27 -> 0 | K8: =+'10.23-Grants Receivable'!K27 -> 0
K9: =+F9+G9-H9+I9-J9 -> 0
K10: 0
K11: 0
K12: 0
K13: 0
K14: 0
A15: Sheet 10.24 | K15: 0
K16: 0
K17: 0
K18: 0
K19: 0
K20: 0
K21: 0
K22: 0
K23: 0
K24: 0
K25: 0
K26: 0
C27: PAGE TOTALS | F27: =SUM(F8:F26) -> 0 | G27: 0 | H27: 0 | I27: 0 | J27: 0 | K27: 0

Sheet 10 Totals Grants Receivable
B2: MUNICIPALITIES AND COUNTIES
B3: FEDERAL AND STATE GRANTS RECEIVABLE (cont'd)
G4: =IF('KEY INPUTS'!C42="State Fiscal Year","Fiscal Year "&'KEY INPUTS'!D33&"",'KEY INPUTS'!D34) -> 2023
B5: Grant | F5: Balance | G5: Budget | H5: Received | I5: Other | J5: Cancelled | K5: Balance
F6: ='10-Grants Receivable'!F6 -> Jan. 1, 2023 | G6: Revenue | K6: ='10-Grants Receivable'!K6 -> Dec. 31, 2023
G7: Realized
B8: PREVIOUS PAGE TOTALS | F8: =+'10.24-Grants Receivable'!F27 -> 0 | G8: =+'10.24-Grants Receivable'!G27 -> 0 | H8: =+'10.24-Grants Receivable'!H27 -> 0 | I8: =+'10.24-Grants Receivable'!I27 -> 0 | J8: =+'10.24-Grants Receivable'!J27 -> 0 | K8: =+'10.24-Grants Receivable'!K27 -> 0
K9: =+F9+G9-H9+I9-J9 -> 0
K10: 0
K11: 0
K12: 0
K13: 0
K14: 0
A15: Sheet 10 Totals | K15: 0
K16: 0
K17: 0
K18: 0
K19: 0
K20: 0
K21: 0
K22: 0
K23: 0
K24: 0
K25: 0
K26: 0
C27: TOTALS | F27: =SUM(F8:F26) -> 0 | G27: 0 | H27: 0 | I27: 0 | J27: 0 | K27: 0

Sheet 11 Grants Approp Rsrv
B2: SCHEDULE OF APPROPRIATED RESERVES FOR
B3: FEDERAL AND STATE GRANTS
G4: =IF('KEY INPUTS'!C42="State Fiscal Year","Transferred from Fiscal Year "&'KEY INPUTS'!D33&"","Transferred from "&'KEY INPUTS'!D34&"") -> Transferred from 2023
B5: Grant | F5: Balance | G5: Budget Appropriations | I5: Expended | J5: Other | K5: Cancelled | L5: Balance
F6: =IF('KEY INPUTS'!C42 = "State Fiscal Year", 'KEY INPUTS'!F48,'KEY INPUTS'!D48) -> Jan. 1, 2023 | G6: Budget | H6: Appropriation | L6: =IF('KEY INPUTS'!C42 = "State Fiscal Year", 'KEY INPUTS'!F47,'KEY INPUTS'!D47) -> Dec. 31, 2023
H7: By 40A:4-87
B8: 2017 Recycling Tonnage Grant | F8: 607.55 | L8: =+F8+G8+H8-I8+J8-K8 -> 607.55
B9: Recycling Tonnage Grant | F9: 4,576.72 | L9: =+F9+G9+H9-I9+J9-K9 -> 4,576.72
B10: 2017 Clean Communities | F10: 1,657.18 | L10: 1,657.18
B11: 2018 Clean Communities | F11: 4,000.00 | L11: 4,000.00
B12: 2019 Clean Communities | F12: 4,000.00 | L12: 4,000.00
B13: 2020 Clean Communities | F13: 4,000.00 | L13: 4,000.00
B14: Forestry Grant | F14: 3,000.00 | L14: 3,000.00
A15: Sheet 11 | L15: 0
L16: 0
L17: 0
L18: 0
L19: 0
L20: 0
L21: 0
L22: 0
L23: 0
L24: 0
L25: 0
L26: 0
C27: PAGE TOTALS | F27: =SUM(F8:F26) -> 21,841.45 | G27: =SUM(G8:G26) -> 0 | H27: 0 | I27: 0 | J27: 0 | K27: 0 | L27: =SUM(L8:L26) -> 21,841.45

Sheet 11.1 Grants Approp Rsrv
B2: SCHEDULE OF APPROPRIATED RESERVES FOR
B3: FEDERAL AND STATE GRANTS
G4: =IF('KEY INPUTS'!C42="State Fiscal Year","Transferred from Fiscal Year "&'KEY INPUTS'!D33&"","Transferred from "&'KEY INPUTS'!D34&"") -> Transferred from 2023
B5: Grant | F5: Balance | G5: Budget Appropriations | I5: Expended | J5: Other | K5: Cancelled | L5: Balance
F6: ='11 Grants Approp Rsrv'!F6 -> Jan. 1, 2023 | G6: Budget | H6: Appropriation | L6: ='11 Grants Approp Rsrv'!L6 -> Dec. 31, 2023
H7: By 40A:4-87
B8: PREVIOUS PAGE TOTALS | F8: =+'11 Grants Approp Rsrv'!F27 -> 21,841.45 | G8: =+'11 Grants Approp Rsrv'!G27 -> 0 | H8: =+'11 Grants Approp Rsrv'!H27 -> 0 | I8: =+'11 Grants Approp Rsrv'!I27 -> 0 | J8: =+'11 Grants Approp Rsrv'!J27 -> 0 | K8: =+'11 Grants Approp Rsrv'!K27 -> 0 | L8: =+'11 Grants Approp Rsrv'!L27 -> 21,841.45
L9: =+F9+G9+H9-I9+J9-K9 -> 0
L10: 0
L11: 0
L12: 0
L13: 0
L14: 0
A15: Sheet 11.1 | L15: 0
L16: 0
L17: 0
L18: 0
L19: 0
L20: 0
L21: 0
L22: 0
L23: 0
L24: 0
L25: 0
L26: 0
C27: PAGE TOTALS | F27: =SUM(F8:F26) -> 21,841.45 | G27: =SUM(G8:G26) -> 0 | H27: 0 | I27: 0 | J27: 0 | K27: 0 | L27: =SUM(L8:L26) -> 21,841.45

Sheet 11.2 Grants Approp Rsrv
B2: SCHEDULE OF APPROPRIATED RESERVES FOR
B3: FEDERAL AND STATE GRANTS
G4: =IF('KEY INPUTS'!C42="State Fiscal Year","Transferred from Fiscal Year "&'KEY INPUTS'!D33&"","Transferred from "&'KEY INPUTS'!D34&"") -> Transferred from 2023
B5: Grant | F5: Balance | G5: Budget Appropriations | I5: Expended | J5: Other | K5: Cancelled | L5: Balance
F6: ='11 Grants Approp Rsrv'!F6 -> Jan. 1, 2023 | G6: Budget | H6: Appropriation | L6: ='11 Grants Approp Rsrv'!L6 -> Dec. 31, 2023
H7: By 40A:4-87
B8: PREVIOUS PAGE TOTALS | F8: =+'11.1 Grants Approp Rsrv'!F27 -> 21,841.45 | G8: =+'11.1 Grants Approp Rsrv'!G27 -> 0 | H8: =+'11.1 Grants Approp Rsrv'!H27 -> 0 | I8: =+'11.1 Grants Approp Rsrv'!I27 -> 0 | J8: =+'11.1 Grants Approp Rsrv'!J27 -> 0 | K8: =+'11.1 Grants Approp Rsrv'!K27 -> 0 | L8: =+'11.1 Grants Approp Rsrv'!L27 -> 21,841.45
L9: =+F9+G9+H9-I9+J9-K9 -> 0
L10: 0
L11: 0
L12: 0
L13: 0
L14: 0
A15: Sheet 11.2 | L15: 0
L16: 0
L17: 0
L18: 0
L19: 0
L20: 0
L21: 0
L22: 0
L23: 0
L24: 0
L25: 0
L26: 0
C27: PAGE TOTALS | F27: =SUM(F8:F26) -> 21,841.45 | G27: =SUM(G8:G26) -> 0 | H27: 0 | I27: 0 | J27: 0 | K27: 0 | L27: =SUM(L8:L26) -> 21,841.45

Sheet 11.3 Grants Approp Rsrv (hidden)
B2: SCHEDULE OF APPROPRIATED RESERVES FOR
B3: FEDERAL AND STATE GRANTS
G4: =IF('KEY INPUTS'!C42="State Fiscal Year","Transferred from Fiscal Year "&'KEY INPUTS'!D33&"","Transferred from "&'KEY INPUTS'!D34&"") -> Transferred from 2023
B5: Grant | F5: Balance | G5: Budget Appropriations | I5: Expended | J5: Other | K5: Cancelled | L5: Balance
F6: ='11 Grants Approp Rsrv'!F6 -> Jan. 1, 2023 | G6: Budget | H6: Appropriation | L6: ='11 Grants Approp Rsrv'!L6 -> Dec. 31, 2023
H7: By 40A:4-87
B8: PREVIOUS PAGE TOTALS | F8: =+'11.2 Grants Approp Rsrv'!F27 -> 21,841.45 | G8: =+'11.2 Grants Approp Rsrv'!G27 -> 0 | H8: =+'11.2 Grants Approp Rsrv'!H27 -> 0 | I8: =+'11.2 Grants Approp Rsrv'!I27 -> 0 | J8: =+'11.2 Grants Approp Rsrv'!J27 -> 0 | K8: =+'11.2 Grants Approp Rsrv'!K27 -> 0 | L8: =+'11.2 Grants Approp Rsrv'!L27 -> 21,841.45
L9: =+F9+G9+H9-I9+J9-K9 -> 0
L10: 0
L11: 0
L12: 0
L13: 0
L14: 0
A15: Sheet 11.3 | L15: 0
L16: 0
L17: 0
L18: 0
L19: 0
L20: 0
L21: 0
L22: 0
L23: 0
L24: 0
L25: 0
L26: 0
C27: PAGE TOTALS | F27: =SUM(F8:F26) -> 21,841.45 | G27: =SUM(G8:G26) -> 0 | H27: 0 | I27: 0 | J27: 0 | K27: 0 | L27: =SUM(L8:L26) -> 21,841.45

Sheet 11.4 Grants Approp Rsrv (hidden)
B2: SCHEDULE OF APPROPRIATED RESERVES FOR
B3: FEDERAL AND STATE GRANTS
G4: =IF('KEY INPUTS'!C42="State Fiscal Year","Transferred from Fiscal Year "&'KEY INPUTS'!D33&"","Transferred from "&'KEY INPUTS'!D34&"") -> Transferred from 2023
B5: Grant | F5: Balance | G5: Budget Appropriations | I5: Expended | J5: Other | K5: Cancelled | L5: Balance
F6: ='11 Grants Approp Rsrv'!F6 -> Jan. 1, 2023 | G6: Budget | H6: Appropriation | L6: ='11 Grants Approp Rsrv'!L6 -> Dec. 31, 2023
H7: By 40A:4-87
B8: PREVIOUS PAGE TOTALS | F8: =+'11.3 Grants Approp Rsrv'!F27 -> 21,841.45 | G8: =+'11.3 Grants Approp Rsrv'!G27 -> 0 | H8: =+'11.3 Grants Approp Rsrv'!H27 -> 0 | I8: =+'11.3 Grants Approp Rsrv'!I27 -> 0 | J8: =+'11.3 Grants Approp Rsrv'!J27 -> 0 | K8: =+'11.3 Grants Approp Rsrv'!K27 -> 0 | L8: =+'11.3 Grants Approp Rsrv'!L27 -> 21,841.45
L9: =+F9+G9+H9-I9+J9-K9 -> 0
L10: 0
L11: 0
L12: 0
L13: 0
L14: 0
A15: Sheet 11.4 | L15: 0
L16: 0
L17: 0
L18: 0
L19: 0
L20: 0
L21: 0
L22: 0
L23: 0
L24: 0
L25: 0
L26: 0
C27: PAGE TOTALS | F27: =SUM(F8:F26) -> 21,841.45 | G27: =SUM(G8:G26) -> 0 | H27: 0 | I27: 0 | J27: 0 | K27: 0 | L27: =SUM(L8:L26) -> 21,841.45

Sheet 11.5 Grants Approp Rsrv (hidden)
B2: SCHEDULE OF APPROPRIATED RESERVES FOR
B3: FEDERAL AND STATE GRANTS
G4: =IF('KEY INPUTS'!C42="State Fiscal Year","Transferred from Fiscal Year "&'KEY INPUTS'!D33&"","Transferred from "&'KEY INPUTS'!D34&"") -> Transferred from 2023
B5: Grant | F5: Balance | G5: Budget Appropriations | I5: Expended | J5: Other | K5: Cancelled | L5: Balance
F6: ='11 Grants Approp Rsrv'!F6 -> Jan. 1, 2023 | G6: Budget | H6: Appropriation | L6: ='11 Grants Approp Rsrv'!L6 -> Dec. 31, 2023
H7: By 40A:4-87
B8: PREVIOUS PAGE TOTALS | F8: =+'11.4 Grants Approp Rsrv'!F27 -> 21,841.45 | G8: =+'11.4 Grants Approp Rsrv'!G27 -> 0 | H8: =+'11.4 Grants Approp Rsrv'!H27 -> 0 | I8: =+'11.4 Grants Approp Rsrv'!I27 -> 0 | J8: =+'11.4 Grants Approp Rsrv'!J27 -> 0 | K8: =+'11.4 Grants Approp Rsrv'!K27 -> 0 | L8: =+'11.4 Grants Approp Rsrv'!L27 -> 21,841.45
L9: =+F9+G9+H9-I9+J9-K9 -> 0
L10: 0
L11: 0
L12: 0
L13: 0
L14: 0
A15: Sheet 11.5 | L15: 0
L16: 0
L17: 0
L18: 0
L19: 0
L20: 0
L21: 0
L22: 0
L23: 0
L24: 0
L25: 0
L26: 0
C27: PAGE TOTALS | F27: =SUM(F8:F26) -> 21,841.45 | G27: =SUM(G8:G26) -> 0 | H27: 0 | I27: 0 | J27: 0 | K27: 0 | L27: =SUM(L8:L26) -> 21,841.45

Sheet 11.6 Grants Approp Rsrv (hidden)
B2: SCHEDULE OF APPROPRIATED RESERVES FOR
B3: FEDERAL AND STATE GRANTS
G4: =IF('KEY INPUTS'!C42="State Fiscal Year","Transferred from Fiscal Year "&'KEY INPUTS'!D33&"","Transferred from "&'KEY INPUTS'!D34&"") -> Transferred from 2023
B5: Grant | F5: Balance | G5: Budget Appropriations | I5: Expended | J5: Other | K5: Cancelled | L5: Balance
F6: ='11 Grants Approp Rsrv'!F6 -> Jan. 1, 2023 | G6: Budget | H6: Appropriation | L6: ='11 Grants Approp Rsrv'!L6 -> Dec. 31, 2023
H7: By 40A:4-87
B8: PREVIOUS PAGE TOTALS | F8: =+'11.5 Grants Approp Rsrv'!F27 -> 21,841.45 | G8: =+'11.5 Grants Approp Rsrv'!G27 -> 0 | H8: =+'11.5 Grants Approp Rsrv'!H27 -> 0 | I8: =+'11.5 Grants Approp Rsrv'!I27 -> 0 | J8: =+'11.5 Grants Approp Rsrv'!J27 -> 0 | K8: =+'11.5 Grants Approp Rsrv'!K27 -> 0 | L8: =+'11.5 Grants Approp Rsrv'!L27 -> 21,841.45
L9: =+F9+G9+H9-I9+J9-K9 -> 0
L10: 0
L11: 0
L12: 0
L13: 0
L14: 0
A15: Sheet 11.6 | L15: 0
L16: 0
L17: 0
L18: 0
L19: 0
L20: 0
L21: 0
L22: 0
L23: 0
L24: 0
L25: 0
L26: 0
C27: PAGE TOTALS | F27: =SUM(F8:F26) -> 21,841.45 | G27: =SUM(G8:G26) -> 0 | H27: 0 | I27: 0 | J27: 0 | K27: 0 | L27: =SUM(L8:L26) -> 21,841.45

Sheet 11.7 Grants Approp Rsrv (hidden)
B2: SCHEDULE OF APPROPRIATED RESERVES FOR
B3: FEDERAL AND STATE GRANTS
G4: =IF('KEY INPUTS'!C42="State Fiscal Year","Transferred from Fiscal Year "&'KEY INPUTS'!D33&"","Transferred from "&'KEY INPUTS'!D34&"") -> Transferred from 2023
B5: Grant | F5: Balance | G5: Budget Appropriations | I5: Expended | J5: Other | K5: Cancelled | L5: Balance
F6: ='11 Grants Approp Rsrv'!F6 -> Jan. 1, 2023 | G6: Budget | H6: Appropriation | L6: ='11 Grants Approp Rsrv'!L6 -> Dec. 31, 2023
H7: By 40A:4-87
B8: PREVIOUS PAGE TOTALS | F8: =+'11.6 Grants Approp Rsrv'!F27 -> 21,841.45 | G8: =+'11.6 Grants Approp Rsrv'!G27 -> 0 | H8: =+'11.6 Grants Approp Rsrv'!H27 -> 0 | I8: =+'11.6 Grants Approp Rsrv'!I27 -> 0 | J8: =+'11.6 Grants Approp Rsrv'!J27 -> 0 | K8: =+'11.6 Grants Approp Rsrv'!K27 -> 0 | L8: =+'11.6 Grants Approp Rsrv'!L27 -> 21,841.45
L9: =+F9+G9+H9-I9+J9-K9 -> 0
L10: 0
L11: 0
L12: 0
L13: 0
L14: 0
A15: Sheet 11.7 | L15: 0
L16: 0
L17: 0
L18: 0
L19: 0
L20: 0
L21: 0
L22: 0
L23: 0
L24: 0
L25: 0
L26: 0
C27: PAGE TOTALS | F27: =SUM(F8:F26) -> 21,841.45 | G27: =SUM(G8:G26) -> 0 | H27: 0 | I27: 0 | J27: 0 | K27: 0 | L27: =SUM(L8:L26) -> 21,841.45

Sheet 11.8 Grants Approp Rsrv (hidden)
B2: SCHEDULE OF APPROPRIATED RESERVES FOR
B3: FEDERAL AND STATE GRANTS
G4: =IF('KEY INPUTS'!C42="State Fiscal Year","Transferred from Fiscal Year "&'KEY INPUTS'!D33&"","Transferred from "&'KEY INPUTS'!D34&"") -> Transferred from 2023
B5: Grant | F5: Balance | G5: Budget Appropriations | I5: Expended | J5: Other | K5: Cancelled | L5: Balance
F6: ='11 Grants Approp Rsrv'!F6 -> Jan. 1, 2023 | G6: Budget | H6: Appropriation | L6: ='11 Grants Approp Rsrv'!L6 -> Dec. 31, 2023
H7: By 40A:4-87
B8: PREVIOUS PAGE TOTALS | F8: =+'11.7 Grants Approp Rsrv'!F27 -> 21,841.45 | G8: =+'11.7 Grants Approp Rsrv'!G27 -> 0 | H8: =+'11.7 Grants Approp Rsrv'!H27 -> 0 | I8: =+'11.7 Grants Approp Rsrv'!I27 -> 0 | J8: =+'11.7 Grants Approp Rsrv'!J27 -> 0 | K8: =+'11.7 Grants Approp Rsrv'!K27 -> 0 | L8: =+'11.7 Grants Approp Rsrv'!L27 -> 21,841.45
L9: =+F9+G9+H9-I9+J9-K9 -> 0
L10: 0
L11: 0
L12: 0
L13: 0
L14: 0
A15: Sheet 11.8 | L15: 0
L16: 0
L17: 0
L18: 0
L19: 0
L20: 0
L21: 0
L22: 0
L23: 0
L24: 0
L25: 0
L26: 0
C27: PAGE TOTALS | F27: =SUM(F8:F26) -> 21,841.45 | G27: =SUM(G8:G26) -> 0 | H27: 0 | I27: 0 | J27: 0 | K27: 0 | L27: =SUM(L8:L26) -> 21,841.45

Sheet 11.9 Grants Approp Rsrv (hidden)
B2: SCHEDULE OF APPROPRIATED RESERVES FOR
B3: FEDERAL AND STATE GRANTS
G4: =IF('KEY INPUTS'!C42="State Fiscal Year","Transferred from Fiscal Year "&'KEY INPUTS'!D33&"","Transferred from "&'KEY INPUTS'!D34&"") -> Transferred from 2023
B5: Grant | F5: Balance | G5: Budget Appropriations | I5: Expended | J5: Other | K5: Cancelled | L5: Balance
F6: ='11 Grants Approp Rsrv'!F6 -> Jan. 1, 2023 | G6: Budget | H6: Appropriation | L6: ='11 Grants Approp Rsrv'!L6 -> Dec. 31, 2023
H7: By 40A:4-87
B8: PREVIOUS PAGE TOTALS | F8: =+'11.8 Grants Approp Rsrv'!F27 -> 21,841.45 | G8: =+'11.8 Grants Approp Rsrv'!G27 -> 0 | H8: =+'11.8 Grants Approp Rsrv'!H27 -> 0 | I8: =+'11.8 Grants Approp Rsrv'!I27 -> 0 | J8: =+'11.8 Grants Approp Rsrv'!J27 -> 0 | K8: =+'11.8 Grants Approp Rsrv'!K27 -> 0 | L8: =+'11.8 Grants Approp Rsrv'!L27 -> 21,841.45
L9: =+F9+G9+H9-I9+J9-K9 -> 0
L10: 0
L11: 0
L12: 0
L13: 0
L14: 0
A15: Sheet 11.9 | L15: 0
L16: 0
L17: 0
L18: 0
L19: 0
L20: 0
L21: 0
L22: 0
L23: 0
L24: 0
L25: 0
L26: 0
C27: PAGE TOTALS | F27: =SUM(F8:F26) -> 21,841.45 | G27: =SUM(G8:G26) -> 0 | H27: 0 | I27: 0 | J27: 0 | K27: 0 | L27: =SUM(L8:L26) -> 21,841.45

Sheet 11.10 Grants Approp Rsrv (hidden)
B2: SCHEDULE OF APPROPRIATED RESERVES FOR
B3: FEDERAL AND STATE GRANTS
G4: =IF('KEY INPUTS'!C42="State Fiscal Year","Transferred from Fiscal Year "&'KEY INPUTS'!D33&"","Transferred from "&'KEY INPUTS'!D34&"") -> Transferred from 2023
B5: Grant | F5: Balance | G5: Budget Appropriations | I5: Expended | J5: Other | K5: Cancelled | L5: Balance
F6: ='11 Grants Approp Rsrv'!F6 -> Jan. 1, 2023 | G6: Budget | H6: Appropriation | L6: ='11 Grants Approp Rsrv'!L6 -> Dec. 31, 2023
H7: By 40A:4-87
B8: PREVIOUS PAGE TOTALS | F8: =+'11.9 Grants Approp Rsrv'!F27 -> 21,841.45 | G8: =+'11.9 Grants Approp Rsrv'!G27 -> 0 | H8: =+'11.9 Grants Approp Rsrv'!H27 -> 0 | I8: =+'11.9 Grants Approp Rsrv'!I27 -> 0 | J8: =+'11.9 Grants Approp Rsrv'!J27 -> 0 | K8: =+'11.9 Grants Approp Rsrv'!K27 -> 0 | L8: =+'11.9 Grants Approp Rsrv'!L27 -> 21,841.45
L9: =+F9+G9+H9-I9+J9-K9 -> 0
L10: 0
L11: 0
L12: 0
L13: 0
L14: 0
A15: Sheet 11.10 | L15: 0
L16: 0
L17: 0
L18: 0
L19: 0
L20: 0
L21: 0
L22: 0
L23: 0
L24: 0
L25: 0
L26: 0
C27: PAGE TOTALS | F27: =SUM(F8:F26) -> 21,841.45 | G27: =SUM(G8:G26) -> 0 | H27: 0 | I27: 0 | J27: 0 | K27: 0 | L27: =SUM(L8:L26) -> 21,841.45

Sheet 11.11 Grants Approp Rsrv (hidden)
B2: SCHEDULE OF APPROPRIATED RESERVES FOR
B3: FEDERAL AND STATE GRANTS
G4: =IF('KEY INPUTS'!C42="State Fiscal Year","Transferred from Fiscal Year "&'KEY INPUTS'!D33&"","Transferred from "&'KEY INPUTS'!D34&"") -> Transferred from 2023
B5: Grant | F5: Balance | G5: Budget Appropriations | I5: Expended | J5: Other | K5: Cancelled | L5: Balance
F6: ='11 Grants Approp Rsrv'!F6 -> Jan. 1, 2023 | G6: Budget | H6: Appropriation | L6: ='11 Grants Approp Rsrv'!L6 -> Dec. 31, 2023
H7: By 40A:4-87
B8: PREVIOUS PAGE TOTALS | F8: =+'11.10 Grants Approp Rsrv'!F27 -> 21,841.45 | G8: =+'11.10 Grants Approp Rsrv'!G27 -> 0 | H8: =+'11.10 Grants Approp Rsrv'!H27 -> 0 | I8: =+'11.10 Grants Approp Rsrv'!I27 -> 0 | J8: =+'11.10 Grants Approp Rsrv'!J27 -> 0 | K8: =+'11.10 Grants Approp Rsrv'!K27 -> 0 | L8: =+'11.10 Grants Approp Rsrv'!L27 -> 21,841.45
L9: =+F9+G9+H9-I9+J9-K9 -> 0
L10: 0
L11: 0
L12: 0
L13: 0
L14: 0
A15: Sheet 11.11 | L15: 0
L16: 0
L17: 0
L18: 0
L19: 0
L20: 0
L21: 0
L22: 0
L23: 0
L24: 0
L25: 0
L26: 0
C27: PAGE TOTALS | F27: =SUM(F8:F26) -> 21,841.45 | G27: =SUM(G8:G26) -> 0 | H27: 0 | I27: 0 | J27: 0 | K27: 0 | L27: =SUM(L8:L26) -> 21,841.45

Sheet 11.12 Grants Approp Rsrv (hidden)
B2: SCHEDULE OF APPROPRIATED RESERVES FOR
B3: FEDERAL AND STATE GRANTS
G4: =IF('KEY INPUTS'!C42="State Fiscal Year","Transferred from Fiscal Year "&'KEY INPUTS'!D33&"","Transferred from "&'KEY INPUTS'!D34&"") -> Transferred from 2023
B5: Grant | F5: Balance | G5: Budget Appropriations | I5: Expended | J5: Other | K5: Cancelled | L5: Balance
F6: ='11 Grants Approp Rsrv'!F6 -> Jan. 1, 2023 | G6: Budget | H6: Appropriation | L6: ='11 Grants Approp Rsrv'!L6 -> Dec. 31, 2023
H7: By 40A:4-87
B8: PREVIOUS PAGE TOTALS | F8: =+'11.11 Grants Approp Rsrv'!F27 -> 21,841.45 | G8: =+'11.11 Grants Approp Rsrv'!G27 -> 0 | H8: =+'11.11 Grants Approp Rsrv'!H27 -> 0 | I8: =+'11.11 Grants Approp Rsrv'!I27 -> 0 | J8: =+'11.11 Grants Approp Rsrv'!J27 -> 0 | K8: =+'11.11 Grants Approp Rsrv'!K27 -> 0 | L8: =+'11.11 Grants Approp Rsrv'!L27 -> 21,841.45
L9: =+F9+G9+H9-I9+J9-K9 -> 0
L10: 0
L11: 0
L12: 0
L13: 0
L14: 0
A15: Sheet 11.12 | L15: 0
L16: 0
L17: 0
L18: 0
L19: 0
L20: 0
L21: 0
L22: 0
L23: 0
L24: 0
L25: 0
L26: 0
C27: PAGE TOTALS | F27: =SUM(F8:F26) -> 21,841.45 | G27: =SUM(G8:G26) -> 0 | H27: 0 | I27: 0 | J27: 0 | K27: 0 | L27: =SUM(L8:L26) -> 21,841.45

Sheet 11.13 Grants Approp Rsrv (hidden)
B2: SCHEDULE OF APPROPRIATED RESERVES FOR
B3: FEDERAL AND STATE GRANTS
G4: =IF('KEY INPUTS'!C42="State Fiscal Year","Transferred from Fiscal Year "&'KEY INPUTS'!D33&"","Transferred from "&'KEY INPUTS'!D34&"") -> Transferred from 2023
B5: Grant | F5: Balance | G5: Budget Appropriations | I5: Expended | J5: Other | K5: Cancelled | L5: Balance
F6: ='11 Grants Approp Rsrv'!F6 -> Jan. 1, 2023 | G6: Budget | H6: Appropriation | L6: ='11 Grants Approp Rsrv'!L6 -> Dec. 31, 2023
H7: By 40A:4-87
B8: PREVIOUS PAGE TOTALS | F8: =+'11.12 Grants Approp Rsrv'!F27 -> 21,841.45 | G8: =+'11.12 Grants Approp Rsrv'!G27 -> 0 | H8: =+'11.12 Grants Approp Rsrv'!H27 -> 0 | I8: =+'11.12 Grants Approp Rsrv'!I27 -> 0 | J8: =+'11.12 Grants Approp Rsrv'!J27 -> 0 | K8: =+'11.12 Grants Approp Rsrv'!K27 -> 0 | L8: =+'11.12 Grants Approp Rsrv'!L27 -> 21,841.45
L9: =+F9+G9+H9-I9+J9-K9 -> 0
L10: 0
L11: 0
L12: 0
L13: 0
L14: 0
A15: Sheet 11.13 | L15: 0
L16: 0
L17: 0
L18: 0
L19: 0
L20: 0
L21: 0
L22: 0
L23: 0
L24: 0
L25: 0
L26: 0
C27: PAGE TOTALS | F27: =SUM(F8:F26) -> 21,841.45 | G27: =SUM(G8:G26) -> 0 | H27: 0 | I27: 0 | J27: 0 | K27: 0 | L27: =SUM(L8:L26) -> 21,841.45

Sheet 11.14 Grants Approp Rsrv (hidden)
B2: SCHEDULE OF APPROPRIATED RESERVES FOR
B3: FEDERAL AND STATE GRANTS
G4: =IF('KEY INPUTS'!C42="State Fiscal Year","Transferred from Fiscal Year "&'KEY INPUTS'!D33&"","Transferred from "&'KEY INPUTS'!D34&"") -> Transferred from 2023
B5: Grant | F5: Balance | G5: Budget Appropriations | I5: Expended | J5: Other | K5: Cancelled | L5: Balance
F6: ='11 Grants Approp Rsrv'!F6 -> Jan. 1, 2023 | G6: Budget | H6: Appropriation | L6: ='11 Grants Approp Rsrv'!L6 -> Dec. 31, 2023
H7: By 40A:4-87
B8: PREVIOUS PAGE TOTALS | F8: =+'11.13 Grants Approp Rsrv'!F27 -> 21,841.45 | G8: =+'11.13 Grants Approp Rsrv'!G27 -> 0 | H8: =+'11.13 Grants Approp Rsrv'!H27 -> 0 | I8: =+'11.13 Grants Approp Rsrv'!I27 -> 0 | J8: =+'11.13 Grants Approp Rsrv'!J27 -> 0 | K8: =+'11.13 Grants Approp Rsrv'!K27 -> 0 | L8: =+'11.13 Grants Approp Rsrv'!L27 -> 21,841.45
L9: =+F9+G9+H9-I9+J9-K9 -> 0
L10: 0
L11: 0
L12: 0
L13: 0
L14: 0
A15: Sheet 11.14 | L15: 0
L16: 0
L17: 0
L18: 0
L19: 0
L20: 0
L21: 0
L22: 0
L23: 0
L24: 0
L25: 0
L26: 0
C27: PAGE TOTALS | F27: =SUM(F8:F26) -> 21,841.45 | G27: =SUM(G8:G26) -> 0 | H27: 0 | I27: 0 | J27: 0 | K27: 0 | L27: =SUM(L8:L26) -> 21,841.45

Sheet 11.15 Grants Approp Rsrv (hidden)
B2: SCHEDULE OF APPROPRIATED RESERVES FOR
B3: FEDERAL AND STATE GRANTS
G4: =IF('KEY INPUTS'!C42="State Fiscal Year","Transferred from Fiscal Year "&'KEY INPUTS'!D33&"","Transferred from "&'KEY INPUTS'!D34&"") -> Transferred from 2023
B5: Grant | F5: Balance | G5: Budget Appropriations | I5: Expended | J5: Other | K5: Cancelled | L5: Balance
F6: ='11 Grants Approp Rsrv'!F6 -> Jan. 1, 2023 | G6: Budget | H6: Appropriation | L6: ='11 Grants Approp Rsrv'!L6 -> Dec. 31, 2023
H7: By 40A:4-87
B8: PREVIOUS PAGE TOTALS | F8: =+'11.14 Grants Approp Rsrv'!F27 -> 21,841.45 | G8: =+'11.14 Grants Approp Rsrv'!G27 -> 0 | H8: =+'11.14 Grants Approp Rsrv'!H27 -> 0 | I8: =+'11.14 Grants Approp Rsrv'!I27 -> 0 | J8: =+'11.14 Grants Approp Rsrv'!J27 -> 0 | K8: =+'11.14 Grants Approp Rsrv'!K27 -> 0 | L8: =+'11.14 Grants Approp Rsrv'!L27 -> 21,841.45
L9: =+F9+G9+H9-I9+J9-K9 -> 0
L10: 0
L11: 0
L12: 0
L13: 0
L14: 0
A15: Sheet 11.15 | L15: 0
L16: 0
L17: 0
L18: 0
L19: 0
L20: 0
L21: 0
L22: 0
L23: 0
L24: 0
L25: 0
L26: 0
C27: PAGE TOTALS | F27: =SUM(F8:F26) -> 21,841.45 | G27: =SUM(G8:G26) -> 0 | H27: 0 | I27: 0 | J27: 0 | K27: 0 | L27: =SUM(L8:L26) -> 21,841.45

Sheet 11.16 Grants Approp Rsrv (hidden)
B2: SCHEDULE OF APPROPRIATED RESERVES FOR
B3: FEDERAL AND STATE GRANTS
G4: =IF('KEY INPUTS'!C42="State Fiscal Year","Transferred from Fiscal Year "&'KEY INPUTS'!D33&"","Transferred from "&'KEY INPUTS'!D34&"") -> Transferred from 2023
B5: Grant | F5: Balance | G5: Budget Appropriations | I5: Expended | J5: Other | K5: Cancelled | L5: Balance
F6: ='11 Grants Approp Rsrv'!F6 -> Jan. 1, 2023 | G6: Budget | H6: Appropriation | L6: ='11 Grants Approp Rsrv'!L6 -> Dec. 31, 2023
H7: By 40A:4-87
B8: PREVIOUS PAGE TOTALS | F8: =+'11.15 Grants Approp Rsrv'!F27 -> 21,841.45 | G8: =+'11.15 Grants Approp Rsrv'!G27 -> 0 | H8: =+'11.15 Grants Approp Rsrv'!H27 -> 0 | I8: =+'11.15 Grants Approp Rsrv'!I27 -> 0 | J8: =+'11.15 Grants Approp Rsrv'!J27 -> 0 | K8: =+'11.15 Grants Approp Rsrv'!K27 -> 0 | L8: =+'11.15 Grants Approp Rsrv'!L27 -> 21,841.45
L9: =+F9+G9+H9-I9+J9-K9 -> 0
L10: 0
L11: 0
L12: 0
L13: 0
L14: 0
A15: Sheet 11.16 | L15: 0
L16: 0
L17: 0
L18: 0
L19: 0
L20: 0
L21: 0
L22: 0
L23: 0
L24: 0
L25: 0
L26: 0
C27: PAGE TOTALS | F27: =SUM(F8:F26) -> 21,841.45 | G27: =SUM(G8:G26) -> 0 | H27: 0 | I27: 0 | J27: 0 | K27: 0 | L27: =SUM(L8:L26) -> 21,841.45

Sheet 11.17 Grants Approp Rsrv (hidden)
B2: SCHEDULE OF APPROPRIATED RESERVES FOR
B3: FEDERAL AND STATE GRANTS
G4: =IF('KEY INPUTS'!C42="State Fiscal Year","Transferred from Fiscal Year "&'KEY INPUTS'!D33&"","Transferred from "&'KEY INPUTS'!D34&"") -> Transferred from 2023
B5: Grant | F5: Balance | G5: Budget Appropriations | I5: Expended | J5: Other | K5: Cancelled | L5: Balance
F6: ='11 Grants Approp Rsrv'!F6 -> Jan. 1, 2023 | G6: Budget | H6: Appropriation | L6: ='11 Grants Approp Rsrv'!L6 -> Dec. 31, 2023
H7: By 40A:4-87
B8: PREVIOUS PAGE TOTALS | F8: =+'11.16 Grants Approp Rsrv'!F27 -> 21,841.45 | G8: =+'11.16 Grants Approp Rsrv'!G27 -> 0 | H8: =+'11.16 Grants Approp Rsrv'!H27 -> 0 | I8: =+'11.16 Grants Approp Rsrv'!I27 -> 0 | J8: =+'11.16 Grants Approp Rsrv'!J27 -> 0 | K8: =+'11.16 Grants Approp Rsrv'!K27 -> 0 | L8: =+'11.16 Grants Approp Rsrv'!L27 -> 21,841.45
L9: =+F9+G9+H9-I9+J9-K9 -> 0
L10: 0
L11: 0
L12: 0
L13: 0
L14: 0
A15: Sheet 11.17 | L15: 0
L16: 0
L17: 0
L18: 0
L19: 0
L20: 0
L21: 0
L22: 0
L23: 0
L24: 0
L25: 0
L26: 0
C27: PAGE TOTALS | F27: =SUM(F8:F26) -> 21,841.45 | G27: =SUM(G8:G26) -> 0 | H27: 0 | I27: 0 | J27: 0 | K27: 0 | L27: =SUM(L8:L26) -> 21,841.45

Sheet 11.18 Grants Approp Rsrv (hidden)
B2: SCHEDULE OF APPROPRIATED RESERVES FOR
B3: FEDERAL AND STATE GRANTS
G4: =IF('KEY INPUTS'!C42="State Fiscal Year","Transferred from Fiscal Year "&'KEY INPUTS'!D33&"","Transferred from "&'KEY INPUTS'!D34&"") -> Transferred from 2023
B5: Grant | F5: Balance | G5: Budget Appropriations | I5: Expended | J5: Other | K5: Cancelled | L5: Balance
F6: ='11 Grants Approp Rsrv'!F6 -> Jan. 1, 2023 | G6: Budget | H6: Appropriation | L6: ='11 Grants Approp Rsrv'!L6 -> Dec. 31, 2023
H7: By 40A:4-87
B8: PREVIOUS PAGE TOTALS | F8: =+'11.17 Grants Approp Rsrv'!F27 -> 21,841.45 | G8: =+'11.17 Grants Approp Rsrv'!G27 -> 0 | H8: =+'11.17 Grants Approp Rsrv'!H27 -> 0 | I8: =+'11.17 Grants Approp Rsrv'!I27 -> 0 | J8: =+'11.17 Grants Approp Rsrv'!J27 -> 0 | K8: =+'11.17 Grants Approp Rsrv'!K27 -> 0 | L8: =+'11.17 Grants Approp Rsrv'!L27 -> 21,841.45
L9: =+F9+G9+H9-I9+J9-K9 -> 0
L10: 0
L11: 0
L12: 0
L13: 0
L14: 0
A15: Sheet 11.18 | L15: 0
L16: 0
L17: 0
L18: 0
L19: 0
L20: 0
L21: 0
L22: 0
L23: 0
L24: 0
L25: 0
L26: 0
C27: PAGE TOTALS | F27: =SUM(F8:F26) -> 21,841.45 | G27: =SUM(G8:G26) -> 0 | H27: 0 | I27: 0 | J27: 0 | K27: 0 | L27: =SUM(L8:L26) -> 21,841.45

Sheet 11.19 Grants Approp Rsrv (hidden)
B2: SCHEDULE OF APPROPRIATED RESERVES FOR
B3: FEDERAL AND STATE GRANTS
G4: =IF('KEY INPUTS'!C42="State Fiscal Year","Transferred from Fiscal Year "&'KEY INPUTS'!D33&"","Transferred from "&'KEY INPUTS'!D34&"") -> Transferred from 2023
B5: Grant | F5: Balance | G5: Budget Appropriations | I5: Expended | J5: Other | K5: Cancelled | L5: Balance
F6: ='11 Grants Approp Rsrv'!F6 -> Jan. 1, 2023 | G6: Budget | H6: Appropriation | L6: ='11 Grants Approp Rsrv'!L6 -> Dec. 31, 2023
H7: By 40A:4-87
B8: PREVIOUS PAGE TOTALS | F8: =+'11.18 Grants Approp Rsrv'!F27 -> 21,841.45 | G8: =+'11.18 Grants Approp Rsrv'!G27 -> 0 | H8: =+'11.18 Grants Approp Rsrv'!H27 -> 0 | I8: =+'11.18 Grants Approp Rsrv'!I27 -> 0 | J8: =+'11.18 Grants Approp Rsrv'!J27 -> 0 | K8: =+'11.18 Grants Approp Rsrv'!K27 -> 0 | L8: =+'11.18 Grants Approp Rsrv'!L27 -> 21,841.45
L9: =+F9+G9+H9-I9+J9-K9 -> 0
L10: 0
L11: 0
L12: 0
L13: 0
L14: 0
A15: Sheet 11.19 | L15: 0
L16: 0
L17: 0
L18: 0
L19: 0
L20: 0
L21: 0
L22: 0
L23: 0
L24: 0
L25: 0
L26: 0
C27: PAGE TOTALS | F27: =SUM(F8:F26) -> 21,841.45 | G27: =SUM(G8:G26) -> 0 | H27: 0 | I27: 0 | J27: 0 | K27: 0 | L27: =SUM(L8:L26) -> 21,841.45

Sheet 11.20 Grants Approp Rsrv (hidden)
B2: SCHEDULE OF APPROPRIATED RESERVES FOR
B3: FEDERAL AND STATE GRANTS
G4: =IF('KEY INPUTS'!C42="State Fiscal Year","Transferred from Fiscal Year "&'KEY INPUTS'!D33&"","Transferred from "&'KEY INPUTS'!D34&"") -> Transferred from 2023
B5: Grant | F5: Balance | G5: Budget Appropriations | I5: Expended | J5: Other | K5: Cancelled | L5: Balance
F6: ='11 Grants Approp Rsrv'!F6 -> Jan. 1, 2023 | G6: Budget | H6: Appropriation | L6: ='11 Grants Approp Rsrv'!L6 -> Dec. 31, 2023
H7: By 40A:4-87
B8: PREVIOUS PAGE TOTALS | F8: =+'11.19 Grants Approp Rsrv'!F27 -> 21,841.45 | G8: =+'11.19 Grants Approp Rsrv'!G27 -> 0 | H8: =+'11.19 Grants Approp Rsrv'!H27 -> 0 | I8: =+'11.19 Grants Approp Rsrv'!I27 -> 0 | J8: =+'11.19 Grants Approp Rsrv'!J27 -> 0 | K8: =+'11.19 Grants Approp Rsrv'!K27 -> 0 | L8: =+'11.19 Grants Approp Rsrv'!L27 -> 21,841.45
L9: =+F9+G9+H9-I9+J9-K9 -> 0
L10: 0
L11: 0
L12: 0
L13: 0
L14: 0
A15: Sheet 11.20 | L15: 0
L16: 0
L17: 0
L18: 0
L19: 0
L20: 0
L21: 0
L22: 0
L23: 0
L24: 0
L25: 0
L26: 0
C27: PAGE TOTALS | F27: =SUM(F8:F26) -> 21,841.45 | G27: =SUM(G8:G26) -> 0 | H27: 0 | I27: 0 | J27: 0 | K27: 0 | L27: =SUM(L8:L26) -> 21,841.45

Sheet 11.21 Grants Approp Rsrv (hidden)
B2: SCHEDULE OF APPROPRIATED RESERVES FOR
B3: FEDERAL AND STATE GRANTS
G4: =IF('KEY INPUTS'!C42="State Fiscal Year","Transferred from Fiscal Year "&'KEY INPUTS'!D33&"","Transferred from "&'KEY INPUTS'!D34&"") -> Transferred from 2023
B5: Grant | F5: Balance | G5: Budget Appropriations | I5: Expended | J5: Other | K5: Cancelled | L5: Balance
F6: ='11 Grants Approp Rsrv'!F6 -> Jan. 1, 2023 | G6: Budget | H6: Appropriation | L6: ='11 Grants Approp Rsrv'!L6 -> Dec. 31, 2023
H7: By 40A:4-87
B8: PREVIOUS PAGE TOTALS | F8: =+'11.20 Grants Approp Rsrv'!F27 -> 21,841.45 | G8: =+'11.20 Grants Approp Rsrv'!G27 -> 0 | H8: =+'11.20 Grants Approp Rsrv'!H27 -> 0 | I8: =+'11.20 Grants Approp Rsrv'!I27 -> 0 | J8: =+'11.20 Grants Approp Rsrv'!J27 -> 0 | K8: =+'11.20 Grants Approp Rsrv'!K27 -> 0 | L8: =+'11.20 Grants Approp Rsrv'!L27 -> 21,841.45
L9: =+F9+G9+H9-I9+J9-K9 -> 0
L10: 0
L11: 0
L12: 0
L13: 0
L14: 0
A15: Sheet 11.21 | L15: 0
L16: 0
L17: 0
L18: 0
L19: 0
L20: 0
L21: 0
L22: 0
L23: 0
L24: 0
L25: 0
L26: 0
C27: PAGE TOTALS | F27: =SUM(F8:F26) -> 21,841.45 | G27: =SUM(G8:G26) -> 0 | H27: 0 | I27: 0 | J27: 0 | K27: 0 | L27: =SUM(L8:L26) -> 21,841.45

Sheet 11.22 Grants Approp Rsrv (hidden)
B2: SCHEDULE OF APPROPRIATED RESERVES FOR
B3: FEDERAL AND STATE GRANTS
G4: =IF('KEY INPUTS'!C42="State Fiscal Year","Transferred from Fiscal Year "&'KEY INPUTS'!D33&"","Transferred from "&'KEY INPUTS'!D34&"") -> Transferred from 2023
B5: Grant | F5: Balance | G5: Budget Appropriations | I5: Expended | J5: Other | K5: Cancelled | L5: Balance
F6: ='11 Grants Approp Rsrv'!F6 -> Jan. 1, 2023 | G6: Budget | H6: Appropriation | L6: ='11 Grants Approp Rsrv'!L6 -> Dec. 31, 2023
H7: By 40A:4-87
B8: PREVIOUS PAGE TOTALS | F8: =+'11.21 Grants Approp Rsrv'!F27 -> 21,841.45 | G8: =+'11.21 Grants Approp Rsrv'!G27 -> 0 | H8: =+'11.21 Grants Approp Rsrv'!H27 -> 0 | I8: =+'11.21 Grants Approp Rsrv'!I27 -> 0 | J8: =+'11.21 Grants Approp Rsrv'!J27 -> 0 | K8: =+'11.21 Grants Approp Rsrv'!K27 -> 0 | L8: =+'11.21 Grants Approp Rsrv'!L27 -> 21,841.45
L9: =+F9+G9+H9-I9+J9-K9 -> 0
L10: 0
L11: 0
L12: 0
L13: 0
L14: 0
A15: Sheet 11.22 | L15: 0
L16: 0
L17: 0
L18: 0
L19: 0
L20: 0
L21: 0
L22: 0
L23: 0
L24: 0
L25: 0
L26: 0
C27: PAGE TOTALS | F27: =SUM(F8:F26) -> 21,841.45 | G27: =SUM(G8:G26) -> 0 | H27: 0 | I27: 0 | J27: 0 | K27: 0 | L27: =SUM(L8:L26) -> 21,841.45

Sheet 11.23 Grants Approp Rsrv (hidden)
B2: SCHEDULE OF APPROPRIATED RESERVES FOR
B3: FEDERAL AND STATE GRANTS
G4: =IF('KEY INPUTS'!C42="State Fiscal Year","Transferred from Fiscal Year "&'KEY INPUTS'!D33&"","Transferred from "&'KEY INPUTS'!D34&"") -> Transferred from 2023
B5: Grant | F5: Balance | G5: Budget Appropriations | I5: Expended | J5: Other | K5: Cancelled | L5: Balance
F6: ='11 Grants Approp Rsrv'!F6 -> Jan. 1, 2023 | G6: Budget | H6: Appropriation | L6: ='11 Grants Approp Rsrv'!L6 -> Dec. 31, 2023
H7: By 40A:4-87
B8: PREVIOUS PAGE TOTALS | F8: =+'11.22 Grants Approp Rsrv'!F27 -> 21,841.45 | G8: =+'11.22 Grants Approp Rsrv'!G27 -> 0 | H8: =+'11.22 Grants Approp Rsrv'!H27 -> 0 | I8: =+'11.22 Grants Approp Rsrv'!I27 -> 0 | J8: =+'11.22 Grants Approp Rsrv'!J27 -> 0 | K8: =+'11.22 Grants Approp Rsrv'!K27 -> 0 | L8: =+'11.22 Grants Approp Rsrv'!L27 -> 21,841.45
L9: =+F9+G9+H9-I9+J9-K9 -> 0
L10: 0
L11: 0
L12: 0
L13: 0
L14: 0
A15: Sheet 11.23 | L15: 0
L16: 0
L17: 0
L18: 0
L19: 0
L20: 0
L21: 0
L22: 0
L23: 0
L24: 0
L25: 0
L26: 0
C27: PAGE TOTALS | F27: =SUM(F8:F26) -> 21,841.45 | G27: =SUM(G8:G26) -> 0 | H27: 0 | I27: 0 | J27: 0 | K27: 0 | L27: =SUM(L8:L26) -> 21,841.45

Sheet 11.24 Grants Approp Rsrv (hidden)
B2: SCHEDULE OF APPROPRIATED RESERVES FOR
B3: FEDERAL AND STATE GRANTS
G4: =IF('KEY INPUTS'!C42="State Fiscal Year","Transferred from Fiscal Year "&'KEY INPUTS'!D33&"","Transferred from "&'KEY INPUTS'!D34&"") -> Transferred from 2023
B5: Grant | F5: Balance | G5: Budget Appropriations | I5: Expended | J5: Other | K5: Cancelled | L5: Balance
F6: ='11 Grants Approp Rsrv'!F6 -> Jan. 1, 2023 | G6: Budget | H6: Appropriation | L6: ='11 Grants Approp Rsrv'!L6 -> Dec. 31, 2023
H7: By 40A:4-87
B8: PREVIOUS PAGE TOTALS | F8: =+'11.23 Grants Approp Rsrv'!F27 -> 21,841.45 | G8: =+'11.23 Grants Approp Rsrv'!G27 -> 0 | H8: =+'11.23 Grants Approp Rsrv'!H27 -> 0 | I8: =+'11.23 Grants Approp Rsrv'!I27 -> 0 | J8: =+'11.23 Grants Approp Rsrv'!J27 -> 0 | K8: =+'11.23 Grants Approp Rsrv'!K27 -> 0 | L8: =+'11.23 Grants Approp Rsrv'!L27 -> 21,841.45
L9: =+F9+G9+H9-I9+J9-K9 -> 0
L10: 0
L11: 0
L12: 0
L13: 0
L14: 0
A15: Sheet 11.24 | L15: 0
L16: 0
L17: 0
L18: 0
L19: 0
L20: 0
L21: 0
L22: 0
L23: 0
L24: 0
L25: 0
L26: 0
C27: PAGE TOTALS | F27: =SUM(F8:F26) -> 21,841.45 | G27: =SUM(G8:G26) -> 0 | H27: 0 | I27: 0 | J27: 0 | K27: 0 | L27: =SUM(L8:L26) -> 21,841.45

Sheet 11.25 Grants Approp Rsrv (hidden)
B2: SCHEDULE OF APPROPRIATED RESERVES FOR
B3: FEDERAL AND STATE GRANTS
G4: =IF('KEY INPUTS'!C42="State Fiscal Year","Transferred from Fiscal Year "&'KEY INPUTS'!D33&"","Transferred from "&'KEY INPUTS'!D34&"") -> Transferred from 2023
B5: Grant | F5: Balance | G5: Budget Appropriations | I5: Expended | J5: Other | K5: Cancelled | L5: Balance
F6: ='11 Grants Approp Rsrv'!F6 -> Jan. 1, 2023 | G6: Budget | H6: Appropriation | L6: ='11 Grants Approp Rsrv'!L6 -> Dec. 31, 2023
H7: By 40A:4-87
B8: PREVIOUS PAGE TOTALS | F8: =+'11.24 Grants Approp Rsrv'!F27 -> 21,841.45 | G8: =+'11.24 Grants Approp Rsrv'!G27 -> 0 | H8: =+'11.24 Grants Approp Rsrv'!H27 -> 0 | I8: =+'11.24 Grants Approp Rsrv'!I27 -> 0 | J8: =+'11.24 Grants Approp Rsrv'!J27 -> 0 | K8: =+'11.24 Grants Approp Rsrv'!K27 -> 0 | L8: =+'11.24 Grants Approp Rsrv'!L27 -> 21,841.45
L9: =+F9+G9+H9-I9+J9-K9 -> 0
L10: 0
L11: 0
L12: 0
L13: 0
L14: 0
A15: Sheet 11.25 | L15: 0
L16: 0
L17: 0
L18: 0
L19: 0
L20: 0
L21: 0
L22: 0
L23: 0
L24: 0
L25: 0
L26: 0
C27: PAGE TOTALS | F27: =SUM(F8:F26) -> 21,841.45 | G27: =SUM(G8:G26) -> 0 | H27: 0 | I27: 0 | J27: 0 | K27: 0 | L27: =SUM(L8:L26) -> 21,841.45

Sheet 11.26 Grants Approp Rsrv (hidden)
B2: SCHEDULE OF APPROPRIATED RESERVES FOR
B3: FEDERAL AND STATE GRANTS
G4: =IF('KEY INPUTS'!C42="State Fiscal Year","Transferred from Fiscal Year "&'KEY INPUTS'!D33&"","Transferred from "&'KEY INPUTS'!D34&"") -> Transferred from 2023
B5: Grant | F5: Balance | G5: Budget Appropriations | I5: Expended | J5: Other | K5: Cancelled | L5: Balance
F6: ='11 Grants Approp Rsrv'!F6 -> Jan. 1, 2023 | G6: Budget | H6: Appropriation | L6: ='11 Grants Approp Rsrv'!L6 -> Dec. 31, 2023
H7: By 40A:4-87
B8: PREVIOUS PAGE TOTALS | F8: =+'11.25 Grants Approp Rsrv'!F27 -> 21,841.45 | G8: =+'11.25 Grants Approp Rsrv'!G27 -> 0 | H8: =+'11.25 Grants Approp Rsrv'!H27 -> 0 | I8: =+'11.25 Grants Approp Rsrv'!I27 -> 0 | J8: =+'11.25 Grants Approp Rsrv'!J27 -> 0 | K8: =+'11.25 Grants Approp Rsrv'!K27 -> 0 | L8: =+'11.25 Grants Approp Rsrv'!L27 -> 21,841.45
L9: =+F9+G9+H9-I9+J9-K9 -> 0
L10: 0
L11: 0
L12: 0
L13: 0
L14: 0
A15: Sheet 11.26 | L15: 0
L16: 0
L17: 0
L18: 0
L19: 0
L20: 0
L21: 0
L22: 0
L23: 0
L24: 0
L25: 0
L26: 0
C27: PAGE TOTALS | F27: =SUM(F8:F26) -> 21,841.45 | G27: =SUM(G8:G26) -> 0 | H27: 0 | I27: 0 | J27: 0 | K27: 0 | L27: =SUM(L8:L26) -> 21,841.45

Sheet 11.27 Grants Approp Rsrv (hidden)
B2: SCHEDULE OF APPROPRIATED RESERVES FOR
B3: FEDERAL AND STATE GRANTS
G4: =IF('KEY INPUTS'!C42="State Fiscal Year","Transferred from Fiscal Year "&'KEY INPUTS'!D33&"","Transferred from "&'KEY INPUTS'!D34&"") -> Transferred from 2023
B5: Grant | F5: Balance | G5: Budget Appropriations | I5: Expended | J5: Other | K5: Cancelled | L5: Balance
F6: ='11 Grants Approp Rsrv'!F6 -> Jan. 1, 2023 | G6: Budget | H6: Appropriation | L6: ='11 Grants Approp Rsrv'!L6 -> Dec. 31, 2023
H7: By 40A:4-87
B8: PREVIOUS PAGE TOTALS | F8: =+'11.26 Grants Approp Rsrv'!F27 -> 21,841.45 | G8: =+'11.26 Grants Approp Rsrv'!G27 -> 0 | H8: =+'11.26 Grants Approp Rsrv'!H27 -> 0 | I8: =+'11.26 Grants Approp Rsrv'!I27 -> 0 | J8: =+'11.26 Grants Approp Rsrv'!J27 -> 0 | K8: =+'11.26 Grants Approp Rsrv'!K27 -> 0 | L8: =+'11.26 Grants Approp Rsrv'!L27 -> 21,841.45
L9: =+F9+G9+H9-I9+J9-K9 -> 0
L10: 0
L11: 0
L12: 0
L13: 0
L14: 0
A15: Sheet 11.27 | L15: 0
L16: 0
L17: 0
L18: 0
L19: 0
L20: 0
L21: 0
L22: 0
L23: 0
L24: 0
L25: 0
L26: 0
C27: PAGE TOTALS | F27: =SUM(F8:F26) -> 21,841.45 | G27: =SUM(G8:G26) -> 0 | H27: 0 | I27: 0 | J27: 0 | K27: 0 | L27: =SUM(L8:L26) -> 21,841.45

Sheet 11.28 Grants Approp Rsrv (hidden)
B2: SCHEDULE OF APPROPRIATED RESERVES FOR
B3: FEDERAL AND STATE GRANTS
G4: =IF('KEY INPUTS'!C42="State Fiscal Year","Transferred from Fiscal Year "&'KEY INPUTS'!D33&"","Transferred from "&'KEY INPUTS'!D34&"") -> Transferred from 2023
B5: Grant | F5: Balance | G5: Budget Appropriations | I5: Expended | J5: Other | K5: Cancelled | L5: Balance
F6: ='11 Grants Approp Rsrv'!F6 -> Jan. 1, 2023 | G6: Budget | H6: Appropriation | L6: ='11 Grants Approp Rsrv'!L6 -> Dec. 31, 2023
H7: By 40A:4-87
B8: PREVIOUS PAGE TOTALS | F8: =+'11.27 Grants Approp Rsrv'!F27 -> 21,841.45 | G8: =+'11.27 Grants Approp Rsrv'!G27 -> 0 | H8: =+'11.27 Grants Approp Rsrv'!H27 -> 0 | I8: =+'11.27 Grants Approp Rsrv'!I27 -> 0 | J8: =+'11.27 Grants Approp Rsrv'!J27 -> 0 | K8: =+'11.27 Grants Approp Rsrv'!K27 -> 0 | L8: =+'11.27 Grants Approp Rsrv'!L27 -> 21,841.45
L9: =+F9+G9+H9-I9+J9-K9 -> 0
L10: 0
L11: 0
L12: 0
L13: 0
L14: 0
A15: Sheet 11.28 | L15: 0
L16: 0
L17: 0
L18: 0
L19: 0
L20: 0
L21: 0
L22: 0
L23: 0
L24: 0
L25: 0
L26: 0
C27: PAGE TOTALS | F27: =SUM(F8:F26) -> 21,841.45 | G27: =SUM(G8:G26) -> 0 | H27: 0 | I27: 0 | J27: 0 | K27: 0 | L27: =SUM(L8:L26) -> 21,841.45

Sheet 11.29 Grants Approp Rsrv (hidden)
B2: SCHEDULE OF APPROPRIATED RESERVES FOR
B3: FEDERAL AND STATE GRANTS
G4: =IF('KEY INPUTS'!C42="State Fiscal Year","Transferred from Fiscal Year "&'KEY INPUTS'!D33&"","Transferred from "&'KEY INPUTS'!D34&"") -> Transferred from 2023
B5: Grant | F5: Balance | G5: Budget Appropriations | I5: Expended | J5: Other | K5: Cancelled | L5: Balance
F6: ='11 Grants Approp Rsrv'!F6 -> Jan. 1, 2023 | G6: Budget | H6: Appropriation | L6: ='11 Grants Approp Rsrv'!L6 -> Dec. 31, 2023
H7: By 40A:4-87
B8: PREVIOUS PAGE TOTALS | F8: =+'11.28 Grants Approp Rsrv'!F27 -> 21,841.45 | G8: =+'11.28 Grants Approp Rsrv'!G27 -> 0 | H8: =+'11.28 Grants Approp Rsrv'!H27 -> 0 | I8: =+'11.28 Grants Approp Rsrv'!I27 -> 0 | J8: =+'11.28 Grants Approp Rsrv'!J27 -> 0 | K8: =+'11.28 Grants Approp Rsrv'!K27 -> 0 | L8: =+'11.28 Grants Approp Rsrv'!L27 -> 21,841.45
L9: =+F9+G9+H9-I9+J9-K9 -> 0
L10: 0
L11: 0
L12: 0
L13: 0
L14: 0
A15: Sheet 11.29 | L15: 0
L16: 0
L17: 0
L18: 0
L19: 0
L20: 0
L21: 0
L22: 0
L23: 0
L24: 0
L25: 0
L26: 0
C27: PAGE TOTALS | F27: =SUM(F8:F26) -> 21,841.45 | G27: =SUM(G8:G26) -> 0 | H27: 0 | I27: 0 | J27: 0 | K27: 0 | L27: =SUM(L8:L26) -> 21,841.45

Sheet 11.30 Grants Approp Rsrv (hidden)
B2: SCHEDULE OF APPROPRIATED RESERVES FOR
B3: FEDERAL AND STATE GRANTS
G4: =IF('KEY INPUTS'!C42="State Fiscal Year","Transferred from Fiscal Year "&'KEY INPUTS'!D33&"","Transferred from "&'KEY INPUTS'!D34&"") -> Transferred from 2023
B5: Grant | F5: Balance | G5: Budget Appropriations | I5: Expended | J5: Other | K5: Cancelled | L5: Balance
F6: ='11 Grants Approp Rsrv'!F6 -> Jan. 1, 2023 | G6: Budget | H6: Appropriation | L6: ='11 Grants Approp Rsrv'!L6 -> Dec. 31, 2023
H7: By 40A:4-87
B8: PREVIOUS PAGE TOTALS | F8: =+'11.29 Grants Approp Rsrv'!F27 -> 21,841.45 | G8: =+'11.29 Grants Approp Rsrv'!G27 -> 0 | H8: =+'11.29 Grants Approp Rsrv'!H27 -> 0 | I8: =+'11.29 Grants Approp Rsrv'!I27 -> 0 | J8: =+'11.29 Grants Approp Rsrv'!J27 -> 0 | K8: =+'11.29 Grants Approp Rsrv'!K27 -> 0 | L8: =+'11.29 Grants Approp Rsrv'!L27 -> 21,841.45
L9: =+F9+G9+H9-I9+J9-K9 -> 0
L10: 0
L11: 0
L12: 0
L13: 0
L14: 0
A15: Sheet 11.30 | L15: 0
L16: 0
L17: 0
L18: 0
L19: 0
L20: 0
L21: 0
L22: 0
L23: 0
L24: 0
L25: 0
L26: 0
C27: PAGE TOTALS | F27: =SUM(F8:F26) -> 21,841.45 | G27: =SUM(G8:G26) -> 0 | H27: 0 | I27: 0 | J27: 0 | K27: 0 | L27: =SUM(L8:L26) -> 21,841.45

Sheet 11.31 Grants Approp Rsrv (hidden)
B2: SCHEDULE OF APPROPRIATED RESERVES FOR
B3: FEDERAL AND STATE GRANTS
G4: =IF('KEY INPUTS'!C42="State Fiscal Year","Transferred from Fiscal Year "&'KEY INPUTS'!D33&"","Transferred from "&'KEY INPUTS'!D34&"") -> Transferred from 2023
B5: Grant | F5: Balance | G5: Budget Appropriations | I5: Expended | J5: Other | K5: Cancelled | L5: Balance
F6: ='11 Grants Approp Rsrv'!F6 -> Jan. 1, 2023 | G6: Budget | H6: Appropriation | L6: ='11 Grants Approp Rsrv'!L6 -> Dec. 31, 2023
H7: By 40A:4-87
B8: PREVIOUS PAGE TOTALS | F8: =+'11.30 Grants Approp Rsrv'!F27 -> 21,841.45 | G8: =+'11.30 Grants Approp Rsrv'!G27 -> 0 | H8: =+'11.30 Grants Approp Rsrv'!H27 -> 0 | I8: =+'11.30 Grants Approp Rsrv'!I27 -> 0 | J8: =+'11.30 Grants Approp Rsrv'!J27 -> 0 | K8: =+'11.30 Grants Approp Rsrv'!K27 -> 0 | L8: =+'11.30 Grants Approp Rsrv'!L27 -> 21,841.45
L9: =+F9+G9+H9-I9+J9-K9 -> 0
L10: 0
L11: 0
L12: 0
L13: 0
L14: 0
A15: Sheet 11.31 | L15: 0
L16: 0
L17: 0
L18: 0
L19: 0
L20: 0
L21: 0
L22: 0
L23: 0
L24: 0
L25: 0
L26: 0
C27: PAGE TOTALS | F27: =SUM(F8:F26) -> 21,841.45 | G27: =SUM(G8:G26) -> 0 | H27: 0 | I27: 0 | J27: 0 | K27: 0 | L27: =SUM(L8:L26) -> 21,841.45

Sheet 11.32 Grants Approp Rsrv (hidden)
B2: SCHEDULE OF APPROPRIATED RESERVES FOR
B3: FEDERAL AND STATE GRANTS
G4: =IF('KEY INPUTS'!C42="State Fiscal Year","Transferred from Fiscal Year "&'KEY INPUTS'!D33&"","Transferred from "&'KEY INPUTS'!D34&"") -> Transferred from 2023
B5: Grant | F5: Balance | G5: Budget Appropriations | I5: Expended | J5: Other | K5: Cancelled | L5: Balance
F6: ='11 Grants Approp Rsrv'!F6 -> Jan. 1, 2023 | G6: Budget | H6: Appropriation | L6: ='11 Grants Approp Rsrv'!L6 -> Dec. 31, 2023
H7: By 40A:4-87
B8: PREVIOUS PAGE TOTALS | F8: =+'11.31 Grants Approp Rsrv'!F27 -> 21,841.45 | G8: =+'11.31 Grants Approp Rsrv'!G27 -> 0 | H8: =+'11.31 Grants Approp Rsrv'!H27 -> 0 | I8: =+'11.31 Grants Approp Rsrv'!I27 -> 0 | J8: =+'11.31 Grants Approp Rsrv'!J27 -> 0 | K8: =+'11.31 Grants Approp Rsrv'!K27 -> 0 | L8: =+'11.31 Grants Approp Rsrv'!L27 -> 21,841.45
L9: =+F9+G9+H9-I9+J9-K9 -> 0
L10: 0
L11: 0
L12: 0
L13: 0
L14: 0
A15: Sheet 11.32 | L15: 0
L16: 0
L17: 0
L18: 0
L19: 0
L20: 0
L21: 0
L22: 0
L23: 0
L24: 0
L25: 0
L26: 0
C27: PAGE TOTALS | F27: =SUM(F8:F26) -> 21,841.45 | G27: =SUM(G8:G26) -> 0 | H27: 0 | I27: 0 | J27: 0 | K27: 0 | L27: =SUM(L8:L26) -> 21,841.45

Sheet 11.33 Grants Approp Rsrv (hidden)
B2: SCHEDULE OF APPROPRIATED RESERVES FOR
B3: FEDERAL AND STATE GRANTS
G4: =IF('KEY INPUTS'!C42="State Fiscal Year","Transferred from Fiscal Year "&'KEY INPUTS'!D33&"","Transferred from "&'KEY INPUTS'!D34&"") -> Transferred from 2023
B5: Grant | F5: Balance | G5: Budget Appropriations | I5: Expended | J5: Other | K5: Cancelled | L5: Balance
F6: ='11 Grants Approp Rsrv'!F6 -> Jan. 1, 2023 | G6: Budget | H6: Appropriation | L6: ='11 Grants Approp Rsrv'!L6 -> Dec. 31, 2023
H7: By 40A:4-87
B8: PREVIOUS PAGE TOTALS | F8: =+'11.32 Grants Approp Rsrv'!F27 -> 21,841.45 | G8: =+'11.32 Grants Approp Rsrv'!G27 -> 0 | H8: =+'11.32 Grants Approp Rsrv'!H27 -> 0 | I8: =+'11.32 Grants Approp Rsrv'!I27 -> 0 | J8: =+'11.32 Grants Approp Rsrv'!J27 -> 0 | K8: =+'11.32 Grants Approp Rsrv'!K27 -> 0 | L8: =+'11.32 Grants Approp Rsrv'!L27 -> 21,841.45
L9: =+F9+G9+H9-I9+J9-K9 -> 0
L10: 0
L11: 0
L12: 0
L13: 0
L14: 0
A15: Sheet 11.33 | L15: 0
L16: 0
L17: 0
L18: 0
L19: 0
L20: 0
L21: 0
L22: 0
L23: 0
L24: 0
L25: 0
L26: 0
C27: PAGE TOTALS | F27: =SUM(F8:F26) -> 21,841.45 | G27: =SUM(G8:G26) -> 0 | H27: 0 | I27: 0 | J27: 0 | K27: 0 | L27: =SUM(L8:L26) -> 21,841.45

Sheet 11.34 Grants Approp Rsrv (hidden)
B2: SCHEDULE OF APPROPRIATED RESERVES FOR
B3: FEDERAL AND STATE GRANTS
G4: =IF('KEY INPUTS'!C42="State Fiscal Year","Transferred from Fiscal Year "&'KEY INPUTS'!D33&"","Transferred from "&'KEY INPUTS'!D34&"") -> Transferred from 2023
B5: Grant | F5: Balance | G5: Budget Appropriations | I5: Expended | J5: Other | K5: Cancelled | L5: Balance
F6: ='11 Grants Approp Rsrv'!F6 -> Jan. 1, 2023 | G6: Budget | H6: Appropriation | L6: ='11 Grants Approp Rsrv'!L6 -> Dec. 31, 2023
H7: By 40A:4-87
B8: PREVIOUS PAGE TOTALS | F8: =+'11.33 Grants Approp Rsrv'!F27 -> 21,841.45 | G8: =+'11.33 Grants Approp Rsrv'!G27 -> 0 | H8: =+'11.33 Grants Approp Rsrv'!H27 -> 0 | I8: =+'11.33 Grants Approp Rsrv'!I27 -> 0 | J8: =+'11.33 Grants Approp Rsrv'!J27 -> 0 | K8: =+'11.33 Grants Approp Rsrv'!K27 -> 0 | L8: =+'11.33 Grants Approp Rsrv'!L27 -> 21,841.45
L9: =+F9+G9+H9-I9+J9-K9 -> 0
L10: 0
L11: 0
L12: 0
L13: 0
L14: 0
A15: Sheet 11.34 | L15: 0
L16: 0
L17: 0
L18: 0
L19: 0
L20: 0
L21: 0
L22: 0
L23: 0
L24: 0
L25: 0
L26: 0
C27: PAGE TOTALS | F27: =SUM(F8:F26) -> 21,841.45 | G27: =SUM(G8:G26) -> 0 | H27: 0 | I27: 0 | J27: 0 | K27: 0 | L27: =SUM(L8:L26) -> 21,841.45

Sheet 11.35 Grants Approp Rsrv (hidden)
B2: SCHEDULE OF APPROPRIATED RESERVES FOR
B3: FEDERAL AND STATE GRANTS
G4: =IF('KEY INPUTS'!C42="State Fiscal Year","Transferred from Fiscal Year "&'KEY INPUTS'!D33&"","Transferred from "&'KEY INPUTS'!D34&"") -> Transferred from 2023
B5: Grant | F5: Balance | G5: Budget Appropriations | I5: Expended | J5: Other | K5: Cancelled | L5: Balance
F6: ='11 Grants Approp Rsrv'!F6 -> Jan. 1, 2023 | G6: Budget | H6: Appropriation | L6: ='11 Grants Approp Rsrv'!L6 -> Dec. 31, 2023
H7: By 40A:4-87
B8: PREVIOUS PAGE TOTALS | F8: =+'11.34 Grants Approp Rsrv'!F27 -> 21,841.45 | G8: =+'11.34 Grants Approp Rsrv'!G27 -> 0 | H8: =+'11.34 Grants Approp Rsrv'!H27 -> 0 | I8: =+'11.34 Grants Approp Rsrv'!I27 -> 0 | J8: =+'11.34 Grants Approp Rsrv'!J27 -> 0 | K8: =+'11.34 Grants Approp Rsrv'!K27 -> 0 | L8: =+'11.34 Grants Approp Rsrv'!L27 -> 21,841.45
L9: =+F9+G9+H9-I9+J9-K9 -> 0
L10: 0
L11: 0
L12: 0
L13: 0
L14: 0
A15: Sheet 11.35 | L15: 0
L16: 0
L17: 0
L18: 0
L19: 0
L20: 0
L21: 0
L22: 0
L23: 0
L24: 0
L25: 0
L26: 0
C27: PAGE TOTALS | F27: =SUM(F8:F26) -> 21,841.45 | G27: =SUM(G8:G26) -> 0 | H27: 0 | I27: 0 | J27: 0 | K27: 0 | L27: =SUM(L8:L26) -> 21,841.45

Sheet 11.36 Grants Approp Rsrv (hidden)
B2: SCHEDULE OF APPROPRIATED RESERVES FOR
B3: FEDERAL AND STATE GRANTS
G4: =IF('KEY INPUTS'!C42="State Fiscal Year","Transferred from Fiscal Year "&'KEY INPUTS'!D33&"","Transferred from "&'KEY INPUTS'!D34&"") -> Transferred from 2023
B5: Grant | F5: Balance | G5: Budget Appropriations | I5: Expended | J5: Other | K5: Cancelled | L5: Balance
F6: ='11 Grants Approp Rsrv'!F6 -> Jan. 1, 2023 | G6: Budget | H6: Appropriation | L6: ='11 Grants Approp Rsrv'!L6 -> Dec. 31, 2023
H7: By 40A:4-87
B8: PREVIOUS PAGE TOTALS | F8: =+'11.35 Grants Approp Rsrv'!F27 -> 21,841.45 | G8: =+'11.35 Grants Approp Rsrv'!G27 -> 0 | H8: =+'11.35 Grants Approp Rsrv'!H27 -> 0 | I8: =+'11.35 Grants Approp Rsrv'!I27 -> 0 | J8: =+'11.35 Grants Approp Rsrv'!J27 -> 0 | K8: =+'11.35 Grants Approp Rsrv'!K27 -> 0 | L8: =+'11.35 Grants Approp Rsrv'!L27 -> 21,841.45
L9: =+F9+G9+H9-I9+J9-K9 -> 0
L10: 0
L11: 0
L12: 0
L13: 0
L14: 0
A15: Sheet 11.36 | L15: 0
L16: 0
L17: 0
L18: 0
L19: 0
L20: 0
L21: 0
L22: 0
L23: 0
L24: 0
L25: 0
L26: 0
C27: PAGE TOTALS | F27: =SUM(F8:F26) -> 21,841.45 | G27: =SUM(G8:G26) -> 0 | H27: 0 | I27: 0 | J27: 0 | K27: 0 | L27: =SUM(L8:L26) -> 21,841.45

Sheet 11.37 Grants Approp Rsrv (hidden)
B2: SCHEDULE OF APPROPRIATED RESERVES FOR
B3: FEDERAL AND STATE GRANTS
G4: =IF('KEY INPUTS'!C42="State Fiscal Year","Transferred from Fiscal Year "&'KEY INPUTS'!D33&"","Transferred from "&'KEY INPUTS'!D34&"") -> Transferred from 2023
B5: Grant | F5: Balance | G5: Budget Appropriations | I5: Expended | J5: Other | K5: Cancelled | L5: Balance
F6: ='11 Grants Approp Rsrv'!F6 -> Jan. 1, 2023 | G6: Budget | H6: Appropriation | L6: ='11 Grants Approp Rsrv'!L6 -> Dec. 31, 2023
H7: By 40A:4-87
B8: PREVIOUS PAGE TOTALS | F8: =+'11.36 Grants Approp Rsrv'!F27 -> 21,841.45 | G8: =+'11.36 Grants Approp Rsrv'!G27 -> 0 | H8: =+'11.36 Grants Approp Rsrv'!H27 -> 0 | I8: =+'11.36 Grants Approp Rsrv'!I27 -> 0 | J8: =+'11.36 Grants Approp Rsrv'!J27 -> 0 | K8: =+'11.36 Grants Approp Rsrv'!K27 -> 0 | L8: =+'11.36 Grants Approp Rsrv'!L27 -> 21,841.45
L9: =+F9+G9+H9-I9+J9-K9 -> 0
L10: 0
L11: 0
L12: 0
L13: 0
L14: 0
A15: Sheet 11.37 | L15: 0
L16: 0
L17: 0
L18: 0
L19: 0
L20: 0
L21: 0
L22: 0
L23: 0
L24: 0
L25: 0
L26: 0
C27: PAGE TOTALS | F27: =SUM(F8:F26) -> 21,841.45 | G27: =SUM(G8:G26) -> 0 | H27: 0 | I27: 0 | J27: 0 | K27: 0 | L27: =SUM(L8:L26) -> 21,841.45

Sheet 11.38 Grants Approp Rsrv (hidden)
B2: SCHEDULE OF APPROPRIATED RESERVES FOR
B3: FEDERAL AND STATE GRANTS
G4: =IF('KEY INPUTS'!C42="State Fiscal Year","Transferred from Fiscal Year "&'KEY INPUTS'!D33&"","Transferred from "&'KEY INPUTS'!D34&"") -> Transferred from 2023
B5: Grant | F5: Balance | G5: Budget Appropriations | I5: Expended | J5: Other | K5: Cancelled | L5: Balance
F6: ='11 Grants Approp Rsrv'!F6 -> Jan. 1, 2023 | G6: Budget | H6: Appropriation | L6: ='11 Grants Approp Rsrv'!L6 -> Dec. 31, 2023
H7: By 40A:4-87
B8: PREVIOUS PAGE TOTALS | F8: =+'11.37 Grants Approp Rsrv'!F27 -> 21,841.45 | G8: =+'11.37 Grants Approp Rsrv'!G27 -> 0 | H8: =+'11.37 Grants Approp Rsrv'!H27 -> 0 | I8: =+'11.37 Grants Approp Rsrv'!I27 -> 0 | J8: =+'11.37 Grants Approp Rsrv'!J27 -> 0 | K8: =+'11.37 Grants Approp Rsrv'!K27 -> 0 | L8: =+'11.37 Grants Approp Rsrv'!L27 -> 21,841.45
L9: =+F9+G9+H9-I9+J9-K9 -> 0
L10: 0
L11: 0
L12: 0
L13: 0
L14: 0
A15: Sheet 11.38 | L15: 0
L16: 0
L17: 0
L18: 0
L19: 0
L20: 0
L21: 0
L22: 0
L23: 0
L24: 0
L25: 0
L26: 0
C27: PAGE TOTALS | F27: =SUM(F8:F26) -> 21,841.45 | G27: =SUM(G8:G26) -> 0 | H27: 0 | I27: 0 | J27: 0 | K27: 0 | L27: =SUM(L8:L26) -> 21,841.45

Sheet 11.39 Grants Approp Rsrv (hidden)
B2: SCHEDULE OF APPROPRIATED RESERVES FOR
B3: FEDERAL AND STATE GRANTS
G4: =IF('KEY INPUTS'!C42="State Fiscal Year","Transferred from Fiscal Year "&'KEY INPUTS'!D33&"","Transferred from "&'KEY INPUTS'!D34&"") -> Transferred from 2023
B5: Grant | F5: Balance | G5: Budget Appropriations | I5: Expended | J5: Other | K5: Cancelled | L5: Balance
F6: ='11 Grants Approp Rsrv'!F6 -> Jan. 1, 2023 | G6: Budget | H6: Appropriation | L6: ='11 Grants Approp Rsrv'!L6 -> Dec. 31, 2023
H7: By 40A:4-87
B8: PREVIOUS PAGE TOTALS | F8: =+'11.38 Grants Approp Rsrv'!F27 -> 21,841.45 | G8: =+'11.38 Grants Approp Rsrv'!G27 -> 0 | H8: =+'11.38 Grants Approp Rsrv'!H27 -> 0 | I8: =+'11.38 Grants Approp Rsrv'!I27 -> 0 | J8: =+'11.38 Grants Approp Rsrv'!J27 -> 0 | K8: =+'11.38 Grants Approp Rsrv'!K27 -> 0 | L8: =+'11.38 Grants Approp Rsrv'!L27 -> 21,841.45
L9: =+F9+G9+H9-I9+J9-K9 -> 0
L10: 0
L11: 0
L12: 0
L13: 0
L14: 0
A15: Sheet 11.39 | L15: 0
L16: 0
L17: 0
L18: 0
L19: 0
L20: 0
L21: 0
L22: 0
L23: 0
L24: 0
L25: 0
L26: 0
C27: PAGE TOTALS | F27: =SUM(F8:F26) -> 21,841.45 | G27: =SUM(G8:G26) -> 0 | H27: 0 | I27: 0 | J27: 0 | K27: 0 | L27: =SUM(L8:L26) -> 21,841.45

Sheet 11- Totals Grants Approp Rsrv
B2: SCHEDULE OF APPROPRIATED RESERVES FOR
B3: FEDERAL AND STATE GRANTS
G4: =IF('KEY INPUTS'!C42="State Fiscal Year","Transferred from Fiscal Year "&'KEY INPUTS'!D33&"","Transferred from "&'KEY INPUTS'!D34&"") -> Transferred from 2023
B5: Grant | F5: Balance | G5: Budget Appropriations | I5: Expended | J5: Other | K5: Cancelled | L5: Balance
F6: ='11 Grants Approp Rsrv'!F6 -> Jan. 1, 2023 | G6: Budget | H6: Appropriation | L6: ='11 Grants Approp Rsrv'!L6 -> Dec. 31, 2023
H7: By 40A:4-87
B8: PREVIOUS PAGE TOTALS | F8: =+'11.39 Grants Approp Rsrv'!F27 -> 21,841.45 | G8: =+'11.39 Grants Approp Rsrv'!G27 -> 0 | H8: =+'11.39 Grants Approp Rsrv'!H27 -> 0 | I8: =+'11.39 Grants Approp Rsrv'!I27 -> 0 | J8: =+'11.39 Grants Approp Rsrv'!J27 -> 0 | K8: =+'11.39 Grants Approp Rsrv'!K27 -> 0 | L8: =+'11.39 Grants Approp Rsrv'!L27 -> 21,841.45
L9: =+F9+G9+H9-I9+J9-K9 -> 0
L10: 0
L11: 0
L12: 0
L13: 0
L14: 0
A15: Sheet 11 Totals | L15: 0
L16: 0
L17: 0
L18: 0
L19: 0
L20: 0
L21: 0
L22: 0
L23: 0
L24: 0
L25: 0
L26: 0
C27: TOTALS | F27: =SUM(F8:F26) -> 21,841.45 | G27: =SUM(G8:G26) -> 0 | H27: 0 | I27: 0 | J27: 0 | K27: 0 | L27: =SUM(L8:L26) -> 21,841.45

Sheet 12-Grants Unappropriated (hidden)
B2: SCHEDULE OF UNAPPROPRIATED RESERVES FOR
B3: FEDERAL AND STATE GRANTS
G4: =IF('KEY INPUTS'!C42="State Fiscal Year","Transferred from FY "&'KEY INPUTS'!D33&"","Transferred from "&TEXT('KEY INPUTS'!D34,"0")&"") -> Transferred from 2023
B5: Grant | F5: Balance | G5: Budget Appropriations | I5: Received | J5: Other | K5: Balance
F6: =IF('KEY INPUTS'!C42 = "State Fiscal Year", 'KEY INPUTS'!F48,'KEY INPUTS'!D48) -> Jan. 1, 2023 | G6: Budget | H6: Appropriation | K6: =IF('KEY INPUTS'!C42 = "State Fiscal Year", 'KEY INPUTS'!F47,'KEY INPUTS'!D47) -> Dec. 31, 2023
H7: By 40A:4-87
K8: =F8-G8-H8+I8+J8 -> 0
K9: =F9-G9-H9+I9+J9 -> 0
K10: 0
K11: 0
K12: 0
K13: 0
K14: 0
A15: Sheet 12 | K15: 0
K16: 0
K17: 0
K18: 0
K19: 0
K20: 0
K21: 0
K22: 0
K23: 0
K24: 0
K25: 0
K26: 0
C27: PAGE TOTALS | F27: =SUM(F8:F26) -> 0 | G27: =SUM(G8:G26) -> 0 | H27: 0 | I27: =SUM(I8:I26) -> 0 | J27: 0 | K27: 0

Sheet 12.1-Grants Unappropriated (hidden)
B2: SCHEDULE OF UNAPPROPRIATED RESERVES FOR
B3: FEDERAL AND STATE GRANTS
G4: =IF('KEY INPUTS'!C42="State Fiscal Year","Transferred from FY "&'KEY INPUTS'!D33&"","Transferred from "&TEXT('KEY INPUTS'!D34,"0")&"") -> Transferred from 2023
B5: Grant | F5: Balance | G5: Budget Appropriations | I5: Received | J5: Other | K5: Balance
F6: ='12-Grants Unappropriated'!F6 -> Jan. 1, 2023 | G6: Budget | H6: Appropriation | K6: ='12-Grants Unappropriated'!K6 -> Dec. 31, 2023
H7: By 40A:4-87
C8: PREVIOUS PAGE TOTALS | F8: =+'12-Grants Unappropriated'!F27 -> 0 | G8: =+'12-Grants Unappropriated'!G27 -> 0 | H8: =+'12-Grants Unappropriated'!H27 -> 0 | I8: =+'12-Grants Unappropriated'!I27 -> 0 | J8: =+'12-Grants Unappropriated'!J27 -> 0 | K8: =+'12-Grants Unappropriated'!K27 -> 0
K9: =F9-G9-H9+I9+J9 -> 0
K10: 0
K11: 0
K12: 0
K13: 0
K14: 0
A15: Sheet 12.1 | K15: 0
K16: 0
K17: 0
K18: 0
K19: 0
K20: 0
K21: 0
K22: 0
K23: 0
K24: 0
K25: 0
K26: 0
C27: PAGE TOTALS | F27: =SUM(F8:F26) -> 0 | G27: =SUM(G8:G26) -> 0 | H27: 0 | I27: =SUM(I8:I26) -> 0 | J27: 0 | K27: 0

Sheet 12.2-Grants Unappropriated (hidden)
B2: SCHEDULE OF UNAPPROPRIATED RESERVES FOR
B3: FEDERAL AND STATE GRANTS
G4: =IF('KEY INPUTS'!C42="State Fiscal Year","Transferred from FY "&'KEY INPUTS'!D33&"","Transferred from "&TEXT('KEY INPUTS'!D34,"0")&"") -> Transferred from 2023
B5: Grant | F5: Balance | G5: Budget Appropriations | I5: Received | J5: Other | K5: Balance
F6: ='12-Grants Unappropriated'!F6 -> Jan. 1, 2023 | G6: Budget | H6: Appropriation | K6: ='12-Grants Unappropriated'!K6 -> Dec. 31, 2023
H7: By 40A:4-87
C8: PREVIOUS PAGE TOTALS | F8: =+'12.1-Grants Unappropriated'!F27 -> 0 | G8: =+'12.1-Grants Unappropriated'!G27 -> 0 | H8: =+'12.1-Grants Unappropriated'!H27 -> 0 | I8: =+'12.1-Grants Unappropriated'!I27 -> 0 | J8: =+'12.1-Grants Unappropriated'!J27 -> 0 | K8: =+'12.1-Grants Unappropriated'!K27 -> 0
K9: =F9-G9-H9+I9+J9 -> 0
K10: 0
K11: 0
K12: 0
K13: 0
K14: 0
A15: Sheet 12.2 | K15: 0
K16: 0
K17: 0
K18: 0
K19: 0
K20: 0
K21: 0
K22: 0
K23: 0
K24: 0
K25: 0
K26: 0
C27: PAGE TOTALS | F27: =SUM(F8:F26) -> 0 | G27: =SUM(G8:G26) -> 0 | H27: 0 | I27: =SUM(I8:I26) -> 0 | J27: 0 | K27: 0

Sheet 12 Total-Grants Unappropriated
B2: SCHEDULE OF UNAPPROPRIATED RESERVES FOR
B3: FEDERAL AND STATE GRANTS
G4: =IF('KEY INPUTS'!C42="State Fiscal Year","Transferred from FY "&'KEY INPUTS'!D33&"","Transferred from "&TEXT('KEY INPUTS'!D34,"0")&"") -> Transferred from 2023
B5: Grant | F5: Balance | G5: Budget Appropriations | I5: Received | J5: Other | K5: Balance
F6: ='12-Grants Unappropriated'!F6 -> Jan. 1, 2023 | G6: Budget | H6: Appropriation | K6: ='12-Grants Unappropriated'!K6 -> Dec. 31, 2023
H7: By 40A:4-87
C8: PREVIOUS PAGE TOTALS | F8: =+'12.2-Grants Unappropriated'!F27 -> 0 | G8: =+'12.2-Grants Unappropriated'!G27 -> 0 | H8: =+'12.2-Grants Unappropriated'!H27 -> 0 | I8: =+'12.2-Grants Unappropriated'!I27 -> 0 | J8: =+'12.2-Grants Unappropriated'!J27 -> 0 | K8: =+'12.2-Grants Unappropriated'!K27 -> 0
B9: 2018 Recycling Tonnage Grant | F9: 1,125.61 | K9: =F9-G9-H9+I9+J9 -> 1,125.61
B10: 2019 Recycling Tonnage Grant | F10: 793.98 | K10: 793.98
B11: 2020 Recycling Tonnage Grant | I11: 600.00 | K11: 600.00
B12: 2021 Clean Communities | F12: 4,000.00 | K12: 4,000.00
B13: 2022 Clean Communities | F13: 4,000.00 | K13: 4,000.00
B14: 2023 Clean Communities | I14: 4,000.00 | K14: 4,000.00
A15: Sheet 12 Totals | B15: Stormwater Assistance | I15: 15,000.00 | K15: 15,000.00
K16: 0
K17: 0
K18: 0
K19: 0
K20: 0
K21: 0
K22: 0
K23: 0
K24: 0
K25: 0
K26: 0
C27: TOTALS | F27: =SUM(F8:F26) -> 9,919.59 | G27: =SUM(G8:G26) -> 0 | H27: 0 | I27: =SUM(I8:I26) -> 19,600.00 | J27: 0 | K27: 29,519.59

Sheet 13-Other Taxes
B5: *LOCAL DISTRICT SCHOOL TAX
G7: Debit | H7: Credit
B8: =IF('KEY INPUTS'!C42 = "State Fiscal Year", 'KEY INPUTS'!F25,'KEY INPUTS'!D25) -> Balance - January 1, 2023 | G8: xxxxxxxxxxx | H8: xxxxxxxxxx
C9: School Tax Payable # | G9: xxxxxxxxxxx
C10: School Tax Deferred
C11: ="(Not in excess of 50% of Levy - "&TEXT('KEY INPUTS'!D35,"0")&" - "&TEXT('KEY INPUTS'!D34,"0")&")" -> (Not in excess of 50% of Levy - 2022 - 2023) | G11: xxxxxxxxxxx
B12: ="Levy School Year July 1, "&TEXT('KEY INPUTS'!D34,"0")&" - June 30, "&TEXT('KEY INPUTS'!D33,"0") -> Levy School Year July 1, 2023 - June 30, 2024 | G12: xxxxxxxxxxx | L12: MUST PICK BETWEEN SCHOOL YEAR AND CALENDAR YEAR
B13: ="Levy Calendar Year "&TEXT('KEY INPUTS'!D34,"0") -> Levy Calendar Year 2023 | G13: xxxxxxxxxxx
B14: Paid | H14: xxxxxxxxxx
B15: =IF('KEY INPUTS'!C42 = "State Fiscal Year", 'KEY INPUTS'!F26,'KEY INPUTS'!D26) -> Balance - December 31, 2023 | G15: xxxxxxxxxxx | H15: xxxxxxxxxx
C16: School Tax Payable # | G16: =+H9+H11+H12+H13-G14-G18 -> 0 | H16: xxxxxxxxxx
C17: School Tax Deferred
C18: ="(Not in excess of 50% of Levy - "&TEXT('KEY INPUTS'!D34,"0")&" - "&TEXT('KEY INPUTS'!D33,"0")&")" -> (Not in excess of 50% of Levy - 2023 - 2024) | H18: xxxxxxxxxx
B19: * Not including Type 1 school debt service, emergency authorizations-schools, transfer to | G19: =SUM(G14:G18) -> 0 | H19: =SUM(H8:H13) -> 0
C20: Board of Education for use of local schools.
B21: # Must include unpaid requisitions.
B50: Sheet 13

Sheet 14-Other Taxes
B5: REGIONAL SCHOOL TAX
B6: (Provide a separate statement for each Regional District involved)
G8: Debit | H8: Credit
B9: ='13-Other Taxes'!B8 -> Balance - January 1, 2023 | G9: xxxxxxxxxxx | H9: xxxxxxxxxx
C10: School Tax Payable # | G10: xxxxxxxxxxx | H10: (99,565.69)
C11: School Tax Deferred
C12: ='13-Other Taxes'!C11 -> (Not in excess of 50% of Levy - 2022 - 2023) | G12: xxxxxxxxxxx
B13: ='13-Other Taxes'!B12 -> Levy School Year July 1, 2023 - June 30, 2024 | G13: xxxxxxxxxxx | H13: 407,119.00
B14: ='13-Other Taxes'!B13 -> Levy Calendar Year 2023 | G14: xxxxxxxxxxx | L14: MUST PICK BETWEEN SCHOOL YEAR AND CALENDAR YEAR
B15: Paid | G15: 407,119.00 | H15: xxxxxxxxxx
B16: ='13-Other Taxes'!B15 -> Balance - December 31, 2023 | G16: xxxxxxxxxxx | H16: xxxxxxxxxx
C17: School Tax Payable # | G17: =+H10+H12+H13+H14-G15-G19 -> (99,565.69) | H17: xxxxxxxxxx
C18: School Tax Deferred
C19: ='13-Other Taxes'!C18 -> (Not in excess of 50% of Levy - 2023 - 2024) | H19: xxxxxxxxxx
B20: # Must include unpaid requisitions. | G20: =SUM(G15:G19) -> 307,553.31 | H20: =SUM(H9:H19) -> 307,553.31
B27: REGIONAL HIGH SCHOOL TAX
G29: Debit | H29: Credit
B30: ='13-Other Taxes'!B8 -> Balance - January 1, 2023 | G30: xxxxxxxxxxx | H30: xxxxxxxxxx
C31: School Tax Payable # | G31: xxxxxxxxxxx | H31: 71,755.96
C32: School Tax Deferred
C33: =C12 -> (Not in excess of 50% of Levy - 2022 - 2023) | G33: xxxxxxxxxxx | H33: 92,746.00
B34: =B13 -> Levy School Year July 1, 2023 - June 30, 2024 | G34: xxxxxxxxxxx | H34: 230,378.00
B35: =B14 -> Levy Calendar Year 2023 | G35: xxxxxxxxxxx | L35: MUST PICK BETWEEN SCHOOL YEAR AND CALENDAR YEAR
B36: Paid | G36: 241,915.92 | H36: xxxxxxxxxx
B37: ='13-Other Taxes'!B15 -> Balance - December 31, 2023 | G37: xxxxxxxxxxx | H37: xxxxxxxxxx
C38: School Tax Payable # | G38: =+H31+H33+H34+H35-G36-G40 -> 60,218.04 | H38: xxxxxxxxxx
C39: School Tax Deferred
C40: =C19 -> (Not in excess of 50% of Levy - 2023 - 2024) | G40: 92,746.00 | H40: xxxxxxxxxx
B41: # Must include unpaid requisitions. | G41: =SUM(G34:G40) -> 394,879.96 | H41: =SUM(H30:H40) -> 394,879.96
B52: Sheet 14

Sheet 15-Other Taxes
B3: COUNTY TAXES PAYABLE
I5: Debit | J5: Credit
B6: ='13-Other Taxes'!B8 -> Balance - January 1, 2023 | I6: xxxxxxxxxxx | J6: xxxxxxxxxx
C7: County Taxes | I7: xxxxxxxxxxx
C8: Due County for Added and Omitted Taxes | I8: xxxxxxxxxxx
B10: =IF('KEY INPUTS'!C42 = "State Fiscal Year", "FY "&'KEY INPUTS'!D33&"", 'KEY INPUTS'!D34)&" Levy:" -> 2023 Levy: | I10: xxxxxxxxxxx | J10: xxxxxxxxxx
C11: General County | I11: xxxxxxxxxxx | J11: 129,330.35
C12: County Library | I12: xxxxxxxxxxx | J12: 9,356.13
C13: County Health | I13: xxxxxxxxxxx | J13: 18,322.90
C14: County Open Space Preservation | I14: xxxxxxxxxxx | J14: 2,575.96
C15: Due County for Added and Omitted Taxes | I15: xxxxxxxxxxx
B16: Paid | I16: 159,585.34 | J16: xxxxxxxxxx
B17: ='13-Other Taxes'!B15 -> Balance - December 31, 2023 | I17: xxxxxxxxxxx | J17: xxxxxxxxxx
C18: County Taxes | J18: xxxxxxxxxx
C19: Due County for Added and Omitted Taxes | I19: =+J7+J8+J11+J12+J13+J14+J15-I16-I18 -> 0 | J19: xxxxxxxxxx
I20: =SUM(I6:I19) -> 159,585.34 | J20: =SUM(J6:J19) -> 159,585.34
B24: SPECIAL DISTRICT TAXES
I26: Debit | J26: Credit
B27: =B6 -> Balance - January 1, 2023 | I27: xxxxxxxxxxx
B28: =TEXT('KEY INPUTS'!D34,"0")&" Levy: (List Each Type of District Tax Separately - See Footnote)" -> 2023 Levy: (List Each Type of District Tax Separately - See Footnote) | I28: xxxxxxxxxxx | J28: xxxxxxxxxx
C29: Fire - | I29: xxxxxxxxxxx | J29: xxxxxxxxxx
C30: Sewer - | I30: xxxxxxxxxxx | J30: xxxxxxxxxx
C31: Water - | I31: xxxxxxxxxxx | J31: xxxxxxxxxx
C32: Garbage - | I32: xxxxxxxxxxx | J32: xxxxxxxxxx
I33: xxxxxxxxxxx | J33: xxxxxxxxxx
I34: xxxxxxxxxxx | J34: xxxxxxxxxx
I35: xxxxxxxxxxx | J35: xxxxxxxxxx
B36: ="Total "&TEXT('KEY INPUTS'!D34,"0")&" Levy" -> Total 2023 Levy | I36: xxxxxxxxxxx | J36: =SUM(H29:H35) -> 0
B37: Paid | J37: xxxxxxxxxx
B38: =B17 -> Balance - December 31, 2023 | I38: =+J27+J36-I37 -> 0 | J38: xxxxxxxxxx
I39: =SUM(I36:I38) -> 0 | J39: =SUM(J27:J38) -> 0
B41: Footnote: Please state the number of districts in each instance.
B47: Sheet 15

Sheet 17-Budget Revenues
B2: ="STATEMENT OF GENERAL BUDGET REVENUES "&IF('KEY INPUTS'!C42 = "State Fiscal Year", "FY "&'KEY INPUTS'!D33&"", 'KEY INPUTS'!D34)&"" -> STATEMENT OF GENERAL BUDGET REVENUES 2023 | V2: ='KEY INPUTS'!F7 -> Municipality
B4: Source | H4: Budget | I4: Realized | J4: Excess or Deficit*
H5: -01 | I5: -02 | J5: -03 | L5: Counties Only: Prior to entering data on this
B6: Surplus Anticipated | H6: 193,500.00 | I6: =+H6 -> 193,500.00 | J6: =+I6-H6 -> 0 | L6: page, enter "X" in this box:
B7: Surplus Anticipated with Prior Written Consent of
B8: Director of Local Government Services | J8: =+I8-H8 -> 0
B9: Miscellaneous Revenue Anticipated: | H9: xxxxxxxxx | I9: xxxxxxxxx | J9: xxxxxxxxx
D10: Adopted Budget | H10: 109,000.02 | I10: 108,381.89 | J10: =+I10-H10 -> (618.13)
D11: Added by N.J.S.A. 40A:4-87 (List on 17a) | H11: =+'17a Totals-Budget Revenues'!H43 -> 0 | I11: =+H11 -> 0 | J11: =+I11-H11 -> 0
J12: =+I12-H12 -> 0
J13: 0
B14: Total Miscellaneous Revenue Anticipated | H14: =SUM(H10:H13) -> 109,000.02 | I14: =SUM(I10:I13) -> 108,381.89 | J14: =SUM(J10:J13) -> (618.13)
B15: Receipts from Delinquent Taxes | H15: 2,800.00 | I15: =+'26-Delinquent Taxes and Liens'!M22 -> 5,675.98 | J15: =+I15-H15 -> 2,875.98
B17: Amount to be Raised by Taxation: | H17: xxxxxxxxx | I17: xxxxxxxxx | J17: xxxxxxxxx
C18: (a) Local Tax for Municipal Purposes | H18: 892,662.48 | I18: xxxxxxxxx | J18: xxxxxxxxx
C19: (b) Addition to Local District School Tax | I19: xxxxxxxxx | J19: xxxxxxxxx
C20: (c) Minimum Library Tax | I20: xxxxxxxxx | J20: xxxxxxxxx
D21: Total Amount to be Raised by Taxation | H21: =+H19+H18+H20 -> 892,662.48 | I21: =+I41 -> 911,436.81 | J21: =+I21-H21 -> 18,774.33
H22: =+H21+H15+H14+H8+H6 -> 1,197,962.50 | I22: =+I21+I15+I14+I8+I6 -> 1,218,994.68 | J22: =+J21+J15+J14+J8+J6 -> 21,032.18
B26: ALLOCATION OF CURRENT TAX COLLECTIONS
I28: Debit | J28: Credit
B29: Current Taxes Realized in Cash (Total of Item 10 or 14 on Sheet 22) | I29: xxxxxxxxx | J29: =+'22-CY Levy'!L48 -> 1,683,719.15
B30: Amount to be Raised by Taxation | I30: xxxxxxxxx | J30: xxxxxxxxx
D31: Local District School Tax | I31: =+'13-Other Taxes'!H12+'13-Other Taxes'!H13 -> 0 | J31: xxxxxxxxx
D32: Regional School Tax | I32: =+'14-Other Taxes'!H13+'14-Other Taxes'!H14 -> 407,119.00 | J32: xxxxxxxxx
D33: Regional High School Tax | I33: =+'14-Other Taxes'!H34+'14-Other Taxes'!H35 -> 230,378.00 | J33: xxxxxxxxx
D34: County Taxes | I34: =+'15-Other Taxes'!J11+'15-Other Taxes'!J12+'15-Other Taxes'!J13+'15-Other Taxes'!J14 -> 159,585.34 | J34: xxxxxxxxx
D35: Due County for Added and Omitted Taxes | I35: =+'15-Other Taxes'!J15 -> 0 | J35: xxxxxxxxx
D36: Special District Taxes | I36: =+'15-Other Taxes'!J36 -> 0 | J36: xxxxxxxxx
D37: Municipal Open Space Tax | J37: xxxxxxxxx
D38: Municipal Arts and Culture Tax | J38: xxxxxxxxx
B39: Reserve for Uncollected Taxes | I39: xxxxxxxxx | J39: =+'18-Budget Appropriations'!I15 -> 24,800.00
B40: Deficit in Required Collection of Current Taxes (or) | I40: xxxxxxxxx | J40: =IF(I52<0,-I52,0) -> 0
B41: Balance for Support of Municipal Budget (or) | I41: =+J29+J39-I31-I32-I33-I34-I35-I36-I37-I38 -> 911,436.81 | J41: xxxxxxxxx
B42: *Excess Non-Budget Revenue (see footnote) | J42: xxxxxxxxx
B43: *Deficit Non-Budget Revenue (see footnote) | I43: xxxxxxxxx
B44: *These items are applicable only when there is no "Amount to be Raised by Taxation" in the "Budget" column of the statement at the top of this sheet. In such instances, any excess or deficit in the above allocation would apply to "Non-Budget Revenue" only. | I44: =SUM(I29:I43) -> 1,708,519.15 | J44: =SUM(J29:J43) -> 1,708,519.15
B49: Sheet 17
G52: Posting Calculation do not | I52: =+J29-SUM(I31:I37)+J39 -> 911,436.81
G53: Remove

Sheet 17a-Budget Revenues
B4: ='17-Budget Revenues'!B2:J2 -> STATEMENT OF GENERAL BUDGET REVENUES 2023
B5: (Continued)
B7: Miscellaneous Revenues Anticipated: Added By N.J.S.A. 40A:4-87
B9: Source | H9: Budget | I9: Realized | J9: Excess or Deficit
I11: =H11 -> 0 | J11: =H11-I11 -> 0 | L11: Column I formula will be overridden if revenue is not realized
I12: =+H12 -> 0 | J12: 0
I13: =+H13 -> 0 | J13: =H13-I13 -> 0
I14: 0 | J14: 0
I15: 0 | J15: 0
I16: 0 | J16: 0
I17: 0 | J17: 0
I18: 0 | J18: 0
I19: 0 | J19: 0
I20: 0 | J20: 0
I21: 0 | J21: 0
I22: 0 | J22: 0
I23: 0 | J23: 0
I24: 0 | J24: 0
I25: 0 | J25: 0
I26: 0 | J26: 0
I27: 0 | J27: 0
I28: 0 | J28: 0
I29: 0 | J29: 0
I30: 0 | J30: 0
I31: 0 | J31: 0
I32: 0 | J32: 0
I33: 0 | J33: 0
I34: 0 | J34: 0
I35: 0 | J35: 0
I36: 0 | J36: 0
I37: 0 | J37: 0
I38: 0 | J38: 0
I39: 0 | J39: 0
I40: 0 | J40: 0
I41: 0 | J41: 0
I42: 0 | J42: 0
C43: PAGE TOTALS | H43: =SUM(H10:H42) -> 0 | I43: =SUM(I10:I42) -> 0 | J43: =SUM(J10:J42) -> 0
B44: I hereby certify that the above list of Chapter 159 insertions of revenue have been realized in cash or I have received
B45: written notification of the award of public or private revenue. These insertions meet the statutory requirements of
B46: N.J.S.A. 40A:4-87 and matching funds have been provided if applicable.
B48: CFO Signature:
B49: Sheet 17a

Sheet 17a.1-Budget Revenues (hidden)
B4: ='17-Budget Revenues'!B2:J2 -> STATEMENT OF GENERAL BUDGET REVENUES 2023
B5: (Continued)
B7: Miscellaneous Revenues Anticipated: Added By N.J.S.A. 40A:4-87
B9: Source | H9: Budget | I9: Realized | J9: Excess or Deficit
B10: PREVIOUS PAGE TOTALS | H10: =+'17a-Budget Revenues'!H43 -> 0 | I10: =+'17a-Budget Revenues'!I43 -> 0 | J10: =+'17a-Budget Revenues'!J43 -> 0
I11: =+H11 -> 0 | J11: =H11-I11 -> 0 | L11: Column I formula will be overridden if revenue is not realized
I12: 0 | J12: 0
I13: 0 | J13: 0
I14: 0 | J14: 0
I15: 0 | J15: 0
I16: 0 | J16: 0
I17: 0 | J17: 0
I18: 0 | J18: 0
I19: 0 | J19: 0
I20: 0 | J20: 0
I21: 0 | J21: 0
I22: 0 | J22: 0
I23: 0 | J23: 0
I24: 0 | J24: 0
I25: 0 | J25: 0
I26: 0 | J26: 0
I27: 0 | J27: 0
I28: 0 | J28: 0
I29: 0 | J29: 0
I30: 0 | J30: 0
I31: 0 | J31: 0
I32: 0 | J32: 0
I33: 0 | J33: 0
I34: 0 | J34: 0
I35: 0 | J35: 0
I36: 0 | J36: 0
I37: 0 | J37: 0
I38: 0 | J38: 0
I39: 0 | J39: 0
I40: 0 | J40: 0
I41: 0 | J41: 0
I42: 0 | J42: 0
C43: PAGE TOTALS | H43: =SUM(H10:H42) -> 0 | I43: =SUM(I10:I42) -> 0 | J43: =SUM(J10:J42) -> 0
B44: I hereby certify that the above list of Chapter 159 insertions of revenue have been realized in cash or I have received
B45: written notification of the award of public or private revenue. These insertions meet the statutory requirements of
B46: N.J.S.A. 40A:4-87 and matching funds have been provided if applicable.
B48: CFO Signature:
B49: Sheet 17a.1

Sheet 17a.2-Budget Revenues (hidden)
B4: ='17-Budget Revenues'!B2:J2 -> STATEMENT OF GENERAL BUDGET REVENUES 2023
B5: (Continued)
B7: Miscellaneous Revenues Anticipated: Added By N.J.S.A. 40A:4-87
B9: Source | H9: Budget | I9: Realized | J9: Excess or Deficit
B10: PREVIOUS PAGE TOTALS | H10: =+'17a.1-Budget Revenues '!H43 -> 0 | I10: =+'17a.1-Budget Revenues '!I43 -> 0 | J10: =+'17a.1-Budget Revenues '!J43 -> 0
I11: =+H11 -> 0 | J11: =H11-I11 -> 0 | L11: Column I formula will be overridden if revenue is not realized
I12: 0 | J12: 0
I13: 0 | J13: 0
I14: 0 | J14: 0
I15: 0 | J15: 0
I16: 0 | J16: 0
I17: 0 | J17: 0
I18: 0 | J18: 0
I19: 0 | J19: 0
I20: 0 | J20: 0
I21: 0 | J21: 0
I22: 0 | J22: 0
I23: 0 | J23: 0
I24: 0 | J24: 0
I25: 0 | J25: 0
I26: 0 | J26: 0
I27: 0 | J27: 0
I28: 0 | J28: 0
I29: 0 | J29: 0
I30: 0 | J30: 0
I31: 0 | J31: 0
I32: 0 | J32: 0
I33: 0 | J33: 0
I34: 0 | J34: 0
I35: 0 | J35: 0
I36: 0 | J36: 0
I37: 0 | J37: 0
I38: 0 | J38: 0
I39: 0 | J39: 0
I40: 0 | J40: 0
I41: 0 | J41: 0
I42: 0 | J42: 0
C43: PAGE TOTALS | H43: =SUM(H10:H42) -> 0 | I43: =SUM(I10:I42) -> 0 | J43: =SUM(J10:J42) -> 0
B44: I hereby certify that the above list of Chapter 159 insertions of revenue have been realized in cash or I have received
B45: written notification of the award of public or private revenue. These insertions meet the statutory requirements of
B46: N.J.S.A. 40A:4-87 and matching funds have been provided if applicable.
B48: CFO Signature:
B49: Sheet 17a.2

Sheet 17a.3-Budget Revenues (hidden)
B4: ='17-Budget Revenues'!B2:J2 -> STATEMENT OF GENERAL BUDGET REVENUES 2023
B5: (Continued)
B7: Miscellaneous Revenues Anticipated: Added By N.J.S.A. 40A:4-87
B9: Source | H9: Budget | I9: Realized | J9: Excess or Deficit
B10: PREVIOUS PAGE TOTALS | H10: =+'17a.2-Budget Revenues'!H43 -> 0 | I10: =+'17a.2-Budget Revenues'!I43 -> 0 | J10: =+'17a.2-Budget Revenues'!J43 -> 0
I11: =+H11 -> 0 | J11: =H11-I11 -> 0 | L11: Column I formula will be overridden if revenue is not realized
I12: 0 | J12: 0
I13: 0 | J13: 0
I14: 0 | J14: 0
I15: 0 | J15: 0
I16: 0 | J16: 0
I17: 0 | J17: 0
I18: 0 | J18: 0
I19: 0 | J19: 0
I20: 0 | J20: 0
I21: 0 | J21: 0
I22: 0 | J22: 0
I23: 0 | J23: 0
I24: 0 | J24: 0
I25: 0 | J25: 0
I26: 0 | J26: 0
I27: 0 | J27: 0
I28: 0 | J28: 0
I29: 0 | J29: 0
I30: 0 | J30: 0
I31: 0 | J31: 0
I32: 0 | J32: 0
I33: 0 | J33: 0
I34: 0 | J34: 0
I35: 0 | J35: 0
I36: 0 | J36: 0
I37: 0 | J37: 0
I38: 0 | J38: 0
I39: 0 | J39: 0
I40: 0 | J40: 0
I41: 0 | J41: 0
I42: 0 | J42: 0
C43: PAGE TOTALS | H43: =SUM(H10:H42) -> 0 | I43: =SUM(I10:I42) -> 0 | J43: =SUM(J10:J42) -> 0
B44: I hereby certify that the above list of Chapter 159 insertions of revenue have been realized in cash or I have received
B45: written notification of the award of public or private revenue. These insertions meet the statutory requirements of
B46: N.J.S.A. 40A:4-87 and matching funds have been provided if applicable.
B48: CFO Signature:
B49: Sheet 17a.3

Sheet 17a Totals-Budget Revenues
B4: ='17-Budget Revenues'!B2:J2 -> STATEMENT OF GENERAL BUDGET REVENUES 2023
B5: (Continued)
B7: Miscellaneous Revenues Anticipated: Added By N.J.S.A. 40A:4-87
B9: Source | H9: Budget | I9: Realized | J9: Excess or Deficit
B10: PREVIOUS PAGE TOTALS | H10: =+'17a.3-Budget Revenues'!H43 -> 0 | I10: =+'17a.3-Budget Revenues'!I43 -> 0 | J10: =+'17a.3-Budget Revenues'!J43 -> 0
I11: =+H11 -> 0 | J11: =H11-I11 -> 0 | L11: Column I formula will be overridden if revenue is not realized
I12: 0 | J12: 0
I13: 0 | J13: 0
I14: 0 | J14: 0
I15: 0 | J15: 0
I16: 0 | J16: 0
I17: 0 | J17: 0
I18: 0 | J18: 0
I19: 0 | J19: 0
I20: 0 | J20: 0
I21: 0 | J21: 0
I22: 0 | J22: 0
I23: 0 | J23: 0
I24: 0 | J24: 0
I25: 0 | J25: 0
I26: 0 | J26: 0
I27: 0 | J27: 0
I28: 0 | J28: 0
I29: 0 | J29: 0
I30: 0 | J30: 0
I31: 0 | J31: 0
I32: 0 | J32: 0
I33: 0 | J33: 0
I34: 0 | J34: 0
I35: 0 | J35: 0
I36: 0 | J36: 0
I37: 0 | J37: 0
I38: 0 | J38: 0
I39: 0 | J39: 0
I40: 0 | J40: 0
I41: 0 | J41: 0
I42: 0 | J42: 0
C43: TOTALS | H43: =SUM(H10:H42) -> 0 | I43: =SUM(I10:I42) -> 0 | J43: =SUM(J10:J42) -> 0
B44: I hereby certify that the above list of Chapter 159 insertions of revenue have been realized in cash or I have received
B45: written notification of the award of public or private revenue. These insertions meet the statutory requirements of
B46: N.J.S.A. 40A:4-87 and matching funds have been provided if applicable.
B48: CFO Signature: | E48: claporta@townshipofshrewsbury.com
B49: Sheet 17a Totals

Sheet 18-Budget Appropriations
B4: ="STATEMENT OF GENERAL BUDGET APPROPRIATIONS "&IF('KEY INPUTS'!C42 = "State Fiscal Year", "FY "&'KEY INPUTS'!D33&"", 'KEY INPUTS'!D34) -> STATEMENT OF GENERAL BUDGET APPROPRIATIONS 2023
B6: =IF('KEY INPUTS'!C42="State Fiscal Year","Fiscal Year "&'KEY INPUTS'!D33&"",'KEY INPUTS'!D34)&" Budget As Adopted" -> 2023 Budget As Adopted | J6: =+'17-Budget Revenues'!H22-J7 -> 1,197,962.50
B7: =IF('KEY INPUTS'!C42="State Fiscal Year","Fiscal Year "&'KEY INPUTS'!D33&"",'KEY INPUTS'!D34)&" Budget - Added by N.J.S.A. 40A:4-87" -> 2023 Budget - Added by N.J.S.A. 40A:4-87 | J7: =+'17a Totals-Budget Revenues'!H43 -> 0
B8: ="Appropriated for "&IF('KEY INPUTS'!C42="State Fiscal Year","Fiscal Year "&'KEY INPUTS'!D33&"",'KEY INPUTS'!D34)&" (Budget Statement Item 9)" -> Appropriated for 2023 (Budget Statement Item 9) | J8: =+J7+J6 -> 1,197,962.50
B9: ="Appropriated for "&IF('KEY INPUTS'!C42="State Fiscal Year","Fiscal Year "&'KEY INPUTS'!D33&"",'KEY INPUTS'!D34)&" by Emergency Appropriation (Budget Statement Item 9)" -> Appropriated for 2023 by Emergency Appropriation (Budget Statement Item 9)
B10: Total General Appropriations (Budget Statement Item 9) | J10: =+J9+J8 -> 1,197,962.50
B11: Add: Overexpenditures (see footnote)
C12: Total Appropriations and Overexpenditures | J12: =+J10+J11 -> 1,197,962.50
B13: Deduct Expenditures:
C14: Paid or Charged [Budget Statement Item (L)] | I14: 978,566.78
C15: Paid or Charged - Reserve for Uncollected Taxes | I15: 24,800.00
C16: Reserved | I16: 194,595.41
D17: Total Expenditures | J17: =SUM(I14:I16) -> 1,197,962.19
B18: Unexpended Balances Canceled (see footnote) | J18: =+J12-J17 -> 0.31
B20: FOOTNOTES - RE: OVEREXPENDITURES
C21: Every appropriation overexpended in the budget document must be marked with an * and must agree in the aggregate with this item.
C22: RE: UNEXPENDED BALANCES CANCELED
C23: Are not to be shown as "Paid or Charged" in the budget document. In all instances "Total Appropriations" and "Overexpenditures"
D24: must equal the sum of "Total Expenditures" and "Unexpended Balances Canceled".
B32: SCHEDULE OF EMERGENCY APPROPRIATIONS FOR LOCAL
B33: DISTRICT SCHOOL PURPOSES
B35: (EXCEPT FOR TYPE I SCHOOL DEBT SERVICE)
B37: =IF('KEY INPUTS'!C42="State Fiscal Year","Fiscal Year "&'KEY INPUTS'!D33&"",'KEY INPUTS'!D34)&" Authorizations" -> 2023 Authorizations
C38: N.J.S.A. 40A:4-46 (After adoption of Budget)
C39: N.J.S.A. 40A:4-20 (Prior to adoption of Budget)
D40: Total Authorizations | J40: =SUM(I38:I39) -> 0
B41: Deduct Expenditures:
C42: Paid or Charged
C43: Reserved
D44: Total Expenditures | J44: =SUM(I42:I43) -> 0
B54: Sheet 18

Sheet 19-Results of Op-Cur Fnd
B3: =" RESULTS OF "&IF('KEY INPUTS'!C42 = "State Fiscal Year", "FISCAL YEAR "&'KEY INPUTS'!D33&"",'KEY INPUTS'!D34)&" OPERATIONS" -> RESULTS OF 2023 OPERATIONS
B6: CURRENT FUND
H9: Debit | I9: Credit
B10: Excess of Anticipated Revenues: | H10: xxxxxxxxx | I10: xxxxxxxxx
C11: Miscellaneous Revenues anticipated | H11: xxxxxxxxx | I11: =IF(+'17-Budget Revenues'!J14>0, +'17-Budget Revenues'!J14,0) -> 0
C12: Delinquent Tax Collections | H12: xxxxxxxxx | I12: =IF(+'17-Budget Revenues'!J15>0, +'17-Budget Revenues'!J15,0) -> 2,875.98
H13: xxxxxxxxx
C14: Required Collection of Current Taxes | H14: xxxxxxxxx | I14: =IF(+'17-Budget Revenues'!J21>0, +'17-Budget Revenues'!J21,0) -> 18,774.33
B15: ="Unexpended Balances of "&IF('KEY INPUTS'!C42 = "State Fiscal Year", "Fiscal Year "&'KEY INPUTS'!D33&"",'KEY INPUTS'!D34)&" Budget Appropriations" -> Unexpended Balances of 2023 Budget Appropriations | H15: xxxxxxxxx | I15: =+'18-Budget Appropriations'!J18 -> 0.31
B16: Miscellaneous Revenue Not Anticipated | H16: xxxxxxxxx | I16: ='20 Total-Misc Rev Not Ant'!H41 -> 68,536.89
B17: Miscellaneous Revenue Not Anticipated: | H17: xxxxxxxxx | I17: ='27-Foreclosed Property'!I47 -> 0
C18: Proceeds of Sale of Foreclosed Property (Sheet 27)
C19: Payments in Lieu of Taxes on Real Property | H19: xxxxxxxxx
B20: Sale of Municipal Assets | H20: xxxxxxxxx
B21: ="Unexpended Balances of "&IF('KEY INPUTS'!C42 = "State Fiscal Year", "Fiscal Year "&'KEY INPUTS'!D33-1&"",'KEY INPUTS'!D34-1)&" Appropriation Reserves" -> Unexpended Balances of 2022 Appropriation Reserves | H21: xxxxxxxxx | I21: 116,679.15
B22: ="Prior Years Interfunds Returned in "&IF('KEY INPUTS'!C42 = "State Fiscal Year", "Fiscal Year "&'KEY INPUTS'!D33&"",'KEY INPUTS'!D34) -> Prior Years Interfunds Returned in 2023 | H22: xxxxxxxxx
B27: Deferred School Tax Revenue: (See School Taxes, Sheets 13 & 14) | H27: xxxxxxxxx | I27: xxxxxxxxx
C28: =IF('KEY INPUTS'!C42 = "State Fiscal Year", 'KEY INPUTS'!F25,'KEY INPUTS'!D25) -> Balance - January 1, 2023 | H28: =+'13-Other Taxes'!H11+'14-Other Taxes'!H12+'14-Other Taxes'!H33 -> 92,746.00 | I28: xxxxxxxxx
C29: =IF('KEY INPUTS'!C42 = "State Fiscal Year", 'KEY INPUTS'!F26,'KEY INPUTS'!D26) -> Balance - December 31, 2023 | H29: xxxxxxxxx | I29: ='13-Other Taxes'!G18+'14-Other Taxes'!G40+'14-Other Taxes'!G19 -> 92,746.00
B30: Deficit in Anticipated Revenues: | H30: xxxxxxxxx | I30: xxxxxxxxx
C31: Miscellaneous Revenues Anticipated | H31: =IF(+'17-Budget Revenues'!J14<0, -'17-Budget Revenues'!J14,0) -> 618.13 | I31: xxxxxxxxx
C32: Delinquent Tax Collections | H32: =IF(+'17-Budget Revenues'!J15<0, -'17-Budget Revenues'!J15,0) -> 0 | I32: xxxxxxxxx
I33: xxxxxxxxx
C34: Required Collection on Current Taxes | H34: =IF(+'17-Budget Revenues'!J21<0, -'17-Budget Revenues'!J21,0) -> 0 | I34: xxxxxxxxx
B35: ="Interfund Advances Originating in "&IF('KEY INPUTS'!C42 = "State Fiscal Year", "Fiscal Year "&'KEY INPUTS'!D33&"",'KEY INPUTS'!D34) -> Interfund Advances Originating in 2023 | I35: xxxxxxxxx
B36: Regional Elementary School Tax Advanced | H36: 0.02
B43: Deficit Balance - To Trial Balance (Sheet 3) | H43: xxxxxxxxx | I43: =IF(+J44>0,0,J44*-1) -> 0
B44: Surplus Balance - To Surplus (Sheet 21) | H44: =+IF(+J44>0,J44,0) -> 206,248.51 | I44: xxxxxxxxx | J44: =SUM(I10:I42)-SUM(H10:H42) -> 206,248.51 | K44: DO NOT REMOVE formula in K40 to calculate H40 &I39 - hide formula from user
H45: =SUM(H10:H44) -> 299,612.66 | I45: =SUM(I10:I44) -> 299,612.66
B48: Sheet 19

Sheet 20-Misc Rev Not Ant (hidden)
B3: SCHEDULE OF MISCELLANEOUS REVENUES
B4: NOT ANTICIPATED
B7: Source | H7: Amount Realized
B41: Page Total Amount of Miscellaneous Revenues Not Anticipated (Sheet 19) | H41: =SUM(H8:H40) -> 0
B47: Sheet 20

Sheet 20.1-Misc Rev Not Ant (hidden)
B3: SCHEDULE OF MISCELLANEOUS REVENUES
B4: NOT ANTICIPATED
B7: Source | H7: Amount Realized
C8: PREVIOUS PAGE TOTALS | H8: =+'20-Misc Rev Not Ant'!H41 -> 0
B41: Page Total Amount of Miscellaneous Revenues Not Anticipated (Sheet 19) | H41: =SUM(H8:H40) -> 0
B47: Sheet 20.1

Sheet 20 Total-Misc Rev Not Ant
B3: SCHEDULE OF MISCELLANEOUS REVENUES
B4: NOT ANTICIPATED
B7: Source | H7: Amount Realized
C8: PREVIOUS PAGE TOTALS | H8: =+'20.1-Misc Rev Not Ant'!H41 -> 0
B9: Marriage Licenses | H9: 3.00
B10: Recycling | H10: 799.40
B11: Seniors and Veterans 2% Administrative Fee | H11: 50.83
B12: Employee Health Benefit Share | H12: 5,075.66
B13: Action Data - State Health Benefits Programs | H13: 353.50
B14: Monmouth County Joint Insurance Fund Dividend | H14: 1,944.00
B15: Interest on Investments | H15: 38,844.47
B16: Building Rental Fees and COs | H16: 3,800.00
B17: Settlement Check PCH Fund | H17: 17,414.03
B18: Miscellaneous | H18: 252.00
B41: Total Amount of Miscellaneous Revenues Not Anticipated (Sheet 19) | H41: =SUM(H8:H40) -> 68,536.89
B47: Sheet 20 Totals

Sheet 21-Current Fund Surplus
B3: SURPLUS - CURRENT FUND
B4: =IF('KEY INPUTS'!C42 = "State Fiscal Year", "FISCAL YEAR "&'KEY INPUTS'!D33&"", "YEAR "&'KEY INPUTS'!D34&"") -> YEAR 2023
K6: Debit | L6: Credit
B7: 1. | C7: =IF('KEY INPUTS'!C42 = "State Fiscal Year", 'KEY INPUTS'!F25,'KEY INPUTS'!D25) -> Balance - January 1, 2023 | K7: xxxxxxxxx | L7: 827,700.90
B8: 2. | K8: xxxxxxxxx
B9: 3. | C9: ="Excess Resulting from "&IF('KEY INPUTS'!C42="State Fiscal Year","Fiscal Year "&'KEY INPUTS'!D33&"",'KEY INPUTS'!D34)&" Operations" -> Excess Resulting from 2023 Operations | K9: xxxxxxxxx | L9: =+'19-Results of Op-Cur Fnd'!H44 -> 206,248.51
B10: 4. | C10: ="Amount Appropriated in the "&IF('KEY INPUTS'!C42="State Fiscal Year","Fiscal Year "&'KEY INPUTS'!D33&"",'KEY INPUTS'!D34)&" Budget - Cash" -> Amount Appropriated in the 2023 Budget - Cash | K10: =+'17-Budget Revenues'!H6 -> 193,500.00 | L10: xxxxxxxxx
B11: 5. | C11: ="Amount Appropriated in "&IF('KEY INPUTS'!C42="State Fiscal Year","Fiscal Year "&'KEY INPUTS'!D33&"",'KEY INPUTS'!D34)&" Budget - with Prior" -> Amount Appropriated in 2023 Budget - with Prior
C12: Written Consent of Director of Local Government Services | K12: =+'17-Budget Revenues'!H8 -> 0 | L12: xxxxxxxxx
B13: 6. | L13: xxxxxxxxx
B14: 7. | C14: =IF('KEY INPUTS'!C42 = "State Fiscal Year", 'KEY INPUTS'!F26,'KEY INPUTS'!D26) -> Balance - December 31, 2023 | K14: =+L7+L8+L9-K10-K12-K13 -> 840,449.41 | L14: xxxxxxxxx
K15: =SUM(K10:K14) -> 1,033,949.41 | L15: =SUM(L7:L14) -> 1,033,949.41
B19: ="ANALYSIS OF BALANCE "&IF('KEY INPUTS'!C42 = "State Fiscal Year", 'KEY INPUTS'!F45,'KEY INPUTS'!D45) -> ANALYSIS OF BALANCE AS AT DECEMBER 31, 2023
B20: (FROM CURRENT FUND - TRIAL BALANCE)
B23: Cash | L23: =+'3-Trial Bal-Current Fund'!G11 -> 1,235,946.92
B24: Investments
B26: Sub Total | L26: =+L23+L24+L25 -> 1,235,946.92
B27: Deduct Cash Liabilities Marked with "C" on Trial Balance | L27: =+'3a.1-Trial Bal-Current Fund'!H25 -> 395,497.21
B28: Cash Surplus | L28: =+L26-L27 -> 840,449.71
B29: Deficit in Cash Surplus
B30: Other Assets Pledged to Surplus:*
C31: (1) Due from State of N.J. Senior Citizens and Veterans Deduction | K31: =+'3-Trial Bal-Current Fund'!G13 -> 0
C32: Deferred Charges #
C33: Cash Deficit #
D38: Total Other Assets | L38: =SUM(K31:K37) -> 0
B39: * IN THE CASE OF A "DEFICIT IN CASH SURPLUS", "OTHER ASSETS" | L39: =+L28+L38 -> 840,449.71
C40: WOULD ALSO BE PLEDGED TO CASH LIABILITIES.
B41: ="# MAY NOT BE ANTICIPATED AS NON-CASH SURPLUS IN "&TEXT('KEY INPUTS'!D33,"0")&" BUDGET." -> # MAY NOT BE ANTICIPATED AS NON-CASH SURPLUS IN 2024 BUDGET.
B42: (1) MAY BE ALLOWED UNDER CERTAIN CONDITIONS.
B44: NOTE: Deferred charges for authorizations under N.J.S.A. 40A:4-55 (Tax Map, etc.), N.J.S.A. 40A:4-55 (Flood Damage, etc.), N.J.S.A.
B45: 40A:4-55.1 (Roads and Bridges, etc.) and N.J.S.A. 40A:4-55.13 (Public Exigencies, etc.) to the extent of emergency notes issued
B46: and outstanding for such purposes, together with such emergency notes, may be omitted from this analysis.
B50: Sheet 21

Sheet 22-CY Levy
B2: (FOR MUNICIPALITIES ONLY)
B3: ="CURRENT TAXES - "&TEXT('KEY INPUTS'!D34,"0")& " LEVY" -> CURRENT TAXES - 2023 LEVY
B5: 1. | C5: Amount of Levy as per Duplicate (Analysis) # | M5: $ | N5: 1,690,309.12
G6: or
F7: (Abstract of Ratables) | M7: $
B9: 2. | C9: Amount of Levy - Special District Taxes | M9: $
B11: 3. | C11: Amount Levied for Omitted Taxes under
C12: N.J.S.A. 54:4-63.12 et seq. | M12: $
B14: 4. | C14: Amount Levied for Added Taxes under
C15: N.J.S.A. 54:4-63.1 et seq. | M15: $
B17: 5a. | C17: ="Subtotal "&TEXT('KEY INPUTS'!D34,"0")&" Levy" -> Subtotal 2023 Levy | I17: $ | J17: =SUM(N5:N15) -> 1,690,309.12
B18: 5b. | C18: Reductions Due to Tax Appeals** | I18: $
B19: 5c. | C19: ="Total "&TEXT('KEY INPUTS'!D34,"0") & " Tax Levy" -> Total 2023 Tax Levy | M19: $ | N19: =+J17-J18 -> 1,690,309.12
B21: 6. | C21: Transferred to Tax Title Liens | M21: $
B22: 7. | C22: Transferred to Foreclosed Property | M22: $
B23: 8. | C23: Remitted, Abated or Canceled | M23: $
B24: 9. | C24: Discount Allowed | M24: $
B25: 10. | C25: ="Collected in Cash: In "&TEXT('KEY INPUTS'!D35,"0") -> Collected in Cash: In 2022 | K25: $ | L25: 11,948.42
F26: ="In "&TEXT('KEY INPUTS'!D34,"0")&"*" -> In 2023* | K26: $ | L26: =1670020.73 -> 1,670,020.73
C27: Homestead Benefit Credit | K27: $
C29: ="State's Share of "&TEXT('KEY INPUTS'!D34,"0")&" Senior Citizens" -> State's Share of 2023 Senior Citizens
C30: and Veterans Deductions Allowed | K30: $ | L30: =+'23-SCVet Deductions'!G37 -> 1,750.00
C32: Total To Line 14 | K32: $ | L32: =SUM(L25:L30) -> 1,683,719.15
B34: 11. | C34: Total Credits | M34: $ | N34: =+SUM(N21:N24)+L32 -> 1,683,719.15
B35: 12. | C35: ="Amount Outstanding December 31, "&TEXT('KEY INPUTS'!D34,"0") -> Amount Outstanding December 31, 2023 | M35: $ | N35: =+N19-N34 -> 6,589.97
B37: 13. | C37: ="Percentage of Cash Collections to Total "&TEXT('KEY INPUTS'!D34,"0")&" Levy," -> Percentage of Cash Collections to Total 2023 Levy,
C38: (Item 10 divided by Item 5c) is | H38: =TRUNC(+L32/N19, 4) -> 99.61%
B41: Note: If municipality conducted Accelerated Tax Sale or Tax Levy Sale check here ____ and complete sheet 22a.
B43: 14. | C43: Calculation of Current Taxes Realized in Cash:
C45: Total of Line 10 | K45: $ | L45: =+L32 -> 1,683,719.15
C46: Less: | D46: Reserve for Tax Appeals Pending
D47: State Division of Tax Appeals | K47: $
C48: To Current Taxes Realized in Cash (Sheet 17) | K48: $ | L48: =+L45-L47 -> 1,683,719.15
B50: Note A: | C50: In showing the above percentage the following should be noted:
C51: Where Item 5 shows $1,500,000.00, and Item 10 shows $1,049,977.50,
C52: the percentage represented by the cash collections would be
C53: $1,049,977.50 divided by $1,500,000, or .699985. The correct percentage to
C54: be shown as Item 13 is 69.99% and not 70.00%, nor 69.999%.
B56: # Note: | C56: On Item 1 if Duplicate (Analysis) Figure is used; be sure to include
C57: Senior Citizens and Veterans Deductions.
B60: ="* Include overpayments applied as part of "&TEXT('KEY INPUTS'!D34,"0")&" collections." -> * Include overpayments applied as part of 2023 collections.
B61: ** Tax appeals pursuant to R.S. 54:3-21 et seq and/or R.S. 54:48-1 et seq approved by resolution of the governing
D62: body prior to introduction of municipal budget
B63: Sheet 22

Sheet 22a-Tax Levy Sale
B4: ACCELERATED TAX SALE / TAX LEVY SALE - CHAPTER 99
B6: ="To Calculate Underlying Tax Collection Rate for "&TEXT('KEY INPUTS'!D34,"0") -> To Calculate Underlying Tax Collection Rate for 2023
B8: Utilize this sheet only if you conducted an Accelerated Tax Sale or Tax Levy Sale pursuant to
B9: Chapter 99, P.L. 1997.
B13: (1) Utilizing Accelerated Tax Sale
B16: Total of Line 10 Collected in Cash (sheet 22) | J16: $ | K16: =+'22-CY Levy'!L32 -> 1,683,719.15
B17: LESS: Proceeds from Accelerated Tax Sale
D18: Net Cash Collected | J18: $ | K18: =K16-K17 -> 1,683,719.15
B19: ="Line 5c (sheet 22) Total "&TEXT('KEY INPUTS'!D34,"0")&" Tax Levy" -> Line 5c (sheet 22) Total 2023 Tax Levy | J19: $ | K19: =+'22-CY Levy'!N19 -> 1,690,309.12
B21: Percentage of Collection Excluding Accelerated Tax Sale Proceeds
B22: (Net Cash Collected divided by Item 5c) is | K22: =+K18/K19 -> 99.61%
B34: (2) Utilizing Tax Levy Sale
B37: Total of Line 10 Collected in Cash (sheet 22) | J37: $ | K37: =+'22-CY Levy'!L32 -> 1,683,719.15
B38: LESS: Proceeds from Tax Levy Sale (excluding premium)
D39: Net Cash Collected | J39: $ | K39: =K37-K38 -> 1,683,719.15
B40: =B19 -> Line 5c (sheet 22) Total 2023 Tax Levy | J40: $ | K40: =+'22-CY Levy'!N19 -> 1,690,309.12
B42: Percentage of Collection Excluding Tax Levy Sale Proceeds
B43: (Net Cash Collected divided by Item 5c) is | K43: =IFERROR(K39/K40,"NO ENTRY") -> 99.61%
B61: Sheet 22a

Sheet 23-SCVet Deductions
B3: SCHEDULE OF DUE FROM / TO STATE OF NEW JERSEY
B4: FOR SENIOR CITIZENS AND VETERANS DEDUCTIONS
I6: Debit | J6: Credit
B7: 1. | C7: ='21-Current Fund Surplus'!C7 -> Balance - January 1, 2023 | I7: xxxxxxxxx | J7: xxxxxxxxx
D8: Due From State of New Jersey | J8: xxxxxxxxx
D9: Due To State of New Jersey | I9: xxxxxxxxx | J9: 354.17
B10: 2. | C10: Senior Citizens Deductions Per Tax Billings | I10: 1,250.00 | J10: xxxxxxxxx
B11: 3. | C11: Veterans Deductions Per Tax Billings | I11: 2,000.00 | J11: xxxxxxxxx
B12: 4. | C12: Deductions Allowed By Tax Collector | J12: xxxxxxxxx
B13: 5. | C13: ="Deductions Allowed By Tax Collector - Prior Year Taxes ("&TEXT('KEY INPUTS'!D35,"0")&")" -> Deductions Allowed By Tax Collector - Prior Year Taxes (2022)
B14: 6.
B15: 7. | C15: Deductions Disallowed By Tax Collector | I15: xxxxxxxxx | J15: 1,500.00
B16: 8. | C16: ="Deductions Disallowed By Tax Collector - Prior Year Taxes ("&TEXT('KEY INPUTS'!D35,"0")&")" -> Deductions Disallowed By Tax Collector - Prior Year Taxes (2022) | I16: xxxxxxxxx
B17: 9. | C17: Received in Cash from State | I17: xxxxxxxxx | J17: 2,291.67
B18: 10.
B19: 11.
B20: 12. | C20: ='21-Current Fund Surplus'!C14 -> Balance - December 31, 2023 | I20: xxxxxxxxx | J20: xxxxxxxxx | K20: =SUM(I7:I20)-SUM(J7:J20) -> (895.84) | L20: DO NOT REMOVE THIS FORMULA
D21: Due From State of New Jersey | I21: xxxxxxxxx | J21: =IF(K20>0,K20,0) -> 0
D22: Due To State of New Jersey | I22: =IF(K20>0,0,K20)*-1 -> 895.84 | J22: xxxxxxxxx
I23: =SUM(I7:I22) -> 4,145.84 | J23: =SUM(J7:J22) -> 4,145.84
B29: Calculation of Amount to be included on Sheet 22, Item 10 -
B30: =IF('KEY INPUTS'!C42="State Fiscal Year","Fiscal Year "&'KEY INPUTS'!D33&"",'KEY INPUTS'!D34)&" Senior Citizens and Veterans Deductions Allowed" -> 2023 Senior Citizens and Veterans Deductions Allowed
B32: Line 2 | G32: =+I10 -> 1,250.00
B33: Line 3 | G33: =+I11 -> 2,000.00
B34: Line 4 | G34: =+I12 -> 0
B35: Sub - Total | G35: =SUM(G32:G34) -> 3,250.00
B36: Less: Line 7 | G36: =+J15 -> 1,500.00
B37: To Item 10, Sheet 22 | G37: =+G35-G36 -> 1,750.00
B54: Sheet 23

Sheet 24-Reserves for Tax Appeals
B3: SCHEDULE OF RESERVE FOR TAX APPEALS PENDING -
B4: N.J. DIVISION OF TAXATION APPEALS (N.J.S.A. 54:3-27)
I6: Debit | J6: Credit
B7: ='23-SCVet Deductions'!C7 -> Balance - January 1, 2023 | I7: xxxxxxxxxx | J7: =H8+H9 -> 0
C8: Taxes Pending Appeals | I8: xxxxxxxxxx | J8: xxxxxxxxx
C9: Interest Earned on Taxes Pending Appeals | I9: xxxxxxxxxx | J9: xxxxxxxxx
B10: ="Contested Amount of "&TEXT('KEY INPUTS'!D34,"0")&" Taxes Collected which are Pending State Appeal (Item 14, Sheet 22)" -> Contested Amount of 2023 Taxes Collected which are Pending State Appeal (Item 14, Sheet 22) | I10: xxxxxxxxxx
B11: Interest Earned on Taxes Pending State Appeals | I11: xxxxxxxxxx
B13: Cash Paid to Appellants (Including 5% Interest from Date of Payment) | J13: xxxxxxxxx
B14: Closed to Results of Operation
B15: (Portion of Appeal won by Municipality, including Interest) | J15: xxxxxxxxx
B17: ='23-SCVet Deductions'!C20 -> Balance - December 31, 2023 | I17: =H18+H19 -> 0 | J17: xxxxxxxxx
C18: Taxes Pending Appeals* | I18: xxxxxxxxx | J18: xxxxxxxxx
C19: Interest Earned on Taxes Pending Appeals | I19: xxxxxxxxx | J19: xxxxxxxxx
B20: *Includes State Tax Court and County Board of Taxation | I20: =SUM(I7:I19) -> 0 | J20: =SUM(J7:J19) -> 0
B21: =" Appeals Not Adjusted by December 31, "&TEXT('KEY INPUTS'!D34,"0") -> Appeals Not Adjusted by December 31, 2023
C25: jsutton@townshipofshrewsbury.com
C26: Signature of Tax Collector
C29: T-8442 | G29: 2024-03-08
C30: License # | G30: Date
B60: Sheet 24

Sheet 26-Delinquent Taxes and Liens
B2: SCHEDULE OF DELINQUENT TAXES AND TAX TITLE LIENS
J4: Debit | L4: Credit
B5: 1. | C5: ='24-Reserves for Tax Appeals'!B7 -> Balance - January 1, 2023 | K5: =I6+I7 -> 5,675.98 | M5: xxxxxxxxx
D6: A. | E6: Taxes | I6: 5,675.98 | K6: xxxxxxxxx | M6: xxxxxxxxx
D7: B. | E7: Tax Title Liens | K7: xxxxxxxxx | M7: xxxxxxxxx
B8: 2. | C8: Canceled: | K8: xxxxxxxxx | M8: xxxxxxxxx
D9: A. | E9: Taxes | K9: xxxxxxxxx
D10: B. | E10: Tax Title Liens | K10: xxxxxxxxx
B11: 3. | C11: Transferred to Foreclosed Tax Title Liens: | K11: xxxxxxxxx | M11: xxxxxxxxx
D12: A. | E12: Taxes | K12: xxxxxxxxx
D13: B. | E13: Tax Title Liens | K13: xxxxxxxxx
B14: 4. | C14: Added Taxes | M14: xxxxxxxxx
B15: 5. | C15: Added Tax Title Liens | M15: xxxxxxxxx
B16: 6. | C16: Adjustment between Taxes (Other than Current Year) and Tax Title Liens; | K16: xxxxxxxxx
D17: A. | E17: Taxes - Transfers to Tax Title Liens | K17: xxxxxxxxx | L17: (1)
D18: B. | E18: Tax Title Liens - Transfers from Taxes | J18: (1) | K18: =+M17 -> 0 | M18: xxxxxxxxx
B19: 7. | C19: Balance Before Cash Payments | K19: xxxxxxxxx | M19: =+K5+K14+K15+K18-M17-M16-M13-M12-M10-M9 -> 5,675.98
B20: 8. | D20: Totals | K20: =SUM(K5:K19) -> 5,675.98 | M20: =SUM(M5:M19) -> 5,675.98
B21: 9. | C21: Balance Brought Down | K21: =+M19 -> 5,675.98 | M21: xxxxxxxxx
B22: 10. | C22: Collected: | K22: xxxxxxxxx | M22: =+I23+I24 -> 5,675.98
D23: A. | E23: Taxes | I23: 5,675.98 | K23: xxxxxxxxx | M23: xxxxxxxxx
D24: B. | E24: Tax Title Liens | K24: xxxxxxxxx | M24: xxxxxxxxx
B25: 11. | C25: ="Interest and Costs - "&IF('KEY INPUTS'!C42="State Fiscal Year","Fiscal Year "&'KEY INPUTS'!D33&"",'KEY INPUTS'!D34)&" Tax Sale" -> Interest and Costs - 2023 Tax Sale | M25: xxxxxxxxx
B26: 12. | C26: =IF('KEY INPUTS'!C42="State Fiscal Year","Fiscal Year "&'KEY INPUTS'!D33&"",'KEY INPUTS'!D34)&" Taxes Transferred to Liens" -> 2023 Taxes Transferred to Liens | M26: xxxxxxxxx
B27: 13. | C27: =IF('KEY INPUTS'!C42="State Fiscal Year","Fiscal Year "&'KEY INPUTS'!D33&"",'KEY INPUTS'!D34)&" Taxes" -> 2023 Taxes | K27: =+'22-CY Levy'!N35+'22-CY Levy'!N22 -> 6,589.97 | M27: xxxxxxxxx
B28: 14. | C28: ='24-Reserves for Tax Appeals'!B17 -> Balance - December 31, 2023 | K28: xxxxxxxxx | M28: =+I29+I30 -> 6,589.97
D29: A. | E29: Taxes | I29: =+I6-M9-M12+K14-M17-I23+K27 -> 6,589.97 | K29: xxxxxxxxx | M29: xxxxxxxxx
D30: B. | E30: Tax Title Liens | I30: =+I7-M10-M13+K15+K18-I24+K25+K26 -> 0 | K30: xxxxxxxxx | M30: xxxxxxxxx
B31: 15. | E31: Totals | K31: =SUM(K21:K30) -> 12,265.95 | M31: =SUM(M21:M30) -> 12,265.95
B34: 16. | C34: Percentage of Cash Collections to Adjusted Amount Outstanding
C35: (Item No. 10 divided by Item No. 9) is | H35: =IFERROR(TRUNC(M22/K21,4),"NO ENTRY") -> 100.00%
B37: 17. | C37: Item No.14 multiplied by percentage shown above is | I37: =IFERROR(H35*M28,"NO ENTRY") -> 6,589.97 | J37: and represents the
C38: ="maximum amount that may be anticipated in "&IF('KEY INPUTS'!C42="State Fiscal Year","Fiscal Year "&'KEY INPUTS'!D33+1&"",'KEY INPUTS'!D34+1)&"." -> maximum amount that may be anticipated in 2024.
B40: (See Note A on Sheet 22 - Current Taxes)
B42: (1) These amounts will always be the same.
B49: Sheet 26

Sheet 27-Foreclosed Property
B2: SCHEDULE OF FORECLOSED PROPERTY
B3: (PROPERTY ACQUIRED BY TAX TITLE LIEN LIQUIDATION)
K5: Debit | L5: Credit
B6: 1. | C6: ='26-Delinquent Taxes and Liens'!C5 -> Balance - January 1, 2023 | L6: xxxxxxxxx
B7: 2. | C7: ="Foreclosed or Deeded in "&IF('KEY INPUTS'!C42="State Fiscal Year","Fiscal Year "&'KEY INPUTS'!D33&"",'KEY INPUTS'!D34) -> Foreclosed or Deeded in 2023 | K7: xxxxxxxxx | L7: xxxxxxxxx
B8: 3. | D8: Tax Title Liens | K8: =+'26-Delinquent Taxes and Liens'!M13 -> 0 | L8: xxxxxxxxx
B9: 4. | D9: Taxes Receivable | K9: =+'26-Delinquent Taxes and Liens'!M12 -> 0 | L9: xxxxxxxxx
B10: 5A. | L10: xxxxxxxxx
B11: 5B. | K11: xxxxxxxxx
B12: 6. | D12: Adjustment to Assessed Valuation | L12: xxxxxxxxx
B13: 7. | D13: Adjustment to Assessed Valuation | K13: xxxxxxxxx
B14: 8. | C14: Sales | K14: xxxxxxxxx | L14: xxxxxxxxx
B15: 9. | D15: Cash * | K15: xxxxxxxxx
B16: 10. | D16: Contract | K16: xxxxxxxxx
B17: 11. | D17: Mortgage | K17: xxxxxxxxx
B18: 12. | D18: Loss on Sales | K18: xxxxxxxxx
B19: 13. | D19: Gain on Sales | L19: xxxxxxxxx
B20: 14. | C20: ='26-Delinquent Taxes and Liens'!C28 -> Balance - December 31, 2023 | K20: xxxxxxxxx | L20: =K6+SUM(K8:K10)-L11+K12-L13-SUM(L15:L18)+K19 -> 0
K21: =SUM(K6:K20) -> 0 | L21: =SUM(L6:L20) -> 0
B23: CONTRACT SALES
K25: Debit | L25: Credit
B26: 15. | C26: =C6 -> Balance - January 1, 2023 | L26: xxxxxxxxx
B27: 16. | C27: =IF('KEY INPUTS'!C42="State Fiscal Year","Fiscal Year "&'KEY INPUTS'!D33&"",'KEY INPUTS'!D34)&" Sales from Foreclosed Property" -> 2023 Sales from Foreclosed Property | L27: xxxxxxxxx
B28: 17. | C28: Collected* | K28: xxxxxxxxx
B29: 18. | K29: xxxxxxxxx
B30: 19. | C30: =C20 -> Balance - December 31, 2023 | K30: xxxxxxxxx | L30: =SUM(K26:K27)-SUM(L28:L29) -> 0
K31: =SUM(K26:K30) -> 0 | L31: =SUM(L26:L30) -> 0
B33: MORTGAGE SALES
K35: Debit | L35: Credit
B36: 20. | C36: =C26 -> Balance - January 1, 2023 | L36: xxxxxxxxx
B37: 21. | C37: =C27 -> 2023 Sales from Foreclosed Property | L37: xxxxxxxxx
B38: 22. | C38: Collected* | K38: xxxxxxxxx
B39: 23. | K39: xxxxxxxxx
B40: 24. | C40: =C30 -> Balance - December 31, 2023 | K40: xxxxxxxxx | L40: =SUM(K36:K37)-SUM(L38:L39) -> 0
K41: =SUM(K36:K40) -> 0 | L41: =SUM(L36:L40) -> 0
B42: Analysis of Sale of Property: | H42: $ | I42: =+L15+L28+L38 -> 0
B43: ="*Total Cash Collected in "&IF('KEY INPUTS'!C42="State Fiscal Year","Fiscal Year "&'KEY INPUTS'!D33&"",'KEY INPUTS'!D34) -> *Total Cash Collected in 2023
B45: ="Realized in "&IF('KEY INPUTS'!C42="State Fiscal Year","Fiscal Year "&'KEY INPUTS'!D33&"",'KEY INPUTS'!D34)&" Budget" -> Realized in 2023 Budget
B47: To Results of Operation (Sheet 19) | I47: =+I42-I45 -> 0
B50: Sheet 27

Sheet 28-Deferred Charges
B3: DEFERRED CHARGES
B4: - MANDATORY CHARGES ONLY -
B5: CURRENT, TRUST, AND GENERAL CAPITAL FUNDS
B6: (Do not include the emergency authorizations pursuant to N.J.S.A. 40A:4-55,
B7: N.J.S.A. 40A:4-55.1 or N.J.S.A. 40A:4-55.13 listed on Sheets 29 and 30.)
H9: Amount
C10: Caused By | H10: =IF('KEY INPUTS'!C42 = "State Fiscal Year", 'KEY INPUTS'!F46,'KEY INPUTS'!D46) -> Dec. 31, 2022 | J10: Amount in | L10: Amount | N10: Balance
H11: per Audit | J11: =IF('KEY INPUTS'!C42="State Fiscal Year","Fiscal Year "&'KEY INPUTS'!D33&"",'KEY INPUTS'!D34)&"" -> 2023 | L11: Resulting from | N11: as at
H12: Report | J12: Budget | L12: =IF('KEY INPUTS'!C42="State Fiscal Year","Fiscal Year "&'KEY INPUTS'!D33&"",'KEY INPUTS'!D34)&"" -> 2023 | N12: =IF('KEY INPUTS'!C42 = "State Fiscal Year", 'KEY INPUTS'!F47,'KEY INPUTS'!D47) -> Dec. 31, 2023
C13: Emergency Authorization -
D14: Municipal* | G14: $ | I14: $ | K14: $ | M14: $ | N14: =+H14-J14+L14 -> 0
C16: Emergency Authorization -
D17: Schools | G17: $ | I17: $ | K17: $ | M17: $ | N17: =+H17-J17+L17 -> 0
C18: Overexpenditure of Appropriations | G18: $ | I18: $ | K18: $ | M18: $ | N18: =+H18-J18+L18 -> 0
G19: $ | I19: $ | K19: $ | M19: $ | N19: =+H19-J19+L19 -> 0
G20: $ | I20: $ | K20: $ | M20: $ | N20: 0
G21: $ | I21: $ | K21: $ | M21: $ | N21: 0
G22: $ | I22: $ | K22: $ | M22: $ | N22: 0
G23: $ | I23: $ | K23: $ | M23: $ | N23: 0
G24: $ | I24: $ | K24: $ | M24: $ | N24: 0
C25: TOTAL DEFERRED CHARGES | G25: $ | H25: =SUM(H14:H24) -> 0 | I25: $ | J25: =SUM(J14:J24) -> 0 | K25: $ | L25: =SUM(L14:L24) -> 0 | M25: $ | N25: =SUM(N14:N24) -> 0
C27: *Do not include items funded or refunded as listed below.
B30: EMERGENCY AUTHORIZATIONS UNDER N.J.S.A. 40A:4-47 WHICH HAVE BEEN
B31: FUNDED OR REFUNDED UNDER N.J.S.A. 40A:2-3 OR N.J.S.A. 40A:2-51
D33: Date | G33: Purpose | N33: Amount
C34: 1. | M34: $
C35: 2. | M35: $
C36: 3. | M36: $
C37: 4. | M37: $
C38: 5. | M38: $
B42: JUDGMENTS ENTERED AGAINST MUNICIPALITY AND NOT SATISFIED
N44: Appropriated for
N45: in Budget of
D46: In Favor of | H46: On Account of | J46: Date Entered | L46: Amount | N46: =IF('KEY INPUTS'!C42="State Fiscal Year","Fiscal Year "&'KEY INPUTS'!D33&"","Year "&'KEY INPUTS'!D34&"") -> Year 2023
C48: 1. | K48: $
C49: 2. | K49: $
C50: 3. | K50: $
C51: 4. | K51: $
B58: Sheet 28

Sheet 29-Special Emergency
C2: N.J.S.A. 40A:4-53 SPECIAL EMERGENCY - | F2: TAX MAP; REVALUATION; MASTER PLAN; REVISION AND CODIFICATION OF ORDINANCES; DRAINAGE MAPS
F3: FOR FLOOD CONTROL; PRELIMINARY ENGINEERING STUDIES, ETC. FOR SANITARY SEWER SYSTEM; MUNICIPAL
F4: CONSOLIDATION ACT; FLOOD OR HURRICANE DAMAGE.
J6: REDUCED IN
B7: Date | E7: Purpose | G7: Amount | H7: Not Less Than | I7: Balance | J7: =IF('KEY INPUTS'!C42="State Fiscal Year","Fiscal Year "&'KEY INPUTS'!D33&"",'KEY INPUTS'!D34)&"" -> 2023 | L7: Balance
G8: Authorized | H8: 1/5 of Amount | I8: =IF('KEY INPUTS'!C42 = "State Fiscal Year", 'KEY INPUTS'!F46,'KEY INPUTS'!D46) -> Dec. 31, 2022 | J8: ="By "&IF('KEY INPUTS'!C42="State Fiscal Year","FY "&'KEY INPUTS'!D33&"",'KEY INPUTS'!D34)&"" -> By 2023 | K8: Canceled | L8: =IF('KEY INPUTS'!C42 = "State Fiscal Year", 'KEY INPUTS'!F47,'KEY INPUTS'!D47) -> Dec. 31, 2023
H9: Authorized* | J9: Budget | K9: By Resolution
L10: =+I10-J10-K10 -> 0
L11: =+I11-J11-K11 -> 0
L12: =+I12-J12-K12 -> 0
L13: 0
L14: 0
L15: 0
A16: Sheet 29 | L16: 0
L17: 0
L18: 0
L19: 0
L20: 0
L21: 0
L22: 0
L23: 0
F24: Totals | G24: =SUM(G10:G23) -> 0 | H24: 0 | I24: 0 | J24: 0 | K24: 0 | L24: 0
B26: It is hereby certified that all outstanding "Special Emergency" appropriations have been adopted by the governing body in full compliance with N.J.S.A. 40A:4-53 et seq. and
B27: are recorded on this page
J29: Chief Financial Officer
B30: ="* Not less than one-fifth (1/5) of amount authorized but not more than the amount in the column 'Balance "&IF('KEY INPUTS'!C42 = "State Fiscal Year", 'KEY INPUTS'!F47,'KEY INPUTS'!D47)&"' must be entered here and then raised in the "&IF('KEY INPUTS'!C42="State Fiscal Year","Fiscal Year "&'KEY INPUTS'!D33+1&"",'KEY INPUTS'!D34+1)&" budget." -> * Not less than one-fifth (1/5) of amount authorized but not more than the amount in the column 'Balance Dec. 31, 2023' must be entered here and then raised in the 2024 budget.
L35: =+I24-J24-L24 -> 0

Sheet 30-Special Emergency
C2: N.J.S.A. 40A:4-55.1, ET SEQ., SPECIAL EMERGENCY - DAMAGE CAUSED TO ROADS OR BRIDGES BY SNOW, ICE, FROST OR FLOODS
C3: N.J.S.A. 40A:4-55.13, ET SEQ., SPECIAL EMERGENCY - PUBLIC EXIGENCIES CAUSED BY CIVIL DISTURBANCES
J6: REDUCED IN
B7: Date | E7: Purpose | G7: Amount | H7: Not Less Than | I7: Balance | J7: ='29-Special Emergency'!J7:K7 -> 2023 | L7: Balance
G8: Authorized | H8: 1/3 of Amount | I8: ='29-Special Emergency'!I8 -> Dec. 31, 2022 | J8: ='29-Special Emergency'!J8 -> By 2023 | K8: Canceled | L8: ='29-Special Emergency'!L8 -> Dec. 31, 2023
H9: Authorized* | J9: Budget | K9: By Resolution
L10: =+I10-J10-K10 -> 0
L11: =+I11-J11-K11 -> 0
L12: =+I12-J12-K12 -> 0
L13: 0
L14: 0
L15: 0
A16: Sheet 30 | L16: 0
L17: 0
L18: 0
L19: 0
L20: 0
L21: 0
L22: 0
L23: 0
F24: Totals | G24: =SUM(G10:G23) -> 0 | H24: 0 | I24: 0 | J24: 0 | K24: 0 | L24: 0
B26: It is hereby certified that all outstanding "Special Emergency" appropriations have been adopted by the governing body in full compliance with N.J.S.A. 40A:4-55.1 et seq. and
B27: N.J.S.A. 40A:4-55.13 et seq. and are recorded on this page
J29: Chief Financial Officer
B30: ="* Not less than one-third (1/3) of amount authorized but not more than the amount in the column 'Balance "&IF('KEY INPUTS'!C42 = "State Fiscal Year", 'KEY INPUTS'!F47,'KEY INPUTS'!D47)&"' must be entered here and then raised in the "&IF('KEY INPUTS'!C42="State Fiscal Year","Fiscal Year "&'KEY INPUTS'!D33+1&"",'KEY INPUTS'!D34+1)&" budget." -> * Not less than one-third (1/3) of amount authorized but not more than the amount in the column 'Balance Dec. 31, 2023' must be entered here and then raised in the 2024 budget.

Sheet 31-Capital Bond Schedule
B2: SCHEDULE OF BONDS ISSUED AND OUTSTANDING
B3: =" AND "&IF('KEY INPUTS'!C42="State Fiscal Year","FISCAL YEAR "&'KEY INPUTS'!D33+1&"",'KEY INPUTS'!D34+1)&" DEBT SERVICE FOR BONDS" -> AND 2024 DEBT SERVICE FOR BONDS
B4: GENERAL CAPITAL BONDS
G6: Debit | H6: Credit | J6: =IF('KEY INPUTS'!C42="State Fiscal Year","Fiscal Year "&'KEY INPUTS'!D33+1&"",'KEY INPUTS'!D34+1)&" Debt Service" -> 2024 Debt Service
B7: =IF('KEY INPUTS'!C42 = "State Fiscal Year", 'KEY INPUTS'!F27,'KEY INPUTS'!D27) -> Outstanding - January 1, 2023 | G7: xxxxxxxxx | H7: 730,000.00
B8: Issued | G8: xxxxxxxxx
B9: Paid | G9: 85,000.00 | H9: xxxxxxxxx
B12: =IF('KEY INPUTS'!C42 = "State Fiscal Year", 'KEY INPUTS'!F28,'KEY INPUTS'!D28) -> Outstanding - December 31, 2023 | G12: =+H7+H8-G9-G10-G11+H10+H11 -> 645,000.00 | H12: xxxxxxxxx
G13: =SUM(G7:G12) -> 730,000.00 | H13: =SUM(H7:I12) -> 730,000.00
B14: =IF('KEY INPUTS'!C42="State Fiscal Year","Fiscal Year "&'KEY INPUTS'!D33+1&"",'KEY INPUTS'!D34+1)&" Bond Maturities - General Capital Bonds" -> 2024 Bond Maturities - General Capital Bonds | J14: $ | K14: 90,000.00
B15: =IF('KEY INPUTS'!C42="State Fiscal Year","Fiscal Year "&'KEY INPUTS'!D33+1&"",'KEY INPUTS'!D34+1)&" Interest on Bonds*" -> 2024 Interest on Bonds* | H15: $ | I15: 29,062.50
B17: ASSESSMENT SERIAL BONDS
B18: =B7 -> Outstanding - January 1, 2023 | G18: xxxxxxxxx
B19: Issued | G19: xxxxxxxxx
B20: Paid | H20: xxxxxxxxx
B23: =B12 -> Outstanding - December 31, 2023 | G23: =+H18+H19-G20-G21-G22+H21+H22 -> 0 | H23: xxxxxxxxx
G24: =SUM(G18:G23) -> 0 | H24: =SUM(H18:I23) -> 0
B25: =IF('KEY INPUTS'!C42="State Fiscal Year","Fiscal Year "&'KEY INPUTS'!D33+1&"",'KEY INPUTS'!D34+1)&" Bond Maturities - Assessment Bonds" -> 2024 Bond Maturities - Assessment Bonds | J25: $
B26: =B15 -> 2024 Interest on Bonds* | H26: $
B27: Total "Interest on Bonds - Debt Service" (*Items) | J27: $ | K27: =+I26+I15 -> 29,062.50
B29: ="LIST OF BONDS ISSUED DURING "&IF('KEY INPUTS'!C42="State Fiscal Year","FISCAL YEAR "&'KEY INPUTS'!D33&"",'KEY INPUTS'!D34)&"" -> LIST OF BONDS ISSUED DURING 2023
B30: Purpose | G30: =IF('KEY INPUTS'!C42="State Fiscal Year","FY "&'KEY INPUTS'!D33+1&"",'KEY INPUTS'!D34+1)&" Maturity" -> 2024 Maturity | H30: Amount Issued | J30: Date of Issue | L30: Interest Rate
F39: Total | G39: =SUM(G31:G38) -> 0 | H39: =SUM(H31:I38) -> 0
B47: Sheet 31

Sheet 31A-Loan Schedule
B2: SCHEDULE OF LOANS ISSUED AND OUTSTANDING
B3: =" AND "&IF('KEY INPUTS'!C42="State Fiscal Year","FISCAL YEAR "&'KEY INPUTS'!D33+1&"",'KEY INPUTS'!D34+1)&" DEBT SERVICE FOR LOANS" -> AND 2024 DEBT SERVICE FOR LOANS
B4: =IF(R4<>"",(UPPER(R4)),"")&" LOAN" -> LOAN | Q4: Loan Type:
G6: Debit | H6: Credit | J6: ='31-Capital Bond Schedule'!J6:L6 -> 2024 Debt Service
B7: ='31-Capital Bond Schedule'!B7 -> Outstanding - January 1, 2023 | G7: xxxxxxxxx
B8: Issued | G8: xxxxxxxxx
B9: Paid | H9: xxxxxxxxx
B10: Refunded
B12: ='31-Capital Bond Schedule'!B12 -> Outstanding - December 31, 2023 | G12: =+H7+H8-G9-G10-G11+H10+H11 -> 0 | H12: xxxxxxxxx
G13: =SUM(G7:G12) -> 0 | H13: =SUM(H7:I12) -> 0
B14: =IF('KEY INPUTS'!C42="State Fiscal Year","Fiscal Year "&'KEY INPUTS'!D33+1&"",'KEY INPUTS'!D34+1)&" Loan Maturities" -> 2024 Loan Maturities | J14: $
B15: =IF('KEY INPUTS'!C42="State Fiscal Year","Fiscal Year "&'KEY INPUTS'!D33+1&"",'KEY INPUTS'!D34+1)&" Interest on Loans " -> 2024 Interest on Loans | J15: $
B16: ="Total "&IF('KEY INPUTS'!C42="State Fiscal Year","Fiscal Year "&'KEY INPUTS'!D33+1&"",'KEY INPUTS'!D34+1)&" Debt Service for "&IF(R4<>"",R4,"")&" Loan" -> Total 2024 Debt Service for Loan | J16: $ | K16: =+K14+K15 -> 0
B17: =IF(R17<>"",(UPPER(R17)),"")&" LOAN" -> LOAN | Q17: Loan Type:
B18: =B7 -> Outstanding - January 1, 2023 | G18: xxxxxxxxx
B19: Issued | G19: xxxxxxxxx
B20: Paid | H20: xxxxxxxxx
B23: =B12 -> Outstanding - December 31, 2023 | G23: =+H18+H19-G20-G21-G22+H21+H22 -> 0 | H23: xxxxxxxxx
G24: =SUM(G18:G23) -> 0 | H24: =SUM(H18:I23) -> 0
B25: =B14 -> 2024 Loan Maturities | J25: $
B26: =B15 -> 2024 Interest on Loans | J26: $
B27: ="Total "&IF('KEY INPUTS'!C42="State Fiscal Year","Fiscal Year "&'KEY INPUTS'!D33+1&"",'KEY INPUTS'!D34+1)&" Debt Service for "&IF(R17<>"",R17,"")&" Loan" -> Total 2024 Debt Service for Loan | J27: $ | K27: =+K25+K26 -> 0
B29: ="LIST OF LOANS ISSUED DURING "&IF('KEY INPUTS'!C42="State Fiscal Year","FISCAL YEAR "&'KEY INPUTS'!D33&"",'KEY INPUTS'!D34) -> LIST OF LOANS ISSUED DURING 2023
B30: Purpose | G30: ='31-Capital Bond Schedule'!G30 -> 2024 Maturity | H30: Amount Issued | J30: Date of Issue | L30: Interest Rate
F39: Total | G39: =SUM(G31:G38) -> 0 | H39: =SUM(H31:I38) -> 0
B47: Sheet 31a

Sheet 31A.1-Loan Schedule
B2: SCHEDULE OF LOANS ISSUED AND OUTSTANDING
B3: =" AND "&IF('KEY INPUTS'!C42="State Fiscal Year","FISCAL YEAR "&'KEY INPUTS'!D33+1&"",'KEY INPUTS'!D34+1)&" DEBT SERVICE FOR LOANS" -> AND 2024 DEBT SERVICE FOR LOANS
B4: =IF(R4<>"",(UPPER(R4)),"")&" LOAN" -> LOAN | Q4: Loan Type:
G6: Debit | H6: Credit | J6: ='31-Capital Bond Schedule'!J6:L6 -> 2024 Debt Service
B7: ='31-Capital Bond Schedule'!B7 -> Outstanding - January 1, 2023 | G7: xxxxxxxxx
B8: Issued | G8: xxxxxxxxx
B9: Paid | H9: xxxxxxxxx
B10: Refunded
B12: ='31-Capital Bond Schedule'!B12 -> Outstanding - December 31, 2023 | G12: =+H7+H8-G9-G10-G11+H10+H11 -> 0 | H12: xxxxxxxxx
G13: =SUM(G7:G12) -> 0 | H13: =SUM(H7:I12) -> 0
B14: ='31A-Loan Schedule'!B14 -> 2024 Loan Maturities | J14: $
B15: ='31A-Loan Schedule'!B15 -> 2024 Interest on Loans | J15: $
B16: ="Total "&IF('KEY INPUTS'!C42="State Fiscal Year","Fiscal Year "&'KEY INPUTS'!D33+1&"",'KEY INPUTS'!D34+1)&" Debt Service for "&IF(R4<>"",R4,"")&" Loan" -> Total 2024 Debt Service for Loan | J16: $ | K16: =+K14+K15 -> 0
B17: =IF(R17<>"",(UPPER(R17)),"")&" LOAN" -> LOAN | Q17: Loan Type:
B18: =B7 -> Outstanding - January 1, 2023 | G18: xxxxxxxxx
B19: Issued | G19: xxxxxxxxx
B20: Paid | H20: xxxxxxxxx
B23: =B12 -> Outstanding - December 31, 2023 | G23: =+H18+H19-G20-G21-G22+H21+H22 -> 0 | H23: xxxxxxxxx
G24: =SUM(G18:G23) -> 0 | H24: =SUM(H18:I23) -> 0
B25: =B14 -> 2024 Loan Maturities | J25: $
B26: =B15 -> 2024 Interest on Loans | J26: $
B27: ="Total "&IF('KEY INPUTS'!C42="State Fiscal Year","Fiscal Year "&'KEY INPUTS'!D33+1&"",'KEY INPUTS'!D34+1)&" Debt Service for "&IF(R17<>"",R17,"")&" Loan" -> Total 2024 Debt Service for Loan | J27: $ | K27: =+K25+K26 -> 0
B29: ="LIST OF LOANS ISSUED DURING "&IF('KEY INPUTS'!C42="State Fiscal Year","FISCAL YEAR "&'KEY INPUTS'!D33&"",'KEY INPUTS'!D34) -> LIST OF LOANS ISSUED DURING 2023
B30: Purpose | G30: ='31-Capital Bond Schedule'!G30 -> 2024 Maturity | H30: Amount Issued | J30: Date of Issue | L30: Interest Rate
F39: Total | G39: =SUM(G31:G38) -> 0 | H39: =SUM(H31:I38) -> 0
B47: Sheet 31a.1

Sheet 31A.2-Loan Schedule
B2: SCHEDULE OF LOANS ISSUED AND OUTSTANDING
B3: =" AND "&IF('KEY INPUTS'!C42="State Fiscal Year","FISCAL YEAR "&'KEY INPUTS'!D33+1&"",'KEY INPUTS'!D34+1)&" DEBT SERVICE FOR LOANS" -> AND 2024 DEBT SERVICE FOR LOANS
B4: =IF(R4<>"",(UPPER(R4)),"")&" LOAN" -> LOAN | Q4: Loan Type:
G6: Debit | H6: Credit | J6: ='31-Capital Bond Schedule'!J6:L6 -> 2024 Debt Service
B7: ='31-Capital Bond Schedule'!B7 -> Outstanding - January 1, 2023 | G7: xxxxxxxxx
B8: Issued | G8: xxxxxxxxx
B9: Paid | H9: xxxxxxxxx
B10: Refunded
B12: ='31-Capital Bond Schedule'!B12 -> Outstanding - December 31, 2023 | G12: =+H7+H8-G9-G10-G11+H10+H11 -> 0 | H12: xxxxxxxxx
G13: =SUM(G7:G12) -> 0 | H13: =SUM(H7:I12) -> 0
B14: ='31A.1-Loan Schedule'!B14 -> 2024 Loan Maturities | J14: $
B15: ='31A.1-Loan Schedule'!B15 -> 2024 Interest on Loans | J15: $
B16: ="Total "&IF('KEY INPUTS'!C42="State Fiscal Year","Fiscal Year "&'KEY INPUTS'!D33+1&"",'KEY INPUTS'!D34+1)&" Debt Service for "&IF(R4<>"",R4,"")&" Loan" -> Total 2024 Debt Service for Loan | J16: $ | K16: =+K14+K15 -> 0
B17: =IF(R17<>"",(UPPER(R17)),"")&" LOAN" -> LOAN | Q17: Loan Type:
B18: =B7 -> Outstanding - January 1, 2023 | G18: xxxxxxxxx
B19: Issued | G19: xxxxxxxxx
B20: Paid | H20: xxxxxxxxx
B23: =B12 -> Outstanding - December 31, 2023 | G23: =+H18+H19-G20-G21-G22+H21+H22 -> 0 | H23: xxxxxxxxx
G24: =SUM(G18:G23) -> 0 | H24: =SUM(H18:I23) -> 0
B25: =B14 -> 2024 Loan Maturities | J25: $
B26: =B15 -> 2024 Interest on Loans | J26: $
B27: ="Total "&IF('KEY INPUTS'!C42="State Fiscal Year","Fiscal Year "&'KEY INPUTS'!D33+1&"",'KEY INPUTS'!D34+1)&" Debt Service for "&IF(R17<>"",R17,"")&" Loan" -> Total 2024 Debt Service for Loan | J27: $ | K27: =+K25+K26 -> 0
B29: ="LIST OF LOANS ISSUED DURING "&IF('KEY INPUTS'!C42="State Fiscal Year","FISCAL YEAR "&'KEY INPUTS'!D33&"",'KEY INPUTS'!D34) -> LIST OF LOANS ISSUED DURING 2023
B30: Purpose | G30: ='31-Capital Bond Schedule'!G30 -> 2024 Maturity | H30: Amount Issued | J30: Date of Issue | L30: Interest Rate
F39: Total | G39: =SUM(G31:G38) -> 0 | H39: =SUM(H31:I38) -> 0
B47: Sheet 31a.2

Sheet 32-Bond Schedule
B2: SCHEDULE OF BONDS ISSUED AND OUTSTANDING
B3: =" AND "&IF('KEY INPUTS'!C42="State Fiscal Year","FISCAL YEAR "&'KEY INPUTS'!D33+1&"",'KEY INPUTS'!D34+1)&" DEBT SERVICE FOR BONDS" -> AND 2024 DEBT SERVICE FOR BONDS
B4: TYPE I SCHOOL TERM BONDS
G6: Debit | H6: Credit | J6: ='31A-Loan Schedule'!J6:L6 -> 2024 Debt Service
B7: ='31-Capital Bond Schedule'!B7 -> Outstanding - January 1, 2023 | G7: xxxxxxxxx
B8: Paid | H8: xxxxxxxxx
B11: ='31-Capital Bond Schedule'!B12 -> Outstanding - December 31, 2023 | G11: =+H7-G8-G9-G10+H9+H10 -> 0 | H11: xxxxxxxxx
G12: =SUM(G7:G11) -> 0 | H12: =SUM(H7:I11) -> 0
B13: =IF('KEY INPUTS'!C42="State Fiscal Year","Fiscal Year "&'KEY INPUTS'!D33+1&"",'KEY INPUTS'!D34+1)&" Bond Maturities - Term Bonds" -> 2024 Bond Maturities - Term Bonds | H13: $
B14: =IF('KEY INPUTS'!C42="State Fiscal Year","Fiscal Year "&'KEY INPUTS'!D33+1&"",'KEY INPUTS'!D34+1)&" Interest on Bonds" -> 2024 Interest on Bonds | H14: $
B16: TYPE I SCHOOL SERIAL BONDS
B17: =B7 -> Outstanding - January 1, 2023 | G17: xxxxxxxxx
B18: Issued | G18: xxxxxxxxx
B19: Paid | H19: xxxxxxxxx
B22: =B11 -> Outstanding - December 31, 2023 | G22: =+H17+H18-G19-G20-G21+H20+H21 -> 0 | H22: xxxxxxxxx
G23: =SUM(G17:G22) -> 0 | H23: =SUM(H17:I22) -> 0
B24: =B14 -> 2024 Interest on Bonds | H24: $
B25: =B13 -> 2024 Bond Maturities - Term Bonds | J25: $
B26: Total "Interest on Bonds - Type I School Debt Service" (*Items) | J26: $ | K26: =+I24+I14 -> 0
B28: ="LIST OF BONDS ISSUED DURING "&IF('KEY INPUTS'!C42="State Fiscal Year","FISCAL YEAR "&'KEY INPUTS'!D33&"",'KEY INPUTS'!D34)&"" -> LIST OF BONDS ISSUED DURING 2023
B29: Purpose | G29: =IF('KEY INPUTS'!C42="State Fiscal Year","FY "&'KEY INPUTS'!D33+1&"",'KEY INPUTS'!D34+1)&" Maturity -01" -> 2024 Maturity -01 | H29: Amount Issued -02 | J29: Date of Issue | L29: Interest Rate
E33: Total | G33: =SUM(G30:G32) -> 0 | H33: =SUM(H30:I32) -> 0
B36: =IF('KEY INPUTS'!C42="State Fiscal Year","FISCAL YEAR "&'KEY INPUTS'!D33+1&"",'KEY INPUTS'!D34+1)&" INTEREST REQUIREMENT - CURRENT FUND DEBT ONLY" -> 2024 INTEREST REQUIREMENT - CURRENT FUND DEBT ONLY
I37: Outstanding | K37: =IF('KEY INPUTS'!C42="State Fiscal Year","FY "&'KEY INPUTS'!D33+1&"",'KEY INPUTS'!D34+1)&" Interest" -> 2024 Interest
I38: =IF('KEY INPUTS'!C42 = "State Fiscal Year", 'KEY INPUTS'!F47,'KEY INPUTS'!D47) -> Dec. 31, 2023 | K38: Requirement
C40: 1. | D40: Emergency Notes | H40: $ | J40: $
C41: 2. | D41: Special Emergency Notes | H41: $ | J41: $
C42: 3. | D42: Tax Anticipation Notes | H42: $ | J42: $
C43: 4. | D43: Interest on Unpaid State & County Taxes | H43: $ | J43: $
C44: 5. | H44: $ | J44: $
C45: 6. | H45: $ | J45: $
B48: Sheet 32

Sheet 33-Note Debt Service
B2: DEBT SERVICE FOR NOTES (OTHER THAN ASSESSMENT NOTES)
E5: Original | F5: Original | G5: Amount | H5: Date | I5: Rate | J5: =IF('KEY INPUTS'!C42="State Fiscal Year","FY "&'KEY INPUTS'!D33+1&"",'KEY INPUTS'!D34+1)&" Budget Requirements" -> 2024 Budget Requirements | L5: Interest
C6: Title or Purpose of Issue | E6: Amount | F6: Date of | G6: of Note | H6: of | I6: of | L6: Computed to
E7: Issued | F7: Issue* | G7: Outstanding | H7: Maturity | I7: Interest | J7: For Principal | K7: For Interest** | L7: (Insert Date)
G8: =IF('KEY INPUTS'!C42 = "State Fiscal Year", 'KEY INPUTS'!F47,'KEY INPUTS'!D47) -> Dec. 31, 2023
A15: Sheet 33
D23: Page Totals | E23: =SUM(E9:E22) -> 0 | G23: =SUM(G9:G22) -> 0 | J23: =SUM(J9:J22) -> 0 | K23: =SUM(K9:K22) -> 0
B24: Memo: Designate all "Capital Notes" issued under N.J.S.A. 40A:2-8(b) with "C". Such notes must be retired at the rate of 20% of the original amount issued annually.
B25: Memo: Type 1 School Notes should be separately listed and totaled.
B26: *"Original Date of Issue" refers to the date when the first money was borrowed for a particular improvement, not the renewal date of subsequent notes which were issued.
D27: ="All notes with an original date of issue of "&IF('KEY INPUTS'!C42="State Fiscal Year","FY "&'KEY INPUTS'!D33-2&"",'KEY INPUTS'!D34-2)&" or prior require one legally payable installment to be budgeted if it is contemplated that such notes will be renewed in "&IF('KEY INPUTS'!C42="State Fiscal Year","FY "&'KEY INPUTS'!D33+1&"",'KEY INPUTS'!D34+1)&" or" -> All notes with an original date of issue of 2021 or prior require one legally payable installment to be budgeted if it is contemplated that such notes will be renewed in 2024 or
D28: written intent of permanent financing submitted with statement. | J28: (Do not crowd - add additional sheets)
B29: ** If interest on notes is financed by ordinance, designate same, otherwise an amount must be included in this column.

Sheet 33.1-Note Debt Service
B2: DEBT SERVICE FOR NOTES (OTHER THAN ASSESSMENT NOTES)
E5: Original | F5: Original | G5: Amount | H5: Date | I5: Rate | J5: =IF('KEY INPUTS'!C42="State Fiscal Year","FY "&'KEY INPUTS'!D33+1&"",'KEY INPUTS'!D34+1)&" Budget Requirements" -> 2024 Budget Requirements | L5: Interest
C6: Title or Purpose of Issue | E6: Amount | F6: Date of | G6: of Note | H6: of | I6: of | L6: Computed to
E7: Issued | F7: Issue* | G7: Outstanding | H7: Maturity | I7: Interest | J7: For Principal | K7: For Interest** | L7: (Insert Date)
G8: ='33-Note Debt Service'!G8 -> Dec. 31, 2023
C9: PREVIOUS PAGE TOTALS | E9: =+'33-Note Debt Service'!E23 -> 0 | G9: =+'33-Note Debt Service'!G23 -> 0 | J9: =+'33-Note Debt Service'!J23 -> 0 | K9: =+'33-Note Debt Service'!K23 -> 0
A15: Sheet 33.1
D23: PAGE TOTALS | E23: =SUM(E9:E22) -> 0 | G23: =SUM(G9:G22) -> 0 | J23: =SUM(J9:J22) -> 0 | K23: =SUM(K9:K22) -> 0
B24: Memo: Designate all "Capital Notes" issued under N.J.S.A. 40A:2-8(b) with "C". Such notes must be retired at the rate of 20% of the original amount issued annually.
B25: Memo: Type 1 School Notes should be separately listed and totaled.
B26: *"Original Date of Issue" refers to the date when the first money was borrowed for a particular improvement, not the renewal date of subsequent notes which were issued.
D27: ="All notes with an original date of issue of "&IF('KEY INPUTS'!C42="State Fiscal Year","FY "&'KEY INPUTS'!D33-2&"",'KEY INPUTS'!D34-2)&" or prior require one legally payable installment to be budgeted if it is contemplated that such notes will be renewed in "&IF('KEY INPUTS'!C42="State Fiscal Year","FY "&'KEY INPUTS'!D33+1&"",'KEY INPUTS'!D34+1)&" or" -> All notes with an original date of issue of 2021 or prior require one legally payable installment to be budgeted if it is contemplated that such notes will be renewed in 2024 or
D28: written intent of permanent financing submitted with statement. | J28: (Do not crowd - add additional sheets)
B29: ** If interest on notes is financed by ordinance, designate same, otherwise an amount must be included in this column.

Sheet 33 Totals-Note Debt Service
B2: DEBT SERVICE FOR NOTES (OTHER THAN ASSESSMENT NOTES)
E5: Original | F5: Original | G5: Amount | H5: Date | I5: Rate | J5: =IF('KEY INPUTS'!C42="State Fiscal Year","FY "&'KEY INPUTS'!D33+1&"",'KEY INPUTS'!D34+1)&" Budget Requirements" -> 2024 Budget Requirements | L5: Interest
C6: Title or Purpose of Issue | E6: Amount | F6: Date of | G6: of Note | H6: of | I6: of | L6: Computed to
E7: Issued | F7: Issue* | G7: Outstanding | H7: Maturity | I7: Interest | J7: For Principal | K7: For Interest** | L7: (Insert Date)
G8: ='33.1-Note Debt Service'!G8 -> Dec. 31, 2023
C9: PREVIOUS PAGE TOTALS | E9: =+'33.1-Note Debt Service'!E23 -> 0 | G9: =+'33.1-Note Debt Service'!G23 -> 0 | J9: =+'33.1-Note Debt Service'!J23 -> 0 | K9: =+'33.1-Note Debt Service'!K23 -> 0
A15: Sheet 33 Totals
D23: PAGE TOTALS | E23: =SUM(E9:E22) -> 0 | G23: =SUM(G9:G22) -> 0 | J23: =SUM(J9:J22) -> 0 | K23: =SUM(K9:K22) -> 0
B24: Memo: Designate all "Capital Notes" issued under N.J.S.A. 40A:2-8(b) with "C". Such notes must be retired at the rate of 20% of the original amount issued annually.
B25: Memo: Type 1 School Notes should be separately listed and totaled.
B26: *"Original Date of Issue" refers to the date when the first money was borrowed for a particular improvement, not the renewal date of subsequent notes which were issued.
D27: ="All notes with an original date of issue of "&IF('KEY INPUTS'!C42="State Fiscal Year","FY "&'KEY INPUTS'!D33-2&"",'KEY INPUTS'!D34-2)&" or prior require one legally payable installment to be budgeted if it is contemplated that such notes will be renewed in "&IF('KEY INPUTS'!C42="State Fiscal Year","FY "&'KEY INPUTS'!D33+1&"",'KEY INPUTS'!D34+1)&" or" -> All notes with an original date of issue of 2021 or prior require one legally payable installment to be budgeted if it is contemplated that such notes will be renewed in 2024 or
D28: written intent of permanent financing submitted with statement. | J28: (Do not crowd - add additional sheets)
B29: ** If interest on notes is financed by ordinance, designate same, otherwise an amount must be included in this column.

Sheet 34-Assmt Note Debt Service
B2: DEBT SERVICE SCHEDULE FOR ASSESSMENT NOTES
E5: Original | F5: Original | G5: Amount | H5: Date | I5: Rate | J5: ='33-Note Debt Service'!J5:K6 -> 2024 Budget Requirements | L5: Interest
C6: Title or Purpose of Issue | E6: Amount | F6: Date of | G6: of Note | H6: of | I6: of | L6: Computed to
E7: Issued | F7: Issue* | G7: Outstanding | H7: Maturity | I7: Interest | J7: For Principal | K7: For Interest** | L7: (Insert Date)
G8: ='33 Totals-Note Debt Service'!G8 -> Dec. 31, 2023
B9: 1.
B10: 2.
B11: 3.
B12: 4.
B13: 5.
B14: 6.
A15: Sheet 34 | B15: 7.
B16: 8.
B17: 9.
B18: 10.
B19: 11.
B20: 12.
B21: 13.
B22: 14.
D23: Total | G23: =SUM(G9:G22) -> 0 | H23: =SUM(H9:H22) -> 0 | J23: =SUM(J9:J22) -> 0 | K23: =SUM(K9:K22) -> 0
B24: MEMO: *See Sheet 33 for clarification of "Original Date of Issue"
C25: ="Assessment Notes with an original date of issue of "&IF('KEY INPUTS'!C42="State Fiscal Year","FY "&'KEY INPUTS'!D33-2&"",'KEY INPUTS'!D34-2)&" or prior must be appropriated in full in the "&IF('KEY INPUTS'!C42="State Fiscal Year","FY "&'KEY INPUTS'!D33+1&"",'KEY INPUTS'!D34+1)&" Dedicated Assessment Budget or written intent of permanent financing" -> Assessment Notes with an original date of issue of 2021 or prior must be appropriated in full in the 2024 Dedicated Assessment Budget or written intent of permanent financing
D26: submitted with statement.
C27: **Interest on Assessment Notes must be included in the Current Fund Budget appropriation "Interest on Notes".
J28: (Do not crowd - add additional sheets)

Sheet 34a-Cap Lease Program Oblg
B2: SCHEDULE OF CAPITAL LEASE PROGRAM OBLIGATIONS
G5: Amount | H5: ='34-Assmt Note Debt Service'!J5 -> 2024 Budget Requirements
C6: Purpose | G6: Lease Obligation Outstanding
G7: ='34-Assmt Note Debt Service'!G8 -> Dec. 31, 2023 | H7: For Principal | I7: For Interest/Fees
B9: 1. | C9: 2017 Capital Lease Program - Monmouth County Improvement Authority | G9: 2,000.00 | H9: 1,000.00 | I9: 100.00
B10: 2.
B11: 3.
B12: 4.
B13: 5.
B14: 6.
A15: Sheet 34a | B15: 7.
B16: 8.
B17: 9.
B18: 10.
B19: 11.
B20: 12.
B21: 13.
B22: 14.
D23: Total | G23: =SUM(G9:G22) -> 2,000.00 | H23: =SUM(H9:H22) -> 1,000.00 | I23: =SUM(I9:I22) -> 100.00
H26: (Do not crowd - add additional sheets)

Sheet 35- Cap Fund Imprv Auth
B2: SCHEDULE OF IMPROVEMENT AUTHORIZATIONS (GENERAL CAPITAL FUND)
E4: =IF('KEY INPUTS'!C42 = "State Fiscal Year", 'KEY INPUTS'!F25,'KEY INPUTS'!D25) -> Balance - January 1, 2023 | K4: =IF('KEY INPUTS'!C42 = "State Fiscal Year", 'KEY INPUTS'!F26,'KEY INPUTS'!D26) -> Balance - December 31, 2023
B5: IMPROVEMENTS
B6: Specify each authorization by purpose. Do | G6: =IF('KEY INPUTS'!C42="State Fiscal Year","Fiscal Year "&'KEY INPUTS'!D33&"",'KEY INPUTS'!D34)&"" -> 2023 | H6: Other | I6: Expended | J6: Authorizations
B7: not merely designate by a code number. | E7: Funded | F7: Unfunded | G7: Authorizations | J7: Canceled | K7: Funded | L7: Unfunded
B9: Inflow and Infiltration Corrections to the
B10: Sanitary Sewer System | E10: 88,129.37 | K10: 88,129.37
B11: Improvements to Municipal Building | E11: 71,649.09 | H11: (295.00) | I11: 3,110.00 | K11: 68,244.09
B12: Reconstruction of Belshaw Ave & Paving | E12: 30,449.74 | K12: 30,449.74
B13: 2019-07 Various Capital Improvement Projects
B14: (A) Crawford St Repaving Project - Phase I | E14: 29,608.88 | K14: 29,608.88
B15: (B) Crawford St Electric Project | E15: 75,859.61 | K15: 75,859.61
B16: (C) Crawford St Sewer Project - Phase I | E16: 122,922.63 | K16: 122,922.63
A17: Sheet 35 | B17: 2019-03 Underground Storage Tank Remediation | F17: 10,641.40 | I17: 2,857.50 | L17: 7,783.90
B18: 2019-07 Improvements to Crawford St | E18: 195,864.55 | F18: 42,750.00 | K18: 238,614.55
B19: 2020-03 Improvements to Barker Ave | E19: 146,938.75 | F19: 41,500.00 | I19: 140,093.18 | K19: 48,345.57
B20: 2021-04 Improvements to Water Infrastructure | E20: 26,732.50 | I20: 11,880.00 | K20: 14,852.50
B21: 2021-05 Improvements to Barker Ave | E21: 88,096.25 | F21: 70,000.00 | I21: 16,768.03 | K21: 71,328.22 | L21: 70,000.00
B22: 2021-06 Improvements to Park | E22: 50,250.84 | I22: 2,704.00 | K22: 47,546.84
B23: 2022-04 Improvements to Belshaw Avenue | E23: 164,830.00 | F23: 20,000.00 | J23: 184,830.00
B24: 2023-07 Varous Capital Improvement Projects | G24: 58,000.00 | K24: 2,900.00 | L24: 55,100.00
D28: Page Total | E28: =SUM(E9:E27) -> 1,091,332.21 | F28: =SUM(F9:F27) -> 184,891.40 | G28: 58,000.00 | H28: (295.00) | I28: 177,412.71 | J28: 184,830.00 | K28: 838,802.00 | L28: 132,883.90
C29: Place an * before each item of "Improvement" which represents a funding or refunding of an emergency authorization.

Sheet 35.1- Cap Fund Imprv Auth
B2: SCHEDULE OF IMPROVEMENT AUTHORIZATIONS (GENERAL CAPITAL FUND) (cont.)
E4: ='35- Cap Fund Imprv Auth'!E4:F6 -> Balance - January 1, 2023 | K4: ='35- Cap Fund Imprv Auth'!K4:L6 -> Balance - December 31, 2023
B5: IMPROVEMENTS
B6: Specify each authorization by purpose. Do | G6: =IF('KEY INPUTS'!C42="State Fiscal Year","Fiscal Year "&'KEY INPUTS'!D33&"",'KEY INPUTS'!D34)&"" -> 2023 | H6: Other | I6: Expended | J6: Authorizations
B7: not merely designate by a code number. | E7: Funded | F7: Unfunded | G7: Authorizations | J7: Canceled | K7: Funded | L7: Unfunded
B9: PREVIOUS PAGE TOTALS | E9: ='35- Cap Fund Imprv Auth'!E28 -> 1,091,332.21 | F9: ='35- Cap Fund Imprv Auth'!F28 -> 184,891.40 | G9: =+'35- Cap Fund Imprv Auth'!G28 -> 58,000.00 | H9: =+'35- Cap Fund Imprv Auth'!H28 -> (295.00) | I9: =+'35- Cap Fund Imprv Auth'!I28 -> 177,412.71 | J9: =+'35- Cap Fund Imprv Auth'!J28 -> 184,830.00 | K9: =+'35- Cap Fund Imprv Auth'!K28 -> 838,802.00 | L9: =+'35- Cap Fund Imprv Auth'!L28 -> 132,883.90
A12: Sheet 35.1
D28: PAGE TOTALS | E28: =SUM(E9:E27) -> 1,091,332.21 | F28: =SUM(F9:F27) -> 184,891.40 | G28: =SUM(G9:G27) -> 58,000.00 | H28: (295.00) | I28: 177,412.71 | J28: 184,830.00 | K28: 838,802.00 | L28: =SUM(L9:L27) -> 132,883.90
C29: Place an * before each item of "Improvement" which represents a funding or refunding of an emergency authorization.

Sheet 35.2- Cap Fund Imprv Auth
B2: SCHEDULE OF IMPROVEMENT AUTHORIZATIONS (GENERAL CAPITAL FUND) (cont.)
E4: ='35- Cap Fund Imprv Auth'!E4:F6 -> Balance - January 1, 2023 | K4: ='35- Cap Fund Imprv Auth'!K4:L6 -> Balance - December 31, 2023
B5: IMPROVEMENTS
B6: Specify each authorization by purpose. Do | G6: =IF('KEY INPUTS'!C42="State Fiscal Year","Fiscal Year "&'KEY INPUTS'!D33&"",'KEY INPUTS'!D34)&"" -> 2023 | H6: Other | I6: Expended | J6: Authorizations
B7: not merely designate by a code number. | E7: Funded | F7: Unfunded | G7: Authorizations | J7: Canceled | K7: Funded | L7: Unfunded
B9: PREVIOUS PAGE TOTALS | E9: =+'35.1- Cap Fund Imprv Auth '!E28 -> 1,091,332.21 | F9: =+'35.1- Cap Fund Imprv Auth '!F28 -> 184,891.40 | G9: =+'35.1- Cap Fund Imprv Auth '!G28 -> 58,000.00 | H9: =+'35.1- Cap Fund Imprv Auth '!H28 -> (295.00) | I9: =+'35.1- Cap Fund Imprv Auth '!I28 -> 177,412.71 | J9: =+'35.1- Cap Fund Imprv Auth '!J28 -> 184,830.00 | K9: =+'35.1- Cap Fund Imprv Auth '!K28 -> 838,802.00 | L9: =+'35.1- Cap Fund Imprv Auth '!L28 -> 132,883.90
A12: Sheet 35.2
D28: PAGE TOTALS | E28: =SUM(E9:E27) -> 1,091,332.21 | F28: =SUM(F9:F27) -> 184,891.40 | G28: 58,000.00 | H28: (295.00) | I28: 177,412.71 | J28: 184,830.00 | K28: 838,802.00 | L28: =SUM(L9:L27) -> 132,883.90
C29: Place an * before each item of "Improvement" which represents a funding or refunding of an emergency authorization.

Sheet 35.3- Cap Fund Imprv Auth (hidden)
B2: SCHEDULE OF IMPROVEMENT AUTHORIZATIONS (GENERAL CAPITAL FUND) (cont.)
E4: ='35- Cap Fund Imprv Auth'!E4:F6 -> Balance - January 1, 2023 | K4: ='35- Cap Fund Imprv Auth'!K4:L6 -> Balance - December 31, 2023
B5: IMPROVEMENTS
B6: Specify each authorization by purpose. Do | G6: =IF('KEY INPUTS'!C42="State Fiscal Year","Fiscal Year "&'KEY INPUTS'!D33&"",'KEY INPUTS'!D34)&"" -> 2023 | H6: Other | I6: Expended | J6: Authorizations
B7: not merely designate by a code number. | E7: Funded | F7: Unfunded | G7: Authorizations | J7: Canceled | K7: Funded | L7: Unfunded
B9: PREVIOUS PAGE TOTALS | E9: =+'35.2- Cap Fund Imprv Auth'!E28 -> 1,091,332.21 | F9: =+'35.2- Cap Fund Imprv Auth'!F28 -> 184,891.40 | G9: =+'35.2- Cap Fund Imprv Auth'!G28 -> 58,000.00 | H9: =+'35.2- Cap Fund Imprv Auth'!H28 -> (295.00) | I9: =+'35.2- Cap Fund Imprv Auth'!I28 -> 177,412.71 | J9: =+'35.2- Cap Fund Imprv Auth'!J28 -> 184,830.00 | K9: =+'35.2- Cap Fund Imprv Auth'!K28 -> 838,802.00 | L9: =+'35.2- Cap Fund Imprv Auth'!L28 -> 132,883.90
A12: Sheet 35.3
D28: PAGE TOTALS | E28: =SUM(E9:E27) -> 1,091,332.21 | F28: =SUM(F9:F27) -> 184,891.40 | G28: 58,000.00 | H28: (295.00) | I28: 177,412.71 | J28: 184,830.00 | K28: 838,802.00 | L28: =SUM(L9:L27) -> 132,883.90
C29: Place an * before each item of "Improvement" which represents a funding or refunding of an emergency authorization.

Sheet 35.4- Cap Fund Imprv Auth (hidden)
B2: SCHEDULE OF IMPROVEMENT AUTHORIZATIONS (GENERAL CAPITAL FUND) (cont.)
E4: ='35- Cap Fund Imprv Auth'!E4:F6 -> Balance - January 1, 2023 | K4: ='35- Cap Fund Imprv Auth'!K4:L6 -> Balance - December 31, 2023
B5: IMPROVEMENTS
B6: Specify each authorization by purpose. Do | G6: =IF('KEY INPUTS'!C42="State Fiscal Year","Fiscal Year "&'KEY INPUTS'!D33&"",'KEY INPUTS'!D34)&"" -> 2023 | H6: Other | I6: Expended | J6: Authorizations
B7: not merely designate by a code number. | E7: Funded | F7: Unfunded | G7: Authorizations | J7: Canceled | K7: Funded | L7: Unfunded
B9: PREVIOUS PAGE TOTALS | E9: =+'35.3- Cap Fund Imprv Auth'!E28 -> 1,091,332.21 | F9: =+'35.3- Cap Fund Imprv Auth'!F28 -> 184,891.40 | G9: =+'35.3- Cap Fund Imprv Auth'!G28 -> 58,000.00 | H9: =+'35.3- Cap Fund Imprv Auth'!H28 -> (295.00) | I9: =+'35.3- Cap Fund Imprv Auth'!I28 -> 177,412.71 | J9: =+'35.3- Cap Fund Imprv Auth'!J28 -> 184,830.00 | K9: =+'35.3- Cap Fund Imprv Auth'!K28 -> 838,802.00 | L9: =+'35.3- Cap Fund Imprv Auth'!L28 -> 132,883.90
A12: Sheet 35.4
D28: PAGE TOTALS | E28: =SUM(E9:E27) -> 1,091,332.21 | F28: =SUM(F9:F27) -> 184,891.40 | G28: 58,000.00 | H28: (295.00) | I28: 177,412.71 | J28: 184,830.00 | K28: 838,802.00 | L28: =SUM(L9:L27) -> 132,883.90
C29: Place an * before each item of "Improvement" which represents a funding or refunding of an emergency authorization.

Sheet 35.5- Cap Fund Imprv Auth (hidden)
B2: SCHEDULE OF IMPROVEMENT AUTHORIZATIONS (GENERAL CAPITAL FUND) (cont.)
E4: ='35- Cap Fund Imprv Auth'!E4:F6 -> Balance - January 1, 2023 | K4: ='35- Cap Fund Imprv Auth'!K4:L6 -> Balance - December 31, 2023
B5: IMPROVEMENTS
B6: Specify each authorization by purpose. Do | G6: =IF('KEY INPUTS'!C42="State Fiscal Year","Fiscal Year "&'KEY INPUTS'!D33&"",'KEY INPUTS'!D34)&"" -> 2023 | H6: Other | I6: Expended | J6: Authorizations
B7: not merely designate by a code number. | E7: Funded | F7: Unfunded | G7: Authorizations | J7: Canceled | K7: Funded | L7: Unfunded
B9: PREVIOUS PAGE TOTALS | E9: =+'35.4- Cap Fund Imprv Auth'!E28 -> 1,091,332.21 | F9: =+'35.4- Cap Fund Imprv Auth'!F28 -> 184,891.40 | G9: =+'35.4- Cap Fund Imprv Auth'!G28 -> 58,000.00 | H9: =+'35.4- Cap Fund Imprv Auth'!H28 -> (295.00) | I9: =+'35.4- Cap Fund Imprv Auth'!I28 -> 177,412.71 | J9: =+'35.4- Cap Fund Imprv Auth'!J28 -> 184,830.00 | K9: =+'35.4- Cap Fund Imprv Auth'!K28 -> 838,802.00 | L9: =+'35.4- Cap Fund Imprv Auth'!L28 -> 132,883.90
A12: Sheet 35.5
D28: PAGE TOTALS | E28: =SUM(E9:E27) -> 1,091,332.21 | F28: =SUM(F9:F27) -> 184,891.40 | G28: 58,000.00 | H28: (295.00) | I28: 177,412.71 | J28: 184,830.00 | K28: 838,802.00 | L28: =SUM(L9:L27) -> 132,883.90
C29: Place an * before each item of "Improvement" which represents a funding or refunding of an emergency authorization.

Sheet 35.6- Cap Fund Imprv Auth (hidden)
B2: SCHEDULE OF IMPROVEMENT AUTHORIZATIONS (GENERAL CAPITAL FUND) (cont.)
E4: ='35- Cap Fund Imprv Auth'!E4:F6 -> Balance - January 1, 2023 | K4: ='35- Cap Fund Imprv Auth'!K4:L6 -> Balance - December 31, 2023
B5: IMPROVEMENTS
B6: Specify each authorization by purpose. Do | G6: =IF('KEY INPUTS'!C42="State Fiscal Year","Fiscal Year "&'KEY INPUTS'!D33&"",'KEY INPUTS'!D34)&"" -> 2023 | H6: Other | I6: Expended | J6: Authorizations
B7: not merely designate by a code number. | E7: Funded | F7: Unfunded | G7: Authorizations | J7: Canceled | K7: Funded | L7: Unfunded
B9: PREVIOUS PAGE TOTALS | E9: =+'35.5- Cap Fund Imprv Auth'!E28 -> 1,091,332.21 | F9: =+'35.5- Cap Fund Imprv Auth'!F28 -> 184,891.40 | G9: =+'35.5- Cap Fund Imprv Auth'!G28 -> 58,000.00 | H9: =+'35.5- Cap Fund Imprv Auth'!H28 -> (295.00) | I9: =+'35.5- Cap Fund Imprv Auth'!I28 -> 177,412.71 | J9: =+'35.5- Cap Fund Imprv Auth'!J28 -> 184,830.00 | K9: =+'35.5- Cap Fund Imprv Auth'!K28 -> 838,802.00 | L9: =+'35.5- Cap Fund Imprv Auth'!L28 -> 132,883.90
A12: Sheet 35.6
D28: PAGE TOTALS | E28: =SUM(E9:E27) -> 1,091,332.21 | F28: =SUM(F9:F27) -> 184,891.40 | G28: 58,000.00 | H28: (295.00) | I28: 177,412.71 | J28: 184,830.00 | K28: 838,802.00 | L28: =SUM(L9:L27) -> 132,883.90
C29: Place an * before each item of "Improvement" which represents a funding or refunding of an emergency authorization.

Sheet 35.7- Cap Fund Imprv Auth (hidden)
B2: SCHEDULE OF IMPROVEMENT AUTHORIZATIONS (GENERAL CAPITAL FUND) (cont.)
E4: ='35- Cap Fund Imprv Auth'!E4:F6 -> Balance - January 1, 2023 | K4: ='35- Cap Fund Imprv Auth'!K4:L6 -> Balance - December 31, 2023
B5: IMPROVEMENTS
B6: Specify each authorization by purpose. Do | G6: =IF('KEY INPUTS'!C42="State Fiscal Year","Fiscal Year "&'KEY INPUTS'!D33&"",'KEY INPUTS'!D34)&"" -> 2023 | H6: Other | I6: Expended | J6: Authorizations
B7: not merely designate by a code number. | E7: Funded | F7: Unfunded | G7: Authorizations | J7: Canceled | K7: Funded | L7: Unfunded
B9: PREVIOUS PAGE TOTALS | E9: =+'35.6- Cap Fund Imprv Auth'!E28 -> 1,091,332.21 | F9: =+'35.6- Cap Fund Imprv Auth'!F28 -> 184,891.40 | G9: =+'35.6- Cap Fund Imprv Auth'!G28 -> 58,000.00 | H9: =+'35.6- Cap Fund Imprv Auth'!H28 -> (295.00) | I9: =+'35.6- Cap Fund Imprv Auth'!I28 -> 177,412.71 | J9: =+'35.6- Cap Fund Imprv Auth'!J28 -> 184,830.00 | K9: =+'35.6- Cap Fund Imprv Auth'!K28 -> 838,802.00 | L9: =+'35.6- Cap Fund Imprv Auth'!L28 -> 132,883.90
A12: Sheet 35.7
D28: PAGE TOTALS | E28: =SUM(E9:E27) -> 1,091,332.21 | F28: =SUM(F9:F27) -> 184,891.40 | G28: 58,000.00 | H28: (295.00) | I28: 177,412.71 | J28: 184,830.00 | K28: 838,802.00 | L28: =SUM(L9:L27) -> 132,883.90
C29: Place an * before each item of "Improvement" which represents a funding or refunding of an emergency authorization.

Sheet 35.8- Cap Fund Imprv Auth (hidden)
B2: SCHEDULE OF IMPROVEMENT AUTHORIZATIONS (GENERAL CAPITAL FUND) (cont.)
E4: ='35- Cap Fund Imprv Auth'!E4:F6 -> Balance - January 1, 2023 | K4: ='35- Cap Fund Imprv Auth'!K4:L6 -> Balance - December 31, 2023
B5: IMPROVEMENTS
B6: Specify each authorization by purpose. Do | G6: =IF('KEY INPUTS'!C42="State Fiscal Year","Fiscal Year "&'KEY INPUTS'!D33&"",'KEY INPUTS'!D34)&"" -> 2023 | H6: Other | I6: Expended | J6: Authorizations
B7: not merely designate by a code number. | E7: Funded | F7: Unfunded | G7: Authorizations | J7: Canceled | K7: Funded | L7: Unfunded
B9: PREVIOUS PAGE TOTALS | E9: =+'35.7- Cap Fund Imprv Auth'!E28 -> 1,091,332.21 | F9: =+'35.7- Cap Fund Imprv Auth'!F28 -> 184,891.40 | G9: =+'35.7- Cap Fund Imprv Auth'!G28 -> 58,000.00 | H9: =+'35.7- Cap Fund Imprv Auth'!H28 -> (295.00) | I9: =+'35.7- Cap Fund Imprv Auth'!I28 -> 177,412.71 | J9: =+'35.7- Cap Fund Imprv Auth'!J28 -> 184,830.00 | K9: =+'35.7- Cap Fund Imprv Auth'!K28 -> 838,802.00 | L9: =+'35.7- Cap Fund Imprv Auth'!L28 -> 132,883.90
A12: Sheet 35.8
D28: PAGE TOTALS | E28: =SUM(E9:E27) -> 1,091,332.21 | F28: =SUM(F9:F27) -> 184,891.40 | G28: 58,000.00 | H28: (295.00) | I28: 177,412.71 | J28: 184,830.00 | K28: 838,802.00 | L28: =SUM(L9:L27) -> 132,883.90
C29: Place an * before each item of "Improvement" which represents a funding or refunding of an emergency authorization.

Sheet 35.9- Cap Fund Imprv Auth (hidden)
B2: SCHEDULE OF IMPROVEMENT AUTHORIZATIONS (GENERAL CAPITAL FUND) (cont.)
E4: ='35- Cap Fund Imprv Auth'!E4:F6 -> Balance - January 1, 2023 | K4: ='35- Cap Fund Imprv Auth'!K4:L6 -> Balance - December 31, 2023
B5: IMPROVEMENTS
B6: Specify each authorization by purpose. Do | G6: =IF('KEY INPUTS'!C42="State Fiscal Year","Fiscal Year "&'KEY INPUTS'!D33&"",'KEY INPUTS'!D34)&"" -> 2023 | H6: Other | I6: Expended | J6: Authorizations
B7: not merely designate by a code number. | E7: Funded | F7: Unfunded | G7: Authorizations | J7: Canceled | K7: Funded | L7: Unfunded
B9: PREVIOUS PAGE TOTALS | E9: =+'35.8- Cap Fund Imprv Auth'!E28 -> 1,091,332.21 | F9: =+'35.8- Cap Fund Imprv Auth'!F28 -> 184,891.40 | G9: =+'35.8- Cap Fund Imprv Auth'!G28 -> 58,000.00 | H9: =+'35.8- Cap Fund Imprv Auth'!H28 -> (295.00) | I9: =+'35.8- Cap Fund Imprv Auth'!I28 -> 177,412.71 | J9: =+'35.8- Cap Fund Imprv Auth'!J28 -> 184,830.00 | K9: =+'35.8- Cap Fund Imprv Auth'!K28 -> 838,802.00 | L9: =+'35.8- Cap Fund Imprv Auth'!L28 -> 132,883.90
A12: Sheet 35.9
D28: PAGE TOTALS | E28: =SUM(E9:E27) -> 1,091,332.21 | F28: =SUM(F9:F27) -> 184,891.40 | G28: 58,000.00 | H28: (295.00) | I28: 177,412.71 | J28: 184,830.00 | K28: 838,802.00 | L28: =SUM(L9:L27) -> 132,883.90
C29: Place an * before each item of "Improvement" which represents a funding or refunding of an emergency authorization.

Sheet 35 Totals- Cap Fund Imprv Auth
B2: SCHEDULE OF IMPROVEMENT AUTHORIZATIONS (GENERAL CAPITAL FUND) (cont.)
E4: ='35- Cap Fund Imprv Auth'!E4:F6 -> Balance - January 1, 2023 | K4: ='35- Cap Fund Imprv Auth'!K4:L6 -> Balance - December 31, 2023
B5: IMPROVEMENTS
B6: Specify each authorization by purpose. Do | G6: =IF('KEY INPUTS'!C42="State Fiscal Year","Fiscal Year "&'KEY INPUTS'!D33&"",'KEY INPUTS'!D34)&"" -> 2023 | H6: Other | I6: Expended | J6: Authorizations
B7: not merely designate by a code number. | E7: Funded | F7: Unfunded | G7: Authorizations | J7: Canceled | K7: Funded | L7: Unfunded
B9: PREVIOUS PAGE TOTALS | E9: =+'35.9- Cap Fund Imprv Auth'!E28 -> 1,091,332.21 | F9: =+'35.9- Cap Fund Imprv Auth'!F28 -> 184,891.40 | G9: =+'35.9- Cap Fund Imprv Auth'!G28 -> 58,000.00 | H9: =+'35.9- Cap Fund Imprv Auth'!H28 -> (295.00) | I9: =+'35.9- Cap Fund Imprv Auth'!I28 -> 177,412.71 | J9: =+'35.9- Cap Fund Imprv Auth'!J28 -> 184,830.00 | K9: =+'35.9- Cap Fund Imprv Auth'!K28 -> 838,802.00 | L9: =+'35.9- Cap Fund Imprv Auth'!L28 -> 132,883.90
A12: Sheet 35 Totals
D28: GRAND TOTALS | E28: =SUM(E9:E27) -> 1,091,332.21 | F28: =SUM(F9:F27) -> 184,891.40 | G28: 58,000.00 | H28: (295.00) | I28: 177,412.71 | J28: 184,830.00 | K28: 838,802.00 | L28: =SUM(L9:L27) -> 132,883.90
C29: Place an * before each item of "Improvement" which represents a funding or refunding of an emergency authorization.

Sheet 36- Capital Improvement Fund
B3: GENERAL CAPITAL FUND
B5: SCHEDULE OF CAPITAL IMPROVEMENT FUND
I7: Debit | J7: Credit
B8: =IF('KEY INPUTS'!C42 = "State Fiscal Year", 'KEY INPUTS'!F25,'KEY INPUTS'!D25) -> Balance - January 1, 2023 | I8: xxxxxxxxx | J8: 50,066.83
B9: ="Received from "&IF('KEY INPUTS'!C42="State Fiscal Year","Fiscal Year "&'KEY INPUTS'!D33&"",'KEY INPUTS'!D34)&" Budget Appropriation*" -> Received from 2023 Budget Appropriation* | I9: xxxxxxxxx | J9: 25,000.00
I10: xxxxxxxxx
B11: Improvement Authorizations Canceled | I11: xxxxxxxxx | J11: 10,000.00
C12: (financed in whole by the Capital Improvement Fund)
B14: List by Improvements - Direct Charges Made for Preliminary Costs: | I14: xxxxxxxxx | J14: xxxxxxxxx
J15: xxxxxxxxx
J16: xxxxxxxxx
J17: xxxxxxxxx
J18: xxxxxxxxx
J19: xxxxxxxxx
J20: xxxxxxxxx
J21: xxxxxxxxx
J22: xxxxxxxxx
J23: xxxxxxxxx
J24: xxxxxxxxx
J25: xxxxxxxxx
J26: xxxxxxxxx
J27: xxxxxxxxx
J28: xxxxxxxxx
B29: Appropriated to Finance Improvement Authorizations | I29: 2,900.00 | J29: xxxxxxxxx
J30: xxxxxxxxx
B31: =IF('KEY INPUTS'!C42 = "State Fiscal Year", 'KEY INPUTS'!F26,'KEY INPUTS'!D26) -> Balance - December 31, 2023 | I31: =+SUM(J8:J13)-SUM(I13:I30) -> 82,166.83 | J31: xxxxxxxxx
I32: =SUM(I8:I31) -> 85,066.83 | J32: =SUM(J8:J31) -> 85,066.83
B37: ="*The full amount of the "&IF('KEY INPUTS'!C42="State Fiscal Year","Fiscal Year "&'KEY INPUTS'!D33&"",'KEY INPUTS'!D34)&" budget appropriation should be transferred to this account unless the" -> *The full amount of the 2023 budget appropriation should be transferred to this account unless the
B38: balance of the appropriation is to be permitted to lapse.
B54: Sheet 36

Sheet 37- Cap Fund Down Pymts
B3: GENERAL CAPITAL FUND
B5: SCHEDULE OF DOWN PAYMENTS ON IMPROVEMENTS
I7: Debit | J7: Credit
B8: ='36- Capital Improvement Fund'!B8 -> Balance - January 1, 2023 | I8: xxxxxxxxx
B9: ="Received from "&IF('KEY INPUTS'!C42="State Fiscal Year","Fiscal Year "&'KEY INPUTS'!D33&"",'KEY INPUTS'!D34)&" Budget Appropriation*" -> Received from 2023 Budget Appropriation* | I9: xxxxxxxxx
B10: ="Received from "&IF('KEY INPUTS'!C42="State Fiscal Year","Fiscal Year "&'KEY INPUTS'!D33&"",'KEY INPUTS'!D34)&" Emergency Appropriation*" -> Received from 2023 Emergency Appropriation* | I10: xxxxxxxxx
J12: xxxxxxxxx
B13: Appropriated to Finance Improvement Authorizations | J13: xxxxxxxxx
J14: xxxxxxxxx
B15: ='36- Capital Improvement Fund'!B31 -> Balance - December 31, 2023 | I15: =+SUM(J8:J11)-SUM(I11:I14) -> 0 | J15: xxxxxxxxx
I16: =SUM(I8:I15) -> 0 | J16: =SUM(J8:J15) -> 0
C18: ="*The full amount of the "&IF('KEY INPUTS'!C42="State Fiscal Year","Fiscal Year "&'KEY INPUTS'!D33&"",'KEY INPUTS'!D34)&" budget appropriation should be transferred to this account unless the" -> *The full amount of the 2023 budget appropriation should be transferred to this account unless the
D19: balance of the appropriation is to be permitted to lapse.
B21: ="CAPITAL IMPROVEMENTS AUTHORIZED IN "&IF('KEY INPUTS'!C42="State Fiscal Year","FISCAL YEAR "&'KEY INPUTS'!D33&"",'KEY INPUTS'!D34)&"" -> CAPITAL IMPROVEMENTS AUTHORIZED IN 2023
B22: AND DOWN PAYMENTS (N.J.S.A. 40A:2-11)
C25: Purpose | G25: Amount | H25: Total | I25: Down Payment | J25: Additional Funding
G26: Appropriated | H26: Obligations | I26: Provided by | J26: Sources
H27: Authorized | I27: Ordinance
B30: 2023-07 Various Capital Improvement
C31: Projects | G31: 58,000.00 | H31: 55,100.00 | I31: 2,900.00
E48: Total | G48: =SUM(G28:G47) -> 58,000.00 | H48: =SUM(H28:H47) -> 55,100.00 | I48: =SUM(I28:I47) -> 2,900.00 | J48: =SUM(J28:J47) -> 0
C50: NOTE - | D50: Where amount in column "Down Payment Provided by Ordinance" is LESS than 5% of amount in
D51: column "Total Obligations Authorized", explanation must be made part of or attached to this sheet.
B53: Sheet 37

Sheet 37- Cap Fund Down Pymts (2) (hidden)
B3: GENERAL CAPITAL FUND
B5: ="CAPITAL IMPROVEMENTS AUTHORIZED IN "&IF('KEY INPUTS'!C42="State Fiscal Year","FISCAL YEAR "&'KEY INPUTS'!D33&"",'KEY INPUTS'!D34)&"" -> CAPITAL IMPROVEMENTS AUTHORIZED IN 2023
B6: AND DOWN PAYMENTS (N.J.S.A. 40A:2-11) (Continued)
C9: Purpose | G9: Amount | H9: Total | I9: Down Payment | J9: Additional Funding
G10: Appropriated | H10: Obligations | I10: Provided by | J10: Sources
H11: Authorized | I11: Ordinance
E47: Grand Total | G47: =SUM(G12:G46)+'37- Cap Fund Down Pymts'!G48 -> 58,000.00 | H47: =SUM(H12:H46)+'37- Cap Fund Down Pymts'!H48 -> 55,100.00 | I47: =SUM(I12:I46)+'37- Cap Fund Down Pymts'!I48 -> 2,900.00 | J47: =SUM(J12:J46)+'37- Cap Fund Down Pymts'!J48 -> 0
C49: NOTE - | D49: Where amount in column "Down Payment Provided by Ordinance" is LESS than 5% of amount in
D50: column "Total Obligations Authorized", explanation must be made part of or attached to this sheet.
B52: Sheet 37.1

Sheet 38- Capital Surplus
B3: GENERAL CAPITAL FUND
B5: STATEMENT OF CAPITAL SURPLUS
B6: =IF('KEY INPUTS'!C42="State Fiscal Year","FISCAL YEAR - "&'KEY INPUTS'!D33&"","YEAR - "&'KEY INPUTS'!D34&"")&"" -> YEAR - 2023
I8: Debit | J8: Credit
B9: ='37- Cap Fund Down Pymts'!B8 -> Balance - January 1, 2023 | I9: xxxxxxxxx | J9: 96,732.19
B10: Premium on Sale of Bonds | I10: xxxxxxxxx
B11: Funded Improvement Authorizations Canceled | I11: xxxxxxxxx
B15: Appropriated to Finance Improvement Authorizations | J15: xxxxxxxxx
B16: ="Appropriated to "&IF('KEY INPUTS'!C42="State Fiscal Year","Fiscal Year "&'KEY INPUTS'!D33&"",'KEY INPUTS'!D34)&" Budget Revenue" -> Appropriated to 2023 Budget Revenue | J16: xxxxxxxxx
B17: ='37- Cap Fund Down Pymts'!B15 -> Balance - December 31, 2023 | I17: =SUM(J9:J14)-SUM(I12:I16) -> 96,732.19 | J17: xxxxxxxxx
I18: =SUM(I9:I17) -> 96,732.19 | J18: =SUM(J9:J17) -> 96,732.19
B62: Sheet 38

Sheet 39- Req. Information
B2: MUNICIPALITIES ONLY
B4: IMPORTANT !!
B6: This Sheet Must Be Completely Filled in or the Statement Will Be Considered Incomplete
B8: (N.J.S.A. 52:27BB-55 as Amended by Chap. 211, P.L. 1981)
B11: A.
C12: 1. | D12: ="Total Tax Levy for "&IF('KEY INPUTS'!C42="State Fiscal Year","Fiscal Year "&'KEY INPUTS'!D33&"","Year "&'KEY INPUTS'!D34&"")&" was" -> Total Tax Levy for Year 2023 was | M12: $ | N12: =+'22-CY Levy'!J17 -> 1,690,309.12
C13: 2. | D13: ="Amount of Item 1 Collected in "&IF('KEY INPUTS'!C42="State Fiscal Year","Fiscal Year "&'KEY INPUTS'!D33&"",'KEY INPUTS'!D34)&" (*)" -> Amount of Item 1 Collected in 2023 (*) | K13: $ | L13: =+'22-CY Levy'!L32 -> 1,683,719.15
C14: 3. | D14: Seventy (70) percent of Item 1 | M14: $ | N14: =+N12*0.7 -> 1,183,216.38
C15: (*) Including prepayments and overpayments applied.
B19: B.
C20: 1. | D20: ="Did any maturities of bonded obligations or notes fall due during the year "&IF('KEY INPUTS'!C42="State Fiscal Year","Fiscal Year "&'KEY INPUTS'!D33&"",'KEY INPUTS'!D34)&"?" -> Did any maturities of bonded obligations or notes fall due during the year 2023?
D22: Answer YES or NO
C24: 2. | D24: Have payments been made for all bonded obligations or notes due on or before
E25: =IF('KEY INPUTS'!C42="State Fiscal Year","June 30, "&'KEY INPUTS'!D33&"","December 31, "&'KEY INPUTS'!D34&"")&"?" -> December 31, 2023?
D27: Answer YES or NO | H27: If answer is "NO" give details
D30: NOTE: If answer to Item B1 is YES, then Item B2 must be answered
B33: C. | C33: ="Does the appropriation required to be included in the "&IF('KEY INPUTS'!C42="State Fiscal Year","Fiscal Year "&'KEY INPUTS'!D33+1&"","Calendar Year "&'KEY INPUTS'!D33&"")&" budget for the liquidation of all bonded" -> Does the appropriation required to be included in the Calendar Year 2024 budget for the liquidation of all bonded
B34: obligations or notes exceed 25% of the total appropriations for operating purpose in the budget for the year
B35: just ended?
E36: Answer YES or NO
B39: D.
C40: 1. | D40: ="Cash Deficit "&IF('KEY INPUTS'!C42 = "State Fiscal Year", "Fiscal Year "&'KEY INPUTS'!D34&"", 'KEY INPUTS'!D35) -> Cash Deficit 2022 | O40: $
C42: 2. | D42: ="4% of "&IF('KEY INPUTS'!C42 = "State Fiscal Year", "FY "&'KEY INPUTS'!D34&"", 'KEY INPUTS'!D35)&" Tax Levy for all purposes:" -> 4% of 2022 Tax Levy for all purposes:
H43: Levy -- | I43: $ | N43: = | O43: $
C45: 3. | D45: ="Cash Deficit "&IF('KEY INPUTS'!C42 = "State Fiscal Year", "Fiscal Year "&'KEY INPUTS'!D33&"", 'KEY INPUTS'!D34) -> Cash Deficit 2023 | O45: $
C47: 4. | D47: ="4% of "&IF('KEY INPUTS'!C42 = "State Fiscal Year", "FY "&'KEY INPUTS'!D33&"", 'KEY INPUTS'!D34)&" Tax Levy for all purposes:" -> 4% of 2023 Tax Levy for all purposes:
H48: Levy -- | I48: $ | N48: = | O48: $
B52: E. | D52: Unpaid | H52: =IF('KEY INPUTS'!C42 = "State Fiscal Year", "Fiscal Year "&'KEY INPUTS'!D34&"", 'KEY INPUTS'!D35) -> 2022 | L52: =IF('KEY INPUTS'!C42 = "State Fiscal Year", "Fiscal Year "&'KEY INPUTS'!D33&"", 'KEY INPUTS'!D34) -> 2023 | O52: Total
C54: 1. | D54: State Taxes | G54: $ | K54: $ | O54: $ | P54: =+L54+H54 -> 0
C55: 2. | D55: County Taxes | G55: $ | K55: $ | L55: =+'15-Other Taxes'!I19+'15-Other Taxes'!I18 -> 0 | O55: $ | P55: =+L55+H55 -> 0
C56: 3. | D56: Amounts due Special Districts
G57: $ | K57: $ | L57: ='15-Other Taxes'!I38 -> 0 | O57: $ | P57: =+L57+H57 -> 0
C58: 4. | D58: Amount due School Districts for School Tax
G59: $ | K59: $ | L59: =+'13-Other Taxes'!G16+'14-Other Taxes'!G38+'14-Other Taxes'!G17 -> (39,347.65) | O59: $ | P59: =+L59+H59 -> (39,347.65)
B62: Sheet 39

Sheet 40
B22: UTILITIES ONLY
C40: Note:
D41: If no "utility fund" existed on the books of account and if no utility was
C42: ="owned and operated by the municipality during the year "&IF('KEY INPUTS'!C42="State Fiscal Year","Fiscal Year "&'KEY INPUTS'!D33&"","Year "&'KEY INPUTS'!D34&"")&", please observe" -> owned and operated by the municipality during the year Year 2023, please observe
C43: instructions of Sheet 2.
B68: Sheet 40

Sheet 41-Utility1 (hidden)
B2: Bonds and Notes Authorized but Not Issued must be disclosed in this Utility Capital
B3: Section in the same manner as set forth in General Capital Fund on Sheet 8
B5: POST CLOSING
B6: ="TRIAL BALANCE - "&UPPER('KEY INPUTS'!D54)&" UTILITY FUND" -> TRIAL BALANCE - UTILITY FUND
B7: =IF('KEY INPUTS'!C42 = "State Fiscal Year", 'KEY INPUTS'!F45,'KEY INPUTS'!D45) -> AS AT DECEMBER 31, 2023
B8: Operating and Capital Sections
B9: (Separately Stated)
B10: Cash Liabilities Must Be Subtotaled and Subtotal Must Be Marked With "C"
B11: Title of Account | G11: Debit | H11: Credit
B13: Cash
B14: Investments
B16: Due from -
B17: Due from -
B19: Receivables Offset with Reserves:
B20: Consumer Accounts Receivable | G20: ='47-Utility1'!L24 -> 0
B21: Liens Receivable | G21: ='47-Utility1'!L54 -> 0
B26: Deferred Charges (Sheet 48)
B30: Cash Liabilities:
B31: Appropriation Reserves | H31: =+'44-Utility1'!I37 -> 0
B32: Encumbrances Payable
B33: Accrued Interest on Bonds and Notes | H33: =+'49-Utility1'!I29+'49a-Utility1'!I29+'50.1-Utility1'!M24+'49a.1-Utility1'!I29 -> 0
B34: Due to -
C39: Subtotal - Cash Liabilities | H39: =SUM(H30:H38) -> 0 | I39: "C"
B40: Reserve for Consumer Accounts and Lien Receivable
B42: Fund Balance | H42: =+'46-Utility1'!K27 -> 0
B44: Total | G44: =SUM(G12:G43) -> 0 | H44: =SUM(H39:H43) -> 0 | J44: =G44-H44 -> 0
B45: (Do not crowd - add additional sheets)
B50: Sheet 41
H57: =+H44-G44 -> 0

Sheet 41a-Utility1 (hidden)
B2: Bonds and Notes Authorized but Not Issued must be disclosed in this Utility Capital
B3: Section in the same manner as set forth in General Capital Fund on Sheet 8
B5: POST CLOSING
B6: ="TRIAL BALANCE - "&UPPER('KEY INPUTS'!D54)&" UTILITY FUND (cont'd)" -> TRIAL BALANCE - UTILITY FUND (cont'd)
B7: =IF('KEY INPUTS'!C42 = "State Fiscal Year", 'KEY INPUTS'!F45,'KEY INPUTS'!D45) -> AS AT DECEMBER 31, 2023
B8: Operating and Capital Sections
B9: (Separately Stated)
B10: Cash Liabilities Must Be Subtotaled and Subtotal Must Be Marked With "C"
B11: Title of Account | G11: Debit | H11: Credit
B13: CAPITAL SECTION:
B15: Est. Proceeds Bonds and Notes Authorized | H15: xxxxxxxxx
B16: Bonds and Notes Authorized but Not Issued | G16: xxxxxxxxx | H16: =+G15 -> 0
C18: CASH
C20: DUE FROM CURRENT FUND
C21: FIXED CAPITAL:
D22: COMPLETED
D23: AUTHORIZED AND UNCOMPLETED
C44: PAGE TOTALS | G44: =SUM(G15:G42) -> 0 | H44: =SUM(H15:H43) -> 0
B45: (Do not crowd - add additional sheets)
B50: Sheet 41a

Sheet 41a.1-Utility1 (hidden)
B2: Bonds and Notes Authorized but Not Issued must be disclosed in this Utility Capital
B3: Section in the same manner as set forth in General Capital Fund on Sheet 8
B5: POST CLOSING
B6: ="TRIAL BALANCE - "&UPPER('KEY INPUTS'!D54)&" UTILITY FUND (cont'd)" -> TRIAL BALANCE - UTILITY FUND (cont'd)
B7: =IF('KEY INPUTS'!C42 = "State Fiscal Year", 'KEY INPUTS'!F45,'KEY INPUTS'!D45) -> AS AT DECEMBER 31, 2023
B8: Operating and Capital Sections
B9: (Separately Stated)
B10: Cash Liabilities Must Be Subtotaled and Subtotal Must Be Marked With "C"
B11: Title of Account | G11: Debit | H11: Credit
C12: PREVIOUS PAGE TOTALS | G12: ='41a-Utility1'!G44 -> 0 | H12: ='41a-Utility1'!H44 -> 0
C17: BONDS PAYABLE | H17: =+'49-Utility1'!G22 -> 0
C18: LOANS PAYABLE | H18: =+'49a-Utility1'!G11+'49a-Utility1'!G22+'49a.1-Utility1'!G11+'49a.1-Utility1'!G22 -> 0
C19: CAPITAL LEASES PAYABLE | H19: =+'51a-Utility1'!G23 -> 0
C20: BOND ANTICIPATION NOTES | H20: =+'50.1-Utility1'!G18 -> 0
C21: IMPROVEMENT AUTHORIZATIONS:
D22: FUNDED | H22: =+'52-Totals-Utility1'!K27 -> 0
D23: UNFUNDED | H23: =+'52-Totals-Utility1'!L27 -> 0
C24: CONTRACTS PAYABLE
C25: ENCUMBRANCES
C26: ="DUE TO "&UPPER('KEY INPUTS'!D54)&" OPERATING" -> DUE TO OPERATING
C27: RESERVE FOR AMORTIZATION
C28: RESERVE FOR DEFERRED AMORTIZATION
C29: RESERVE FOR DEBT SERVICE
C40: DOWN PAYMENTS ON IMPROVEMENTS | H40: =+'53-Utility1'!I41 -> 0
C41: CAPITAL IMPROVEMENT FUND | H41: =+'53-Utility1'!I24 -> 0
C42: CAPITAL FUND BALANCE | H42: =+'54-Utility1'!I42 -> 0
C44: TOTALS | G44: =SUM(G12:G42) -> 0 | H44: =SUM(H12:H43) -> 0
B45: (Do not crowd - add additional sheets)
B50: Sheet 41a.1

Sheet 42-Utility1 (hidden)
B3: POST CLOSING TRIAL BALANCE -
B4: UTILITY ASSESSMENT TRUST FUNDS
B6: IF MORE THAN ONE UTILITY
B7: EACH ASSESSMENT SECTION MUST BE SEPARATELY STATED
B9: =IF('KEY INPUTS'!C42 = "State Fiscal Year", 'KEY INPUTS'!F45,'KEY INPUTS'!D45) -> AS AT DECEMBER 31, 2023
B10: Title of Account | G10: Debit | H10: Credit
B11: CASH
B38: ASSESSMENT NOTES | H38: =+'51-Utility1'!G23 -> 0
B39: ASSESSMENT SERIAL BONDS | H39: =+'49-Utility1'!G11 -> 0
B40: FUND BALANCE | H40: ='43-Utility1'!L20 -> 0
B43: TOTALS | G43: =SUM(G11:G42) -> 0 | H43: =SUM(H11:H42) -> 0
B44: (Do not crowd - add additional sheets)
B49: Sheet 42

Sheet 43-Utility1 (hidden)
B2: ="ANALYSIS OF "&UPPER('KEY INPUTS'!D54)&" UTILITY ASSESSMENT TRUST CASH AND INVESTMENTS" -> ANALYSIS OF UTILITY ASSESSMENT TRUST CASH AND INVESTMENTS
B3: PLEDGED TO LIABILITIES AND SURPLUS
E4: Audit
C5: Title of Liability to which Cash | E5: Balance | F5: RECEIPTS | L5: Balance
C6: and Investments are Pledged | E6: =IF('KEY INPUTS'!C42 = "State Fiscal Year", 'KEY INPUTS'!F46,'KEY INPUTS'!D46) -> Dec. 31, 2022 | F6: Assessments | G6: Operating | K6: Disbursements | L6: =IF('KEY INPUTS'!C42 = "State Fiscal Year", 'KEY INPUTS'!F47,'KEY INPUTS'!D47) -> Dec. 31, 2023
F7: and Liens | G7: Budget
B8: Assessment Serial Bond Issues: | E8: xxxxxxxxx | F8: xxxxxxxxx | G8: xxxxxxxxx | H8: xxxxxxxxx | I8: xxxxxxxxx | J8: xxxxxxxxx | K8: xxxxxxxxx | L8: xxxxxxxxx
L9: =+E9+F9+G9+H9+I9+J9-K9 -> 0
L10: =+E10+F10+G10+H10+I10+J10-K10 -> 0
L11: 0
L12: 0
L13: 0
B14: Assessment Bond Anticipation Note Issues: | E14: xxxxxxxxx | F14: xxxxxxxxx | G14: xxxxxxxxx | H14: xxxxxxxxx | I14: xxxxxxxxx | J14: xxxxxxxxx | K14: xxxxxxxxx | L14: xxxxxxxxx
A15: Sheet 43 | L15: 0
L16: 0
L17: 0
L18: 0
B19: Other Liabilities | L19: 0
B20: Trust Surplus | L20: 0
B21: Less Assets "Unfinanced"* | E21: xxxxxxxxx | F21: xxxxxxxxx | G21: xxxxxxxxx | H21: xxxxxxxxx | I21: xxxxxxxxx | J21: xxxxxxxxx | K21: xxxxxxxxx | L21: xxxxxxxxx
L22: 0
L23: 0
L24: 0
L25: 0
E26: =SUM(E9:E25) -> 0 | F26: 0 | G26: 0 | H26: 0 | I26: 0 | J26: 0 | K26: 0 | L26: =SUM(L9:L25) -> 0
B27: *Show as red figure

Sheet 44-Utility1 (hidden)
B2: ="SCHEDULE OF "&UPPER('KEY INPUTS'!D54)&" UTILITY BUDGET - "&IF('KEY INPUTS'!C42="State Fiscal Year","FY "&'KEY INPUTS'!D33&"",'KEY INPUTS'!D34)&"" -> SCHEDULE OF UTILITY BUDGET - 2023
B4: BUDGET REVENUES
B5: Source | H5: Budget | I5: Received | J5: Excess or
I6: in Cash | J6: Deficit*
B7: Operating Surplus Anticipated | I7: =H7 -> 0 | J7: =+I7-H7 -> 0
B8: Operating Surplus Anticipated with Consent of
B9: Director of Local Government | J9: =+I9-H9 -> 0
J10: 0
J11: 0
J12: 0
J13: 0
J14: 0
B15: Reserve for Debt Service | J15: 0
B16: Capital Fund Balance
B17: Added by N.J.S.A. 40A:4-87:(List) | H17: xxxxxxxxx | I17: xxxxxxxxx | J17: xxxxxxxxx
J18: =+I18-H18 -> 0
J19: 0
D20: Subtotal | H20: =SUM(H7:H19) -> 0 | I20: =SUM(I7:I19) -> 0 | J20: =SUM(J7:J19) -> 0
B21: Deficit (General Budget) ** | J21: =I21-H21 -> 0
H22: =+H20+H21 -> 0 | I22: =+I20+I21 -> 0 | J22: =+J20+J21 -> 0
B23: ** Amount in "Received in Cash" column for "Deficit (General Budget)" and amount expended for "Surplus (General Budget)" must
B24: agree with amounts shown for such items on Sheet 45.
B27: STATEMENT OF BUDGET APPROPRIATIONS
B28: Appropriations: | J28: xxxxxxxxx
C29: Adopted Budget
C30: Added by N.J.S.A. 40A:4-87
C31: Emergency
B32: Total Appropriations | J32: =SUM(J29:J31) -> 0
B33: Add: Overexpenditures (See Footnote)
B34: Total Appropriations and Overexpenditures | J34: =+J32+J33 -> 0
B35: Deduct Expenditures:
C36: Paid or Charged
C37: Reserved
B38: Surplus (General Budget)**
B39: Total Expenditures | J39: =SUM(I36:I38) -> 0
B40: Unexpended Balance Canceled (See Footnote) | J40: =+J34-J39 -> 0
B42: FOOTNOTES: - RE: OVEREXPENDITURES:
C43: Every appropriation overexpended in the budget document must be marked with an * and must agree in aggregate with
D44: this item.
C45: RE: UNEXPENDED BALANCES CANCELED:
C46: Are not to be shown as "Paid or Charged" in the budget document. In all instances "Total Appropriations" and
D47: "Overexpenditures" must equal the sum of "Total Expenditures" and "Unexpended Balances Canceled"
B55: Sheet 44

Sheet 45-Utility1 (hidden)
B3: ="STATEMENT OF "&IF('KEY INPUTS'!C42="State Fiscal Year","FISCAL YEAR "&'KEY INPUTS'!D33&"",'KEY INPUTS'!D34)&" OPERATION" -> STATEMENT OF 2023 OPERATION
B5: =UPPER('KEY INPUTS'!D54)&" UTILITY" -> UTILITY
B8: NOTE: | C8: ="Section 1 of this sheet is required to be filled out ONLY IF the "&IF('KEY INPUTS'!C42="State Fiscal Year","Fiscal Year "&'KEY INPUTS'!D33&"",'KEY INPUTS'!D34)&" "&PROPER('KEY INPUTS'!D54)&" Utility Budget contained" -> Section 1 of this sheet is required to be filled out ONLY IF the 2023 Utility Budget contained
C9: either an item of revenue "Deficit (General Budget)" or an item of appropriation "Surplus (General
C10: Budget)"
C11: Section 2 should be filled out in every case.
B13: SECTION 1:
B15: Revenue Realized: | J15: xxxxxxxxx
C16: Budget Revenue (Not Including "Deficit (General Budget)") | J16: =+'44-Utility1'!I20 -> 0
C17: Miscellaneous Revenue Not Anticipated
C18: =IF('KEY INPUTS'!C42="State Fiscal Year","FY "&'KEY INPUTS'!D33-1&"",'KEY INPUTS'!D34-1)&" Appropriation Reserves Canceled in "&IF('KEY INPUTS'!C42="State Fiscal Year","FY "&'KEY INPUTS'!D33&"",'KEY INPUTS'!D34) -> 2022 Appropriation Reserves Canceled in 2023
C21: Total Revenue Realized | K21: =SUM(J16:J20) -> 0
B22: Expenditures: | J22: xxxxxxxxx
C23: Appropriations (Not Including "Surplus (General Budget)") | J23: xxxxxxxxx
D24: Paid or Charged | J24: =+'44-Utility1'!I36 -> 0
D25: Reserved | J25: =+'44-Utility1'!I37 -> 0
C26: Expended Without Appropriation
C27: Cash Refund of Prior Year's Revenue
F29: Total Expenditures | J29: =SUM(J24:J28) -> 0
F30: Less: | G30: Deferred Charges Included in
G31: Above "Total Expenditures"
D32: Total Expenditures - As Adjusted | K32: =+J29-J31 -> 0
B33: Excess | K33: =IF(M33>0,M33,0) -> 0 | M33: =+K21-K32 -> 0 | N33: Do Not Remove this formula
B34: Budget Appropriation - Surplus (General Budget)**
B35: Remainder = | E35: ="Balance of Results of "&IF('KEY INPUTS'!C42="State Fiscal Year","Fiscal Year "&'KEY INPUTS'!D33&"",'KEY INPUTS'!D34)&" Operation" -> Balance of Results of 2023 Operation
E36: ("Excess in Operations" - Sheet 46) | J36: =+K33-J34 -> 0
B38: Deficit | K38: =IF(+M33>0,0,+M33*-1) -> 0
B39: Anticipated Revenue - Deficit (General Budget)** | J39: =+'44-Utility1'!I21 -> 0
B40: Remainder = | E40: ="Balance of Results of "&IF('KEY INPUTS'!C42="State Fiscal Year","Fiscal Year "&'KEY INPUTS'!D33&"",'KEY INPUTS'!D34)&" Operation" -> Balance of Results of 2023 Operation
E41: ("Operating Deficit - to Trial Balance" - Sheet 46) | J41: =+K38-J39 -> 0
B43: SECTION 2:
B44: ="The following Item of '"&IF('KEY INPUTS'!C42="State Fiscal Year","Fiscal Year "&'KEY INPUTS'!D33-1&"",'KEY INPUTS'!D34-1)&" Appropriation Reserves Canceled in "&IF('KEY INPUTS'!C42="State Fiscal Year","Fiscal Year "&'KEY INPUTS'!D33&"",'KEY INPUTS'!D34)&"' is Due to the Current" -> The following Item of '2022 Appropriation Reserves Canceled in 2023' is Due to the Current
B45: ="fund TO THE EXTENT OF the amount received and Due from the General Budget of "&IF('KEY INPUTS'!C42="State Fiscal Year","Fiscal Year "&'KEY INPUTS'!D33-1&"",'KEY INPUTS'!D34-1)&" for an" -> fund TO THE EXTENT OF the amount received and Due from the General Budget of 2022 for an
B46: ="Anticipated Deficit in the "&PROPER('KEY INPUTS'!D54)&" Utility for "&IF('KEY INPUTS'!C42="State Fiscal Year","Fiscal Year "&'KEY INPUTS'!D33-1&"",'KEY INPUTS'!D34-1)&"" -> Anticipated Deficit in the Utility for 2022
B48: =IF('KEY INPUTS'!C42="State Fiscal Year","Fiscal Year "&'KEY INPUTS'!D33-1&"",'KEY INPUTS'!D34-1)&" Appropriation Reserves Canceled in "&IF('KEY INPUTS'!C42="State Fiscal Year","Fiscal Year "&'KEY INPUTS'!D33&"",'KEY INPUTS'!D34)&"" -> 2022 Appropriation Reserves Canceled in 2023
C49: Less: | E49: ="Anticipated Deficit in "&IF('KEY INPUTS'!C42="State Fiscal Year","Fiscal Year "&'KEY INPUTS'!D33-1&"",'KEY INPUTS'!D34-1)&" Budget - Amount Received and Due from Current Fund - If none, enter 'None '" -> Anticipated Deficit in 2022 Budget - Amount Received and Due from Current Fund - If none, enter 'None '
B50: * Excess (Revenue Realized) | K50: =+MAX(0,J48-J49) -> 0
B52: ** Items must be shown in same amounts on Sheet 44.
B57: Sheet 45

Sheet 46-Utility1 (hidden)
B2: ="RESULTS OF "&IF('KEY INPUTS'!C42="State Fiscal Year","FY "&'KEY INPUTS'!D33&"",'KEY INPUTS'!D34)&" OPERATIONS - "&UPPER('KEY INPUTS'!D54)&" UTILITY" -> RESULTS OF 2023 OPERATIONS - UTILITY
K4: Debit | L4: Credit
B5: Excess in Anticipated Revenues | K5: xxxxxxxxx | L5: =IF(+'44-Utility1'!J22>0,+'44-Utility1'!J22,0) -> 0
B6: Unexpended Balances of Appropriations | K6: xxxxxxxxx | L6: =+'44-Utility1'!J40 -> 0
B7: Miscellaneous Revenues Not Anticipated | K7: xxxxxxxxx | L7: ='45-Utility1'!J17 -> 0
B8: ="Unexpended Balances of "&IF('KEY INPUTS'!C42="State Fiscal Year","FY "&'KEY INPUTS'!D33-1&"",'KEY INPUTS'!D34-1)&" Appropriation Reserves*" -> Unexpended Balances of 2022 Appropriation Reserves* | K8: xxxxxxxxx | L8: =+'45-Utility1'!K50 -> 0
B10: Deficit in Anticipated Revenues | K10: =IF(+'44-Utility1'!J22<0,-'44-Utility1'!J22,0) -> 0 | L10: xxxxxxxxx | M10: =+L9+L8+L7+L6+L5-K11-K10-K9 -> 0 | N10: Do Not Remove This Formula
L11: xxxxxxxxx
B12: Operating Deficit - to Trial Balance | K12: xxxxxxxxx | L12: =IF(M10>0,0,M10*-1) -> 0
B13: Excess in Operations - to Operating Surplus | K13: =IF(M10>0,M10,0) -> 0 | L13: xxxxxxxxx
B14: * See restriction in amount on Sheet 45, SECTION 2 | K14: =SUM(K5:K13) -> 0 | L14: =SUM(L5:L13) -> 0 | M14: =L14-K14 -> 0
B17: ="OPERATING SURPLUS - "&UPPER('KEY INPUTS'!D54)&" UTILITY" -> OPERATING SURPLUS - UTILITY
K19: Debit | L19: Credit
B20: =IF('KEY INPUTS'!C42 = "State Fiscal Year", 'KEY INPUTS'!F25,'KEY INPUTS'!D25) -> Balance - January 1, 2023 | K20: xxxxxxxxx
B22: ="Excess in Results of "&IF('KEY INPUTS'!C42="State Fiscal Year","Fiscal Year "&'KEY INPUTS'!D33&"",'KEY INPUTS'!D34)&" Operations" -> Excess in Results of 2023 Operations | K22: xxxxxxxxx | L22: =+K13 -> 0
B23: ="Amount Appropriated in the "&IF('KEY INPUTS'!C42="State Fiscal Year","FY "&'KEY INPUTS'!D33&"",'KEY INPUTS'!D34)&" Budget - Cash" -> Amount Appropriated in the 2023 Budget - Cash | K23: ='44-Utility1'!I7 -> 0 | L23: xxxxxxxxx
B24: ="Amount Appropriated in "&IF('KEY INPUTS'!C42="State Fiscal Year","FY "&'KEY INPUTS'!D33&"",'KEY INPUTS'!D34)&" Budget with Prior Written" -> Amount Appropriated in 2023 Budget with Prior Written | L24: xxxxxxxxx
B25: Consent of Director of Local Government Services
B27: =IF('KEY INPUTS'!C42 = "State Fiscal Year", 'KEY INPUTS'!F26,'KEY INPUTS'!D26) -> Balance - December 31, 2023 | K27: =+SUM(L20:L26)-SUM(K21:K26) -> 0 | L27: xxxxxxxxx | N27: MUST AGREE
K28: =SUM(K21:K27) -> 0 | L28: =SUM(L20:L27) -> 0
B32: ="ANALYSIS OF BALANCE "&IF('KEY INPUTS'!C42="State Fiscal Year","JUNE 30, "&'KEY INPUTS'!D33&"","DECEMBER 31, "&'KEY INPUTS'!D34&"") -> ANALYSIS OF BALANCE DECEMBER 31, 2023
B33: ="(FROM "&UPPER('KEY INPUTS'!D54)&" UTILITY - TRIAL BALANCE)" -> (FROM UTILITY - TRIAL BALANCE)
B35: Cash | L35: =+'41-Utility1'!G13 -> 0
B36: Investments
B37: Interfund Accounts Receivable
D38: Subtotal | L38: =SUM(L35:L37) -> 0
B39: Deduct Cash Liabilities Marked with "C" on Trial Balance | L39: =+'41-Utility1'!H39 -> 0
D40: Operating Surplus Cash or (Deficit in Operating Surplus Cash) | L40: =+L38-L39 -> 0
B41: Other Assets Pledged to Surplus:*
C42: Deferred Charges #
C43: Operating Deficit #
D44: Total Other Assets | L44: =SUM(K42:K43) -> 0
B45: ="# MAY NOT BE ANTICIPATED AS NON-CASH SURPLUS IN "&TEXT('KEY INPUTS'!D34,"0")&" BUDGET." -> # MAY NOT BE ANTICIPATED AS NON-CASH SURPLUS IN 2023 BUDGET. | L45: =+L40+L44 -> 0 | N45: MUST AGREE
B46: *In the case of a "Deficit in Operating Surplus Cash",
C47: "other Assets" would be also pledged to cash liabilities.
B52: Sheet 46

Sheet 47-Utility1 (hidden)
B3: ="SCHEDULE OF "&UPPER('KEY INPUTS'!D54&" UTILITY ACCOUNTS RECEIVABLE") -> SCHEDULE OF UTILITY ACCOUNTS RECEIVABLE
B6: =IF('KEY INPUTS'!C42="State Fiscal Year","Balance June 30, "&'KEY INPUTS'!D33-1&"","Balance December 31, "&'KEY INPUTS'!D34-1&"") -> Balance December 31, 2022 | K6: $
B10: Increased by:
D11: Rents Levied | K11: $
B15: Decreased by:
D16: Collections | I16: $
D17: Overpayments applied | I17: $
D18: Transfer to Liens | I18: $
D19: Other | I19: $
K21: $ | L21: =SUM(J16:J19) -> 0
B24: =IF('KEY INPUTS'!C42="State Fiscal Year","Balance June 30, "&'KEY INPUTS'!D33&"","Balance December 31, "&'KEY INPUTS'!D34&"") -> Balance December 31, 2023 | K24: $ | L24: =+L6+L11-L21 -> 0
B33: ="SCHEDULE OF "&UPPER('KEY INPUTS'!D54)&" UTILITY LIENS" -> SCHEDULE OF UTILITY LIENS
B36: =IF('KEY INPUTS'!C42="State Fiscal Year","Balance June 30, "&'KEY INPUTS'!D33-1&"","Balance December 31, "&'KEY INPUTS'!D34-1&"") -> Balance December 31, 2022 | K36: $
B40: Increased by:
D41: Transfers from Accounts Receivable | I41: $
D42: Penalties and Costs | I42: $
D43: Other | I43: $
K45: $ | L45: =SUM(J41:J43) -> 0
B47: Decreased by:
D48: Collections | I48: $
D49: Other | I49: $
K51: $ | L51: =+J49+J48 -> 0
B54: =IF('KEY INPUTS'!C42="State Fiscal Year","Balance June 30, "&'KEY INPUTS'!D33&"","Balance December 31, "&'KEY INPUTS'!D34&"") -> Balance December 31, 2023 | K54: $ | L54: =+L36+L45-L51 -> 0
B69: Sheet 47

Sheet 48-Utility1 (hidden)
B3: DEFERRED CHARGES
B4: - MANDATORY CHARGES ONLY -
B5: =UPPER('KEY INPUTS'!D54)&" UTILITY FUND" -> UTILITY FUND
B6: (Do not include the emergency authorizations pursuant to N.J.S.A. 40A:4-55, listed on Sheet 29)
H8: Amount
C9: Caused By | H9: =IF('KEY INPUTS'!C42 = "State Fiscal Year", 'KEY INPUTS'!F46,'KEY INPUTS'!D46) -> Dec. 31, 2022 | J9: Amount in | L9: Amount | N9: Balance
H10: per Audit | J10: =IF('KEY INPUTS'!C42="State Fiscal Year","Fiscal Year "&'KEY INPUTS'!D33&"",'KEY INPUTS'!D34)&"" -> 2023 | L10: Resulting | N10: as at
H11: Report | J11: Budget | L11: =IF('KEY INPUTS'!C42="State Fiscal Year","Fiscal Year "&'KEY INPUTS'!D33&"",'KEY INPUTS'!D34)&"" -> 2023 | N11: =IF('KEY INPUTS'!C42 = "State Fiscal Year", 'KEY INPUTS'!F47,'KEY INPUTS'!D47) -> Dec. 31, 2023
B12: 1. | C12: Emergency Authorization -
D13: Municipal* | G13: $ | I13: $ | K13: $ | M13: $ | N13: =+H13-J13+L13 -> 0
B15: 2. | G15: $ | I15: $ | K15: $ | M15: $ | N15: =+H15-J15+L15 -> 0
B16: 3. | G16: $ | I16: $ | K16: $ | M16: $ | N16: =+H16-J16+L16 -> 0
B17: 4. | G17: $ | I17: $ | K17: $ | M17: $ | N17: =+H17-J17+L17 -> 0
B18: 5. | G18: $ | I18: $ | K18: $ | M18: $ | N18: 0
C19: Deficit in Operations | G19: $ | I19: $ | K19: $ | M19: $ | N19: 0
C20: Total Operating | G20: $ | H20: =H13+H15+H16+H17+H18+H19 -> 0 | I20: $ | J20: =J13+J15+J16+J17+J18+J19 -> 0 | K20: $ | L20: =L13+L15+L16+L17+L18+L19 -> 0 | M20: $ | N20: =N13+N15+N16+N17+N18+N19 -> 0
B21: 6. | G21: $ | I21: $ | K21: $ | M21: $ | N21: 0
B22: 7. | G22: $ | I22: $ | K22: $ | M22: $ | N22: 0
C23: Total Capital | G23: $ | H23: =H21+H22 -> 0 | I23: $ | J23: =J21+J22 -> 0 | K23: $ | L23: =L21+L22 -> 0 | M23: $ | N23: 0
C25: *Do not include items funded or refunded as listed below.
B28: EMERGENCY AUTHORIZATIONS UNDER N.J.S.A. 40A:4-47 WHICH HAVE BEEN
B29: FUNDED OR REFUNDED UNDER N.J.SA.. 40A:2-3 OR N.J.S.A. 40A:2-51
D31: Date | G31: Purpose | N31: Amount
C32: 1. | M32: $
C33: 2. | M33: $
C34: 3. | M34: $
C35: 4. | M35: $
C36: 5. | M36: $
B40: JUDGMENTS ENTERED AGAINST MUNICIPALITY AND NOT SATISFIED
N42: Appropriated for
N43: in Budget of
D44: In Favor of | H44: On Account of | J44: Date Entered | L44: Amount | N44: =IF('KEY INPUTS'!C42="State Fiscal Year","Fiscal Year "&'KEY INPUTS'!D33&"",'KEY INPUTS'!D34)&"" -> 2023
C46: 1. | K46: $
C47: 2. | K47: $
C48: 3. | K48: $
C49: 4. | K49: $
B61: Sheet 48

Sheet 48a-Utility1 (hidden)
B2: UTILITY SPECIAL EMERGENCY
B7: Date | E7: Purpose | G7: Amount | H7: Not Less Than | I7: Balance | J7: ="REDUCED IN "&IF('KEY INPUTS'!C42="State Fiscal Year","FY "&'KEY INPUTS'!D33&"",'KEY INPUTS'!D34)&"" -> REDUCED IN 2023 | L7: Balance
G8: Authorized | H8: 1/5 of Amount | I8: =IF('KEY INPUTS'!C42 = "State Fiscal Year", 'KEY INPUTS'!F46,'KEY INPUTS'!D46) -> Dec. 31, 2022 | J8: ="By "&IF('KEY INPUTS'!C42="State Fiscal Year","FY "&'KEY INPUTS'!D33&"",'KEY INPUTS'!D34)&"" -> By 2023 | K8: Canceled | L8: =IF('KEY INPUTS'!C42 = "State Fiscal Year", 'KEY INPUTS'!F47,'KEY INPUTS'!D47) -> Dec. 31, 2023
H9: Authorized* | J9: Budget | K9: By Resolution
L10: =+I10-J10-K10 -> 0
L11: =+I11-J11-K11 -> 0
L12: =+I12-J12-K12 -> 0
L13: 0
L14: 0
L15: 0
A16: Sheet 48a | L16: 0
L17: 0
L18: 0
L19: 0
L20: 0
L21: 0
L22: 0
L23: 0
F24: Totals | G24: =SUM(G10:G23) -> 0 | H24: 0 | I24: 0 | J24: 0 | K24: 0 | L24: 0
B26: It is hereby certified that all outstanding "Special Emergency" appropriations have been adopted by the governing body in full compliance with N.J.S.A. 40A:4-53 et seq. and
B27: are recorded on this page
J29: Chief Financial Officer
L35: =+I24-J24-L24 -> 0

Sheet 49-Utility1 (hidden)
B2: SCHEDULE OF BONDS ISSUED AND OUTSTANDING
B3: =" AND "&IF('KEY INPUTS'!C42="State Fiscal Year","FISCAL YEAR "&'KEY INPUTS'!D33+1&"",'KEY INPUTS'!D34+1)&" DEBT SERVICE FOR BONDS" -> AND 2024 DEBT SERVICE FOR BONDS
B4: =UPPER('KEY INPUTS'!D54)&" UTILITY ASSESSMENT BONDS" -> UTILITY ASSESSMENT BONDS
G6: Debit | H6: Credit | J6: =IF('KEY INPUTS'!C42="State Fiscal Year","Fiscal Year "&'KEY INPUTS'!D33+1&"",'KEY INPUTS'!D34+1)&" Debt Service" -> 2024 Debt Service
B7: ='32-Bond Schedule'!B7 -> Outstanding - January 1, 2023 | G7: xxxxxxxxx
B8: Issued | G8: xxxxxxxxx
B10: Paid | H10: xxxxxxxxx
B11: ='32-Bond Schedule'!B11 -> Outstanding - December 31, 2023 | G11: =+H7+H8-G10 -> 0 | H11: xxxxxxxxx
G12: =SUM(G7:G11) -> 0 | H12: =SUM(H7:I11) -> 0
B13: =IF('KEY INPUTS'!C42="State Fiscal Year","Fiscal Year "&'KEY INPUTS'!D33+1&"",'KEY INPUTS'!D34+1)&" Bond Maturities - Assessment Bonds" -> 2024 Bond Maturities - Assessment Bonds | J13: $
B14: =IF('KEY INPUTS'!C42="State Fiscal Year","Fiscal Year "&'KEY INPUTS'!D33+1&"",'KEY INPUTS'!D34+1)&" Interest on Bonds" -> 2024 Interest on Bonds | H14: $
B16: =UPPER('KEY INPUTS'!D54) &" UTILITY CAPITAL BONDS" -> UTILITY CAPITAL BONDS
B17: =B7 -> Outstanding - January 1, 2023 | G17: xxxxxxxxx
B18: Issued | G18: xxxxxxxxx
B19: Paid | H19: xxxxxxxxx
B22: =B11 -> Outstanding - December 31, 2023 | G22: =+H17+H18-G19-G20-G21+H20+H21 -> 0 | H22: xxxxxxxxx
G23: =SUM(G17:G22) -> 0 | H23: =SUM(H17:I22) -> 0
B24: =IF('KEY INPUTS'!C42="State Fiscal Year","Fiscal Year "&'KEY INPUTS'!D33+1&"",'KEY INPUTS'!D34+1)&" Bond Maturities - Capital Bonds" -> 2024 Bond Maturities - Capital Bonds | J24: $
B25: =B14 -> 2024 Interest on Bonds | H25: $
B27: ="INTEREST ON BONDS - "&UPPER('KEY INPUTS'!D54)&" UTILITY BUDGET" -> INTEREST ON BONDS - UTILITY BUDGET
B28: =IF('KEY INPUTS'!C42="State Fiscal Year","Fiscal Year "&'KEY INPUTS'!D33+1&"",'KEY INPUTS'!D34+1)&" Interest on Bonds (*Items)" -> 2024 Interest on Bonds (*Items) | H28: $ | I28: =+I14+I25 -> 0
B29: ="Less: Interest Accrued to "&IF('KEY INPUTS'!C42="State Fiscal Year",(TEXT('KEY INPUTS'!F29,"mm/dd/yyy")),(TEXT('KEY INPUTS'!D29,"mm/dd/yyy")))&" (Trial Balance)" -> Less: Interest Accrued to 12/31/2023 (Trial Balance) | H29: $
C30: Subtotal | H30: $ | I30: =+I28-I29 -> 0
B31: ="Add: Interest to be Accrued as of "&IF('KEY INPUTS'!C42="State Fiscal Year",(TEXT('KEY INPUTS'!F30,"mm/dd/yyy")),(TEXT('KEY INPUTS'!D30,"mm/dd/yyy")))&"" -> Add: Interest to be Accrued as of 12/31/2024 | H31: $
B32: ="Required Appropriation "&IF('KEY INPUTS'!C42="State Fiscal Year","Fiscal Year "&'KEY INPUTS'!D33+1&"",'KEY INPUTS'!D34+1)&"" -> Required Appropriation 2024 | J32: $ | K32: =+I30+I31 -> 0
B35: ="LIST OF BONDS ISSUED DURING "&IF('KEY INPUTS'!C42="State Fiscal Year","FISCAL YEAR "&'KEY INPUTS'!D33&"",'KEY INPUTS'!D34)&"" -> LIST OF BONDS ISSUED DURING 2023
B36: Purpose | G36: =IF('KEY INPUTS'!C42="State Fiscal Year","FY "&'KEY INPUTS'!D33+1&"",'KEY INPUTS'!D34+1)&" Maturity" -> 2024 Maturity | H36: Amount Issued | J36: Date of Issue | L36: Interest Rate
